Workbook

Sheet טיימר עבודות
M1: =_xlfn.IFS(M3="","",WEEKDAY(M3)=1,"יום ראשון",WEEKDAY(M3)=2,"יום שני",WEEKDAY(M3)=3,"יום שלישי",WEEKDAY(M3)=4,"יום רביעי",WEEKDAY(M3)=5,"יום חמישי",WEEKDAY(M3)=6,"יום שישי",WEEKDAY(M3)=7,"מוצאי שבת") -> יום שישי
P2: שמות העבודות | Q2: שכר לשעה | R2: שעות העבודה | S2: השכר לעבודה | T2: הערות
L3: =IF(AN10=1,$AN$18,$AN$19) -> û | M3: =NOW() -> 2024-01-12T14:33:21.490 | P3: עריכת מהדו"ת | Q3: 60 | R3: =IF(P3="","", IFERROR(IF(SUMIFS(שעות_עבודה7[שעות],שעות_עבודה7[שם העבודה],P3)=0,"", SUMIFS(שעות_עבודה7[שעות],שעות_עבודה7[שם העבודה],P3)),"")) -> 0.3004050926 | S3: =IF(OR(Q3="",R3=""),"", IF(R3*Q3*24=0,"",R3*Q3*24)) -> 432.5833333
P4: עיון במקורות | Q4: 50 | R4: =IF(P4="","", IFERROR(IF(SUMIFS(שעות_עבודה7[שעות],שעות_עבודה7[שם העבודה],P4)=0,"", SUMIFS(שעות_עבודה7[שעות],שעות_עבודה7[שם העבודה],P4)),"")) -> 0.07310185181 | S4: =IF(OR(Q4="",R4=""),"", IF(R4*Q4*24=0,"",R4*Q4*24)) -> 87.72222218
L5: =IF(הקלקה=1,$AN$18,$AN$19) -> ü | M5: =NOW() -> 45303.6065 | P5: הגהת קונטרס | Q5: 55 | R5: =IF(P5="","", IFERROR(IF(SUMIFS(שעות_עבודה7[שעות],שעות_עבודה7[שם העבודה],P5)=0,"", SUMIFS(שעות_עבודה7[שעות],שעות_עבודה7[שם העבודה],P5)),"")) -> 0.05193287037 | S5: =IF(OR(Q5="",R5=""),"", IF(R5*Q5*24=0,"",R5*Q5*24)) -> 68.55138889
P6: סיכום הנושאים | Q6: 40 | R6: =IF(P6="","", IFERROR(IF(SUMIFS(שעות_עבודה7[שעות],שעות_עבודה7[שם העבודה],P6)=0,"", SUMIFS(שעות_עבודה7[שעות],שעות_עבודה7[שם העבודה],P6)),"")) -> 0.05193287036 | S6: =IF(OR(Q6="",R6=""),"", IF(R6*Q6*24=0,"",R6*Q6*24)) -> 49.85555555
C8: יום | D8: תאריך | E8: התחלה | F8: שם העבודה | G8: סיום | H8: הוספת דקות | I8: הפחתת דקות | J8: שעות | K8: השכר | L8: הערות | O8: התחלה | P8: עבודה | Q8: סיום | R8: שעות | S8: שכר | T8: אחוזים | U8: יעד
B9: =IF(שעות_עבודה7[[#This Row],[תאריך]]="","",ROW(A1)) -> 1 | C9: =_xlfn.IFS(שעות_עבודה7[[#This Row],[התחלה]]="","",WEEKDAY(שעות_עבודה7[[#This Row],[התחלה]])=1,"ראשון",WEEKDAY(שעות_עבודה7[[#This Row],[התחלה]])=2,"שני",WEEKDAY(שעות_עבודה7[[#This Row],[התחלה]])=3,"שלישי",WEEKDAY(שעות_עבודה7[[#This Row],[התחלה]])=4,"רביעי",WEEKDAY(שעות_עבודה7[[#This Row],[התחלה]])=5,"חמישי",WEEKDAY(שעות_עבודה7[[#This Row],[התחלה]])=6,"שישי",WEEKDAY(שעות_עבודה7[[#This Row],[התחלה]])=7,"מוצ""ש") -> שלישי | D9: =IF(שעות_עבודה7[[#This Row],[התחלה]]="","",שעות_עבודה7[[#This Row],[התחלה]]) -> 2024-01-09T16:37:56 | E9: 45300.69301 | F9: עריכת מהדו"ת | G9: 45300.73483 | H9: 10 | J9: =IF(OR(שעות_עבודה7[[#This Row],[התחלה]]="", שעות_עבודה7[[#This Row],[סיום]]-שעות_עבודה7[[#This Row],[התחלה]]+שעות_עבודה7[[#This Row],[הוספת דקות]]/1440<שעות_עבודה7[[#This Row],[הפחתת דקות]]/1440, SUM(שעות_עבודה7[[#This Row],[סיום]]-שעות_עבודה7[[#This Row],[התחלה]],שעות_עבודה7[[#This Row],[הוספת דקות]]/1440,-שעות_עבודה7[[#This Row],[הפחתת דקות]]/1440)=0), "", SUM(שעות_עבודה7[[#This Row],[סיום]]-שעות_עבודה7[[#This Row],[התחלה]],שעות_עבודה7[[#This Row],[הוספת דקות]]/1440,-שעות_עבודה7[[#This Row],[הפחתת דקות]]/1440)) -> 0.04876157407 | K9: =IF(שעות_עבודה7[[#This Row],[שעות]]="","", IF(SUMPRODUCT((שעות_עבודה7[[#This Row],[שם העבודה]]=$P$3:$P$6)*שעות_עבודה7[[#This Row],[שעות]]*($Q$3:$Q$6*24))=0,"", SUMPRODUCT((שעות_עבודה7[[#This Row],[שם העבודה]]=$P$3:$P$6)*שעות_עבודה7[[#This Row],[שעות]]*($Q$3:$Q$6*24)))) -> 70.21666666 | O9: 2024-01-11T15:57:12 | Q9: 2024-01-12T15:57:12 | R9: =IF(_xlfn.IFS( AND(NOT(ISBLANK(טבלה7[[#This Row],[התחלה]])),ISBLANK(טבלה7[[#This Row],[עבודה]]),ISBLANK(טבלה7[[#This Row],[סיום]])), SUMIF(שעות_עבודה7[התחלה],">="&טבלה7[[#This Row],[התחלה]],שעות_עבודה7[שעות]), AND(NOT(ISBLANK(טבלה7[[#This Row],[עבודה]])),ISBLANK(טבלה7[[#This Row],[התחלה]]),ISBLANK(טבלה7[[#This Row],[סיום]])), SUMIF(שעות_עבודה7[שם העבודה],טבלה7[[#This Row],[עבודה]],שעות_עבודה7[שעות]), AND(NOT(ISBLANK(טבלה7[[#This Row],[סיום]])),ISBLANK(טבלה7[[#This Row],[עבודה]]),ISBLANK(טבלה7[[#This Row],[התחלה]])), SUMIF(שעות_עבודה7[סיום],"<="&טבלה7[[#This Row],[סיום]],שעות_עבודה7[שעות]), AND(NOT(ISBLANK(טבלה7[[#This Row],[התחלה]])),NOT(ISBLANK(טבלה7[[#This Row],[עבודה]])),ISBLANK(טבלה7[[#This Row],[סיום]])), SUMIFS(שעות_עבודה7[שעות],שעות_עבודה7[התחלה],">="&טבלה7[[#This Row],[התחלה]],שעות_עבודה7[שם העבודה],טבלה7[[#This Row],[עבודה]]), AND(NOT(ISBLANK(טבלה7[[#This Row],[עבודה]])),NOT(ISBLANK(טבלה7[[#This Row],[סיום]])),ISBLANK(טבלה7[[#This Row],[התחלה]])), SUMIFS(שעות_עבודה7[שעות],שעות_עבודה7[שם העבודה],טבלה7[[#This Row],[עבודה]],שעות_עבודה7[סיום],"<="&טבלה7[[#This Row],[סיום]]), AND(NOT(ISBLANK(טבלה7[[#This Row],[התחלה]])),NOT(ISBLANK(טבלה7[[#This Row],[סיום]])),ISBLANK(טבלה7[[#This Row],[עבודה]])), SUMIFS(שעות_עבודה7[שעות],שעות_עבודה7[התחלה],">="&טבלה7[[#This Row],[התחלה]],שעות_עבודה7[סיום],"<="&טבלה7[[#This Row],[סיום]]), AND(NOT(ISBLANK(טבלה7[[#This Row],[התחלה]])),NOT(ISBLANK(טבלה7[[#This Row],[עבודה]])),NOT(ISBLANK(טבלה7[[#This Row],[סיום]]))), SUMIFS(שעות_עבודה7[שעות],שעות_עבודה7[התחלה],">="&טבלה7[[#This Row],[התחלה]],שעות_עבודה7[שם העבודה],טבלה7[[#This Row],[עבודה]],שעות_עבודה7[סיום],"<="&טבלה7[[#This Row],[סיום]]), AND(ISBLANK(טבלה7[[#This Row],[התחלה]]),ISBLANK(טבלה7[[#This Row],[עבודה]]),ISBLANK(טבלה7[[#This Row],[סיום]])),"")=0,"", _xlfn.IFS( AND(NOT(ISBLANK(טבלה7[[#This Row],[התחלה]])),ISBLANK(טבלה7[[#This Row],[עבודה]]),ISBLANK(טבלה7[[#This Row],[סיום]])), SUMIF(שעות_עבודה7[התחלה],">="&טבלה7[[#This Row],[התחלה]],שעות_עבודה7[שעות]), AND(NOT(ISBLANK(טבלה7[[#This Row],[עבודה]])),ISBLANK(טבלה7[[#This Row],[התחלה]]),ISBLANK(טבלה7[[#This Row],[סיום]])), SUMIF(שעות_עבודה7[שם העבודה],טבלה7[[#This Row],[עבודה]],שעות_עבודה7[שעות]), AND(NOT(ISBLANK(טבלה7[[#This Row],[סיום]])),ISBLANK(טבלה7[[#This Row],[עבודה]]),ISBLANK(טבלה7[[#This Row],[התחלה]])), SUMIF(שעות_עבודה7[סיום],"<="&טבלה7[[#This Row],[סיום]],שעות_עבודה7[שעות]), AND(NOT(ISBLANK(טבלה7[[#This Row],[התחלה]])),NOT(ISBLANK(טבלה7[[#This Row],[עבודה]])),ISBLANK(טבלה7[[#This Row],[סיום]])), SUMIFS(שעות_עבודה7[שעות],שעות_עבודה7[התחלה],">="&טבלה7[[#This Row],[התחלה]],שעות_עבודה7[שם העבודה],טבלה7[[#This Row],[עבודה]]), AND(NOT(ISBLANK(טבלה7[[#This Row],[עבודה]])),NOT(ISBLANK(טבלה7[[#This Row],[סיום]])),ISBLANK(טבלה7[[#This Row],[התחלה]])), SUMIFS(שעות_עבודה7[שעות],שעות_עבודה7[שם העבודה],טבלה7[[#This Row],[עבודה]],שעות_עבודה7[סיום],"<="&טבלה7[[#This Row],[סיום]]), AND(NOT(ISBLANK(טבלה7[[#This Row],[התחלה]])),NOT(ISBLANK(טבלה7[[#This Row],[סיום]])),ISBLANK(טבלה7[[#This Row],[עבודה]])), SUMIFS(שעות_עבודה7[שעות],שעות_עבודה7[התחלה],">="&טבלה7[[#This Row],[התחלה]],שעות_עבודה7[סיום],"<="&טבלה7[[#This Row],[סיום]]), AND(NOT(ISBLANK(טבלה7[[#This Row],[התחלה]])),NOT(ISBLANK(טבלה7[[#This Row],[עבודה]])),NOT(ISBLANK(טבלה7[[#This Row],[סיום]]))), SUMIFS(שעות_עבודה7[שעות],שעות_עבודה7[התחלה],">="&טבלה7[[#This Row],[התחלה]],שעות_עבודה7[שם העבודה],טבלה7[[#This Row],[עבודה]],שעות_עבודה7[סיום],"<="&טבלה7[[#This Row],[סיום]]), AND(ISBLANK(טבלה7[[#This Row],[התחלה]]),ISBLANK(טבלה7[[#This Row],[עבודה]]),ISBLANK(טבלה7[[#This Row],[סיום]])),"")) -> 0.2773726852 | S9: =IF(_xlfn.IFS( AND(NOT(ISBLANK(טבלה7[[#This Row],[התחלה]])),ISBLANK(טבלה7[[#This Row],[עבודה]]),ISBLANK(טבלה7[[#This Row],[סיום]])), SUMIF(שעות_עבודה7[התחלה],">="&טבלה7[[#This Row],[התחלה]],שעות_עבודה7[השכר]), AND(NOT(ISBLANK(טבלה7[[#This Row],[עבודה]])),ISBLANK(טבלה7[[#This Row],[התחלה]]),ISBLANK(טבלה7[[#This Row],[סיום]])), SUMIF(שעות_עבודה7[שם העבודה],טבלה7[[#This Row],[עבודה]],שעות_עבודה7[השכר]), AND(NOT(ISBLANK(טבלה7[[#This Row],[סיום]])),ISBLANK(טבלה7[[#This Row],[עבודה]]),ISBLANK(טבלה7[[#This Row],[התחלה]])), SUMIF(שעות_עבודה7[סיום],"<="&טבלה7[[#This Row],[סיום]],שעות_עבודה7[השכר]), AND(NOT(ISBLANK(טבלה7[[#This Row],[התחלה]])),NOT(ISBLANK(טבלה7[[#This Row],[עבודה]])),ISBLANK(טבלה7[[#This Row],[סיום]])), SUMIFS(שעות_עבודה7[השכר],שעות_עבודה7[התחלה],">="&טבלה7[[#This Row],[התחלה]],שעות_עבודה7[שם העבודה],טבלה7[[#This Row],[עבודה]]), AND(NOT(ISBLANK(טבלה7[[#This Row],[עבודה]])),NOT(ISBLANK(טבלה7[[#This Row],[סיום]])),ISBLANK(טבלה7[[#This Row],[התחלה]])), SUMIFS(שעות_עבודה7[השכר],שעות_עבודה7[שם העבודה],טבלה7[[#This Row],[עבודה]],שעות_עבודה7[סיום],"<="&טבלה7[[#This Row],[סיום]]), AND(NOT(ISBLANK(טבלה7[[#This Row],[התחלה]])),NOT(ISBLANK(טבלה7[[#This Row],[סיום]])),ISBLANK(טבלה7[[#This Row],[עבודה]])), SUMIFS(שעות_עבודה7[השכר],שעות_עבודה7[התחלה],">="&טבלה7[[#This Row],[התחלה]],שעות_עבודה7[סיום],"<="&טבלה7[[#This Row],[סיום]]), AND(NOT(ISBLANK(טבלה7[[#This Row],[התחלה]])),NOT(ISBLANK(טבלה7[[#This Row],[עבודה]])),NOT(ISBLANK(טבלה7[[#This Row],[סיום]]))), SUMIFS(שעות_עבודה7[השכר],שעות_עבודה7[התחלה],">="&טבלה7[[#This Row],[התחלה]],שעות_עבודה7[שם העבודה],טבלה7[[#This Row],[עבודה]],שעות_עבודה7[סיום],"<="&טבלה7[[#This Row],[סיום]]), AND(ISBLANK(טבלה7[[#This Row],[התחלה]]),ISBLANK(טבלה7[[#This Row],[עבודה]]),ISBLANK(טבלה7[[#This Row],[סיום]])),"")=0,"", _xlfn.IFS( AND(NOT(ISBLANK(טבלה7[[#This Row],[התחלה]])),ISBLANK(טבלה7[[#This Row],[עבודה]]),ISBLANK(טבלה7[[#This Row],[סיום]])), SUMIF(שעות_עבודה7[התחלה],">="&טבלה7[[#This Row],[התחלה]],שעות_עבודה7[השכר]), AND(NOT(ISBLANK(טבלה7[[#This Row],[עבודה]])),ISBLANK(טבלה7[[#This Row],[התחלה]]),ISBLANK(טבלה7[[#This Row],[סיום]])), SUMIF(שעות_עבודה7[שם העבודה],טבלה7[[#This Row],[עבודה]],שעות_עבודה7[השכר]), AND(NOT(ISBLANK(טבלה7[[#This Row],[סיום]])),ISBLANK(טבלה7[[#This Row],[עבודה]]),ISBLANK(טבלה7[[#This Row],[התחלה]])), SUMIF(שעות_עבודה7[סיום],"<="&טבלה7[[#This Row],[סיום]],שעות_עבודה7[השכר]), AND(NOT(ISBLANK(טבלה7[[#This Row],[התחלה]])),NOT(ISBLANK(טבלה7[[#This Row],[עבודה]])),ISBLANK(טבלה7[[#This Row],[סיום]])), SUMIFS(שעות_עבודה7[השכר],שעות_עבודה7[התחלה],">="&טבלה7[[#This Row],[התחלה]],שעות_עבודה7[שם העבודה],טבלה7[[#This Row],[עבודה]]), AND(NOT(ISBLANK(טבלה7[[#This Row],[עבודה]])),NOT(ISBLANK(טבלה7[[#This Row],[סיום]])),ISBLANK(טבלה7[[#This Row],[התחלה]])), SUMIFS(שעות_עבודה7[השכר],שעות_עבודה7[שם העבודה],טבלה7[[#This Row],[עבודה]],שעות_עבודה7[סיום],"<="&טבלה7[[#This Row],[סיום]]), AND(NOT(ISBLANK(טבלה7[[#This Row],[התחלה]])),NOT(ISBLANK(טבלה7[[#This Row],[סיום]])),ISBLANK(טבלה7[[#This Row],[עבודה]])), SUMIFS(שעות_עבודה7[השכר],שעות_עבודה7[התחלה],">="&טבלה7[[#This Row],[התחלה]],שעות_עבודה7[סיום],"<="&טבלה7[[#This Row],[סיום]]), AND(NOT(ISBLANK(טבלה7[[#This Row],[התחלה]])),NOT(ISBLANK(טבלה7[[#This Row],[עבודה]])),NOT(ISBLANK(טבלה7[[#This Row],[סיום]]))), SUMIFS(שעות_עבודה7[השכר],שעות_עבודה7[התחלה],">="&טבלה7[[#This Row],[התחלה]],שעות_עבודה7[שם העבודה],טבלה7[[#This Row],[עבודה]],שעות_עבודה7[סיום],"<="&טבלה7[[#This Row],[סיום]]), AND(ISBLANK(טבלה7[[#This Row],[התחלה]]),ISBLANK(טבלה7[[#This Row],[עבודה]]),ISBLANK(טבלה7[[#This Row],[סיום]])),"")) -> 393.2416667 | T9: =IF(OR(S9="", U9=""),"", IF(S9>=U9,"הגעת ליעד!", S9/U9)) -> הגעת ליעד! | U9: 350 | AN9: שמירה אוטומטית1=שמור, 0=אל תשמור
B10: =IF(שעות_עבודה7[[#This Row],[תאריך]]="","",ROW(A2)) -> 2 | C10: =_xlfn.IFS(שעות_עבודה7[[#This Row],[התחלה]]="","",WEEKDAY(שעות_עבודה7[[#This Row],[התחלה]])=1,"ראשון",WEEKDAY(שעות_עבודה7[[#This Row],[התחלה]])=2,"שני",WEEKDAY(שעות_עבודה7[[#This Row],[התחלה]])=3,"שלישי",WEEKDAY(שעות_עבודה7[[#This Row],[התחלה]])=4,"רביעי",WEEKDAY(שעות_עבודה7[[#This Row],[התחלה]])=5,"חמישי",WEEKDAY(שעות_עבודה7[[#This Row],[התחלה]])=6,"שישי",WEEKDAY(שעות_עבודה7[[#This Row],[התחלה]])=7,"מוצ""ש") -> שלישי | D10: =IF(שעות_עבודה7[[#This Row],[התחלה]]="","",שעות_עבודה7[[#This Row],[התחלה]]) -> 2024-01-09T17:37:56 | E10: 45300.73468 | F10: עיון במקורות | G10: 45300.77649 | H10: 8 | J10: =IF(OR(שעות_עבודה7[[#This Row],[התחלה]]="", שעות_עבודה7[[#This Row],[סיום]]-שעות_עבודה7[[#This Row],[התחלה]]+שעות_עבודה7[[#This Row],[הוספת דקות]]/1440<שעות_עבודה7[[#This Row],[הפחתת דקות]]/1440, SUM(שעות_עבודה7[[#This Row],[סיום]]-שעות_עבודה7[[#This Row],[התחלה]],שעות_עבודה7[[#This Row],[הוספת דקות]]/1440,-שעות_עבודה7[[#This Row],[הפחתת דקות]]/1440)=0), "", SUM(שעות_עבודה7[[#This Row],[סיום]]-שעות_עבודה7[[#This Row],[התחלה]],שעות_עבודה7[[#This Row],[הוספת דקות]]/1440,-שעות_עבודה7[[#This Row],[הפחתת דקות]]/1440)) -> 0.04737268515 | K10: =IF(שעות_עבודה7[[#This Row],[שעות]]="","", IF(SUMPRODUCT((שעות_עבודה7[[#This Row],[שם העבודה]]=$P$3:$P$6)*שעות_עבודה7[[#This Row],[שעות]]*($Q$3:$Q$6*24))=0,"", SUMPRODUCT((שעות_עבודה7[[#This Row],[שם העבודה]]=$P$3:$P$6)*שעות_עבודה7[[#This Row],[שעות]]*($Q$3:$Q$6*24)))) -> 56.84722218 | R10: =IF(_xlfn.IFS( AND(NOT(ISBLANK(טבלה7[[#This Row],[התחלה]])),ISBLANK(טבלה7[[#This Row],[עבודה]]),ISBLANK(טבלה7[[#This Row],[סיום]])), SUMIF(שעות_עבודה7[התחלה],">="&טבלה7[[#This Row],[התחלה]],שעות_עבודה7[שעות]), AND(NOT(ISBLANK(טבלה7[[#This Row],[עבודה]])),ISBLANK(טבלה7[[#This Row],[התחלה]]),ISBLANK(טבלה7[[#This Row],[סיום]])), SUMIF(שעות_עבודה7[שם העבודה],טבלה7[[#This Row],[עבודה]],שעות_עבודה7[שעות]), AND(NOT(ISBLANK(טבלה7[[#This Row],[סיום]])),ISBLANK(טבלה7[[#This Row],[עבודה]]),ISBLANK(טבלה7[[#This Row],[התחלה]])), SUMIF(שעות_עבודה7[סיום],"<="&טבלה7[[#This Row],[סיום]],שעות_עבודה7[שעות]), AND(NOT(ISBLANK(טבלה7[[#This Row],[התחלה]])),NOT(ISBLANK(טבלה7[[#This Row],[עבודה]])),ISBLANK(טבלה7[[#This Row],[סיום]])), SUMIFS(שעות_עבודה7[שעות],שעות_עבודה7[התחלה],">="&טבלה7[[#This Row],[התחלה]],שעות_עבודה7[שם העבודה],טבלה7[[#This Row],[עבודה]]), AND(NOT(ISBLANK(טבלה7[[#This Row],[עבודה]])),NOT(ISBLANK(טבלה7[[#This Row],[סיום]])),ISBLANK(טבלה7[[#This Row],[התחלה]])), SUMIFS(שעות_עבודה7[שעות],שעות_עבודה7[שם העבודה],טבלה7[[#This Row],[עבודה]],שעות_עבודה7[סיום],"<="&טבלה7[[#This Row],[סיום]]), AND(NOT(ISBLANK(טבלה7[[#This Row],[התחלה]])),NOT(ISBLANK(טבלה7[[#This Row],[סיום]])),ISBLANK(טבלה7[[#This Row],[עבודה]])), SUMIFS(שעות_עבודה7[שעות],שעות_עבודה7[התחלה],">="&טבלה7[[#This Row],[התחלה]],שעות_עבודה7[סיום],"<="&טבלה7[[#This Row],[סיום]]), AND(NOT(ISBLANK(טבלה7[[#This Row],[התחלה]])),NOT(ISBLANK(טבלה7[[#This Row],[עבודה]])),NOT(ISBLANK(טבלה7[[#This Row],[סיום]]))), SUMIFS(שעות_עבודה7[שעות],שעות_עבודה7[התחלה],">="&טבלה7[[#This Row],[התחלה]],שעות_עבודה7[שם העבודה],טבלה7[[#This Row],[עבודה]],שעות_עבודה7[סיום],"<="&טבלה7[[#This Row],[סיום]]), AND(ISBLANK(טבלה7[[#This Row],[התחלה]]),ISBLANK(טבלה7[[#This Row],[עבודה]]),ISBLANK(טבלה7[[#This Row],[סיום]])),"")=0,"", _xlfn.IFS( AND(NOT(ISBLANK(טבלה7[[#This Row],[התחלה]])),ISBLANK(טבלה7[[#This Row],[עבודה]]),ISBLANK(טבלה7[[#This Row],[סיום]])), SUMIF(שעות_עבודה7[התחלה],">="&טבלה7[[#This Row],[התחלה]],שעות_עבודה7[שעות]), AND(NOT(ISBLANK(טבלה7[[#This Row],[עבודה]])),ISBLANK(טבלה7[[#This Row],[התחלה]]),ISBLANK(טבלה7[[#This Row],[סיום]])), SUMIF(שעות_עבודה7[שם העבודה],טבלה7[[#This Row],[עבודה]],שעות_עבודה7[שעות]), AND(NOT(ISBLANK(טבלה7[[#This Row],[סיום]])),ISBLANK(טבלה7[[#This Row],[עבודה]]),ISBLANK(טבלה7[[#This Row],[התחלה]])), SUMIF(שעות_עבודה7[סיום],"<="&טבלה7[[#This Row],[סיום]],שעות_עבודה7[שעות]), AND(NOT(ISBLANK(טבלה7[[#This Row],[התחלה]])),NOT(ISBLANK(טבלה7[[#This Row],[עבודה]])),ISBLANK(טבלה7[[#This Row],[סיום]])), SUMIFS(שעות_עבודה7[שעות],שעות_עבודה7[התחלה],">="&טבלה7[[#This Row],[התחלה]],שעות_עבודה7[שם העבודה],טבלה7[[#This Row],[עבודה]]), AND(NOT(ISBLANK(טבלה7[[#This Row],[עבודה]])),NOT(ISBLANK(טבלה7[[#This Row],[סיום]])),ISBLANK(טבלה7[[#This Row],[התחלה]])), SUMIFS(שעות_עבודה7[שעות],שעות_עבודה7[שם העבודה],טבלה7[[#This Row],[עבודה]],שעות_עבודה7[סיום],"<="&טבלה7[[#This Row],[סיום]]), AND(NOT(ISBLANK(טבלה7[[#This Row],[התחלה]])),NOT(ISBLANK(טבלה7[[#This Row],[סיום]])),ISBLANK(טבלה7[[#This Row],[עבודה]])), SUMIFS(שעות_עבודה7[שעות],שעות_עבודה7[התחלה],">="&טבלה7[[#This Row],[התחלה]],שעות_עבודה7[סיום],"<="&טבלה7[[#This Row],[סיום]]), AND(NOT(ISBLANK(טבלה7[[#This Row],[התחלה]])),NOT(ISBLANK(טבלה7[[#This Row],[עבודה]])),NOT(ISBLANK(טבלה7[[#This Row],[סיום]]))), SUMIFS(שעות_עבודה7[שעות],שעות_עבודה7[התחלה],">="&טבלה7[[#This Row],[התחלה]],שעות_עבודה7[שם העבודה],טבלה7[[#This Row],[עבודה]],שעות_עבודה7[סיום],"<="&טבלה7[[#This Row],[סיום]]), AND(ISBLANK(טבלה7[[#This Row],[התחלה]]),ISBLANK(טבלה7[[#This Row],[עבודה]]),ISBLANK(טבלה7[[#This Row],[סיום]])),"")) ->  | S10: =IF(_xlfn.IFS( AND(NOT(ISBLANK(טבלה7[[#This Row],[התחלה]])),ISBLANK(טבלה7[[#This Row],[עבודה]]),ISBLANK(טבלה7[[#This Row],[סיום]])), SUMIF(שעות_עבודה7[התחלה],">="&טבלה7[[#This Row],[התחלה]],שעות_עבודה7[השכר]), AND(NOT(ISBLANK(טבלה7[[#This Row],[עבודה]])),ISBLANK(טבלה7[[#This Row],[התחלה]]),ISBLANK(טבלה7[[#This Row],[סיום]])), SUMIF(שעות_עבודה7[שם העבודה],טבלה7[[#This Row],[עבודה]],שעות_עבודה7[השכר]), AND(NOT(ISBLANK(טבלה7[[#This Row],[סיום]])),ISBLANK(טבלה7[[#This Row],[עבודה]]),ISBLANK(טבלה7[[#This Row],[התחלה]])), SUMIF(שעות_עבודה7[סיום],"<="&טבלה7[[#This Row],[סיום]],שעות_עבודה7[השכר]), AND(NOT(ISBLANK(טבלה7[[#This Row],[התחלה]])),NOT(ISBLANK(טבלה7[[#This Row],[עבודה]])),ISBLANK(טבלה7[[#This Row],[סיום]])), SUMIFS(שעות_עבודה7[השכר],שעות_עבודה7[התחלה],">="&טבלה7[[#This Row],[התחלה]],שעות_עבודה7[שם העבודה],טבלה7[[#This Row],[עבודה]]), AND(NOT(ISBLANK(טבלה7[[#This Row],[עבודה]])),NOT(ISBLANK(טבלה7[[#This Row],[סיום]])),ISBLANK(טבלה7[[#This Row],[התחלה]])), SUMIFS(שעות_עבודה7[השכר],שעות_עבודה7[שם העבודה],טבלה7[[#This Row],[עבודה]],שעות_עבודה7[סיום],"<="&טבלה7[[#This Row],[סיום]]), AND(NOT(ISBLANK(טבלה7[[#This Row],[התחלה]])),NOT(ISBLANK(טבלה7[[#This Row],[סיום]])),ISBLANK(טבלה7[[#This Row],[עבודה]])), SUMIFS(שעות_עבודה7[השכר],שעות_עבודה7[התחלה],">="&טבלה7[[#This Row],[התחלה]],שעות_עבודה7[סיום],"<="&טבלה7[[#This Row],[סיום]]), AND(NOT(ISBLANK(טבלה7[[#This Row],[התחלה]])),NOT(ISBLANK(טבלה7[[#This Row],[עבודה]])),NOT(ISBLANK(טבלה7[[#This Row],[סיום]]))), SUMIFS(שעות_עבודה7[השכר],שעות_עבודה7[התחלה],">="&טבלה7[[#This Row],[התחלה]],שעות_עבודה7[שם העבודה],טבלה7[[#This Row],[עבודה]],שעות_עבודה7[סיום],"<="&טבלה7[[#This Row],[סיום]]), AND(ISBLANK(טבלה7[[#This Row],[התחלה]]),ISBLANK(טבלה7[[#This Row],[עבודה]]),ISBLANK(טבלה7[[#This Row],[סיום]])),"")=0,"", _xlfn.IFS( AND(NOT(ISBLANK(טבלה7[[#This Row],[התחלה]])),ISBLANK(טבלה7[[#This Row],[עבודה]]),ISBLANK(טבלה7[[#This Row],[סיום]])), SUMIF(שעות_עבודה7[התחלה],">="&טבלה7[[#This Row],[התחלה]],שעות_עבודה7[השכר]), AND(NOT(ISBLANK(טבלה7[[#This Row],[עבודה]])),ISBLANK(טבלה7[[#This Row],[התחלה]]),ISBLANK(טבלה7[[#This Row],[סיום]])), SUMIF(שעות_עבודה7[שם העבודה],טבלה7[[#This Row],[עבודה]],שעות_עבודה7[השכר]), AND(NOT(ISBLANK(טבלה7[[#This Row],[סיום]])),ISBLANK(טבלה7[[#This Row],[עבודה]]),ISBLANK(טבלה7[[#This Row],[התחלה]])), SUMIF(שעות_עבודה7[סיום],"<="&טבלה7[[#This Row],[סיום]],שעות_עבודה7[השכר]), AND(NOT(ISBLANK(טבלה7[[#This Row],[התחלה]])),NOT(ISBLANK(טבלה7[[#This Row],[עבודה]])),ISBLANK(טבלה7[[#This Row],[סיום]])), SUMIFS(שעות_עבודה7[השכר],שעות_עבודה7[התחלה],">="&טבלה7[[#This Row],[התחלה]],שעות_עבודה7[שם העבודה],טבלה7[[#This Row],[עבודה]]), AND(NOT(ISBLANK(טבלה7[[#This Row],[עבודה]])),NOT(ISBLANK(טבלה7[[#This Row],[סיום]])),ISBLANK(טבלה7[[#This Row],[התחלה]])), SUMIFS(שעות_עבודה7[השכר],שעות_עבודה7[שם העבודה],טבלה7[[#This Row],[עבודה]],שעות_עבודה7[סיום],"<="&טבלה7[[#This Row],[סיום]]), AND(NOT(ISBLANK(טבלה7[[#This Row],[התחלה]])),NOT(ISBLANK(טבלה7[[#This Row],[סיום]])),ISBLANK(טבלה7[[#This Row],[עבודה]])), SUMIFS(שעות_עבודה7[השכר],שעות_עבודה7[התחלה],">="&טבלה7[[#This Row],[התחלה]],שעות_עבודה7[סיום],"<="&טבלה7[[#This Row],[סיום]]), AND(NOT(ISBLANK(טבלה7[[#This Row],[התחלה]])),NOT(ISBLANK(טבלה7[[#This Row],[עבודה]])),NOT(ISBLANK(טבלה7[[#This Row],[סיום]]))), SUMIFS(שעות_עבודה7[השכר],שעות_עבודה7[התחלה],">="&טבלה7[[#This Row],[התחלה]],שעות_עבודה7[שם העבודה],טבלה7[[#This Row],[עבודה]],שעות_עבודה7[סיום],"<="&טבלה7[[#This Row],[סיום]]), AND(ISBLANK(טבלה7[[#This Row],[התחלה]]),ISBLANK(טבלה7[[#This Row],[עבודה]]),ISBLANK(טבלה7[[#This Row],[סיום]])),"")) ->  | T10: =IF(OR(S10="", U10=""),"", IF(S10>=U10,"הגעת ליעד!", S10/U10)) ->  | AN10: 0
B11: =IF(שעות_עבודה7[[#This Row],[תאריך]]="","",ROW(A3)) -> 3 | C11: =_xlfn.IFS(שעות_עבודה7[[#This Row],[התחלה]]="","",WEEKDAY(שעות_עבודה7[[#This Row],[התחלה]])=1,"ראשון",WEEKDAY(שעות_עבודה7[[#This Row],[התחלה]])=2,"שני",WEEKDAY(שעות_עבודה7[[#This Row],[התחלה]])=3,"שלישי",WEEKDAY(שעות_עבודה7[[#This Row],[התחלה]])=4,"רביעי",WEEKDAY(שעות_עבודה7[[#This Row],[התחלה]])=5,"חמישי",WEEKDAY(שעות_עבודה7[[#This Row],[התחלה]])=6,"שישי",WEEKDAY(שעות_עבודה7[[#This Row],[התחלה]])=7,"מוצ""ש") -> רביעי | D11: =IF(שעות_עבודה7[[#This Row],[התחלה]]="","",שעות_עבודה7[[#This Row],[התחלה]]) -> 2024-01-10T16:38:22 | E11: 45301.69331 | F11: הגהת קונטרס | G11: 45301.73483 | H11: 15 | J11: =IF(OR(שעות_עבודה7[[#This Row],[התחלה]]="", שעות_עבודה7[[#This Row],[סיום]]-שעות_עבודה7[[#This Row],[התחלה]]+שעות_עבודה7[[#This Row],[הוספת דקות]]/1440<שעות_עבודה7[[#This Row],[הפחתת דקות]]/1440, SUM(שעות_עבודה7[[#This Row],[סיום]]-שעות_עבודה7[[#This Row],[התחלה]],שעות_עבודה7[[#This Row],[הוספת דקות]]/1440,-שעות_עבודה7[[#This Row],[הפחתת דקות]]/1440)=0), "", SUM(שעות_עבודה7[[#This Row],[סיום]]-שעות_עבודה7[[#This Row],[התחלה]],שעות_עבודה7[[#This Row],[הוספת דקות]]/1440,-שעות_עבודה7[[#This Row],[הפחתת דקות]]/1440)) -> 0.05193287037 | K11: =IF(שעות_עבודה7[[#This Row],[שעות]]="","", IF(SUMPRODUCT((שעות_עבודה7[[#This Row],[שם העבודה]]=$P$3:$P$6)*שעות_עבודה7[[#This Row],[שעות]]*($Q$3:$Q$6*24))=0,"", SUMPRODUCT((שעות_עבודה7[[#This Row],[שם העבודה]]=$P$3:$P$6)*שעות_עבודה7[[#This Row],[שעות]]*($Q$3:$Q$6*24)))) -> 68.55138889 | R11: =IF(_xlfn.IFS( AND(NOT(ISBLANK(טבלה7[[#This Row],[התחלה]])),ISBLANK(טבלה7[[#This Row],[עבודה]]),ISBLANK(טבלה7[[#This Row],[סיום]])), SUMIF(שעות_עבודה7[התחלה],">="&טבלה7[[#This Row],[התחלה]],שעות_עבודה7[שעות]), AND(NOT(ISBLANK(טבלה7[[#This Row],[עבודה]])),ISBLANK(טבלה7[[#This Row],[התחלה]]),ISBLANK(טבלה7[[#This Row],[סיום]])), SUMIF(שעות_עבודה7[שם העבודה],טבלה7[[#This Row],[עבודה]],שעות_עבודה7[שעות]), AND(NOT(ISBLANK(טבלה7[[#This Row],[סיום]])),ISBLANK(טבלה7[[#This Row],[עבודה]]),ISBLANK(טבלה7[[#This Row],[התחלה]])), SUMIF(שעות_עבודה7[סיום],"<="&טבלה7[[#This Row],[סיום]],שעות_עבודה7[שעות]), AND(NOT(ISBLANK(טבלה7[[#This Row],[התחלה]])),NOT(ISBLANK(טבלה7[[#This Row],[עבודה]])),ISBLANK(טבלה7[[#This Row],[סיום]])), SUMIFS(שעות_עבודה7[שעות],שעות_עבודה7[התחלה],">="&טבלה7[[#This Row],[התחלה]],שעות_עבודה7[שם העבודה],טבלה7[[#This Row],[עבודה]]), AND(NOT(ISBLANK(טבלה7[[#This Row],[עבודה]])),NOT(ISBLANK(טבלה7[[#This Row],[סיום]])),ISBLANK(טבלה7[[#This Row],[התחלה]])), SUMIFS(שעות_עבודה7[שעות],שעות_עבודה7[שם העבודה],טבלה7[[#This Row],[עבודה]],שעות_עבודה7[סיום],"<="&טבלה7[[#This Row],[סיום]]), AND(NOT(ISBLANK(טבלה7[[#This Row],[התחלה]])),NOT(ISBLANK(טבלה7[[#This Row],[סיום]])),ISBLANK(טבלה7[[#This Row],[עבודה]])), SUMIFS(שעות_עבודה7[שעות],שעות_עבודה7[התחלה],">="&טבלה7[[#This Row],[התחלה]],שעות_עבודה7[סיום],"<="&טבלה7[[#This Row],[סיום]]), AND(NOT(ISBLANK(טבלה7[[#This Row],[התחלה]])),NOT(ISBLANK(טבלה7[[#This Row],[עבודה]])),NOT(ISBLANK(טבלה7[[#This Row],[סיום]]))), SUMIFS(שעות_עבודה7[שעות],שעות_עבודה7[התחלה],">="&טבלה7[[#This Row],[התחלה]],שעות_עבודה7[שם העבודה],טבלה7[[#This Row],[עבודה]],שעות_עבודה7[סיום],"<="&טבלה7[[#This Row],[סיום]]), AND(ISBLANK(טבלה7[[#This Row],[התחלה]]),ISBLANK(טבלה7[[#This Row],[עבודה]]),ISBLANK(טבלה7[[#This Row],[סיום]])),"")=0,"", _xlfn.IFS( AND(NOT(ISBLANK(טבלה7[[#This Row],[התחלה]])),ISBLANK(טבלה7[[#This Row],[עבודה]]),ISBLANK(טבלה7[[#This Row],[סיום]])), SUMIF(שעות_עבודה7[התחלה],">="&טבלה7[[#This Row],[התחלה]],שעות_עבודה7[שעות]), AND(NOT(ISBLANK(טבלה7[[#This Row],[עבודה]])),ISBLANK(טבלה7[[#This Row],[התחלה]]),ISBLANK(טבלה7[[#This Row],[סיום]])), SUMIF(שעות_עבודה7[שם העבודה],טבלה7[[#This Row],[עבודה]],שעות_עבודה7[שעות]), AND(NOT(ISBLANK(טבלה7[[#This Row],[סיום]])),ISBLANK(טבלה7[[#This Row],[עבודה]]),ISBLANK(טבלה7[[#This Row],[התחלה]])), SUMIF(שעות_עבודה7[סיום],"<="&טבלה7[[#This Row],[סיום]],שעות_עבודה7[שעות]), AND(NOT(ISBLANK(טבלה7[[#This Row],[התחלה]])),NOT(ISBLANK(טבלה7[[#This Row],[עבודה]])),ISBLANK(טבלה7[[#This Row],[סיום]])), SUMIFS(שעות_עבודה7[שעות],שעות_עבודה7[התחלה],">="&טבלה7[[#This Row],[התחלה]],שעות_עבודה7[שם העבודה],טבלה7[[#This Row],[עבודה]]), AND(NOT(ISBLANK(טבלה7[[#This Row],[עבודה]])),NOT(ISBLANK(טבלה7[[#This Row],[סיום]])),ISBLANK(טבלה7[[#This Row],[התחלה]])), SUMIFS(שעות_עבודה7[שעות],שעות_עבודה7[שם העבודה],טבלה7[[#This Row],[עבודה]],שעות_עבודה7[סיום],"<="&טבלה7[[#This Row],[סיום]]), AND(NOT(ISBLANK(טבלה7[[#This Row],[התחלה]])),NOT(ISBLANK(טבלה7[[#This Row],[סיום]])),ISBLANK(טבלה7[[#This Row],[עבודה]])), SUMIFS(שעות_עבודה7[שעות],שעות_עבודה7[התחלה],">="&טבלה7[[#This Row],[התחלה]],שעות_עבודה7[סיום],"<="&טבלה7[[#This Row],[סיום]]), AND(NOT(ISBLANK(טבלה7[[#This Row],[התחלה]])),NOT(ISBLANK(טבלה7[[#This Row],[עבודה]])),NOT(ISBLANK(טבלה7[[#This Row],[סיום]]))), SUMIFS(שעות_עבודה7[שעות],שעות_עבודה7[התחלה],">="&טבלה7[[#This Row],[התחלה]],שעות_עבודה7[שם העבודה],טבלה7[[#This Row],[עבודה]],שעות_עבודה7[סיום],"<="&טבלה7[[#This Row],[סיום]]), AND(ISBLANK(טבלה7[[#This Row],[התחלה]]),ISBLANK(טבלה7[[#This Row],[עבודה]]),ISBLANK(טבלה7[[#This Row],[סיום]])),"")) ->  | S11: =IF(_xlfn.IFS( AND(NOT(ISBLANK(טבלה7[[#This Row],[התחלה]])),ISBLANK(טבלה7[[#This Row],[עבודה]]),ISBLANK(טבלה7[[#This Row],[סיום]])), SUMIF(שעות_עבודה7[התחלה],">="&טבלה7[[#This Row],[התחלה]],שעות_עבודה7[השכר]), AND(NOT(ISBLANK(טבלה7[[#This Row],[עבודה]])),ISBLANK(טבלה7[[#This Row],[התחלה]]),ISBLANK(טבלה7[[#This Row],[סיום]])), SUMIF(שעות_עבודה7[שם העבודה],טבלה7[[#This Row],[עבודה]],שעות_עבודה7[השכר]), AND(NOT(ISBLANK(טבלה7[[#This Row],[סיום]])),ISBLANK(טבלה7[[#This Row],[עבודה]]),ISBLANK(טבלה7[[#This Row],[התחלה]])), SUMIF(שעות_עבודה7[סיום],"<="&טבלה7[[#This Row],[סיום]],שעות_עבודה7[השכר]), AND(NOT(ISBLANK(טבלה7[[#This Row],[התחלה]])),NOT(ISBLANK(טבלה7[[#This Row],[עבודה]])),ISBLANK(טבלה7[[#This Row],[סיום]])), SUMIFS(שעות_עבודה7[השכר],שעות_עבודה7[התחלה],">="&טבלה7[[#This Row],[התחלה]],שעות_עבודה7[שם העבודה],טבלה7[[#This Row],[עבודה]]), AND(NOT(ISBLANK(טבלה7[[#This Row],[עבודה]])),NOT(ISBLANK(טבלה7[[#This Row],[סיום]])),ISBLANK(טבלה7[[#This Row],[התחלה]])), SUMIFS(שעות_עבודה7[השכר],שעות_עבודה7[שם העבודה],טבלה7[[#This Row],[עבודה]],שעות_עבודה7[סיום],"<="&טבלה7[[#This Row],[סיום]]), AND(NOT(ISBLANK(טבלה7[[#This Row],[התחלה]])),NOT(ISBLANK(טבלה7[[#This Row],[סיום]])),ISBLANK(טבלה7[[#This Row],[עבודה]])), SUMIFS(שעות_עבודה7[השכר],שעות_עבודה7[התחלה],">="&טבלה7[[#This Row],[התחלה]],שעות_עבודה7[סיום],"<="&טבלה7[[#This Row],[סיום]]), AND(NOT(ISBLANK(טבלה7[[#This Row],[התחלה]])),NOT(ISBLANK(טבלה7[[#This Row],[עבודה]])),NOT(ISBLANK(טבלה7[[#This Row],[סיום]]))), SUMIFS(שעות_עבודה7[השכר],שעות_עבודה7[התחלה],">="&טבלה7[[#This Row],[התחלה]],שעות_עבודה7[שם העבודה],טבלה7[[#This Row],[עבודה]],שעות_עבודה7[סיום],"<="&טבלה7[[#This Row],[סיום]]), AND(ISBLANK(טבלה7[[#This Row],[התחלה]]),ISBLANK(טבלה7[[#This Row],[עבודה]]),ISBLANK(טבלה7[[#This Row],[סיום]])),"")=0,"", _xlfn.IFS( AND(NOT(ISBLANK(טבלה7[[#This Row],[התחלה]])),ISBLANK(טבלה7[[#This Row],[עבודה]]),ISBLANK(טבלה7[[#This Row],[סיום]])), SUMIF(שעות_עבודה7[התחלה],">="&טבלה7[[#This Row],[התחלה]],שעות_עבודה7[השכר]), AND(NOT(ISBLANK(טבלה7[[#This Row],[עבודה]])),ISBLANK(טבלה7[[#This Row],[התחלה]]),ISBLANK(טבלה7[[#This Row],[סיום]])), SUMIF(שעות_עבודה7[שם העבודה],טבלה7[[#This Row],[עבודה]],שעות_עבודה7[השכר]), AND(NOT(ISBLANK(טבלה7[[#This Row],[סיום]])),ISBLANK(טבלה7[[#This Row],[עבודה]]),ISBLANK(טבלה7[[#This Row],[התחלה]])), SUMIF(שעות_עבודה7[סיום],"<="&טבלה7[[#This Row],[סיום]],שעות_עבודה7[השכר]), AND(NOT(ISBLANK(טבלה7[[#This Row],[התחלה]])),NOT(ISBLANK(טבלה7[[#This Row],[עבודה]])),ISBLANK(טבלה7[[#This Row],[סיום]])), SUMIFS(שעות_עבודה7[השכר],שעות_עבודה7[התחלה],">="&טבלה7[[#This Row],[התחלה]],שעות_עבודה7[שם העבודה],טבלה7[[#This Row],[עבודה]]), AND(NOT(ISBLANK(טבלה7[[#This Row],[עבודה]])),NOT(ISBLANK(טבלה7[[#This Row],[סיום]])),ISBLANK(טבלה7[[#This Row],[התחלה]])), SUMIFS(שעות_עבודה7[השכר],שעות_עבודה7[שם העבודה],טבלה7[[#This Row],[עבודה]],שעות_עבודה7[סיום],"<="&טבלה7[[#This Row],[סיום]]), AND(NOT(ISBLANK(טבלה7[[#This Row],[התחלה]])),NOT(ISBLANK(טבלה7[[#This Row],[סיום]])),ISBLANK(טבלה7[[#This Row],[עבודה]])), SUMIFS(שעות_עבודה7[השכר],שעות_עבודה7[התחלה],">="&טבלה7[[#This Row],[התחלה]],שעות_עבודה7[סיום],"<="&טבלה7[[#This Row],[סיום]]), AND(NOT(ISBLANK(טבלה7[[#This Row],[התחלה]])),NOT(ISBLANK(טבלה7[[#This Row],[עבודה]])),NOT(ISBLANK(טבלה7[[#This Row],[סיום]]))), SUMIFS(שעות_עבודה7[השכר],שעות_עבודה7[התחלה],">="&טבלה7[[#This Row],[התחלה]],שעות_עבודה7[שם העבודה],טבלה7[[#This Row],[עבודה]],שעות_עבודה7[סיום],"<="&טבלה7[[#This Row],[סיום]]), AND(ISBLANK(טבלה7[[#This Row],[התחלה]]),ISBLANK(טבלה7[[#This Row],[עבודה]]),ISBLANK(טבלה7[[#This Row],[סיום]])),"")) ->  | AN11: עבודה נבחרת
B12: =IF(שעות_עבודה7[[#This Row],[תאריך]]="","",ROW(A4)) -> 4 | C12: =_xlfn.IFS(שעות_עבודה7[[#This Row],[התחלה]]="","",WEEKDAY(שעות_עבודה7[[#This Row],[התחלה]])=1,"ראשון",WEEKDAY(שעות_עבודה7[[#This Row],[התחלה]])=2,"שני",WEEKDAY(שעות_עבודה7[[#This Row],[התחלה]])=3,"שלישי",WEEKDAY(שעות_עבודה7[[#This Row],[התחלה]])=4,"רביעי",WEEKDAY(שעות_עבודה7[[#This Row],[התחלה]])=5,"חמישי",WEEKDAY(שעות_עבודה7[[#This Row],[התחלה]])=6,"שישי",WEEKDAY(שעות_עבודה7[[#This Row],[התחלה]])=7,"מוצ""ש") -> רביעי | D12: =IF(שעות_עבודה7[[#This Row],[התחלה]]="","",שעות_עבודה7[[#This Row],[התחלה]]) -> 2024-01-10T17:38:22 | E12: 45301.73498 | F12: סיכום הנושאים | G12: 45301.77649 | H12: 20 | I12: 5 | J12: =IF(OR(שעות_עבודה7[[#This Row],[התחלה]]="", שעות_עבודה7[[#This Row],[סיום]]-שעות_עבודה7[[#This Row],[התחלה]]+שעות_עבודה7[[#This Row],[הוספת דקות]]/1440<שעות_עבודה7[[#This Row],[הפחתת דקות]]/1440, SUM(שעות_עבודה7[[#This Row],[סיום]]-שעות_עבודה7[[#This Row],[התחלה]],שעות_עבודה7[[#This Row],[הוספת דקות]]/1440,-שעות_עבודה7[[#This Row],[הפחתת דקות]]/1440)=0), "", SUM(שעות_עבודה7[[#This Row],[סיום]]-שעות_עבודה7[[#This Row],[התחלה]],שעות_עבודה7[[#This Row],[הוספת דקות]]/1440,-שעות_עבודה7[[#This Row],[הפחתת דקות]]/1440)) -> 0.05193287036 | K12: =IF(שעות_עבודה7[[#This Row],[שעות]]="","", IF(SUMPRODUCT((שעות_עבודה7[[#This Row],[שם העבודה]]=$P$3:$P$6)*שעות_עבודה7[[#This Row],[שעות]]*($Q$3:$Q$6*24))=0,"", SUMPRODUCT((שעות_עבודה7[[#This Row],[שם העבודה]]=$P$3:$P$6)*שעות_עבודה7[[#This Row],[שעות]]*($Q$3:$Q$6*24)))) -> 49.85555555 | R12: =IF(_xlfn.IFS( AND(NOT(ISBLANK(טבלה7[[#This Row],[התחלה]])),ISBLANK(טבלה7[[#This Row],[עבודה]]),ISBLANK(טבלה7[[#This Row],[סיום]])), SUMIF(שעות_עבודה7[התחלה],">="&טבלה7[[#This Row],[התחלה]],שעות_עבודה7[שעות]), AND(NOT(ISBLANK(טבלה7[[#This Row],[עבודה]])),ISBLANK(טבלה7[[#This Row],[התחלה]]),ISBLANK(טבלה7[[#This Row],[סיום]])), SUMIF(שעות_עבודה7[שם העבודה],טבלה7[[#This Row],[עבודה]],שעות_עבודה7[שעות]), AND(NOT(ISBLANK(טבלה7[[#This Row],[סיום]])),ISBLANK(טבלה7[[#This Row],[עבודה]]),ISBLANK(טבלה7[[#This Row],[התחלה]])), SUMIF(שעות_עבודה7[סיום],"<="&טבלה7[[#This Row],[סיום]],שעות_עבודה7[שעות]), AND(NOT(ISBLANK(טבלה7[[#This Row],[התחלה]])),NOT(ISBLANK(טבלה7[[#This Row],[עבודה]])),ISBLANK(טבלה7[[#This Row],[סיום]])), SUMIFS(שעות_עבודה7[שעות],שעות_עבודה7[התחלה],">="&טבלה7[[#This Row],[התחלה]],שעות_עבודה7[שם העבודה],טבלה7[[#This Row],[עבודה]]), AND(NOT(ISBLANK(טבלה7[[#This Row],[עבודה]])),NOT(ISBLANK(טבלה7[[#This Row],[סיום]])),ISBLANK(טבלה7[[#This Row],[התחלה]])), SUMIFS(שעות_עבודה7[שעות],שעות_עבודה7[שם העבודה],טבלה7[[#This Row],[עבודה]],שעות_עבודה7[סיום],"<="&טבלה7[[#This Row],[סיום]]), AND(NOT(ISBLANK(טבלה7[[#This Row],[התחלה]])),NOT(ISBLANK(טבלה7[[#This Row],[סיום]])),ISBLANK(טבלה7[[#This Row],[עבודה]])), SUMIFS(שעות_עבודה7[שעות],שעות_עבודה7[התחלה],">="&טבלה7[[#This Row],[התחלה]],שעות_עבודה7[סיום],"<="&טבלה7[[#This Row],[סיום]]), AND(NOT(ISBLANK(טבלה7[[#This Row],[התחלה]])),NOT(ISBLANK(טבלה7[[#This Row],[עבודה]])),NOT(ISBLANK(טבלה7[[#This Row],[סיום]]))), SUMIFS(שעות_עבודה7[שעות],שעות_עבודה7[התחלה],">="&טבלה7[[#This Row],[התחלה]],שעות_עבודה7[שם העבודה],טבלה7[[#This Row],[עבודה]],שעות_עבודה7[סיום],"<="&טבלה7[[#This Row],[סיום]]), AND(ISBLANK(טבלה7[[#This Row],[התחלה]]),ISBLANK(טבלה7[[#This Row],[עבודה]]),ISBLANK(טבלה7[[#This Row],[סיום]])),"")=0,"", _xlfn.IFS( AND(NOT(ISBLANK(טבלה7[[#This Row],[התחלה]])),ISBLANK(טבלה7[[#This Row],[עבודה]]),ISBLANK(טבלה7[[#This Row],[סיום]])), SUMIF(שעות_עבודה7[התחלה],">="&טבלה7[[#This Row],[התחלה]],שעות_עבודה7[שעות]), AND(NOT(ISBLANK(טבלה7[[#This Row],[עבודה]])),ISBLANK(טבלה7[[#This Row],[התחלה]]),ISBLANK(טבלה7[[#This Row],[סיום]])), SUMIF(שעות_עבודה7[שם העבודה],טבלה7[[#This Row],[עבודה]],שעות_עבודה7[שעות]), AND(NOT(ISBLANK(טבלה7[[#This Row],[סיום]])),ISBLANK(טבלה7[[#This Row],[עבודה]]),ISBLANK(טבלה7[[#This Row],[התחלה]])), SUMIF(שעות_עבודה7[סיום],"<="&טבלה7[[#This Row],[סיום]],שעות_עבודה7[שעות]), AND(NOT(ISBLANK(טבלה7[[#This Row],[התחלה]])),NOT(ISBLANK(טבלה7[[#This Row],[עבודה]])),ISBLANK(טבלה7[[#This Row],[סיום]])), SUMIFS(שעות_עבודה7[שעות],שעות_עבודה7[התחלה],">="&טבלה7[[#This Row],[התחלה]],שעות_עבודה7[שם העבודה],טבלה7[[#This Row],[עבודה]]), AND(NOT(ISBLANK(טבלה7[[#This Row],[עבודה]])),NOT(ISBLANK(טבלה7[[#This Row],[סיום]])),ISBLANK(טבלה7[[#This Row],[התחלה]])), SUMIFS(שעות_עבודה7[שעות],שעות_עבודה7[שם העבודה],טבלה7[[#This Row],[עבודה]],שעות_עבודה7[סיום],"<="&טבלה7[[#This Row],[סיום]]), AND(NOT(ISBLANK(טבלה7[[#This Row],[התחלה]])),NOT(ISBLANK(טבלה7[[#This Row],[סיום]])),ISBLANK(טבלה7[[#This Row],[עבודה]])), SUMIFS(שעות_עבודה7[שעות],שעות_עבודה7[התחלה],">="&טבלה7[[#This Row],[התחלה]],שעות_עבודה7[סיום],"<="&טבלה7[[#This Row],[סיום]]), AND(NOT(ISBLANK(טבלה7[[#This Row],[התחלה]])),NOT(ISBLANK(טבלה7[[#This Row],[עבודה]])),NOT(ISBLANK(טבלה7[[#This Row],[סיום]]))), SUMIFS(שעות_עבודה7[שעות],שעות_עבודה7[התחלה],">="&טבלה7[[#This Row],[התחלה]],שעות_עבודה7[שם העבודה],טבלה7[[#This Row],[עבודה]],שעות_עבודה7[סיום],"<="&טבלה7[[#This Row],[סיום]]), AND(ISBLANK(טבלה7[[#This Row],[התחלה]]),ISBLANK(טבלה7[[#This Row],[עבודה]]),ISBLANK(טבלה7[[#This Row],[סיום]])),"")) ->  | S12: =IF(_xlfn.IFS( AND(NOT(ISBLANK(טבלה7[[#This Row],[התחלה]])),ISBLANK(טבלה7[[#This Row],[עבודה]]),ISBLANK(טבלה7[[#This Row],[סיום]])), SUMIF(שעות_עבודה7[התחלה],">="&טבלה7[[#This Row],[התחלה]],שעות_עבודה7[השכר]), AND(NOT(ISBLANK(טבלה7[[#This Row],[עבודה]])),ISBLANK(טבלה7[[#This Row],[התחלה]]),ISBLANK(טבלה7[[#This Row],[סיום]])), SUMIF(שעות_עבודה7[שם העבודה],טבלה7[[#This Row],[עבודה]],שעות_עבודה7[השכר]), AND(NOT(ISBLANK(טבלה7[[#This Row],[סיום]])),ISBLANK(טבלה7[[#This Row],[עבודה]]),ISBLANK(טבלה7[[#This Row],[התחלה]])), SUMIF(שעות_עבודה7[סיום],"<="&טבלה7[[#This Row],[סיום]],שעות_עבודה7[השכר]), AND(NOT(ISBLANK(טבלה7[[#This Row],[התחלה]])),NOT(ISBLANK(טבלה7[[#This Row],[עבודה]])),ISBLANK(טבלה7[[#This Row],[סיום]])), SUMIFS(שעות_עבודה7[השכר],שעות_עבודה7[התחלה],">="&טבלה7[[#This Row],[התחלה]],שעות_עבודה7[שם העבודה],טבלה7[[#This Row],[עבודה]]), AND(NOT(ISBLANK(טבלה7[[#This Row],[עבודה]])),NOT(ISBLANK(טבלה7[[#This Row],[סיום]])),ISBLANK(טבלה7[[#This Row],[התחלה]])), SUMIFS(שעות_עבודה7[השכר],שעות_עבודה7[שם העבודה],טבלה7[[#This Row],[עבודה]],שעות_עבודה7[סיום],"<="&טבלה7[[#This Row],[סיום]]), AND(NOT(ISBLANK(טבלה7[[#This Row],[התחלה]])),NOT(ISBLANK(טבלה7[[#This Row],[סיום]])),ISBLANK(טבלה7[[#This Row],[עבודה]])), SUMIFS(שעות_עבודה7[השכר],שעות_עבודה7[התחלה],">="&טבלה7[[#This Row],[התחלה]],שעות_עבודה7[סיום],"<="&טבלה7[[#This Row],[סיום]]), AND(NOT(ISBLANK(טבלה7[[#This Row],[התחלה]])),NOT(ISBLANK(טבלה7[[#This Row],[עבודה]])),NOT(ISBLANK(טבלה7[[#This Row],[סיום]]))), SUMIFS(שעות_עבודה7[השכר],שעות_עבודה7[התחלה],">="&טבלה7[[#This Row],[התחלה]],שעות_עבודה7[שם העבודה],טבלה7[[#This Row],[עבודה]],שעות_עבודה7[סיום],"<="&טבלה7[[#This Row],[סיום]]), AND(ISBLANK(טבלה7[[#This Row],[התחלה]]),ISBLANK(טבלה7[[#This Row],[עבודה]]),ISBLANK(טבלה7[[#This Row],[סיום]])),"")=0,"", _xlfn.IFS( AND(NOT(ISBLANK(טבלה7[[#This Row],[התחלה]])),ISBLANK(טבלה7[[#This Row],[עבודה]]),ISBLANK(טבלה7[[#This Row],[סיום]])), SUMIF(שעות_עבודה7[התחלה],">="&טבלה7[[#This Row],[התחלה]],שעות_עבודה7[השכר]), AND(NOT(ISBLANK(טבלה7[[#This Row],[עבודה]])),ISBLANK(טבלה7[[#This Row],[התחלה]]),ISBLANK(טבלה7[[#This Row],[סיום]])), SUMIF(שעות_עבודה7[שם העבודה],טבלה7[[#This Row],[עבודה]],שעות_עבודה7[השכר]), AND(NOT(ISBLANK(טבלה7[[#This Row],[סיום]])),ISBLANK(טבלה7[[#This Row],[עבודה]]),ISBLANK(טבלה7[[#This Row],[התחלה]])), SUMIF(שעות_עבודה7[סיום],"<="&טבלה7[[#This Row],[סיום]],שעות_עבודה7[השכר]), AND(NOT(ISBLANK(טבלה7[[#This Row],[התחלה]])),NOT(ISBLANK(טבלה7[[#This Row],[עבודה]])),ISBLANK(טבלה7[[#This Row],[סיום]])), SUMIFS(שעות_עבודה7[השכר],שעות_עבודה7[התחלה],">="&טבלה7[[#This Row],[התחלה]],שעות_עבודה7[שם העבודה],טבלה7[[#This Row],[עבודה]]), AND(NOT(ISBLANK(טבלה7[[#This Row],[עבודה]])),NOT(ISBLANK(טבלה7[[#This Row],[סיום]])),ISBLANK(טבלה7[[#This Row],[התחלה]])), SUMIFS(שעות_עבודה7[השכר],שעות_עבודה7[שם העבודה],טבלה7[[#This Row],[עבודה]],שעות_עבודה7[סיום],"<="&טבלה7[[#This Row],[סיום]]), AND(NOT(ISBLANK(טבלה7[[#This Row],[התחלה]])),NOT(ISBLANK(טבלה7[[#This Row],[סיום]])),ISBLANK(טבלה7[[#This Row],[עבודה]])), SUMIFS(שעות_עבודה7[השכר],שעות_עבודה7[התחלה],">="&טבלה7[[#This Row],[התחלה]],שעות_עבודה7[סיום],"<="&טבלה7[[#This Row],[סיום]]), AND(NOT(ISBLANK(טבלה7[[#This Row],[התחלה]])),NOT(ISBLANK(טבלה7[[#This Row],[עבודה]])),NOT(ISBLANK(טבלה7[[#This Row],[סיום]]))), SUMIFS(שעות_עבודה7[השכר],שעות_עבודה7[התחלה],">="&טבלה7[[#This Row],[התחלה]],שעות_עבודה7[שם העבודה],טבלה7[[#This Row],[עבודה]],שעות_עבודה7[סיום],"<="&טבלה7[[#This Row],[סיום]]), AND(ISBLANK(טבלה7[[#This Row],[התחלה]]),ISBLANK(טבלה7[[#This Row],[עבודה]]),ISBLANK(טבלה7[[#This Row],[סיום]])),"")) ->  | AN12: 1
B13: =IF(שעות_עבודה7[[#This Row],[תאריך]]="","",ROW(A5)) -> 5 | C13: =_xlfn.IFS(שעות_עבודה7[[#This Row],[התחלה]]="","",WEEKDAY(שעות_עבודה7[[#This Row],[התחלה]])=1,"ראשון",WEEKDAY(שעות_עבודה7[[#This Row],[התחלה]])=2,"שני",WEEKDAY(שעות_עבודה7[[#This Row],[התחלה]])=3,"שלישי",WEEKDAY(שעות_עבודה7[[#This Row],[התחלה]])=4,"רביעי",WEEKDAY(שעות_עבודה7[[#This Row],[התחלה]])=5,"חמישי",WEEKDAY(שעות_עבודה7[[#This Row],[התחלה]])=6,"שישי",WEEKDAY(שעות_עבודה7[[#This Row],[התחלה]])=7,"מוצ""ש") -> חמישי | D13: =IF(שעות_עבודה7[[#This Row],[התחלה]]="","",שעות_עבודה7[[#This Row],[התחלה]]) -> 2024-01-11T16:53:05 | E13: 45302.70353 | F13: עריכת מהדו"ת | G13: 45302.73483 | J13: =IF(OR(שעות_עבודה7[[#This Row],[התחלה]]="", שעות_עבודה7[[#This Row],[סיום]]-שעות_עבודה7[[#This Row],[התחלה]]+שעות_עבודה7[[#This Row],[הוספת דקות]]/1440<שעות_עבודה7[[#This Row],[הפחתת דקות]]/1440, SUM(שעות_עבודה7[[#This Row],[סיום]]-שעות_עבודה7[[#This Row],[התחלה]],שעות_עבודה7[[#This Row],[הוספת דקות]]/1440,-שעות_עבודה7[[#This Row],[הפחתת דקות]]/1440)=0), "", SUM(שעות_עבודה7[[#This Row],[סיום]]-שעות_עבודה7[[#This Row],[התחלה]],שעות_עבודה7[[#This Row],[הוספת דקות]]/1440,-שעות_עבודה7[[#This Row],[הפחתת דקות]]/1440)) -> 0.03129629629 | K13: =IF(שעות_עבודה7[[#This Row],[שעות]]="","", IF(SUMPRODUCT((שעות_עבודה7[[#This Row],[שם העבודה]]=$P$3:$P$6)*שעות_עבודה7[[#This Row],[שעות]]*($Q$3:$Q$6*24))=0,"", SUMPRODUCT((שעות_עבודה7[[#This Row],[שם העבודה]]=$P$3:$P$6)*שעות_עבודה7[[#This Row],[שעות]]*($Q$3:$Q$6*24)))) -> 45.06666666 | R13: =IF(_xlfn.IFS( AND(NOT(ISBLANK(טבלה7[[#This Row],[התחלה]])),ISBLANK(טבלה7[[#This Row],[עבודה]]),ISBLANK(טבלה7[[#This Row],[סיום]])), SUMIF(שעות_עבודה7[התחלה],">="&טבלה7[[#This Row],[התחלה]],שעות_עבודה7[שעות]), AND(NOT(ISBLANK(טבלה7[[#This Row],[עבודה]])),ISBLANK(טבלה7[[#This Row],[התחלה]]),ISBLANK(טבלה7[[#This Row],[סיום]])), SUMIF(שעות_עבודה7[שם העבודה],טבלה7[[#This Row],[עבודה]],שעות_עבודה7[שעות]), AND(NOT(ISBLANK(טבלה7[[#This Row],[סיום]])),ISBLANK(טבלה7[[#This Row],[עבודה]]),ISBLANK(טבלה7[[#This Row],[התחלה]])), SUMIF(שעות_עבודה7[סיום],"<="&טבלה7[[#This Row],[סיום]],שעות_עבודה7[שעות]), AND(NOT(ISBLANK(טבלה7[[#This Row],[התחלה]])),NOT(ISBLANK(טבלה7[[#This Row],[עבודה]])),ISBLANK(טבלה7[[#This Row],[סיום]])), SUMIFS(שעות_עבודה7[שעות],שעות_עבודה7[התחלה],">="&טבלה7[[#This Row],[התחלה]],שעות_עבודה7[שם העבודה],טבלה7[[#This Row],[עבודה]]), AND(NOT(ISBLANK(טבלה7[[#This Row],[עבודה]])),NOT(ISBLANK(טבלה7[[#This Row],[סיום]])),ISBLANK(טבלה7[[#This Row],[התחלה]])), SUMIFS(שעות_עבודה7[שעות],שעות_עבודה7[שם העבודה],טבלה7[[#This Row],[עבודה]],שעות_עבודה7[סיום],"<="&טבלה7[[#This Row],[סיום]]), AND(NOT(ISBLANK(טבלה7[[#This Row],[התחלה]])),NOT(ISBLANK(טבלה7[[#This Row],[סיום]])),ISBLANK(טבלה7[[#This Row],[עבודה]])), SUMIFS(שעות_עבודה7[שעות],שעות_עבודה7[התחלה],">="&טבלה7[[#This Row],[התחלה]],שעות_עבודה7[סיום],"<="&טבלה7[[#This Row],[סיום]]), AND(NOT(ISBLANK(טבלה7[[#This Row],[התחלה]])),NOT(ISBLANK(טבלה7[[#This Row],[עבודה]])),NOT(ISBLANK(טבלה7[[#This Row],[סיום]]))), SUMIFS(שעות_עבודה7[שעות],שעות_עבודה7[התחלה],">="&טבלה7[[#This Row],[התחלה]],שעות_עבודה7[שם העבודה],טבלה7[[#This Row],[עבודה]],שעות_עבודה7[סיום],"<="&טבלה7[[#This Row],[סיום]]), AND(ISBLANK(טבלה7[[#This Row],[התחלה]]),ISBLANK(טבלה7[[#This Row],[עבודה]]),ISBLANK(טבלה7[[#This Row],[סיום]])),"")=0,"", _xlfn.IFS( AND(NOT(ISBLANK(טבלה7[[#This Row],[התחלה]])),ISBLANK(טבלה7[[#This Row],[עבודה]]),ISBLANK(טבלה7[[#This Row],[סיום]])), SUMIF(שעות_עבודה7[התחלה],">="&טבלה7[[#This Row],[התחלה]],שעות_עבודה7[שעות]), AND(NOT(ISBLANK(טבלה7[[#This Row],[עבודה]])),ISBLANK(טבלה7[[#This Row],[התחלה]]),ISBLANK(טבלה7[[#This Row],[סיום]])), SUMIF(שעות_עבודה7[שם העבודה],טבלה7[[#This Row],[עבודה]],שעות_עבודה7[שעות]), AND(NOT(ISBLANK(טבלה7[[#This Row],[סיום]])),ISBLANK(טבלה7[[#This Row],[עבודה]]),ISBLANK(טבלה7[[#This Row],[התחלה]])), SUMIF(שעות_עבודה7[סיום],"<="&טבלה7[[#This Row],[סיום]],שעות_עבודה7[שעות]), AND(NOT(ISBLANK(טבלה7[[#This Row],[התחלה]])),NOT(ISBLANK(טבלה7[[#This Row],[עבודה]])),ISBLANK(טבלה7[[#This Row],[סיום]])), SUMIFS(שעות_עבודה7[שעות],שעות_עבודה7[התחלה],">="&טבלה7[[#This Row],[התחלה]],שעות_עבודה7[שם העבודה],טבלה7[[#This Row],[עבודה]]), AND(NOT(ISBLANK(טבלה7[[#This Row],[עבודה]])),NOT(ISBLANK(טבלה7[[#This Row],[סיום]])),ISBLANK(טבלה7[[#This Row],[התחלה]])), SUMIFS(שעות_עבודה7[שעות],שעות_עבודה7[שם העבודה],טבלה7[[#This Row],[עבודה]],שעות_עבודה7[סיום],"<="&טבלה7[[#This Row],[סיום]]), AND(NOT(ISBLANK(טבלה7[[#This Row],[התחלה]])),NOT(ISBLANK(טבלה7[[#This Row],[סיום]])),ISBLANK(טבלה7[[#This Row],[עבודה]])), SUMIFS(שעות_עבודה7[שעות],שעות_עבודה7[התחלה],">="&טבלה7[[#This Row],[התחלה]],שעות_עבודה7[סיום],"<="&טבלה7[[#This Row],[סיום]]), AND(NOT(ISBLANK(טבלה7[[#This Row],[התחלה]])),NOT(ISBLANK(טבלה7[[#This Row],[עבודה]])),NOT(ISBLANK(טבלה7[[#This Row],[סיום]]))), SUMIFS(שעות_עבודה7[שעות],שעות_עבודה7[התחלה],">="&טבלה7[[#This Row],[התחלה]],שעות_עבודה7[שם העבודה],טבלה7[[#This Row],[עבודה]],שעות_עבודה7[סיום],"<="&טבלה7[[#This Row],[סיום]]), AND(ISBLANK(טבלה7[[#This Row],[התחלה]]),ISBLANK(טבלה7[[#This Row],[עבודה]]),ISBLANK(טבלה7[[#This Row],[סיום]])),"")) ->  | S13: =IF(_xlfn.IFS( AND(NOT(ISBLANK(טבלה7[[#This Row],[התחלה]])),ISBLANK(טבלה7[[#This Row],[עבודה]]),ISBLANK(טבלה7[[#This Row],[סיום]])), SUMIF(שעות_עבודה7[התחלה],">="&טבלה7[[#This Row],[התחלה]],שעות_עבודה7[השכר]), AND(NOT(ISBLANK(טבלה7[[#This Row],[עבודה]])),ISBLANK(טבלה7[[#This Row],[התחלה]]),ISBLANK(טבלה7[[#This Row],[סיום]])), SUMIF(שעות_עבודה7[שם העבודה],טבלה7[[#This Row],[עבודה]],שעות_עבודה7[השכר]), AND(NOT(ISBLANK(טבלה7[[#This Row],[סיום]])),ISBLANK(טבלה7[[#This Row],[עבודה]]),ISBLANK(טבלה7[[#This Row],[התחלה]])), SUMIF(שעות_עבודה7[סיום],"<="&טבלה7[[#This Row],[סיום]],שעות_עבודה7[השכר]), AND(NOT(ISBLANK(טבלה7[[#This Row],[התחלה]])),NOT(ISBLANK(טבלה7[[#This Row],[עבודה]])),ISBLANK(טבלה7[[#This Row],[סיום]])), SUMIFS(שעות_עבודה7[השכר],שעות_עבודה7[התחלה],">="&טבלה7[[#This Row],[התחלה]],שעות_עבודה7[שם העבודה],טבלה7[[#This Row],[עבודה]]), AND(NOT(ISBLANK(טבלה7[[#This Row],[עבודה]])),NOT(ISBLANK(טבלה7[[#This Row],[סיום]])),ISBLANK(טבלה7[[#This Row],[התחלה]])), SUMIFS(שעות_עבודה7[השכר],שעות_עבודה7[שם העבודה],טבלה7[[#This Row],[עבודה]],שעות_עבודה7[סיום],"<="&טבלה7[[#This Row],[סיום]]), AND(NOT(ISBLANK(טבלה7[[#This Row],[התחלה]])),NOT(ISBLANK(טבלה7[[#This Row],[סיום]])),ISBLANK(טבלה7[[#This Row],[עבודה]])), SUMIFS(שעות_עבודה7[השכר],שעות_עבודה7[התחלה],">="&טבלה7[[#This Row],[התחלה]],שעות_עבודה7[סיום],"<="&טבלה7[[#This Row],[סיום]]), AND(NOT(ISBLANK(טבלה7[[#This Row],[התחלה]])),NOT(ISBLANK(טבלה7[[#This Row],[עבודה]])),NOT(ISBLANK(טבלה7[[#This Row],[סיום]]))), SUMIFS(שעות_עבודה7[השכר],שעות_עבודה7[התחלה],">="&טבלה7[[#This Row],[התחלה]],שעות_עבודה7[שם העבודה],טבלה7[[#This Row],[עבודה]],שעות_עבודה7[סיום],"<="&טבלה7[[#This Row],[סיום]]), AND(ISBLANK(טבלה7[[#This Row],[התחלה]]),ISBLANK(טבלה7[[#This Row],[עבודה]]),ISBLANK(טבלה7[[#This Row],[סיום]])),"")=0,"", _xlfn.IFS( AND(NOT(ISBLANK(טבלה7[[#This Row],[התחלה]])),ISBLANK(טבלה7[[#This Row],[עבודה]]),ISBLANK(טבלה7[[#This Row],[סיום]])), SUMIF(שעות_עבודה7[התחלה],">="&טבלה7[[#This Row],[התחלה]],שעות_עבודה7[השכר]), AND(NOT(ISBLANK(טבלה7[[#This Row],[עבודה]])),ISBLANK(טבלה7[[#This Row],[התחלה]]),ISBLANK(טבלה7[[#This Row],[סיום]])), SUMIF(שעות_עבודה7[שם העבודה],טבלה7[[#This Row],[עבודה]],שעות_עבודה7[השכר]), AND(NOT(ISBLANK(טבלה7[[#This Row],[סיום]])),ISBLANK(טבלה7[[#This Row],[עבודה]]),ISBLANK(טבלה7[[#This Row],[התחלה]])), SUMIF(שעות_עבודה7[סיום],"<="&טבלה7[[#This Row],[סיום]],שעות_עבודה7[השכר]), AND(NOT(ISBLANK(טבלה7[[#This Row],[התחלה]])),NOT(ISBLANK(טבלה7[[#This Row],[עבודה]])),ISBLANK(טבלה7[[#This Row],[סיום]])), SUMIFS(שעות_עבודה7[השכר],שעות_עבודה7[התחלה],">="&טבלה7[[#This Row],[התחלה]],שעות_עבודה7[שם העבודה],טבלה7[[#This Row],[עבודה]]), AND(NOT(ISBLANK(טבלה7[[#This Row],[עבודה]])),NOT(ISBLANK(טבלה7[[#This Row],[סיום]])),ISBLANK(טבלה7[[#This Row],[התחלה]])), SUMIFS(שעות_עבודה7[השכר],שעות_עבודה7[שם העבודה],טבלה7[[#This Row],[עבודה]],שעות_עבודה7[סיום],"<="&טבלה7[[#This Row],[סיום]]), AND(NOT(ISBLANK(טבלה7[[#This Row],[התחלה]])),NOT(ISBLANK(טבלה7[[#This Row],[סיום]])),ISBLANK(טבלה7[[#This Row],[עבודה]])), SUMIFS(שעות_עבודה7[השכר],שעות_עבודה7[התחלה],">="&טבלה7[[#This Row],[התחלה]],שעות_עבודה7[סיום],"<="&טבלה7[[#This Row],[סיום]]), AND(NOT(ISBLANK(טבלה7[[#This Row],[התחלה]])),NOT(ISBLANK(טבלה7[[#This Row],[עבודה]])),NOT(ISBLANK(טבלה7[[#This Row],[סיום]]))), SUMIFS(שעות_עבודה7[השכר],שעות_עבודה7[התחלה],">="&טבלה7[[#This Row],[התחלה]],שעות_עבודה7[שם העבודה],טבלה7[[#This Row],[עבודה]],שעות_עבודה7[סיום],"<="&טבלה7[[#This Row],[סיום]]), AND(ISBLANK(טבלה7[[#This Row],[התחלה]]),ISBLANK(טבלה7[[#This Row],[עבודה]]),ISBLANK(טבלה7[[#This Row],[סיום]])),"")) ->  | AN13: שם עבודה נבחרת
B14: =IF(שעות_עבודה7[[#This Row],[תאריך]]="","",ROW(A6)) -> 6 | C14: =_xlfn.IFS(שעות_עבודה7[[#This Row],[התחלה]]="","",WEEKDAY(שעות_עבודה7[[#This Row],[התחלה]])=1,"ראשון",WEEKDAY(שעות_עבודה7[[#This Row],[התחלה]])=2,"שני",WEEKDAY(שעות_עבודה7[[#This Row],[התחלה]])=3,"שלישי",WEEKDAY(שעות_עבודה7[[#This Row],[התחלה]])=4,"רביעי",WEEKDAY(שעות_עבודה7[[#This Row],[התחלה]])=5,"חמישי",WEEKDAY(שעות_עבודה7[[#This Row],[התחלה]])=6,"שישי",WEEKDAY(שעות_עבודה7[[#This Row],[התחלה]])=7,"מוצ""ש") -> חמישי | D14: =IF(שעות_עבודה7[[#This Row],[התחלה]]="","",שעות_עבודה7[[#This Row],[התחלה]]) -> 2024-01-11T16:53:06 | E14: 45302.70354 | F14: עיון במקורות | G14: 45302.73483 | I14: 8 | J14: =IF(OR(שעות_עבודה7[[#This Row],[התחלה]]="", שעות_עבודה7[[#This Row],[סיום]]-שעות_עבודה7[[#This Row],[התחלה]]+שעות_עבודה7[[#This Row],[הוספת דקות]]/1440<שעות_עבודה7[[#This Row],[הפחתת דקות]]/1440, SUM(שעות_עבודה7[[#This Row],[סיום]]-שעות_עבודה7[[#This Row],[התחלה]],שעות_עבודה7[[#This Row],[הוספת דקות]]/1440,-שעות_עבודה7[[#This Row],[הפחתת דקות]]/1440)=0), "", SUM(שעות_עבודה7[[#This Row],[סיום]]-שעות_עבודה7[[#This Row],[התחלה]],שעות_עבודה7[[#This Row],[הוספת דקות]]/1440,-שעות_עבודה7[[#This Row],[הפחתת דקות]]/1440)) -> 0.02572916666 | K14: =IF(שעות_עבודה7[[#This Row],[שעות]]="","", IF(SUMPRODUCT((שעות_עבודה7[[#This Row],[שם העבודה]]=$P$3:$P$6)*שעות_עבודה7[[#This Row],[שעות]]*($Q$3:$Q$6*24))=0,"", SUMPRODUCT((שעות_עבודה7[[#This Row],[שם העבודה]]=$P$3:$P$6)*שעות_עבודה7[[#This Row],[שעות]]*($Q$3:$Q$6*24)))) -> 30.87499999 | R14: =IF(_xlfn.IFS( AND(NOT(ISBLANK(טבלה7[[#This Row],[התחלה]])),ISBLANK(טבלה7[[#This Row],[עבודה]]),ISBLANK(טבלה7[[#This Row],[סיום]])), SUMIF(שעות_עבודה7[התחלה],">="&טבלה7[[#This Row],[התחלה]],שעות_עבודה7[שעות]), AND(NOT(ISBLANK(טבלה7[[#This Row],[עבודה]])),ISBLANK(טבלה7[[#This Row],[התחלה]]),ISBLANK(טבלה7[[#This Row],[סיום]])), SUMIF(שעות_עבודה7[שם העבודה],טבלה7[[#This Row],[עבודה]],שעות_עבודה7[שעות]), AND(NOT(ISBLANK(טבלה7[[#This Row],[סיום]])),ISBLANK(טבלה7[[#This Row],[עבודה]]),ISBLANK(טבלה7[[#This Row],[התחלה]])), SUMIF(שעות_עבודה7[סיום],"<="&טבלה7[[#This Row],[סיום]],שעות_עבודה7[שעות]), AND(NOT(ISBLANK(טבלה7[[#This Row],[התחלה]])),NOT(ISBLANK(טבלה7[[#This Row],[עבודה]])),ISBLANK(טבלה7[[#This Row],[סיום]])), SUMIFS(שעות_עבודה7[שעות],שעות_עבודה7[התחלה],">="&טבלה7[[#This Row],[התחלה]],שעות_עבודה7[שם העבודה],טבלה7[[#This Row],[עבודה]]), AND(NOT(ISBLANK(טבלה7[[#This Row],[עבודה]])),NOT(ISBLANK(טבלה7[[#This Row],[סיום]])),ISBLANK(טבלה7[[#This Row],[התחלה]])), SUMIFS(שעות_עבודה7[שעות],שעות_עבודה7[שם העבודה],טבלה7[[#This Row],[עבודה]],שעות_עבודה7[סיום],"<="&טבלה7[[#This Row],[סיום]]), AND(NOT(ISBLANK(טבלה7[[#This Row],[התחלה]])),NOT(ISBLANK(טבלה7[[#This Row],[סיום]])),ISBLANK(טבלה7[[#This Row],[עבודה]])), SUMIFS(שעות_עבודה7[שעות],שעות_עבודה7[התחלה],">="&טבלה7[[#This Row],[התחלה]],שעות_עבודה7[סיום],"<="&טבלה7[[#This Row],[סיום]]), AND(NOT(ISBLANK(טבלה7[[#This Row],[התחלה]])),NOT(ISBLANK(טבלה7[[#This Row],[עבודה]])),NOT(ISBLANK(טבלה7[[#This Row],[סיום]]))), SUMIFS(שעות_עבודה7[שעות],שעות_עבודה7[התחלה],">="&טבלה7[[#This Row],[התחלה]],שעות_עבודה7[שם העבודה],טבלה7[[#This Row],[עבודה]],שעות_עבודה7[סיום],"<="&טבלה7[[#This Row],[סיום]]), AND(ISBLANK(טבלה7[[#This Row],[התחלה]]),ISBLANK(טבלה7[[#This Row],[עבודה]]),ISBLANK(טבלה7[[#This Row],[סיום]])),"")=0,"", _xlfn.IFS( AND(NOT(ISBLANK(טבלה7[[#This Row],[התחלה]])),ISBLANK(טבלה7[[#This Row],[עבודה]]),ISBLANK(טבלה7[[#This Row],[סיום]])), SUMIF(שעות_עבודה7[התחלה],">="&טבלה7[[#This Row],[התחלה]],שעות_עבודה7[שעות]), AND(NOT(ISBLANK(טבלה7[[#This Row],[עבודה]])),ISBLANK(טבלה7[[#This Row],[התחלה]]),ISBLANK(טבלה7[[#This Row],[סיום]])), SUMIF(שעות_עבודה7[שם העבודה],טבלה7[[#This Row],[עבודה]],שעות_עבודה7[שעות]), AND(NOT(ISBLANK(טבלה7[[#This Row],[סיום]])),ISBLANK(טבלה7[[#This Row],[עבודה]]),ISBLANK(טבלה7[[#This Row],[התחלה]])), SUMIF(שעות_עבודה7[סיום],"<="&טבלה7[[#This Row],[סיום]],שעות_עבודה7[שעות]), AND(NOT(ISBLANK(טבלה7[[#This Row],[התחלה]])),NOT(ISBLANK(טבלה7[[#This Row],[עבודה]])),ISBLANK(טבלה7[[#This Row],[סיום]])), SUMIFS(שעות_עבודה7[שעות],שעות_עבודה7[התחלה],">="&טבלה7[[#This Row],[התחלה]],שעות_עבודה7[שם העבודה],טבלה7[[#This Row],[עבודה]]), AND(NOT(ISBLANK(טבלה7[[#This Row],[עבודה]])),NOT(ISBLANK(טבלה7[[#This Row],[סיום]])),ISBLANK(טבלה7[[#This Row],[התחלה]])), SUMIFS(שעות_עבודה7[שעות],שעות_עבודה7[שם העבודה],טבלה7[[#This Row],[עבודה]],שעות_עבודה7[סיום],"<="&טבלה7[[#This Row],[סיום]]), AND(NOT(ISBLANK(טבלה7[[#This Row],[התחלה]])),NOT(ISBLANK(טבלה7[[#This Row],[סיום]])),ISBLANK(טבלה7[[#This Row],[עבודה]])), SUMIFS(שעות_עבודה7[שעות],שעות_עבודה7[התחלה],">="&טבלה7[[#This Row],[התחלה]],שעות_עבודה7[סיום],"<="&טבלה7[[#This Row],[סיום]]), AND(NOT(ISBLANK(טבלה7[[#This Row],[התחלה]])),NOT(ISBLANK(טבלה7[[#This Row],[עבודה]])),NOT(ISBLANK(טבלה7[[#This Row],[סיום]]))), SUMIFS(שעות_עבודה7[שעות],שעות_עבודה7[התחלה],">="&טבלה7[[#This Row],[התחלה]],שעות_עבודה7[שם העבודה],טבלה7[[#This Row],[עבודה]],שעות_עבודה7[סיום],"<="&טבלה7[[#This Row],[סיום]]), AND(ISBLANK(טבלה7[[#This Row],[התחלה]]),ISBLANK(טבלה7[[#This Row],[עבודה]]),ISBLANK(טבלה7[[#This Row],[סיום]])),"")) ->  | S14: =IF(_xlfn.IFS( AND(NOT(ISBLANK(טבלה7[[#This Row],[התחלה]])),ISBLANK(טבלה7[[#This Row],[עבודה]]),ISBLANK(טבלה7[[#This Row],[סיום]])), SUMIF(שעות_עבודה7[התחלה],">="&טבלה7[[#This Row],[התחלה]],שעות_עבודה7[השכר]), AND(NOT(ISBLANK(טבלה7[[#This Row],[עבודה]])),ISBLANK(טבלה7[[#This Row],[התחלה]]),ISBLANK(טבלה7[[#This Row],[סיום]])), SUMIF(שעות_עבודה7[שם העבודה],טבלה7[[#This Row],[עבודה]],שעות_עבודה7[השכר]), AND(NOT(ISBLANK(טבלה7[[#This Row],[סיום]])),ISBLANK(טבלה7[[#This Row],[עבודה]]),ISBLANK(טבלה7[[#This Row],[התחלה]])), SUMIF(שעות_עבודה7[סיום],"<="&טבלה7[[#This Row],[סיום]],שעות_עבודה7[השכר]), AND(NOT(ISBLANK(טבלה7[[#This Row],[התחלה]])),NOT(ISBLANK(טבלה7[[#This Row],[עבודה]])),ISBLANK(טבלה7[[#This Row],[סיום]])), SUMIFS(שעות_עבודה7[השכר],שעות_עבודה7[התחלה],">="&טבלה7[[#This Row],[התחלה]],שעות_עבודה7[שם העבודה],טבלה7[[#This Row],[עבודה]]), AND(NOT(ISBLANK(טבלה7[[#This Row],[עבודה]])),NOT(ISBLANK(טבלה7[[#This Row],[סיום]])),ISBLANK(טבלה7[[#This Row],[התחלה]])), SUMIFS(שעות_עבודה7[השכר],שעות_עבודה7[שם העבודה],טבלה7[[#This Row],[עבודה]],שעות_עבודה7[סיום],"<="&טבלה7[[#This Row],[סיום]]), AND(NOT(ISBLANK(טבלה7[[#This Row],[התחלה]])),NOT(ISBLANK(טבלה7[[#This Row],[סיום]])),ISBLANK(טבלה7[[#This Row],[עבודה]])), SUMIFS(שעות_עבודה7[השכר],שעות_עבודה7[התחלה],">="&טבלה7[[#This Row],[התחלה]],שעות_עבודה7[סיום],"<="&טבלה7[[#This Row],[סיום]]), AND(NOT(ISBLANK(טבלה7[[#This Row],[התחלה]])),NOT(ISBLANK(טבלה7[[#This Row],[עבודה]])),NOT(ISBLANK(טבלה7[[#This Row],[סיום]]))), SUMIFS(שעות_עבודה7[השכר],שעות_עבודה7[התחלה],">="&טבלה7[[#This Row],[התחלה]],שעות_עבודה7[שם העבודה],טבלה7[[#This Row],[עבודה]],שעות_עבודה7[סיום],"<="&טבלה7[[#This Row],[סיום]]), AND(ISBLANK(טבלה7[[#This Row],[התחלה]]),ISBLANK(טבלה7[[#This Row],[עבודה]]),ISBLANK(טבלה7[[#This Row],[סיום]])),"")=0,"", _xlfn.IFS( AND(NOT(ISBLANK(טבלה7[[#This Row],[התחלה]])),ISBLANK(טבלה7[[#This Row],[עבודה]]),ISBLANK(טבלה7[[#This Row],[סיום]])), SUMIF(שעות_עבודה7[התחלה],">="&טבלה7[[#This Row],[התחלה]],שעות_עבודה7[השכר]), AND(NOT(ISBLANK(טבלה7[[#This Row],[עבודה]])),ISBLANK(טבלה7[[#This Row],[התחלה]]),ISBLANK(טבלה7[[#This Row],[סיום]])), SUMIF(שעות_עבודה7[שם העבודה],טבלה7[[#This Row],[עבודה]],שעות_עבודה7[השכר]), AND(NOT(ISBLANK(טבלה7[[#This Row],[סיום]])),ISBLANK(טבלה7[[#This Row],[עבודה]]),ISBLANK(טבלה7[[#This Row],[התחלה]])), SUMIF(שעות_עבודה7[סיום],"<="&טבלה7[[#This Row],[סיום]],שעות_עבודה7[השכר]), AND(NOT(ISBLANK(טבלה7[[#This Row],[התחלה]])),NOT(ISBLANK(טבלה7[[#This Row],[עבודה]])),ISBLANK(טבלה7[[#This Row],[סיום]])), SUMIFS(שעות_עבודה7[השכר],שעות_עבודה7[התחלה],">="&טבלה7[[#This Row],[התחלה]],שעות_עבודה7[שם העבודה],טבלה7[[#This Row],[עבודה]]), AND(NOT(ISBLANK(טבלה7[[#This Row],[עבודה]])),NOT(ISBLANK(טבלה7[[#This Row],[סיום]])),ISBLANK(טבלה7[[#This Row],[התחלה]])), SUMIFS(שעות_עבודה7[השכר],שעות_עבודה7[שם העבודה],טבלה7[[#This Row],[עבודה]],שעות_עבודה7[סיום],"<="&טבלה7[[#This Row],[סיום]]), AND(NOT(ISBLANK(טבלה7[[#This Row],[התחלה]])),NOT(ISBLANK(טבלה7[[#This Row],[סיום]])),ISBLANK(טבלה7[[#This Row],[עבודה]])), SUMIFS(שעות_עבודה7[השכר],שעות_עבודה7[התחלה],">="&טבלה7[[#This Row],[התחלה]],שעות_עבודה7[סיום],"<="&טבלה7[[#This Row],[סיום]]), AND(NOT(ISBLANK(טבלה7[[#This Row],[התחלה]])),NOT(ISBLANK(טבלה7[[#This Row],[עבודה]])),NOT(ISBLANK(טבלה7[[#This Row],[סיום]]))), SUMIFS(שעות_עבודה7[השכר],שעות_עבודה7[התחלה],">="&טבלה7[[#This Row],[התחלה]],שעות_עבודה7[שם העבודה],טבלה7[[#This Row],[עבודה]],שעות_עבודה7[סיום],"<="&טבלה7[[#This Row],[סיום]]), AND(ISBLANK(טבלה7[[#This Row],[התחלה]]),ISBLANK(טבלה7[[#This Row],[עבודה]]),ISBLANK(טבלה7[[#This Row],[סיום]])),"")) ->  | AN14: =INDEX('טיימר עבודות'!$P$3:$P$6,AN12) -> עריכת מהדו"ת
B15: =IF(שעות_עבודה7[[#This Row],[תאריך]]="","",ROW(A7)) -> 7 | C15: =_xlfn.IFS(שעות_עבודה7[[#This Row],[התחלה]]="","",WEEKDAY(שעות_עבודה7[[#This Row],[התחלה]])=1,"ראשון",WEEKDAY(שעות_עבודה7[[#This Row],[התחלה]])=2,"שני",WEEKDAY(שעות_עבודה7[[#This Row],[התחלה]])=3,"שלישי",WEEKDAY(שעות_עבודה7[[#This Row],[התחלה]])=4,"רביעי",WEEKDAY(שעות_עבודה7[[#This Row],[התחלה]])=5,"חמישי",WEEKDAY(שעות_עבודה7[[#This Row],[התחלה]])=6,"שישי",WEEKDAY(שעות_עבודה7[[#This Row],[התחלה]])=7,"מוצ""ש") -> חמישי | D15: =IF(שעות_עבודה7[[#This Row],[התחלה]]="","",שעות_עבודה7[[#This Row],[התחלה]]) -> 2024-01-11T19:58:09 | E15: 45302.83205 | F15: עריכת מהדו"ת | G15: 45302.83241 | H15: 30 | J15: =IF(OR(שעות_עבודה7[[#This Row],[התחלה]]="", שעות_עבודה7[[#This Row],[סיום]]-שעות_עבודה7[[#This Row],[התחלה]]+שעות_עבודה7[[#This Row],[הוספת דקות]]/1440<שעות_עבודה7[[#This Row],[הפחתת דקות]]/1440, SUM(שעות_עבודה7[[#This Row],[סיום]]-שעות_עבודה7[[#This Row],[התחלה]],שעות_עבודה7[[#This Row],[הוספת דקות]]/1440,-שעות_עבודה7[[#This Row],[הפחתת דקות]]/1440)=0), "", SUM(שעות_עבודה7[[#This Row],[סיום]]-שעות_עבודה7[[#This Row],[התחלה]],שעות_עבודה7[[#This Row],[הוספת דקות]]/1440,-שעות_עבודה7[[#This Row],[הפחתת דקות]]/1440)) -> 0.02119212963 | K15: =IF(שעות_עבודה7[[#This Row],[שעות]]="","", IF(SUMPRODUCT((שעות_עבודה7[[#This Row],[שם העבודה]]=$P$3:$P$6)*שעות_עבודה7[[#This Row],[שעות]]*($Q$3:$Q$6*24))=0,"", SUMPRODUCT((שעות_עבודה7[[#This Row],[שם העבודה]]=$P$3:$P$6)*שעות_עבודה7[[#This Row],[שעות]]*($Q$3:$Q$6*24)))) -> 30.51666666 | R15: =IF(_xlfn.IFS( AND(NOT(ISBLANK(טבלה7[[#This Row],[התחלה]])),ISBLANK(טבלה7[[#This Row],[עבודה]]),ISBLANK(טבלה7[[#This Row],[סיום]])), SUMIF(שעות_עבודה7[התחלה],">="&טבלה7[[#This Row],[התחלה]],שעות_עבודה7[שעות]), AND(NOT(ISBLANK(טבלה7[[#This Row],[עבודה]])),ISBLANK(טבלה7[[#This Row],[התחלה]]),ISBLANK(טבלה7[[#This Row],[סיום]])), SUMIF(שעות_עבודה7[שם העבודה],טבלה7[[#This Row],[עבודה]],שעות_עבודה7[שעות]), AND(NOT(ISBLANK(טבלה7[[#This Row],[סיום]])),ISBLANK(טבלה7[[#This Row],[עבודה]]),ISBLANK(טבלה7[[#This Row],[התחלה]])), SUMIF(שעות_עבודה7[סיום],"<="&טבלה7[[#This Row],[סיום]],שעות_עבודה7[שעות]), AND(NOT(ISBLANK(טבלה7[[#This Row],[התחלה]])),NOT(ISBLANK(טבלה7[[#This Row],[עבודה]])),ISBLANK(טבלה7[[#This Row],[סיום]])), SUMIFS(שעות_עבודה7[שעות],שעות_עבודה7[התחלה],">="&טבלה7[[#This Row],[התחלה]],שעות_עבודה7[שם העבודה],טבלה7[[#This Row],[עבודה]]), AND(NOT(ISBLANK(טבלה7[[#This Row],[עבודה]])),NOT(ISBLANK(טבלה7[[#This Row],[סיום]])),ISBLANK(טבלה7[[#This Row],[התחלה]])), SUMIFS(שעות_עבודה7[שעות],שעות_עבודה7[שם העבודה],טבלה7[[#This Row],[עבודה]],שעות_עבודה7[סיום],"<="&טבלה7[[#This Row],[סיום]]), AND(NOT(ISBLANK(טבלה7[[#This Row],[התחלה]])),NOT(ISBLANK(טבלה7[[#This Row],[סיום]])),ISBLANK(טבלה7[[#This Row],[עבודה]])), SUMIFS(שעות_עבודה7[שעות],שעות_עבודה7[התחלה],">="&טבלה7[[#This Row],[התחלה]],שעות_עבודה7[סיום],"<="&טבלה7[[#This Row],[סיום]]), AND(NOT(ISBLANK(טבלה7[[#This Row],[התחלה]])),NOT(ISBLANK(טבלה7[[#This Row],[עבודה]])),NOT(ISBLANK(טבלה7[[#This Row],[סיום]]))), SUMIFS(שעות_עבודה7[שעות],שעות_עבודה7[התחלה],">="&טבלה7[[#This Row],[התחלה]],שעות_עבודה7[שם העבודה],טבלה7[[#This Row],[עבודה]],שעות_עבודה7[סיום],"<="&טבלה7[[#This Row],[סיום]]), AND(ISBLANK(טבלה7[[#This Row],[התחלה]]),ISBLANK(טבלה7[[#This Row],[עבודה]]),ISBLANK(טבלה7[[#This Row],[סיום]])),"")=0,"", _xlfn.IFS( AND(NOT(ISBLANK(טבלה7[[#This Row],[התחלה]])),ISBLANK(טבלה7[[#This Row],[עבודה]]),ISBLANK(טבלה7[[#This Row],[סיום]])), SUMIF(שעות_עבודה7[התחלה],">="&טבלה7[[#This Row],[התחלה]],שעות_עבודה7[שעות]), AND(NOT(ISBLANK(טבלה7[[#This Row],[עבודה]])),ISBLANK(טבלה7[[#This Row],[התחלה]]),ISBLANK(טבלה7[[#This Row],[סיום]])), SUMIF(שעות_עבודה7[שם העבודה],טבלה7[[#This Row],[עבודה]],שעות_עבודה7[שעות]), AND(NOT(ISBLANK(טבלה7[[#This Row],[סיום]])),ISBLANK(טבלה7[[#This Row],[עבודה]]),ISBLANK(טבלה7[[#This Row],[התחלה]])), SUMIF(שעות_עבודה7[סיום],"<="&טבלה7[[#This Row],[סיום]],שעות_עבודה7[שעות]), AND(NOT(ISBLANK(טבלה7[[#This Row],[התחלה]])),NOT(ISBLANK(טבלה7[[#This Row],[עבודה]])),ISBLANK(טבלה7[[#This Row],[סיום]])), SUMIFS(שעות_עבודה7[שעות],שעות_עבודה7[התחלה],">="&טבלה7[[#This Row],[התחלה]],שעות_עבודה7[שם העבודה],טבלה7[[#This Row],[עבודה]]), AND(NOT(ISBLANK(טבלה7[[#This Row],[עבודה]])),NOT(ISBLANK(טבלה7[[#This Row],[סיום]])),ISBLANK(טבלה7[[#This Row],[התחלה]])), SUMIFS(שעות_עבודה7[שעות],שעות_עבודה7[שם העבודה],טבלה7[[#This Row],[עבודה]],שעות_עבודה7[סיום],"<="&טבלה7[[#This Row],[סיום]]), AND(NOT(ISBLANK(טבלה7[[#This Row],[התחלה]])),NOT(ISBLANK(טבלה7[[#This Row],[סיום]])),ISBLANK(טבלה7[[#This Row],[עבודה]])), SUMIFS(שעות_עבודה7[שעות],שעות_עבודה7[התחלה],">="&טבלה7[[#This Row],[התחלה]],שעות_עבודה7[סיום],"<="&טבלה7[[#This Row],[סיום]]), AND(NOT(ISBLANK(טבלה7[[#This Row],[התחלה]])),NOT(ISBLANK(טבלה7[[#This Row],[עבודה]])),NOT(ISBLANK(טבלה7[[#This Row],[סיום]]))), SUMIFS(שעות_עבודה7[שעות],שעות_עבודה7[התחלה],">="&טבלה7[[#This Row],[התחלה]],שעות_עבודה7[שם העבודה],טבלה7[[#This Row],[עבודה]],שעות_עבודה7[סיום],"<="&טבלה7[[#This Row],[סיום]]), AND(ISBLANK(טבלה7[[#This Row],[התחלה]]),ISBLANK(טבלה7[[#This Row],[עבודה]]),ISBLANK(טבלה7[[#This Row],[סיום]])),"")) ->  | S15: =IF(_xlfn.IFS( AND(NOT(ISBLANK(טבלה7[[#This Row],[התחלה]])),ISBLANK(טבלה7[[#This Row],[עבודה]]),ISBLANK(טבלה7[[#This Row],[סיום]])), SUMIF(שעות_עבודה7[התחלה],">="&טבלה7[[#This Row],[התחלה]],שעות_עבודה7[השכר]), AND(NOT(ISBLANK(טבלה7[[#This Row],[עבודה]])),ISBLANK(טבלה7[[#This Row],[התחלה]]),ISBLANK(טבלה7[[#This Row],[סיום]])), SUMIF(שעות_עבודה7[שם העבודה],טבלה7[[#This Row],[עבודה]],שעות_עבודה7[השכר]), AND(NOT(ISBLANK(טבלה7[[#This Row],[סיום]])),ISBLANK(טבלה7[[#This Row],[עבודה]]),ISBLANK(טבלה7[[#This Row],[התחלה]])), SUMIF(שעות_עבודה7[סיום],"<="&טבלה7[[#This Row],[סיום]],שעות_עבודה7[השכר]), AND(NOT(ISBLANK(טבלה7[[#This Row],[התחלה]])),NOT(ISBLANK(טבלה7[[#This Row],[עבודה]])),ISBLANK(טבלה7[[#This Row],[סיום]])), SUMIFS(שעות_עבודה7[השכר],שעות_עבודה7[התחלה],">="&טבלה7[[#This Row],[התחלה]],שעות_עבודה7[שם העבודה],טבלה7[[#This Row],[עבודה]]), AND(NOT(ISBLANK(טבלה7[[#This Row],[עבודה]])),NOT(ISBLANK(טבלה7[[#This Row],[סיום]])),ISBLANK(טבלה7[[#This Row],[התחלה]])), SUMIFS(שעות_עבודה7[השכר],שעות_עבודה7[שם העבודה],טבלה7[[#This Row],[עבודה]],שעות_עבודה7[סיום],"<="&טבלה7[[#This Row],[סיום]]), AND(NOT(ISBLANK(טבלה7[[#This Row],[התחלה]])),NOT(ISBLANK(טבלה7[[#This Row],[סיום]])),ISBLANK(טבלה7[[#This Row],[עבודה]])), SUMIFS(שעות_עבודה7[השכר],שעות_עבודה7[התחלה],">="&טבלה7[[#This Row],[התחלה]],שעות_עבודה7[סיום],"<="&טבלה7[[#This Row],[סיום]]), AND(NOT(ISBLANK(טבלה7[[#This Row],[התחלה]])),NOT(ISBLANK(טבלה7[[#This Row],[עבודה]])),NOT(ISBLANK(טבלה7[[#This Row],[סיום]]))), SUMIFS(שעות_עבודה7[השכר],שעות_עבודה7[התחלה],">="&טבלה7[[#This Row],[התחלה]],שעות_עבודה7[שם העבודה],טבלה7[[#This Row],[עבודה]],שעות_עבודה7[סיום],"<="&טבלה7[[#This Row],[סיום]]), AND(ISBLANK(טבלה7[[#This Row],[התחלה]]),ISBLANK(טבלה7[[#This Row],[עבודה]]),ISBLANK(טבלה7[[#This Row],[סיום]])),"")=0,"", _xlfn.IFS( AND(NOT(ISBLANK(טבלה7[[#This Row],[התחלה]])),ISBLANK(טבלה7[[#This Row],[עבודה]]),ISBLANK(טבלה7[[#This Row],[סיום]])), SUMIF(שעות_עבודה7[התחלה],">="&טבלה7[[#This Row],[התחלה]],שעות_עבודה7[השכר]), AND(NOT(ISBLANK(טבלה7[[#This Row],[עבודה]])),ISBLANK(טבלה7[[#This Row],[התחלה]]),ISBLANK(טבלה7[[#This Row],[סיום]])), SUMIF(שעות_עבודה7[שם העבודה],טבלה7[[#This Row],[עבודה]],שעות_עבודה7[השכר]), AND(NOT(ISBLANK(טבלה7[[#This Row],[סיום]])),ISBLANK(טבלה7[[#This Row],[עבודה]]),ISBLANK(טבלה7[[#This Row],[התחלה]])), SUMIF(שעות_עבודה7[סיום],"<="&טבלה7[[#This Row],[סיום]],שעות_עבודה7[השכר]), AND(NOT(ISBLANK(טבלה7[[#This Row],[התחלה]])),NOT(ISBLANK(טבלה7[[#This Row],[עבודה]])),ISBLANK(טבלה7[[#This Row],[סיום]])), SUMIFS(שעות_עבודה7[השכר],שעות_עבודה7[התחלה],">="&טבלה7[[#This Row],[התחלה]],שעות_עבודה7[שם העבודה],טבלה7[[#This Row],[עבודה]]), AND(NOT(ISBLANK(טבלה7[[#This Row],[עבודה]])),NOT(ISBLANK(טבלה7[[#This Row],[סיום]])),ISBLANK(טבלה7[[#This Row],[התחלה]])), SUMIFS(שעות_עבודה7[השכר],שעות_עבודה7[שם העבודה],טבלה7[[#This Row],[עבודה]],שעות_עבודה7[סיום],"<="&טבלה7[[#This Row],[סיום]]), AND(NOT(ISBLANK(טבלה7[[#This Row],[התחלה]])),NOT(ISBLANK(טבלה7[[#This Row],[סיום]])),ISBLANK(טבלה7[[#This Row],[עבודה]])), SUMIFS(שעות_עבודה7[השכר],שעות_עבודה7[התחלה],">="&טבלה7[[#This Row],[התחלה]],שעות_עבודה7[סיום],"<="&טבלה7[[#This Row],[סיום]]), AND(NOT(ISBLANK(טבלה7[[#This Row],[התחלה]])),NOT(ISBLANK(טבלה7[[#This Row],[עבודה]])),NOT(ISBLANK(טבלה7[[#This Row],[סיום]]))), SUMIFS(שעות_עבודה7[השכר],שעות_עבודה7[התחלה],">="&טבלה7[[#This Row],[התחלה]],שעות_עבודה7[שם העבודה],טבלה7[[#This Row],[עבודה]],שעות_עבודה7[סיום],"<="&טבלה7[[#This Row],[סיום]]), AND(ISBLANK(טבלה7[[#This Row],[התחלה]]),ISBLANK(טבלה7[[#This Row],[עבודה]]),ISBLANK(טבלה7[[#This Row],[סיום]])),"")) ->  | AN15: שכר לעבודה נבחרת
B16: =IF(שעות_עבודה7[[#This Row],[תאריך]]="","",ROW(A8)) -> 8 | C16: =_xlfn.IFS(שעות_עבודה7[[#This Row],[התחלה]]="","",WEEKDAY(שעות_עבודה7[[#This Row],[התחלה]])=1,"ראשון",WEEKDAY(שעות_עבודה7[[#This Row],[התחלה]])=2,"שני",WEEKDAY(שעות_עבודה7[[#This Row],[התחלה]])=3,"שלישי",WEEKDAY(שעות_עבודה7[[#This Row],[התחלה]])=4,"רביעי",WEEKDAY(שעות_עבודה7[[#This Row],[התחלה]])=5,"חמישי",WEEKDAY(שעות_עבודה7[[#This Row],[התחלה]])=6,"שישי",WEEKDAY(שעות_עבודה7[[#This Row],[התחלה]])=7,"מוצ""ש") -> שישי | D16: =IF(שעות_עבודה7[[#This Row],[התחלה]]="","",שעות_עבודה7[[#This Row],[התחלה]]) -> 2024-01-12T12:45:58 | E16: 45303.53192 | F16: עריכת מהדו"ת | G16: 45303.53205 | J16: =IF(OR(שעות_עבודה7[[#This Row],[התחלה]]="", שעות_עבודה7[[#This Row],[סיום]]-שעות_עבודה7[[#This Row],[התחלה]]+שעות_עבודה7[[#This Row],[הוספת דקות]]/1440<שעות_עבודה7[[#This Row],[הפחתת דקות]]/1440, SUM(שעות_עבודה7[[#This Row],[סיום]]-שעות_עבודה7[[#This Row],[התחלה]],שעות_עבודה7[[#This Row],[הוספת דקות]]/1440,-שעות_עבודה7[[#This Row],[הפחתת דקות]]/1440)=0), "", SUM(שעות_עבודה7[[#This Row],[סיום]]-שעות_עבודה7[[#This Row],[התחלה]],שעות_עבודה7[[#This Row],[הוספת דקות]]/1440,-שעות_עבודה7[[#This Row],[הפחתת דקות]]/1440)) -> 0.0001273148155 | K16: =IF(שעות_עבודה7[[#This Row],[שעות]]="","", IF(SUMPRODUCT((שעות_עבודה7[[#This Row],[שם העבודה]]=$P$3:$P$6)*שעות_עבודה7[[#This Row],[שעות]]*($Q$3:$Q$6*24))=0,"", SUMPRODUCT((שעות_עבודה7[[#This Row],[שם העבודה]]=$P$3:$P$6)*שעות_עבודה7[[#This Row],[שעות]]*($Q$3:$Q$6*24)))) -> 0.1833333343 | R16: =IF(_xlfn.IFS( AND(NOT(ISBLANK(טבלה7[[#This Row],[התחלה]])),ISBLANK(טבלה7[[#This Row],[עבודה]]),ISBLANK(טבלה7[[#This Row],[סיום]])), SUMIF(שעות_עבודה7[התחלה],">="&טבלה7[[#This Row],[התחלה]],שעות_עבודה7[שעות]), AND(NOT(ISBLANK(טבלה7[[#This Row],[עבודה]])),ISBLANK(טבלה7[[#This Row],[התחלה]]),ISBLANK(טבלה7[[#This Row],[סיום]])), SUMIF(שעות_עבודה7[שם העבודה],טבלה7[[#This Row],[עבודה]],שעות_עבודה7[שעות]), AND(NOT(ISBLANK(טבלה7[[#This Row],[סיום]])),ISBLANK(טבלה7[[#This Row],[עבודה]]),ISBLANK(טבלה7[[#This Row],[התחלה]])), SUMIF(שעות_עבודה7[סיום],"<="&טבלה7[[#This Row],[סיום]],שעות_עבודה7[שעות]), AND(NOT(ISBLANK(טבלה7[[#This Row],[התחלה]])),NOT(ISBLANK(טבלה7[[#This Row],[עבודה]])),ISBLANK(טבלה7[[#This Row],[סיום]])), SUMIFS(שעות_עבודה7[שעות],שעות_עבודה7[התחלה],">="&טבלה7[[#This Row],[התחלה]],שעות_עבודה7[שם העבודה],טבלה7[[#This Row],[עבודה]]), AND(NOT(ISBLANK(טבלה7[[#This Row],[עבודה]])),NOT(ISBLANK(טבלה7[[#This Row],[סיום]])),ISBLANK(טבלה7[[#This Row],[התחלה]])), SUMIFS(שעות_עבודה7[שעות],שעות_עבודה7[שם העבודה],טבלה7[[#This Row],[עבודה]],שעות_עבודה7[סיום],"<="&טבלה7[[#This Row],[סיום]]), AND(NOT(ISBLANK(טבלה7[[#This Row],[התחלה]])),NOT(ISBLANK(טבלה7[[#This Row],[סיום]])),ISBLANK(טבלה7[[#This Row],[עבודה]])), SUMIFS(שעות_עבודה7[שעות],שעות_עבודה7[התחלה],">="&טבלה7[[#This Row],[התחלה]],שעות_עבודה7[סיום],"<="&טבלה7[[#This Row],[סיום]]), AND(NOT(ISBLANK(טבלה7[[#This Row],[התחלה]])),NOT(ISBLANK(טבלה7[[#This Row],[עבודה]])),NOT(ISBLANK(טבלה7[[#This Row],[סיום]]))), SUMIFS(שעות_עבודה7[שעות],שעות_עבודה7[התחלה],">="&טבלה7[[#This Row],[התחלה]],שעות_עבודה7[שם העבודה],טבלה7[[#This Row],[עבודה]],שעות_עבודה7[סיום],"<="&טבלה7[[#This Row],[סיום]]), AND(ISBLANK(טבלה7[[#This Row],[התחלה]]),ISBLANK(טבלה7[[#This Row],[עבודה]]),ISBLANK(טבלה7[[#This Row],[סיום]])),"")=0,"", _xlfn.IFS( AND(NOT(ISBLANK(טבלה7[[#This Row],[התחלה]])),ISBLANK(טבלה7[[#This Row],[עבודה]]),ISBLANK(טבלה7[[#This Row],[סיום]])), SUMIF(שעות_עבודה7[התחלה],">="&טבלה7[[#This Row],[התחלה]],שעות_עבודה7[שעות]), AND(NOT(ISBLANK(טבלה7[[#This Row],[עבודה]])),ISBLANK(טבלה7[[#This Row],[התחלה]]),ISBLANK(טבלה7[[#This Row],[סיום]])), SUMIF(שעות_עבודה7[שם העבודה],טבלה7[[#This Row],[עבודה]],שעות_עבודה7[שעות]), AND(NOT(ISBLANK(טבלה7[[#This Row],[סיום]])),ISBLANK(טבלה7[[#This Row],[עבודה]]),ISBLANK(טבלה7[[#This Row],[התחלה]])), SUMIF(שעות_עבודה7[סיום],"<="&טבלה7[[#This Row],[סיום]],שעות_עבודה7[שעות]), AND(NOT(ISBLANK(טבלה7[[#This Row],[התחלה]])),NOT(ISBLANK(טבלה7[[#This Row],[עבודה]])),ISBLANK(טבלה7[[#This Row],[סיום]])), SUMIFS(שעות_עבודה7[שעות],שעות_עבודה7[התחלה],">="&טבלה7[[#This Row],[התחלה]],שעות_עבודה7[שם העבודה],טבלה7[[#This Row],[עבודה]]), AND(NOT(ISBLANK(טבלה7[[#This Row],[עבודה]])),NOT(ISBLANK(טבלה7[[#This Row],[סיום]])),ISBLANK(טבלה7[[#This Row],[התחלה]])), SUMIFS(שעות_עבודה7[שעות],שעות_עבודה7[שם העבודה],טבלה7[[#This Row],[עבודה]],שעות_עבודה7[סיום],"<="&טבלה7[[#This Row],[סיום]]), AND(NOT(ISBLANK(טבלה7[[#This Row],[התחלה]])),NOT(ISBLANK(טבלה7[[#This Row],[סיום]])),ISBLANK(טבלה7[[#This Row],[עבודה]])), SUMIFS(שעות_עבודה7[שעות],שעות_עבודה7[התחלה],">="&טבלה7[[#This Row],[התחלה]],שעות_עבודה7[סיום],"<="&טבלה7[[#This Row],[סיום]]), AND(NOT(ISBLANK(טבלה7[[#This Row],[התחלה]])),NOT(ISBLANK(טבלה7[[#This Row],[עבודה]])),NOT(ISBLANK(טבלה7[[#This Row],[סיום]]))), SUMIFS(שעות_עבודה7[שעות],שעות_עבודה7[התחלה],">="&טבלה7[[#This Row],[התחלה]],שעות_עבודה7[שם העבודה],טבלה7[[#This Row],[עבודה]],שעות_עבודה7[סיום],"<="&טבלה7[[#This Row],[סיום]]), AND(ISBLANK(טבלה7[[#This Row],[התחלה]]),ISBLANK(טבלה7[[#This Row],[עבודה]]),ISBLANK(טבלה7[[#This Row],[סיום]])),"")) ->  | S16: =IF(_xlfn.IFS( AND(NOT(ISBLANK(טבלה7[[#This Row],[התחלה]])),ISBLANK(טבלה7[[#This Row],[עבודה]]),ISBLANK(טבלה7[[#This Row],[סיום]])), SUMIF(שעות_עבודה7[התחלה],">="&טבלה7[[#This Row],[התחלה]],שעות_עבודה7[השכר]), AND(NOT(ISBLANK(טבלה7[[#This Row],[עבודה]])),ISBLANK(טבלה7[[#This Row],[התחלה]]),ISBLANK(טבלה7[[#This Row],[סיום]])), SUMIF(שעות_עבודה7[שם העבודה],טבלה7[[#This Row],[עבודה]],שעות_עבודה7[השכר]), AND(NOT(ISBLANK(טבלה7[[#This Row],[סיום]])),ISBLANK(טבלה7[[#This Row],[עבודה]]),ISBLANK(טבלה7[[#This Row],[התחלה]])), SUMIF(שעות_עבודה7[סיום],"<="&טבלה7[[#This Row],[סיום]],שעות_עבודה7[השכר]), AND(NOT(ISBLANK(טבלה7[[#This Row],[התחלה]])),NOT(ISBLANK(טבלה7[[#This Row],[עבודה]])),ISBLANK(טבלה7[[#This Row],[סיום]])), SUMIFS(שעות_עבודה7[השכר],שעות_עבודה7[התחלה],">="&טבלה7[[#This Row],[התחלה]],שעות_עבודה7[שם העבודה],טבלה7[[#This Row],[עבודה]]), AND(NOT(ISBLANK(טבלה7[[#This Row],[עבודה]])),NOT(ISBLANK(טבלה7[[#This Row],[סיום]])),ISBLANK(טבלה7[[#This Row],[התחלה]])), SUMIFS(שעות_עבודה7[השכר],שעות_עבודה7[שם העבודה],טבלה7[[#This Row],[עבודה]],שעות_עבודה7[סיום],"<="&טבלה7[[#This Row],[סיום]]), AND(NOT(ISBLANK(טבלה7[[#This Row],[התחלה]])),NOT(ISBLANK(טבלה7[[#This Row],[סיום]])),ISBLANK(טבלה7[[#This Row],[עבודה]])), SUMIFS(שעות_עבודה7[השכר],שעות_עבודה7[התחלה],">="&טבלה7[[#This Row],[התחלה]],שעות_עבודה7[סיום],"<="&טבלה7[[#This Row],[סיום]]), AND(NOT(ISBLANK(טבלה7[[#This Row],[התחלה]])),NOT(ISBLANK(טבלה7[[#This Row],[עבודה]])),NOT(ISBLANK(טבלה7[[#This Row],[סיום]]))), SUMIFS(שעות_עבודה7[השכר],שעות_עבודה7[התחלה],">="&טבלה7[[#This Row],[התחלה]],שעות_עבודה7[שם העבודה],טבלה7[[#This Row],[עבודה]],שעות_עבודה7[סיום],"<="&טבלה7[[#This Row],[סיום]]), AND(ISBLANK(טבלה7[[#This Row],[התחלה]]),ISBLANK(טבלה7[[#This Row],[עבודה]]),ISBLANK(טבלה7[[#This Row],[סיום]])),"")=0,"", _xlfn.IFS( AND(NOT(ISBLANK(טבלה7[[#This Row],[התחלה]])),ISBLANK(טבלה7[[#This Row],[עבודה]]),ISBLANK(טבלה7[[#This Row],[סיום]])), SUMIF(שעות_עבודה7[התחלה],">="&טבלה7[[#This Row],[התחלה]],שעות_עבודה7[השכר]), AND(NOT(ISBLANK(טבלה7[[#This Row],[עבודה]])),ISBLANK(טבלה7[[#This Row],[התחלה]]),ISBLANK(טבלה7[[#This Row],[סיום]])), SUMIF(שעות_עבודה7[שם העבודה],טבלה7[[#This Row],[עבודה]],שעות_עבודה7[השכר]), AND(NOT(ISBLANK(טבלה7[[#This Row],[סיום]])),ISBLANK(טבלה7[[#This Row],[עבודה]]),ISBLANK(טבלה7[[#This Row],[התחלה]])), SUMIF(שעות_עבודה7[סיום],"<="&טבלה7[[#This Row],[סיום]],שעות_עבודה7[השכר]), AND(NOT(ISBLANK(טבלה7[[#This Row],[התחלה]])),NOT(ISBLANK(טבלה7[[#This Row],[עבודה]])),ISBLANK(טבלה7[[#This Row],[סיום]])), SUMIFS(שעות_עבודה7[השכר],שעות_עבודה7[התחלה],">="&טבלה7[[#This Row],[התחלה]],שעות_עבודה7[שם העבודה],טבלה7[[#This Row],[עבודה]]), AND(NOT(ISBLANK(טבלה7[[#This Row],[עבודה]])),NOT(ISBLANK(טבלה7[[#This Row],[סיום]])),ISBLANK(טבלה7[[#This Row],[התחלה]])), SUMIFS(שעות_עבודה7[השכר],שעות_עבודה7[שם העבודה],טבלה7[[#This Row],[עבודה]],שעות_עבודה7[סיום],"<="&טבלה7[[#This Row],[סיום]]), AND(NOT(ISBLANK(טבלה7[[#This Row],[התחלה]])),NOT(ISBLANK(טבלה7[[#This Row],[סיום]])),ISBLANK(טבלה7[[#This Row],[עבודה]])), SUMIFS(שעות_עבודה7[השכר],שעות_עבודה7[התחלה],">="&טבלה7[[#This Row],[התחלה]],שעות_עבודה7[סיום],"<="&טבלה7[[#This Row],[סיום]]), AND(NOT(ISBLANK(טבלה7[[#This Row],[התחלה]])),NOT(ISBLANK(טבלה7[[#This Row],[עבודה]])),NOT(ISBLANK(טבלה7[[#This Row],[סיום]]))), SUMIFS(שעות_עבודה7[השכר],שעות_עבודה7[התחלה],">="&טבלה7[[#This Row],[התחלה]],שעות_עבודה7[שם העבודה],טבלה7[[#This Row],[עבודה]],שעות_עבודה7[סיום],"<="&טבלה7[[#This Row],[סיום]]), AND(ISBLANK(טבלה7[[#This Row],[התחלה]]),ISBLANK(טבלה7[[#This Row],[עבודה]]),ISBLANK(טבלה7[[#This Row],[סיום]])),"")) ->  | AN16: =VLOOKUP(שם_העבודה,'טיימר עבודות'!$P$3:$S$6,3) -> 0.05193287036
B17: =IF(שעות_עבודה7[[#This Row],[תאריך]]="","",ROW(A9)) -> 9 | C17: =_xlfn.IFS(שעות_עבודה7[[#This Row],[התחלה]]="","",WEEKDAY(שעות_עבודה7[[#This Row],[התחלה]])=1,"ראשון",WEEKDAY(שעות_עבודה7[[#This Row],[התחלה]])=2,"שני",WEEKDAY(שעות_עבודה7[[#This Row],[התחלה]])=3,"שלישי",WEEKDAY(שעות_עבודה7[[#This Row],[התחלה]])=4,"רביעי",WEEKDAY(שעות_עבודה7[[#This Row],[התחלה]])=5,"חמישי",WEEKDAY(שעות_עבודה7[[#This Row],[התחלה]])=6,"שישי",WEEKDAY(שעות_עבודה7[[#This Row],[התחלה]])=7,"מוצ""ש") -> שישי | D17: =IF(שעות_עבודה7[[#This Row],[התחלה]]="","",שעות_עבודה7[[#This Row],[התחלה]]) -> 2024-01-12T09:46:10 | E17: 45303.40706 | F17: עריכת מהדו"ת | G17: 45303.60609 | J17: =IF(OR(שעות_עבודה7[[#This Row],[התחלה]]="", שעות_עבודה7[[#This Row],[סיום]]-שעות_עבודה7[[#This Row],[התחלה]]+שעות_עבודה7[[#This Row],[הוספת דקות]]/1440<שעות_עבודה7[[#This Row],[הפחתת דקות]]/1440, SUM(שעות_עבודה7[[#This Row],[סיום]]-שעות_עבודה7[[#This Row],[התחלה]],שעות_עבודה7[[#This Row],[הוספת דקות]]/1440,-שעות_עבודה7[[#This Row],[הפחתת דקות]]/1440)=0), "", SUM(שעות_עבודה7[[#This Row],[סיום]]-שעות_עבודה7[[#This Row],[התחלה]],שעות_עבודה7[[#This Row],[הוספת דקות]]/1440,-שעות_עבודה7[[#This Row],[הפחתת דקות]]/1440)) -> 0.1990277778 | K17: =IF(שעות_עבודה7[[#This Row],[שעות]]="","", IF(SUMPRODUCT((שעות_עבודה7[[#This Row],[שם העבודה]]=$P$3:$P$6)*שעות_עבודה7[[#This Row],[שעות]]*($Q$3:$Q$6*24))=0,"", SUMPRODUCT((שעות_עבודה7[[#This Row],[שם העבודה]]=$P$3:$P$6)*שעות_עבודה7[[#This Row],[שעות]]*($Q$3:$Q$6*24)))) -> 286.6 | R17: =IF(_xlfn.IFS( AND(NOT(ISBLANK(טבלה7[[#This Row],[התחלה]])),ISBLANK(טבלה7[[#This Row],[עבודה]]),ISBLANK(טבלה7[[#This Row],[סיום]])), SUMIF(שעות_עבודה7[התחלה],">="&טבלה7[[#This Row],[התחלה]],שעות_עבודה7[שעות]), AND(NOT(ISBLANK(טבלה7[[#This Row],[עבודה]])),ISBLANK(טבלה7[[#This Row],[התחלה]]),ISBLANK(טבלה7[[#This Row],[סיום]])), SUMIF(שעות_עבודה7[שם העבודה],טבלה7[[#This Row],[עבודה]],שעות_עבודה7[שעות]), AND(NOT(ISBLANK(טבלה7[[#This Row],[סיום]])),ISBLANK(טבלה7[[#This Row],[עבודה]]),ISBLANK(טבלה7[[#This Row],[התחלה]])), SUMIF(שעות_עבודה7[סיום],"<="&טבלה7[[#This Row],[סיום]],שעות_עבודה7[שעות]), AND(NOT(ISBLANK(טבלה7[[#This Row],[התחלה]])),NOT(ISBLANK(טבלה7[[#This Row],[עבודה]])),ISBLANK(טבלה7[[#This Row],[סיום]])), SUMIFS(שעות_עבודה7[שעות],שעות_עבודה7[התחלה],">="&טבלה7[[#This Row],[התחלה]],שעות_עבודה7[שם העבודה],טבלה7[[#This Row],[עבודה]]), AND(NOT(ISBLANK(טבלה7[[#This Row],[עבודה]])),NOT(ISBLANK(טבלה7[[#This Row],[סיום]])),ISBLANK(טבלה7[[#This Row],[התחלה]])), SUMIFS(שעות_עבודה7[שעות],שעות_עבודה7[שם העבודה],טבלה7[[#This Row],[עבודה]],שעות_עבודה7[סיום],"<="&טבלה7[[#This Row],[סיום]]), AND(NOT(ISBLANK(טבלה7[[#This Row],[התחלה]])),NOT(ISBLANK(טבלה7[[#This Row],[סיום]])),ISBLANK(טבלה7[[#This Row],[עבודה]])), SUMIFS(שעות_עבודה7[שעות],שעות_עבודה7[התחלה],">="&טבלה7[[#This Row],[התחלה]],שעות_עבודה7[סיום],"<="&טבלה7[[#This Row],[סיום]]), AND(NOT(ISBLANK(טבלה7[[#This Row],[התחלה]])),NOT(ISBLANK(טבלה7[[#This Row],[עבודה]])),NOT(ISBLANK(טבלה7[[#This Row],[סיום]]))), SUMIFS(שעות_עבודה7[שעות],שעות_עבודה7[התחלה],">="&טבלה7[[#This Row],[התחלה]],שעות_עבודה7[שם העבודה],טבלה7[[#This Row],[עבודה]],שעות_עבודה7[סיום],"<="&טבלה7[[#This Row],[סיום]]), AND(ISBLANK(טבלה7[[#This Row],[התחלה]]),ISBLANK(טבלה7[[#This Row],[עבודה]]),ISBLANK(טבלה7[[#This Row],[סיום]])),"")=0,"", _xlfn.IFS( AND(NOT(ISBLANK(טבלה7[[#This Row],[התחלה]])),ISBLANK(טבלה7[[#This Row],[עבודה]]),ISBLANK(טבלה7[[#This Row],[סיום]])), SUMIF(שעות_עבודה7[התחלה],">="&טבלה7[[#This Row],[התחלה]],שעות_עבודה7[שעות]), AND(NOT(ISBLANK(טבלה7[[#This Row],[עבודה]])),ISBLANK(טבלה7[[#This Row],[התחלה]]),ISBLANK(טבלה7[[#This Row],[סיום]])), SUMIF(שעות_עבודה7[שם העבודה],טבלה7[[#This Row],[עבודה]],שעות_עבודה7[שעות]), AND(NOT(ISBLANK(טבלה7[[#This Row],[סיום]])),ISBLANK(טבלה7[[#This Row],[עבודה]]),ISBLANK(טבלה7[[#This Row],[התחלה]])), SUMIF(שעות_עבודה7[סיום],"<="&טבלה7[[#This Row],[סיום]],שעות_עבודה7[שעות]), AND(NOT(ISBLANK(טבלה7[[#This Row],[התחלה]])),NOT(ISBLANK(טבלה7[[#This Row],[עבודה]])),ISBLANK(טבלה7[[#This Row],[סיום]])), SUMIFS(שעות_עבודה7[שעות],שעות_עבודה7[התחלה],">="&טבלה7[[#This Row],[התחלה]],שעות_עבודה7[שם העבודה],טבלה7[[#This Row],[עבודה]]), AND(NOT(ISBLANK(טבלה7[[#This Row],[עבודה]])),NOT(ISBLANK(טבלה7[[#This Row],[סיום]])),ISBLANK(טבלה7[[#This Row],[התחלה]])), SUMIFS(שעות_עבודה7[שעות],שעות_עבודה7[שם העבודה],טבלה7[[#This Row],[עבודה]],שעות_עבודה7[סיום],"<="&טבלה7[[#This Row],[סיום]]), AND(NOT(ISBLANK(טבלה7[[#This Row],[התחלה]])),NOT(ISBLANK(טבלה7[[#This Row],[סיום]])),ISBLANK(טבלה7[[#This Row],[עבודה]])), SUMIFS(שעות_עבודה7[שעות],שעות_עבודה7[התחלה],">="&טבלה7[[#This Row],[התחלה]],שעות_עבודה7[סיום],"<="&טבלה7[[#This Row],[סיום]]), AND(NOT(ISBLANK(טבלה7[[#This Row],[התחלה]])),NOT(ISBLANK(טבלה7[[#This Row],[עבודה]])),NOT(ISBLANK(טבלה7[[#This Row],[סיום]]))), SUMIFS(שעות_עבודה7[שעות],שעות_עבודה7[התחלה],">="&טבלה7[[#This Row],[התחלה]],שעות_עבודה7[שם העבודה],טבלה7[[#This Row],[עבודה]],שעות_עבודה7[סיום],"<="&טבלה7[[#This Row],[סיום]]), AND(ISBLANK(טבלה7[[#This Row],[התחלה]]),ISBLANK(טבלה7[[#This Row],[עבודה]]),ISBLANK(טבלה7[[#This Row],[סיום]])),"")) ->  | S17: =IF(_xlfn.IFS( AND(NOT(ISBLANK(טבלה7[[#This Row],[התחלה]])),ISBLANK(טבלה7[[#This Row],[עבודה]]),ISBLANK(טבלה7[[#This Row],[סיום]])), SUMIF(שעות_עבודה7[התחלה],">="&טבלה7[[#This Row],[התחלה]],שעות_עבודה7[השכר]), AND(NOT(ISBLANK(טבלה7[[#This Row],[עבודה]])),ISBLANK(טבלה7[[#This Row],[התחלה]]),ISBLANK(טבלה7[[#This Row],[סיום]])), SUMIF(שעות_עבודה7[שם העבודה],טבלה7[[#This Row],[עבודה]],שעות_עבודה7[השכר]), AND(NOT(ISBLANK(טבלה7[[#This Row],[סיום]])),ISBLANK(טבלה7[[#This Row],[עבודה]]),ISBLANK(טבלה7[[#This Row],[התחלה]])), SUMIF(שעות_עבודה7[סיום],"<="&טבלה7[[#This Row],[סיום]],שעות_עבודה7[השכר]), AND(NOT(ISBLANK(טבלה7[[#This Row],[התחלה]])),NOT(ISBLANK(טבלה7[[#This Row],[עבודה]])),ISBLANK(טבלה7[[#This Row],[סיום]])), SUMIFS(שעות_עבודה7[השכר],שעות_עבודה7[התחלה],">="&טבלה7[[#This Row],[התחלה]],שעות_עבודה7[שם העבודה],טבלה7[[#This Row],[עבודה]]), AND(NOT(ISBLANK(טבלה7[[#This Row],[עבודה]])),NOT(ISBLANK(טבלה7[[#This Row],[סיום]])),ISBLANK(טבלה7[[#This Row],[התחלה]])), SUMIFS(שעות_עבודה7[השכר],שעות_עבודה7[שם העבודה],טבלה7[[#This Row],[עבודה]],שעות_עבודה7[סיום],"<="&טבלה7[[#This Row],[סיום]]), AND(NOT(ISBLANK(טבלה7[[#This Row],[התחלה]])),NOT(ISBLANK(טבלה7[[#This Row],[סיום]])),ISBLANK(טבלה7[[#This Row],[עבודה]])), SUMIFS(שעות_עבודה7[השכר],שעות_עבודה7[התחלה],">="&טבלה7[[#This Row],[התחלה]],שעות_עבודה7[סיום],"<="&טבלה7[[#This Row],[סיום]]), AND(NOT(ISBLANK(טבלה7[[#This Row],[התחלה]])),NOT(ISBLANK(טבלה7[[#This Row],[עבודה]])),NOT(ISBLANK(טבלה7[[#This Row],[סיום]]))), SUMIFS(שעות_עבודה7[השכר],שעות_עבודה7[התחלה],">="&טבלה7[[#This Row],[התחלה]],שעות_עבודה7[שם העבודה],טבלה7[[#This Row],[עבודה]],שעות_עבודה7[סיום],"<="&טבלה7[[#This Row],[סיום]]), AND(ISBLANK(טבלה7[[#This Row],[התחלה]]),ISBLANK(טבלה7[[#This Row],[עבודה]]),ISBLANK(טבלה7[[#This Row],[סיום]])),"")=0,"", _xlfn.IFS( AND(NOT(ISBLANK(טבלה7[[#This Row],[התחלה]])),ISBLANK(טבלה7[[#This Row],[עבודה]]),ISBLANK(טבלה7[[#This Row],[סיום]])), SUMIF(שעות_עבודה7[התחלה],">="&טבלה7[[#This Row],[התחלה]],שעות_עבודה7[השכר]), AND(NOT(ISBLANK(טבלה7[[#This Row],[עבודה]])),ISBLANK(טבלה7[[#This Row],[התחלה]]),ISBLANK(טבלה7[[#This Row],[סיום]])), SUMIF(שעות_עבודה7[שם העבודה],טבלה7[[#This Row],[עבודה]],שעות_עבודה7[השכר]), AND(NOT(ISBLANK(טבלה7[[#This Row],[סיום]])),ISBLANK(טבלה7[[#This Row],[עבודה]]),ISBLANK(טבלה7[[#This Row],[התחלה]])), SUMIF(שעות_עבודה7[סיום],"<="&טבלה7[[#This Row],[סיום]],שעות_עבודה7[השכר]), AND(NOT(ISBLANK(טבלה7[[#This Row],[התחלה]])),NOT(ISBLANK(טבלה7[[#This Row],[עבודה]])),ISBLANK(טבלה7[[#This Row],[סיום]])), SUMIFS(שעות_עבודה7[השכר],שעות_עבודה7[התחלה],">="&טבלה7[[#This Row],[התחלה]],שעות_עבודה7[שם העבודה],טבלה7[[#This Row],[עבודה]]), AND(NOT(ISBLANK(טבלה7[[#This Row],[עבודה]])),NOT(ISBLANK(טבלה7[[#This Row],[סיום]])),ISBLANK(טבלה7[[#This Row],[התחלה]])), SUMIFS(שעות_עבודה7[השכר],שעות_עבודה7[שם העבודה],טבלה7[[#This Row],[עבודה]],שעות_עבודה7[סיום],"<="&טבלה7[[#This Row],[סיום]]), AND(NOT(ISBLANK(טבלה7[[#This Row],[התחלה]])),NOT(ISBLANK(טבלה7[[#This Row],[סיום]])),ISBLANK(טבלה7[[#This Row],[עבודה]])), SUMIFS(שעות_עבודה7[השכר],שעות_עבודה7[התחלה],">="&טבלה7[[#This Row],[התחלה]],שעות_עבודה7[סיום],"<="&טבלה7[[#This Row],[סיום]]), AND(NOT(ISBLANK(טבלה7[[#This Row],[התחלה]])),NOT(ISBLANK(טבלה7[[#This Row],[עבודה]])),NOT(ISBLANK(טבלה7[[#This Row],[סיום]]))), SUMIFS(שעות_עבודה7[השכר],שעות_עבודה7[התחלה],">="&טבלה7[[#This Row],[התחלה]],שעות_עבודה7[שם העבודה],טבלה7[[#This Row],[עבודה]],שעות_עבודה7[סיום],"<="&טבלה7[[#This Row],[סיום]]), AND(ISBLANK(טבלה7[[#This Row],[התחלה]]),ISBLANK(טבלה7[[#This Row],[עבודה]]),ISBLANK(טבלה7[[#This Row],[סיום]])),"")) ->  | AN17: סימנים
B18: =IF(שעות_עבודה7[[#This Row],[תאריך]]="","",ROW(A10)) ->  | C18: =_xlfn.IFS(שעות_עבודה7[[#This Row],[התחלה]]="","",WEEKDAY(שעות_עבודה7[[#This Row],[התחלה]])=1,"ראשון",WEEKDAY(שעות_עבודה7[[#This Row],[התחלה]])=2,"שני",WEEKDAY(שעות_עבודה7[[#This Row],[התחלה]])=3,"שלישי",WEEKDAY(שעות_עבודה7[[#This Row],[התחלה]])=4,"רביעי",WEEKDAY(שעות_עבודה7[[#This Row],[התחלה]])=5,"חמישי",WEEKDAY(שעות_עבודה7[[#This Row],[התחלה]])=6,"שישי",WEEKDAY(שעות_עבודה7[[#This Row],[התחלה]])=7,"מוצ""ש") ->  | D18: =IF(שעות_עבודה7[[#This Row],[התחלה]]="","",שעות_עבודה7[[#This Row],[התחלה]]) ->  | J18: =IF(OR(שעות_עבודה7[[#This Row],[התחלה]]="", שעות_עבודה7[[#This Row],[סיום]]-שעות_עבודה7[[#This Row],[התחלה]]+שעות_עבודה7[[#This Row],[הוספת דקות]]/1440<שעות_עבודה7[[#This Row],[הפחתת דקות]]/1440, SUM(שעות_עבודה7[[#This Row],[סיום]]-שעות_עבודה7[[#This Row],[התחלה]],שעות_עבודה7[[#This Row],[הוספת דקות]]/1440,-שעות_עבודה7[[#This Row],[הפחתת דקות]]/1440)=0), "", SUM(שעות_עבודה7[[#This Row],[סיום]]-שעות_עבודה7[[#This Row],[התחלה]],שעות_עבודה7[[#This Row],[הוספת דקות]]/1440,-שעות_עבודה7[[#This Row],[הפחתת דקות]]/1440)) ->  | K18: =IF(שעות_עבודה7[[#This Row],[שעות]]="","", IF(SUMPRODUCT((שעות_עבודה7[[#This Row],[שם העבודה]]=$P$3:$P$6)*שעות_עבודה7[[#This Row],[שעות]]*($Q$3:$Q$6*24))=0,"", SUMPRODUCT((שעות_עבודה7[[#This Row],[שם העבודה]]=$P$3:$P$6)*שעות_עבודה7[[#This Row],[שעות]]*($Q$3:$Q$6*24)))) ->  | R18: =IF(_xlfn.IFS( AND(NOT(ISBLANK(טבלה7[[#This Row],[התחלה]])),ISBLANK(טבלה7[[#This Row],[עבודה]]),ISBLANK(טבלה7[[#This Row],[סיום]])), SUMIF(שעות_עבודה7[התחלה],">="&טבלה7[[#This Row],[התחלה]],שעות_עבודה7[שעות]), AND(NOT(ISBLANK(טבלה7[[#This Row],[עבודה]])),ISBLANK(טבלה7[[#This Row],[התחלה]]),ISBLANK(טבלה7[[#This Row],[סיום]])), SUMIF(שעות_עבודה7[שם העבודה],טבלה7[[#This Row],[עבודה]],שעות_עבודה7[שעות]), AND(NOT(ISBLANK(טבלה7[[#This Row],[סיום]])),ISBLANK(טבלה7[[#This Row],[עבודה]]),ISBLANK(טבלה7[[#This Row],[התחלה]])), SUMIF(שעות_עבודה7[סיום],"<="&טבלה7[[#This Row],[סיום]],שעות_עבודה7[שעות]), AND(NOT(ISBLANK(טבלה7[[#This Row],[התחלה]])),NOT(ISBLANK(טבלה7[[#This Row],[עבודה]])),ISBLANK(טבלה7[[#This Row],[סיום]])), SUMIFS(שעות_עבודה7[שעות],שעות_עבודה7[התחלה],">="&טבלה7[[#This Row],[התחלה]],שעות_עבודה7[שם העבודה],טבלה7[[#This Row],[עבודה]]), AND(NOT(ISBLANK(טבלה7[[#This Row],[עבודה]])),NOT(ISBLANK(טבלה7[[#This Row],[סיום]])),ISBLANK(טבלה7[[#This Row],[התחלה]])), SUMIFS(שעות_עבודה7[שעות],שעות_עבודה7[שם העבודה],טבלה7[[#This Row],[עבודה]],שעות_עבודה7[סיום],"<="&טבלה7[[#This Row],[סיום]]), AND(NOT(ISBLANK(טבלה7[[#This Row],[התחלה]])),NOT(ISBLANK(טבלה7[[#This Row],[סיום]])),ISBLANK(טבלה7[[#This Row],[עבודה]])), SUMIFS(שעות_עבודה7[שעות],שעות_עבודה7[התחלה],">="&טבלה7[[#This Row],[התחלה]],שעות_עבודה7[סיום],"<="&טבלה7[[#This Row],[סיום]]), AND(NOT(ISBLANK(טבלה7[[#This Row],[התחלה]])),NOT(ISBLANK(טבלה7[[#This Row],[עבודה]])),NOT(ISBLANK(טבלה7[[#This Row],[סיום]]))), SUMIFS(שעות_עבודה7[שעות],שעות_עבודה7[התחלה],">="&טבלה7[[#This Row],[התחלה]],שעות_עבודה7[שם העבודה],טבלה7[[#This Row],[עבודה]],שעות_עבודה7[סיום],"<="&טבלה7[[#This Row],[סיום]]), AND(ISBLANK(טבלה7[[#This Row],[התחלה]]),ISBLANK(טבלה7[[#This Row],[עבודה]]),ISBLANK(טבלה7[[#This Row],[סיום]])),"")=0,"", _xlfn.IFS( AND(NOT(ISBLANK(טבלה7[[#This Row],[התחלה]])),ISBLANK(טבלה7[[#This Row],[עבודה]]),ISBLANK(טבלה7[[#This Row],[סיום]])), SUMIF(שעות_עבודה7[התחלה],">="&טבלה7[[#This Row],[התחלה]],שעות_עבודה7[שעות]), AND(NOT(ISBLANK(טבלה7[[#This Row],[עבודה]])),ISBLANK(טבלה7[[#This Row],[התחלה]]),ISBLANK(טבלה7[[#This Row],[סיום]])), SUMIF(שעות_עבודה7[שם העבודה],טבלה7[[#This Row],[עבודה]],שעות_עבודה7[שעות]), AND(NOT(ISBLANK(טבלה7[[#This Row],[סיום]])),ISBLANK(טבלה7[[#This Row],[עבודה]]),ISBLANK(טבלה7[[#This Row],[התחלה]])), SUMIF(שעות_עבודה7[סיום],"<="&טבלה7[[#This Row],[סיום]],שעות_עבודה7[שעות]), AND(NOT(ISBLANK(טבלה7[[#This Row],[התחלה]])),NOT(ISBLANK(טבלה7[[#This Row],[עבודה]])),ISBLANK(טבלה7[[#This Row],[סיום]])), SUMIFS(שעות_עבודה7[שעות],שעות_עבודה7[התחלה],">="&טבלה7[[#This Row],[התחלה]],שעות_עבודה7[שם העבודה],טבלה7[[#This Row],[עבודה]]), AND(NOT(ISBLANK(טבלה7[[#This Row],[עבודה]])),NOT(ISBLANK(טבלה7[[#This Row],[סיום]])),ISBLANK(טבלה7[[#This Row],[התחלה]])), SUMIFS(שעות_עבודה7[שעות],שעות_עבודה7[שם העבודה],טבלה7[[#This Row],[עבודה]],שעות_עבודה7[סיום],"<="&טבלה7[[#This Row],[סיום]]), AND(NOT(ISBLANK(טבלה7[[#This Row],[התחלה]])),NOT(ISBLANK(טבלה7[[#This Row],[סיום]])),ISBLANK(טבלה7[[#This Row],[עבודה]])), SUMIFS(שעות_עבודה7[שעות],שעות_עבודה7[התחלה],">="&טבלה7[[#This Row],[התחלה]],שעות_עבודה7[סיום],"<="&טבלה7[[#This Row],[סיום]]), AND(NOT(ISBLANK(טבלה7[[#This Row],[התחלה]])),NOT(ISBLANK(טבלה7[[#This Row],[עבודה]])),NOT(ISBLANK(טבלה7[[#This Row],[סיום]]))), SUMIFS(שעות_עבודה7[שעות],שעות_עבודה7[התחלה],">="&טבלה7[[#This Row],[התחלה]],שעות_עבודה7[שם העבודה],טבלה7[[#This Row],[עבודה]],שעות_עבודה7[סיום],"<="&טבלה7[[#This Row],[סיום]]), AND(ISBLANK(טבלה7[[#This Row],[התחלה]]),ISBLANK(טבלה7[[#This Row],[עבודה]]),ISBLANK(טבלה7[[#This Row],[סיום]])),"")) ->  | S18: =IF(_xlfn.IFS( AND(NOT(ISBLANK(טבלה7[[#This Row],[התחלה]])),ISBLANK(טבלה7[[#This Row],[עבודה]]),ISBLANK(טבלה7[[#This Row],[סיום]])), SUMIF(שעות_עבודה7[התחלה],">="&טבלה7[[#This Row],[התחלה]],שעות_עבודה7[השכר]), AND(NOT(ISBLANK(טבלה7[[#This Row],[עבודה]])),ISBLANK(טבלה7[[#This Row],[התחלה]]),ISBLANK(טבלה7[[#This Row],[סיום]])), SUMIF(שעות_עבודה7[שם העבודה],טבלה7[[#This Row],[עבודה]],שעות_עבודה7[השכר]), AND(NOT(ISBLANK(טבלה7[[#This Row],[סיום]])),ISBLANK(טבלה7[[#This Row],[עבודה]]),ISBLANK(טבלה7[[#This Row],[התחלה]])), SUMIF(שעות_עבודה7[סיום],"<="&טבלה7[[#This Row],[סיום]],שעות_עבודה7[השכר]), AND(NOT(ISBLANK(טבלה7[[#This Row],[התחלה]])),NOT(ISBLANK(טבלה7[[#This Row],[עבודה]])),ISBLANK(טבלה7[[#This Row],[סיום]])), SUMIFS(שעות_עבודה7[השכר],שעות_עבודה7[התחלה],">="&טבלה7[[#This Row],[התחלה]],שעות_עבודה7[שם העבודה],טבלה7[[#This Row],[עבודה]]), AND(NOT(ISBLANK(טבלה7[[#This Row],[עבודה]])),NOT(ISBLANK(טבלה7[[#This Row],[סיום]])),ISBLANK(טבלה7[[#This Row],[התחלה]])), SUMIFS(שעות_עבודה7[השכר],שעות_עבודה7[שם העבודה],טבלה7[[#This Row],[עבודה]],שעות_עבודה7[סיום],"<="&טבלה7[[#This Row],[סיום]]), AND(NOT(ISBLANK(טבלה7[[#This Row],[התחלה]])),NOT(ISBLANK(טבלה7[[#This Row],[סיום]])),ISBLANK(טבלה7[[#This Row],[עבודה]])), SUMIFS(שעות_עבודה7[השכר],שעות_עבודה7[התחלה],">="&טבלה7[[#This Row],[התחלה]],שעות_עבודה7[סיום],"<="&טבלה7[[#This Row],[סיום]]), AND(NOT(ISBLANK(טבלה7[[#This Row],[התחלה]])),NOT(ISBLANK(טבלה7[[#This Row],[עבודה]])),NOT(ISBLANK(טבלה7[[#This Row],[סיום]]))), SUMIFS(שעות_עבודה7[השכר],שעות_עבודה7[התחלה],">="&טבלה7[[#This Row],[התחלה]],שעות_עבודה7[שם העבודה],טבלה7[[#This Row],[עבודה]],שעות_עבודה7[סיום],"<="&טבלה7[[#This Row],[סיום]]), AND(ISBLANK(טבלה7[[#This Row],[התחלה]]),ISBLANK(טבלה7[[#This Row],[עבודה]]),ISBLANK(טבלה7[[#This Row],[סיום]])),"")=0,"", _xlfn.IFS( AND(NOT(ISBLANK(טבלה7[[#This Row],[התחלה]])),ISBLANK(טבלה7[[#This Row],[עבודה]]),ISBLANK(טבלה7[[#This Row],[סיום]])), SUMIF(שעות_עבודה7[התחלה],">="&טבלה7[[#This Row],[התחלה]],שעות_עבודה7[השכר]), AND(NOT(ISBLANK(טבלה7[[#This Row],[עבודה]])),ISBLANK(טבלה7[[#This Row],[התחלה]]),ISBLANK(טבלה7[[#This Row],[סיום]])), SUMIF(שעות_עבודה7[שם העבודה],טבלה7[[#This Row],[עבודה]],שעות_עבודה7[השכר]), AND(NOT(ISBLANK(טבלה7[[#This Row],[סיום]])),ISBLANK(טבלה7[[#This Row],[עבודה]]),ISBLANK(טבלה7[[#This Row],[התחלה]])), SUMIF(שעות_עבודה7[סיום],"<="&טבלה7[[#This Row],[סיום]],שעות_עבודה7[השכר]), AND(NOT(ISBLANK(טבלה7[[#This Row],[התחלה]])),NOT(ISBLANK(טבלה7[[#This Row],[עבודה]])),ISBLANK(טבלה7[[#This Row],[סיום]])), SUMIFS(שעות_עבודה7[השכר],שעות_עבודה7[התחלה],">="&טבלה7[[#This Row],[התחלה]],שעות_עבודה7[שם העבודה],טבלה7[[#This Row],[עבודה]]), AND(NOT(ISBLANK(טבלה7[[#This Row],[עבודה]])),NOT(ISBLANK(טבלה7[[#This Row],[סיום]])),ISBLANK(טבלה7[[#This Row],[התחלה]])), SUMIFS(שעות_עבודה7[השכר],שעות_עבודה7[שם העבודה],טבלה7[[#This Row],[עבודה]],שעות_עבודה7[סיום],"<="&טבלה7[[#This Row],[סיום]]), AND(NOT(ISBLANK(טבלה7[[#This Row],[התחלה]])),NOT(ISBLANK(טבלה7[[#This Row],[סיום]])),ISBLANK(טבלה7[[#This Row],[עבודה]])), SUMIFS(שעות_עבודה7[השכר],שעות_עבודה7[התחלה],">="&טבלה7[[#This Row],[התחלה]],שעות_עבודה7[סיום],"<="&טבלה7[[#This Row],[סיום]]), AND(NOT(ISBLANK(טבלה7[[#This Row],[התחלה]])),NOT(ISBLANK(טבלה7[[#This Row],[עבודה]])),NOT(ISBLANK(טבלה7[[#This Row],[סיום]]))), SUMIFS(שעות_עבודה7[השכר],שעות_עבודה7[התחלה],">="&טבלה7[[#This Row],[התחלה]],שעות_עבודה7[שם העבודה],טבלה7[[#This Row],[עבודה]],שעות_עבודה7[סיום],"<="&טבלה7[[#This Row],[סיום]]), AND(ISBLANK(טבלה7[[#This Row],[התחלה]]),ISBLANK(טבלה7[[#This Row],[עבודה]]),ISBLANK(טבלה7[[#This Row],[סיום]])),"")) ->  | AN18: ü
B19: =IF(שעות_עבודה7[[#This Row],[תאריך]]="","",ROW(A11)) ->  | C19: =_xlfn.IFS(שעות_עבודה7[[#This Row],[התחלה]]="","",WEEKDAY(שעות_עבודה7[[#This Row],[התחלה]])=1,"ראשון",WEEKDAY(שעות_עבודה7[[#This Row],[התחלה]])=2,"שני",WEEKDAY(שעות_עבודה7[[#This Row],[התחלה]])=3,"שלישי",WEEKDAY(שעות_עבודה7[[#This Row],[התחלה]])=4,"רביעי",WEEKDAY(שעות_עבודה7[[#This Row],[התחלה]])=5,"חמישי",WEEKDAY(שעות_עבודה7[[#This Row],[התחלה]])=6,"שישי",WEEKDAY(שעות_עבודה7[[#This Row],[התחלה]])=7,"מוצ""ש") ->  | D19: =IF(שעות_עבודה7[[#This Row],[התחלה]]="","",שעות_עבודה7[[#This Row],[התחלה]]) ->  | J19: =IF(OR(שעות_עבודה7[[#This Row],[התחלה]]="", שעות_עבודה7[[#This Row],[סיום]]-שעות_עבודה7[[#This Row],[התחלה]]+שעות_עבודה7[[#This Row],[הוספת דקות]]/1440<שעות_עבודה7[[#This Row],[הפחתת דקות]]/1440, SUM(שעות_עבודה7[[#This Row],[סיום]]-שעות_עבודה7[[#This Row],[התחלה]],שעות_עבודה7[[#This Row],[הוספת דקות]]/1440,-שעות_עבודה7[[#This Row],[הפחתת דקות]]/1440)=0), "", SUM(שעות_עבודה7[[#This Row],[סיום]]-שעות_עבודה7[[#This Row],[התחלה]],שעות_עבודה7[[#This Row],[הוספת דקות]]/1440,-שעות_עבודה7[[#This Row],[הפחתת דקות]]/1440)) ->  | K19: =IF(שעות_עבודה7[[#This Row],[שעות]]="","", IF(SUMPRODUCT((שעות_עבודה7[[#This Row],[שם העבודה]]=$P$3:$P$6)*שעות_עבודה7[[#This Row],[שעות]]*($Q$3:$Q$6*24))=0,"", SUMPRODUCT((שעות_עבודה7[[#This Row],[שם העבודה]]=$P$3:$P$6)*שעות_עבודה7[[#This Row],[שעות]]*($Q$3:$Q$6*24)))) ->  | R19: =IF(_xlfn.IFS( AND(NOT(ISBLANK(טבלה7[[#This Row],[התחלה]])),ISBLANK(טבלה7[[#This Row],[עבודה]]),ISBLANK(טבלה7[[#This Row],[סיום]])), SUMIF(שעות_עבודה7[התחלה],">="&טבלה7[[#This Row],[התחלה]],שעות_עבודה7[שעות]), AND(NOT(ISBLANK(טבלה7[[#This Row],[עבודה]])),ISBLANK(טבלה7[[#This Row],[התחלה]]),ISBLANK(טבלה7[[#This Row],[סיום]])), SUMIF(שעות_עבודה7[שם העבודה],טבלה7[[#This Row],[עבודה]],שעות_עבודה7[שעות]), AND(NOT(ISBLANK(טבלה7[[#This Row],[סיום]])),ISBLANK(טבלה7[[#This Row],[עבודה]]),ISBLANK(טבלה7[[#This Row],[התחלה]])), SUMIF(שעות_עבודה7[סיום],"<="&טבלה7[[#This Row],[סיום]],שעות_עבודה7[שעות]), AND(NOT(ISBLANK(טבלה7[[#This Row],[התחלה]])),NOT(ISBLANK(טבלה7[[#This Row],[עבודה]])),ISBLANK(טבלה7[[#This Row],[סיום]])), SUMIFS(שעות_עבודה7[שעות],שעות_עבודה7[התחלה],">="&טבלה7[[#This Row],[התחלה]],שעות_עבודה7[שם העבודה],טבלה7[[#This Row],[עבודה]]), AND(NOT(ISBLANK(טבלה7[[#This Row],[עבודה]])),NOT(ISBLANK(טבלה7[[#This Row],[סיום]])),ISBLANK(טבלה7[[#This Row],[התחלה]])), SUMIFS(שעות_עבודה7[שעות],שעות_עבודה7[שם העבודה],טבלה7[[#This Row],[עבודה]],שעות_עבודה7[סיום],"<="&טבלה7[[#This Row],[סיום]]), AND(NOT(ISBLANK(טבלה7[[#This Row],[התחלה]])),NOT(ISBLANK(טבלה7[[#This Row],[סיום]])),ISBLANK(טבלה7[[#This Row],[עבודה]])), SUMIFS(שעות_עבודה7[שעות],שעות_עבודה7[התחלה],">="&טבלה7[[#This Row],[התחלה]],שעות_עבודה7[סיום],"<="&טבלה7[[#This Row],[סיום]]), AND(NOT(ISBLANK(טבלה7[[#This Row],[התחלה]])),NOT(ISBLANK(טבלה7[[#This Row],[עבודה]])),NOT(ISBLANK(טבלה7[[#This Row],[סיום]]))), SUMIFS(שעות_עבודה7[שעות],שעות_עבודה7[התחלה],">="&טבלה7[[#This Row],[התחלה]],שעות_עבודה7[שם העבודה],טבלה7[[#This Row],[עבודה]],שעות_עבודה7[סיום],"<="&טבלה7[[#This Row],[סיום]]), AND(ISBLANK(טבלה7[[#This Row],[התחלה]]),ISBLANK(טבלה7[[#This Row],[עבודה]]),ISBLANK(טבלה7[[#This Row],[סיום]])),"")=0,"", _xlfn.IFS( AND(NOT(ISBLANK(טבלה7[[#This Row],[התחלה]])),ISBLANK(טבלה7[[#This Row],[עבודה]]),ISBLANK(טבלה7[[#This Row],[סיום]])), SUMIF(שעות_עבודה7[התחלה],">="&טבלה7[[#This Row],[התחלה]],שעות_עבודה7[שעות]), AND(NOT(ISBLANK(טבלה7[[#This Row],[עבודה]])),ISBLANK(טבלה7[[#This Row],[התחלה]]),ISBLANK(טבלה7[[#This Row],[סיום]])), SUMIF(שעות_עבודה7[שם העבודה],טבלה7[[#This Row],[עבודה]],שעות_עבודה7[שעות]), AND(NOT(ISBLANK(טבלה7[[#This Row],[סיום]])),ISBLANK(טבלה7[[#This Row],[עבודה]]),ISBLANK(טבלה7[[#This Row],[התחלה]])), SUMIF(שעות_עבודה7[סיום],"<="&טבלה7[[#This Row],[סיום]],שעות_עבודה7[שעות]), AND(NOT(ISBLANK(טבלה7[[#This Row],[התחלה]])),NOT(ISBLANK(טבלה7[[#This Row],[עבודה]])),ISBLANK(טבלה7[[#This Row],[סיום]])), SUMIFS(שעות_עבודה7[שעות],שעות_עבודה7[התחלה],">="&טבלה7[[#This Row],[התחלה]],שעות_עבודה7[שם העבודה],טבלה7[[#This Row],[עבודה]]), AND(NOT(ISBLANK(טבלה7[[#This Row],[עבודה]])),NOT(ISBLANK(טבלה7[[#This Row],[סיום]])),ISBLANK(טבלה7[[#This Row],[התחלה]])), SUMIFS(שעות_עבודה7[שעות],שעות_עבודה7[שם העבודה],טבלה7[[#This Row],[עבודה]],שעות_עבודה7[סיום],"<="&טבלה7[[#This Row],[סיום]]), AND(NOT(ISBLANK(טבלה7[[#This Row],[התחלה]])),NOT(ISBLANK(טבלה7[[#This Row],[סיום]])),ISBLANK(טבלה7[[#This Row],[עבודה]])), SUMIFS(שעות_עבודה7[שעות],שעות_עבודה7[התחלה],">="&טבלה7[[#This Row],[התחלה]],שעות_עבודה7[סיום],"<="&טבלה7[[#This Row],[סיום]]), AND(NOT(ISBLANK(טבלה7[[#This Row],[התחלה]])),NOT(ISBLANK(טבלה7[[#This Row],[עבודה]])),NOT(ISBLANK(טבלה7[[#This Row],[סיום]]))), SUMIFS(שעות_עבודה7[שעות],שעות_עבודה7[התחלה],">="&טבלה7[[#This Row],[התחלה]],שעות_עבודה7[שם העבודה],טבלה7[[#This Row],[עבודה]],שעות_עבודה7[סיום],"<="&טבלה7[[#This Row],[סיום]]), AND(ISBLANK(טבלה7[[#This Row],[התחלה]]),ISBLANK(טבלה7[[#This Row],[עבודה]]),ISBLANK(טבלה7[[#This Row],[סיום]])),"")) ->  | S19: =IF(_xlfn.IFS( AND(NOT(ISBLANK(טבלה7[[#This Row],[התחלה]])),ISBLANK(טבלה7[[#This Row],[עבודה]]),ISBLANK(טבלה7[[#This Row],[סיום]])), SUMIF(שעות_עבודה7[התחלה],">="&טבלה7[[#This Row],[התחלה]],שעות_עבודה7[השכר]), AND(NOT(ISBLANK(טבלה7[[#This Row],[עבודה]])),ISBLANK(טבלה7[[#This Row],[התחלה]]),ISBLANK(טבלה7[[#This Row],[סיום]])), SUMIF(שעות_עבודה7[שם העבודה],טבלה7[[#This Row],[עבודה]],שעות_עבודה7[השכר]), AND(NOT(ISBLANK(טבלה7[[#This Row],[סיום]])),ISBLANK(טבלה7[[#This Row],[עבודה]]),ISBLANK(טבלה7[[#This Row],[התחלה]])), SUMIF(שעות_עבודה7[סיום],"<="&טבלה7[[#This Row],[סיום]],שעות_עבודה7[השכר]), AND(NOT(ISBLANK(טבלה7[[#This Row],[התחלה]])),NOT(ISBLANK(טבלה7[[#This Row],[עבודה]])),ISBLANK(טבלה7[[#This Row],[סיום]])), SUMIFS(שעות_עבודה7[השכר],שעות_עבודה7[התחלה],">="&טבלה7[[#This Row],[התחלה]],שעות_עבודה7[שם העבודה],טבלה7[[#This Row],[עבודה]]), AND(NOT(ISBLANK(טבלה7[[#This Row],[עבודה]])),NOT(ISBLANK(טבלה7[[#This Row],[סיום]])),ISBLANK(טבלה7[[#This Row],[התחלה]])), SUMIFS(שעות_עבודה7[השכר],שעות_עבודה7[שם העבודה],טבלה7[[#This Row],[עבודה]],שעות_עבודה7[סיום],"<="&טבלה7[[#This Row],[סיום]]), AND(NOT(ISBLANK(טבלה7[[#This Row],[התחלה]])),NOT(ISBLANK(טבלה7[[#This Row],[סיום]])),ISBLANK(טבלה7[[#This Row],[עבודה]])), SUMIFS(שעות_עבודה7[השכר],שעות_עבודה7[התחלה],">="&טבלה7[[#This Row],[התחלה]],שעות_עבודה7[סיום],"<="&טבלה7[[#This Row],[סיום]]), AND(NOT(ISBLANK(טבלה7[[#This Row],[התחלה]])),NOT(ISBLANK(טבלה7[[#This Row],[עבודה]])),NOT(ISBLANK(טבלה7[[#This Row],[סיום]]))), SUMIFS(שעות_עבודה7[השכר],שעות_עבודה7[התחלה],">="&טבלה7[[#This Row],[התחלה]],שעות_עבודה7[שם העבודה],טבלה7[[#This Row],[עבודה]],שעות_עבודה7[סיום],"<="&טבלה7[[#This Row],[סיום]]), AND(ISBLANK(טבלה7[[#This Row],[התחלה]]),ISBLANK(טבלה7[[#This Row],[עבודה]]),ISBLANK(טבלה7[[#This Row],[סיום]])),"")=0,"", _xlfn.IFS( AND(NOT(ISBLANK(טבלה7[[#This Row],[התחלה]])),ISBLANK(טבלה7[[#This Row],[עבודה]]),ISBLANK(טבלה7[[#This Row],[סיום]])), SUMIF(שעות_עבודה7[התחלה],">="&טבלה7[[#This Row],[התחלה]],שעות_עבודה7[השכר]), AND(NOT(ISBLANK(טבלה7[[#This Row],[עבודה]])),ISBLANK(טבלה7[[#This Row],[התחלה]]),ISBLANK(טבלה7[[#This Row],[סיום]])), SUMIF(שעות_עבודה7[שם העבודה],טבלה7[[#This Row],[עבודה]],שעות_עבודה7[השכר]), AND(NOT(ISBLANK(טבלה7[[#This Row],[סיום]])),ISBLANK(טבלה7[[#This Row],[עבודה]]),ISBLANK(טבלה7[[#This Row],[התחלה]])), SUMIF(שעות_עבודה7[סיום],"<="&טבלה7[[#This Row],[סיום]],שעות_עבודה7[השכר]), AND(NOT(ISBLANK(טבלה7[[#This Row],[התחלה]])),NOT(ISBLANK(טבלה7[[#This Row],[עבודה]])),ISBLANK(טבלה7[[#This Row],[סיום]])), SUMIFS(שעות_עבודה7[השכר],שעות_עבודה7[התחלה],">="&טבלה7[[#This Row],[התחלה]],שעות_עבודה7[שם העבודה],טבלה7[[#This Row],[עבודה]]), AND(NOT(ISBLANK(טבלה7[[#This Row],[עבודה]])),NOT(ISBLANK(טבלה7[[#This Row],[סיום]])),ISBLANK(טבלה7[[#This Row],[התחלה]])), SUMIFS(שעות_עבודה7[השכר],שעות_עבודה7[שם העבודה],טבלה7[[#This Row],[עבודה]],שעות_עבודה7[סיום],"<="&טבלה7[[#This Row],[סיום]]), AND(NOT(ISBLANK(טבלה7[[#This Row],[התחלה]])),NOT(ISBLANK(טבלה7[[#This Row],[סיום]])),ISBLANK(טבלה7[[#This Row],[עבודה]])), SUMIFS(שעות_עבודה7[השכר],שעות_עבודה7[התחלה],">="&טבלה7[[#This Row],[התחלה]],שעות_עבודה7[סיום],"<="&טבלה7[[#This Row],[סיום]]), AND(NOT(ISBLANK(טבלה7[[#This Row],[התחלה]])),NOT(ISBLANK(טבלה7[[#This Row],[עבודה]])),NOT(ISBLANK(טבלה7[[#This Row],[סיום]]))), SUMIFS(שעות_עבודה7[השכר],שעות_עבודה7[התחלה],">="&טבלה7[[#This Row],[התחלה]],שעות_עבודה7[שם העבודה],טבלה7[[#This Row],[עבודה]],שעות_עבודה7[סיום],"<="&טבלה7[[#This Row],[סיום]]), AND(ISBLANK(טבלה7[[#This Row],[התחלה]]),ISBLANK(טבלה7[[#This Row],[עבודה]]),ISBLANK(טבלה7[[#This Row],[סיום]])),"")) ->  | AN19: û
B20: =IF(שעות_עבודה7[[#This Row],[תאריך]]="","",ROW(A12)) ->  | C20: =_xlfn.IFS(שעות_עבודה7[[#This Row],[התחלה]]="","",WEEKDAY(שעות_עבודה7[[#This Row],[התחלה]])=1,"ראשון",WEEKDAY(שעות_עבודה7[[#This Row],[התחלה]])=2,"שני",WEEKDAY(שעות_עבודה7[[#This Row],[התחלה]])=3,"שלישי",WEEKDAY(שעות_עבודה7[[#This Row],[התחלה]])=4,"רביעי",WEEKDAY(שעות_עבודה7[[#This Row],[התחלה]])=5,"חמישי",WEEKDAY(שעות_עבודה7[[#This Row],[התחלה]])=6,"שישי",WEEKDAY(שעות_עבודה7[[#This Row],[התחלה]])=7,"מוצ""ש") ->  | D20: =IF(שעות_עבודה7[[#This Row],[התחלה]]="","",שעות_עבודה7[[#This Row],[התחלה]]) ->  | J20: =IF(OR(שעות_עבודה7[[#This Row],[התחלה]]="", שעות_עבודה7[[#This Row],[סיום]]-שעות_עבודה7[[#This Row],[התחלה]]+שעות_עבודה7[[#This Row],[הוספת דקות]]/1440<שעות_עבודה7[[#This Row],[הפחתת דקות]]/1440, SUM(שעות_עבודה7[[#This Row],[סיום]]-שעות_עבודה7[[#This Row],[התחלה]],שעות_עבודה7[[#This Row],[הוספת דקות]]/1440,-שעות_עבודה7[[#This Row],[הפחתת דקות]]/1440)=0), "", SUM(שעות_עבודה7[[#This Row],[סיום]]-שעות_עבודה7[[#This Row],[התחלה]],שעות_עבודה7[[#This Row],[הוספת דקות]]/1440,-שעות_עבודה7[[#This Row],[הפחתת דקות]]/1440)) ->  | K20: =IF(שעות_עבודה7[[#This Row],[שעות]]="","", IF(SUMPRODUCT((שעות_עבודה7[[#This Row],[שם העבודה]]=$P$3:$P$6)*שעות_עבודה7[[#This Row],[שעות]]*($Q$3:$Q$6*24))=0,"", SUMPRODUCT((שעות_עבודה7[[#This Row],[שם העבודה]]=$P$3:$P$6)*שעות_עבודה7[[#This Row],[שעות]]*($Q$3:$Q$6*24)))) ->  | R20: =IF(_xlfn.IFS( AND(NOT(ISBLANK(טבלה7[[#This Row],[התחלה]])),ISBLANK(טבלה7[[#This Row],[עבודה]]),ISBLANK(טבלה7[[#This Row],[סיום]])), SUMIF(שעות_עבודה7[התחלה],">="&טבלה7[[#This Row],[התחלה]],שעות_עבודה7[שעות]), AND(NOT(ISBLANK(טבלה7[[#This Row],[עבודה]])),ISBLANK(טבלה7[[#This Row],[התחלה]]),ISBLANK(טבלה7[[#This Row],[סיום]])), SUMIF(שעות_עבודה7[שם העבודה],טבלה7[[#This Row],[עבודה]],שעות_עבודה7[שעות]), AND(NOT(ISBLANK(טבלה7[[#This Row],[סיום]])),ISBLANK(טבלה7[[#This Row],[עבודה]]),ISBLANK(טבלה7[[#This Row],[התחלה]])), SUMIF(שעות_עבודה7[סיום],"<="&טבלה7[[#This Row],[סיום]],שעות_עבודה7[שעות]), AND(NOT(ISBLANK(טבלה7[[#This Row],[התחלה]])),NOT(ISBLANK(טבלה7[[#This Row],[עבודה]])),ISBLANK(טבלה7[[#This Row],[סיום]])), SUMIFS(שעות_עבודה7[שעות],שעות_עבודה7[התחלה],">="&טבלה7[[#This Row],[התחלה]],שעות_עבודה7[שם העבודה],טבלה7[[#This Row],[עבודה]]), AND(NOT(ISBLANK(טבלה7[[#This Row],[עבודה]])),NOT(ISBLANK(טבלה7[[#This Row],[סיום]])),ISBLANK(טבלה7[[#This Row],[התחלה]])), SUMIFS(שעות_עבודה7[שעות],שעות_עבודה7[שם העבודה],טבלה7[[#This Row],[עבודה]],שעות_עבודה7[סיום],"<="&טבלה7[[#This Row],[סיום]]), AND(NOT(ISBLANK(טבלה7[[#This Row],[התחלה]])),NOT(ISBLANK(טבלה7[[#This Row],[סיום]])),ISBLANK(טבלה7[[#This Row],[עבודה]])), SUMIFS(שעות_עבודה7[שעות],שעות_עבודה7[התחלה],">="&טבלה7[[#This Row],[התחלה]],שעות_עבודה7[סיום],"<="&טבלה7[[#This Row],[סיום]]), AND(NOT(ISBLANK(טבלה7[[#This Row],[התחלה]])),NOT(ISBLANK(טבלה7[[#This Row],[עבודה]])),NOT(ISBLANK(טבלה7[[#This Row],[סיום]]))), SUMIFS(שעות_עבודה7[שעות],שעות_עבודה7[התחלה],">="&טבלה7[[#This Row],[התחלה]],שעות_עבודה7[שם העבודה],טבלה7[[#This Row],[עבודה]],שעות_עבודה7[סיום],"<="&טבלה7[[#This Row],[סיום]]), AND(ISBLANK(טבלה7[[#This Row],[התחלה]]),ISBLANK(טבלה7[[#This Row],[עבודה]]),ISBLANK(טבלה7[[#This Row],[סיום]])),"")=0,"", _xlfn.IFS( AND(NOT(ISBLANK(טבלה7[[#This Row],[התחלה]])),ISBLANK(טבלה7[[#This Row],[עבודה]]),ISBLANK(טבלה7[[#This Row],[סיום]])), SUMIF(שעות_עבודה7[התחלה],">="&טבלה7[[#This Row],[התחלה]],שעות_עבודה7[שעות]), AND(NOT(ISBLANK(טבלה7[[#This Row],[עבודה]])),ISBLANK(טבלה7[[#This Row],[התחלה]]),ISBLANK(טבלה7[[#This Row],[סיום]])), SUMIF(שעות_עבודה7[שם העבודה],טבלה7[[#This Row],[עבודה]],שעות_עבודה7[שעות]), AND(NOT(ISBLANK(טבלה7[[#This Row],[סיום]])),ISBLANK(טבלה7[[#This Row],[עבודה]]),ISBLANK(טבלה7[[#This Row],[התחלה]])), SUMIF(שעות_עבודה7[סיום],"<="&טבלה7[[#This Row],[סיום]],שעות_עבודה7[שעות]), AND(NOT(ISBLANK(טבלה7[[#This Row],[התחלה]])),NOT(ISBLANK(טבלה7[[#This Row],[עבודה]])),ISBLANK(טבלה7[[#This Row],[סיום]])), SUMIFS(שעות_עבודה7[שעות],שעות_עבודה7[התחלה],">="&טבלה7[[#This Row],[התחלה]],שעות_עבודה7[שם העבודה],טבלה7[[#This Row],[עבודה]]), AND(NOT(ISBLANK(טבלה7[[#This Row],[עבודה]])),NOT(ISBLANK(טבלה7[[#This Row],[סיום]])),ISBLANK(טבלה7[[#This Row],[התחלה]])), SUMIFS(שעות_עבודה7[שעות],שעות_עבודה7[שם העבודה],טבלה7[[#This Row],[עבודה]],שעות_עבודה7[סיום],"<="&טבלה7[[#This Row],[סיום]]), AND(NOT(ISBLANK(טבלה7[[#This Row],[התחלה]])),NOT(ISBLANK(טבלה7[[#This Row],[סיום]])),ISBLANK(טבלה7[[#This Row],[עבודה]])), SUMIFS(שעות_עבודה7[שעות],שעות_עבודה7[התחלה],">="&טבלה7[[#This Row],[התחלה]],שעות_עבודה7[סיום],"<="&טבלה7[[#This Row],[סיום]]), AND(NOT(ISBLANK(טבלה7[[#This Row],[התחלה]])),NOT(ISBLANK(טבלה7[[#This Row],[עבודה]])),NOT(ISBLANK(טבלה7[[#This Row],[סיום]]))), SUMIFS(שעות_עבודה7[שעות],שעות_עבודה7[התחלה],">="&טבלה7[[#This Row],[התחלה]],שעות_עבודה7[שם העבודה],טבלה7[[#This Row],[עבודה]],שעות_עבודה7[סיום],"<="&טבלה7[[#This Row],[סיום]]), AND(ISBLANK(טבלה7[[#This Row],[התחלה]]),ISBLANK(טבלה7[[#This Row],[עבודה]]),ISBLANK(טבלה7[[#This Row],[סיום]])),"")) ->  | S20: =IF(_xlfn.IFS( AND(NOT(ISBLANK(טבלה7[[#This Row],[התחלה]])),ISBLANK(טבלה7[[#This Row],[עבודה]]),ISBLANK(טבלה7[[#This Row],[סיום]])), SUMIF(שעות_עבודה7[התחלה],">="&טבלה7[[#This Row],[התחלה]],שעות_עבודה7[השכר]), AND(NOT(ISBLANK(טבלה7[[#This Row],[עבודה]])),ISBLANK(טבלה7[[#This Row],[התחלה]]),ISBLANK(טבלה7[[#This Row],[סיום]])), SUMIF(שעות_עבודה7[שם העבודה],טבלה7[[#This Row],[עבודה]],שעות_עבודה7[השכר]), AND(NOT(ISBLANK(טבלה7[[#This Row],[סיום]])),ISBLANK(טבלה7[[#This Row],[עבודה]]),ISBLANK(טבלה7[[#This Row],[התחלה]])), SUMIF(שעות_עבודה7[סיום],"<="&טבלה7[[#This Row],[סיום]],שעות_עבודה7[השכר]), AND(NOT(ISBLANK(טבלה7[[#This Row],[התחלה]])),NOT(ISBLANK(טבלה7[[#This Row],[עבודה]])),ISBLANK(טבלה7[[#This Row],[סיום]])), SUMIFS(שעות_עבודה7[השכר],שעות_עבודה7[התחלה],">="&טבלה7[[#This Row],[התחלה]],שעות_עבודה7[שם העבודה],טבלה7[[#This Row],[עבודה]]), AND(NOT(ISBLANK(טבלה7[[#This Row],[עבודה]])),NOT(ISBLANK(טבלה7[[#This Row],[סיום]])),ISBLANK(טבלה7[[#This Row],[התחלה]])), SUMIFS(שעות_עבודה7[השכר],שעות_עבודה7[שם העבודה],טבלה7[[#This Row],[עבודה]],שעות_עבודה7[סיום],"<="&טבלה7[[#This Row],[סיום]]), AND(NOT(ISBLANK(טבלה7[[#This Row],[התחלה]])),NOT(ISBLANK(טבלה7[[#This Row],[סיום]])),ISBLANK(טבלה7[[#This Row],[עבודה]])), SUMIFS(שעות_עבודה7[השכר],שעות_עבודה7[התחלה],">="&טבלה7[[#This Row],[התחלה]],שעות_עבודה7[סיום],"<="&טבלה7[[#This Row],[סיום]]), AND(NOT(ISBLANK(טבלה7[[#This Row],[התחלה]])),NOT(ISBLANK(טבלה7[[#This Row],[עבודה]])),NOT(ISBLANK(טבלה7[[#This Row],[סיום]]))), SUMIFS(שעות_עבודה7[השכר],שעות_עבודה7[התחלה],">="&טבלה7[[#This Row],[התחלה]],שעות_עבודה7[שם העבודה],טבלה7[[#This Row],[עבודה]],שעות_עבודה7[סיום],"<="&טבלה7[[#This Row],[סיום]]), AND(ISBLANK(טבלה7[[#This Row],[התחלה]]),ISBLANK(טבלה7[[#This Row],[עבודה]]),ISBLANK(טבלה7[[#This Row],[סיום]])),"")=0,"", _xlfn.IFS( AND(NOT(ISBLANK(טבלה7[[#This Row],[התחלה]])),ISBLANK(טבלה7[[#This Row],[עבודה]]),ISBLANK(טבלה7[[#This Row],[סיום]])), SUMIF(שעות_עבודה7[התחלה],">="&טבלה7[[#This Row],[התחלה]],שעות_עבודה7[השכר]), AND(NOT(ISBLANK(טבלה7[[#This Row],[עבודה]])),ISBLANK(טבלה7[[#This Row],[התחלה]]),ISBLANK(טבלה7[[#This Row],[סיום]])), SUMIF(שעות_עבודה7[שם העבודה],טבלה7[[#This Row],[עבודה]],שעות_עבודה7[השכר]), AND(NOT(ISBLANK(טבלה7[[#This Row],[סיום]])),ISBLANK(טבלה7[[#This Row],[עבודה]]),ISBLANK(טבלה7[[#This Row],[התחלה]])), SUMIF(שעות_עבודה7[סיום],"<="&טבלה7[[#This Row],[סיום]],שעות_עבודה7[השכר]), AND(NOT(ISBLANK(טבלה7[[#This Row],[התחלה]])),NOT(ISBLANK(טבלה7[[#This Row],[עבודה]])),ISBLANK(טבלה7[[#This Row],[סיום]])), SUMIFS(שעות_עבודה7[השכר],שעות_עבודה7[התחלה],">="&טבלה7[[#This Row],[התחלה]],שעות_עבודה7[שם העבודה],טבלה7[[#This Row],[עבודה]]), AND(NOT(ISBLANK(טבלה7[[#This Row],[עבודה]])),NOT(ISBLANK(טבלה7[[#This Row],[סיום]])),ISBLANK(טבלה7[[#This Row],[התחלה]])), SUMIFS(שעות_עבודה7[השכר],שעות_עבודה7[שם העבודה],טבלה7[[#This Row],[עבודה]],שעות_עבודה7[סיום],"<="&טבלה7[[#This Row],[סיום]]), AND(NOT(ISBLANK(טבלה7[[#This Row],[התחלה]])),NOT(ISBLANK(טבלה7[[#This Row],[סיום]])),ISBLANK(טבלה7[[#This Row],[עבודה]])), SUMIFS(שעות_עבודה7[השכר],שעות_עבודה7[התחלה],">="&טבלה7[[#This Row],[התחלה]],שעות_עבודה7[סיום],"<="&טבלה7[[#This Row],[סיום]]), AND(NOT(ISBLANK(טבלה7[[#This Row],[התחלה]])),NOT(ISBLANK(טבלה7[[#This Row],[עבודה]])),NOT(ISBLANK(טבלה7[[#This Row],[סיום]]))), SUMIFS(שעות_עבודה7[השכר],שעות_עבודה7[התחלה],">="&טבלה7[[#This Row],[התחלה]],שעות_עבודה7[שם העבודה],טבלה7[[#This Row],[עבודה]],שעות_עבודה7[סיום],"<="&טבלה7[[#This Row],[סיום]]), AND(ISBLANK(טבלה7[[#This Row],[התחלה]]),ISBLANK(טבלה7[[#This Row],[עבודה]]),ISBLANK(טבלה7[[#This Row],[סיום]])),"")) ->  | AN20: הקלקה כפולה
B21: =IF(שעות_עבודה7[[#This Row],[תאריך]]="","",ROW(A13)) ->  | C21: =_xlfn.IFS(שעות_עבודה7[[#This Row],[התחלה]]="","",WEEKDAY(שעות_עבודה7[[#This Row],[התחלה]])=1,"ראשון",WEEKDAY(שעות_עבודה7[[#This Row],[התחלה]])=2,"שני",WEEKDAY(שעות_עבודה7[[#This Row],[התחלה]])=3,"שלישי",WEEKDAY(שעות_עבודה7[[#This Row],[התחלה]])=4,"רביעי",WEEKDAY(שעות_עבודה7[[#This Row],[התחלה]])=5,"חמישי",WEEKDAY(שעות_עבודה7[[#This Row],[התחלה]])=6,"שישי",WEEKDAY(שעות_עבודה7[[#This Row],[התחלה]])=7,"מוצ""ש") ->  | D21: =IF(שעות_עבודה7[[#This Row],[התחלה]]="","",שעות_עבודה7[[#This Row],[התחלה]]) ->  | J21: =IF(OR(שעות_עבודה7[[#This Row],[התחלה]]="", שעות_עבודה7[[#This Row],[סיום]]-שעות_עבודה7[[#This Row],[התחלה]]+שעות_עבודה7[[#This Row],[הוספת דקות]]/1440<שעות_עבודה7[[#This Row],[הפחתת דקות]]/1440, SUM(שעות_עבודה7[[#This Row],[סיום]]-שעות_עבודה7[[#This Row],[התחלה]],שעות_עבודה7[[#This Row],[הוספת דקות]]/1440,-שעות_עבודה7[[#This Row],[הפחתת דקות]]/1440)=0), "", SUM(שעות_עבודה7[[#This Row],[סיום]]-שעות_עבודה7[[#This Row],[התחלה]],שעות_עבודה7[[#This Row],[הוספת דקות]]/1440,-שעות_עבודה7[[#This Row],[הפחתת דקות]]/1440)) ->  | K21: =IF(שעות_עבודה7[[#This Row],[שעות]]="","", IF(SUMPRODUCT((שעות_עבודה7[[#This Row],[שם העבודה]]=$P$3:$P$6)*שעות_עבודה7[[#This Row],[שעות]]*($Q$3:$Q$6*24))=0,"", SUMPRODUCT((שעות_עבודה7[[#This Row],[שם העבודה]]=$P$3:$P$6)*שעות_עבודה7[[#This Row],[שעות]]*($Q$3:$Q$6*24)))) ->  | R21: =IF(_xlfn.IFS( AND(NOT(ISBLANK(טבלה7[[#This Row],[התחלה]])),ISBLANK(טבלה7[[#This Row],[עבודה]]),ISBLANK(טבלה7[[#This Row],[סיום]])), SUMIF(שעות_עבודה7[התחלה],">="&טבלה7[[#This Row],[התחלה]],שעות_עבודה7[שעות]), AND(NOT(ISBLANK(טבלה7[[#This Row],[עבודה]])),ISBLANK(טבלה7[[#This Row],[התחלה]]),ISBLANK(טבלה7[[#This Row],[סיום]])), SUMIF(שעות_עבודה7[שם העבודה],טבלה7[[#This Row],[עבודה]],שעות_עבודה7[שעות]), AND(NOT(ISBLANK(טבלה7[[#This Row],[סיום]])),ISBLANK(טבלה7[[#This Row],[עבודה]]),ISBLANK(טבלה7[[#This Row],[התחלה]])), SUMIF(שעות_עבודה7[סיום],"<="&טבלה7[[#This Row],[סיום]],שעות_עבודה7[שעות]), AND(NOT(ISBLANK(טבלה7[[#This Row],[התחלה]])),NOT(ISBLANK(טבלה7[[#This Row],[עבודה]])),ISBLANK(טבלה7[[#This Row],[סיום]])), SUMIFS(שעות_עבודה7[שעות],שעות_עבודה7[התחלה],">="&טבלה7[[#This Row],[התחלה]],שעות_עבודה7[שם העבודה],טבלה7[[#This Row],[עבודה]]), AND(NOT(ISBLANK(טבלה7[[#This Row],[עבודה]])),NOT(ISBLANK(טבלה7[[#This Row],[סיום]])),ISBLANK(טבלה7[[#This Row],[התחלה]])), SUMIFS(שעות_עבודה7[שעות],שעות_עבודה7[שם העבודה],טבלה7[[#This Row],[עבודה]],שעות_עבודה7[סיום],"<="&טבלה7[[#This Row],[סיום]]), AND(NOT(ISBLANK(טבלה7[[#This Row],[התחלה]])),NOT(ISBLANK(טבלה7[[#This Row],[סיום]])),ISBLANK(טבלה7[[#This Row],[עבודה]])), SUMIFS(שעות_עבודה7[שעות],שעות_עבודה7[התחלה],">="&טבלה7[[#This Row],[התחלה]],שעות_עבודה7[סיום],"<="&טבלה7[[#This Row],[סיום]]), AND(NOT(ISBLANK(טבלה7[[#This Row],[התחלה]])),NOT(ISBLANK(טבלה7[[#This Row],[עבודה]])),NOT(ISBLANK(טבלה7[[#This Row],[סיום]]))), SUMIFS(שעות_עבודה7[שעות],שעות_עבודה7[התחלה],">="&טבלה7[[#This Row],[התחלה]],שעות_עבודה7[שם העבודה],טבלה7[[#This Row],[עבודה]],שעות_עבודה7[סיום],"<="&טבלה7[[#This Row],[סיום]]), AND(ISBLANK(טבלה7[[#This Row],[התחלה]]),ISBLANK(טבלה7[[#This Row],[עבודה]]),ISBLANK(טבלה7[[#This Row],[סיום]])),"")=0,"", _xlfn.IFS( AND(NOT(ISBLANK(טבלה7[[#This Row],[התחלה]])),ISBLANK(טבלה7[[#This Row],[עבודה]]),ISBLANK(טבלה7[[#This Row],[סיום]])), SUMIF(שעות_עבודה7[התחלה],">="&טבלה7[[#This Row],[התחלה]],שעות_עבודה7[שעות]), AND(NOT(ISBLANK(טבלה7[[#This Row],[עבודה]])),ISBLANK(טבלה7[[#This Row],[התחלה]]),ISBLANK(טבלה7[[#This Row],[סיום]])), SUMIF(שעות_עבודה7[שם העבודה],טבלה7[[#This Row],[עבודה]],שעות_עבודה7[שעות]), AND(NOT(ISBLANK(טבלה7[[#This Row],[סיום]])),ISBLANK(טבלה7[[#This Row],[עבודה]]),ISBLANK(טבלה7[[#This Row],[התחלה]])), SUMIF(שעות_עבודה7[סיום],"<="&טבלה7[[#This Row],[סיום]],שעות_עבודה7[שעות]), AND(NOT(ISBLANK(טבלה7[[#This Row],[התחלה]])),NOT(ISBLANK(טבלה7[[#This Row],[עבודה]])),ISBLANK(טבלה7[[#This Row],[סיום]])), SUMIFS(שעות_עבודה7[שעות],שעות_עבודה7[התחלה],">="&טבלה7[[#This Row],[התחלה]],שעות_עבודה7[שם העבודה],טבלה7[[#This Row],[עבודה]]), AND(NOT(ISBLANK(טבלה7[[#This Row],[עבודה]])),NOT(ISBLANK(טבלה7[[#This Row],[סיום]])),ISBLANK(טבלה7[[#This Row],[התחלה]])), SUMIFS(שעות_עבודה7[שעות],שעות_עבודה7[שם העבודה],טבלה7[[#This Row],[עבודה]],שעות_עבודה7[סיום],"<="&טבלה7[[#This Row],[סיום]]), AND(NOT(ISBLANK(טבלה7[[#This Row],[התחלה]])),NOT(ISBLANK(טבלה7[[#This Row],[סיום]])),ISBLANK(טבלה7[[#This Row],[עבודה]])), SUMIFS(שעות_עבודה7[שעות],שעות_עבודה7[התחלה],">="&טבלה7[[#This Row],[התחלה]],שעות_עבודה7[סיום],"<="&טבלה7[[#This Row],[סיום]]), AND(NOT(ISBLANK(טבלה7[[#This Row],[התחלה]])),NOT(ISBLANK(טבלה7[[#This Row],[עבודה]])),NOT(ISBLANK(טבלה7[[#This Row],[סיום]]))), SUMIFS(שעות_עבודה7[שעות],שעות_עבודה7[התחלה],">="&טבלה7[[#This Row],[התחלה]],שעות_עבודה7[שם העבודה],טבלה7[[#This Row],[עבודה]],שעות_עבודה7[סיום],"<="&טבלה7[[#This Row],[סיום]]), AND(ISBLANK(טבלה7[[#This Row],[התחלה]]),ISBLANK(טבלה7[[#This Row],[עבודה]]),ISBLANK(טבלה7[[#This Row],[סיום]])),"")) ->  | S21: =IF(_xlfn.IFS( AND(NOT(ISBLANK(טבלה7[[#This Row],[התחלה]])),ISBLANK(טבלה7[[#This Row],[עבודה]]),ISBLANK(טבלה7[[#This Row],[סיום]])), SUMIF(שעות_עבודה7[התחלה],">="&טבלה7[[#This Row],[התחלה]],שעות_עבודה7[השכר]), AND(NOT(ISBLANK(טבלה7[[#This Row],[עבודה]])),ISBLANK(טבלה7[[#This Row],[התחלה]]),ISBLANK(טבלה7[[#This Row],[סיום]])), SUMIF(שעות_עבודה7[שם העבודה],טבלה7[[#This Row],[עבודה]],שעות_עבודה7[השכר]), AND(NOT(ISBLANK(טבלה7[[#This Row],[סיום]])),ISBLANK(טבלה7[[#This Row],[עבודה]]),ISBLANK(טבלה7[[#This Row],[התחלה]])), SUMIF(שעות_עבודה7[סיום],"<="&טבלה7[[#This Row],[סיום]],שעות_עבודה7[השכר]), AND(NOT(ISBLANK(טבלה7[[#This Row],[התחלה]])),NOT(ISBLANK(טבלה7[[#This Row],[עבודה]])),ISBLANK(טבלה7[[#This Row],[סיום]])), SUMIFS(שעות_עבודה7[השכר],שעות_עבודה7[התחלה],">="&טבלה7[[#This Row],[התחלה]],שעות_עבודה7[שם העבודה],טבלה7[[#This Row],[עבודה]]), AND(NOT(ISBLANK(טבלה7[[#This Row],[עבודה]])),NOT(ISBLANK(טבלה7[[#This Row],[סיום]])),ISBLANK(טבלה7[[#This Row],[התחלה]])), SUMIFS(שעות_עבודה7[השכר],שעות_עבודה7[שם העבודה],טבלה7[[#This Row],[עבודה]],שעות_עבודה7[סיום],"<="&טבלה7[[#This Row],[סיום]]), AND(NOT(ISBLANK(טבלה7[[#This Row],[התחלה]])),NOT(ISBLANK(טבלה7[[#This Row],[סיום]])),ISBLANK(טבלה7[[#This Row],[עבודה]])), SUMIFS(שעות_עבודה7[השכר],שעות_עבודה7[התחלה],">="&טבלה7[[#This Row],[התחלה]],שעות_עבודה7[סיום],"<="&טבלה7[[#This Row],[סיום]]), AND(NOT(ISBLANK(טבלה7[[#This Row],[התחלה]])),NOT(ISBLANK(טבלה7[[#This Row],[עבודה]])),NOT(ISBLANK(טבלה7[[#This Row],[סיום]]))), SUMIFS(שעות_עבודה7[השכר],שעות_עבודה7[התחלה],">="&טבלה7[[#This Row],[התחלה]],שעות_עבודה7[שם העבודה],טבלה7[[#This Row],[עבודה]],שעות_עבודה7[סיום],"<="&טבלה7[[#This Row],[סיום]]), AND(ISBLANK(טבלה7[[#This Row],[התחלה]]),ISBLANK(טבלה7[[#This Row],[עבודה]]),ISBLANK(טבלה7[[#This Row],[סיום]])),"")=0,"", _xlfn.IFS( AND(NOT(ISBLANK(טבלה7[[#This Row],[התחלה]])),ISBLANK(טבלה7[[#This Row],[עבודה]]),ISBLANK(טבלה7[[#This Row],[סיום]])), SUMIF(שעות_עבודה7[התחלה],">="&טבלה7[[#This Row],[התחלה]],שעות_עבודה7[השכר]), AND(NOT(ISBLANK(טבלה7[[#This Row],[עבודה]])),ISBLANK(טבלה7[[#This Row],[התחלה]]),ISBLANK(טבלה7[[#This Row],[סיום]])), SUMIF(שעות_עבודה7[שם העבודה],טבלה7[[#This Row],[עבודה]],שעות_עבודה7[השכר]), AND(NOT(ISBLANK(טבלה7[[#This Row],[סיום]])),ISBLANK(טבלה7[[#This Row],[עבודה]]),ISBLANK(טבלה7[[#This Row],[התחלה]])), SUMIF(שעות_עבודה7[סיום],"<="&טבלה7[[#This Row],[סיום]],שעות_עבודה7[השכר]), AND(NOT(ISBLANK(טבלה7[[#This Row],[התחלה]])),NOT(ISBLANK(טבלה7[[#This Row],[עבודה]])),ISBLANK(טבלה7[[#This Row],[סיום]])), SUMIFS(שעות_עבודה7[השכר],שעות_עבודה7[התחלה],">="&טבלה7[[#This Row],[התחלה]],שעות_עבודה7[שם העבודה],טבלה7[[#This Row],[עבודה]]), AND(NOT(ISBLANK(טבלה7[[#This Row],[עבודה]])),NOT(ISBLANK(טבלה7[[#This Row],[סיום]])),ISBLANK(טבלה7[[#This Row],[התחלה]])), SUMIFS(שעות_עבודה7[השכר],שעות_עבודה7[שם העבודה],טבלה7[[#This Row],[עבודה]],שעות_עבודה7[סיום],"<="&טבלה7[[#This Row],[סיום]]), AND(NOT(ISBLANK(טבלה7[[#This Row],[התחלה]])),NOT(ISBLANK(טבלה7[[#This Row],[סיום]])),ISBLANK(טבלה7[[#This Row],[עבודה]])), SUMIFS(שעות_עבודה7[השכר],שעות_עבודה7[התחלה],">="&טבלה7[[#This Row],[התחלה]],שעות_עבודה7[סיום],"<="&טבלה7[[#This Row],[סיום]]), AND(NOT(ISBLANK(טבלה7[[#This Row],[התחלה]])),NOT(ISBLANK(טבלה7[[#This Row],[עבודה]])),NOT(ISBLANK(טבלה7[[#This Row],[סיום]]))), SUMIFS(שעות_עבודה7[השכר],שעות_עבודה7[התחלה],">="&טבלה7[[#This Row],[התחלה]],שעות_עבודה7[שם העבודה],טבלה7[[#This Row],[עבודה]],שעות_עבודה7[סיום],"<="&טבלה7[[#This Row],[סיום]]), AND(ISBLANK(טבלה7[[#This Row],[התחלה]]),ISBLANK(טבלה7[[#This Row],[עבודה]]),ISBLANK(טבלה7[[#This Row],[סיום]])),"")) ->  | AN21: 1
B22: =IF(שעות_עבודה7[[#This Row],[תאריך]]="","",ROW(A14)) ->  | C22: =_xlfn.IFS(שעות_עבודה7[[#This Row],[התחלה]]="","",WEEKDAY(שעות_עבודה7[[#This Row],[התחלה]])=1,"ראשון",WEEKDAY(שעות_עבודה7[[#This Row],[התחלה]])=2,"שני",WEEKDAY(שעות_עבודה7[[#This Row],[התחלה]])=3,"שלישי",WEEKDAY(שעות_עבודה7[[#This Row],[התחלה]])=4,"רביעי",WEEKDAY(שעות_עבודה7[[#This Row],[התחלה]])=5,"חמישי",WEEKDAY(שעות_עבודה7[[#This Row],[התחלה]])=6,"שישי",WEEKDAY(שעות_עבודה7[[#This Row],[התחלה]])=7,"מוצ""ש") ->  | D22: =IF(שעות_עבודה7[[#This Row],[התחלה]]="","",שעות_עבודה7[[#This Row],[התחלה]]) ->  | J22: =IF(OR(שעות_עבודה7[[#This Row],[התחלה]]="", שעות_עבודה7[[#This Row],[סיום]]-שעות_עבודה7[[#This Row],[התחלה]]+שעות_עבודה7[[#This Row],[הוספת דקות]]/1440<שעות_עבודה7[[#This Row],[הפחתת דקות]]/1440, SUM(שעות_עבודה7[[#This Row],[סיום]]-שעות_עבודה7[[#This Row],[התחלה]],שעות_עבודה7[[#This Row],[הוספת דקות]]/1440,-שעות_עבודה7[[#This Row],[הפחתת דקות]]/1440)=0), "", SUM(שעות_עבודה7[[#This Row],[סיום]]-שעות_עבודה7[[#This Row],[התחלה]],שעות_עבודה7[[#This Row],[הוספת דקות]]/1440,-שעות_עבודה7[[#This Row],[הפחתת דקות]]/1440)) ->  | K22: =IF(שעות_עבודה7[[#This Row],[שעות]]="","", IF(SUMPRODUCT((שעות_עבודה7[[#This Row],[שם העבודה]]=$P$3:$P$6)*שעות_עבודה7[[#This Row],[שעות]]*($Q$3:$Q$6*24))=0,"", SUMPRODUCT((שעות_עבודה7[[#This Row],[שם העבודה]]=$P$3:$P$6)*שעות_עבודה7[[#This Row],[שעות]]*($Q$3:$Q$6*24)))) ->  | R22: =IF(_xlfn.IFS( AND(NOT(ISBLANK(טבלה7[[#This Row],[התחלה]])),ISBLANK(טבלה7[[#This Row],[עבודה]]),ISBLANK(טבלה7[[#This Row],[סיום]])), SUMIF(שעות_עבודה7[התחלה],">="&טבלה7[[#This Row],[התחלה]],שעות_עבודה7[שעות]), AND(NOT(ISBLANK(טבלה7[[#This Row],[עבודה]])),ISBLANK(טבלה7[[#This Row],[התחלה]]),ISBLANK(טבלה7[[#This Row],[סיום]])), SUMIF(שעות_עבודה7[שם העבודה],טבלה7[[#This Row],[עבודה]],שעות_עבודה7[שעות]), AND(NOT(ISBLANK(טבלה7[[#This Row],[סיום]])),ISBLANK(טבלה7[[#This Row],[עבודה]]),ISBLANK(טבלה7[[#This Row],[התחלה]])), SUMIF(שעות_עבודה7[סיום],"<="&טבלה7[[#This Row],[סיום]],שעות_עבודה7[שעות]), AND(NOT(ISBLANK(טבלה7[[#This Row],[התחלה]])),NOT(ISBLANK(טבלה7[[#This Row],[עבודה]])),ISBLANK(טבלה7[[#This Row],[סיום]])), SUMIFS(שעות_עבודה7[שעות],שעות_עבודה7[התחלה],">="&טבלה7[[#This Row],[התחלה]],שעות_עבודה7[שם העבודה],טבלה7[[#This Row],[עבודה]]), AND(NOT(ISBLANK(טבלה7[[#This Row],[עבודה]])),NOT(ISBLANK(טבלה7[[#This Row],[סיום]])),ISBLANK(טבלה7[[#This Row],[התחלה]])), SUMIFS(שעות_עבודה7[שעות],שעות_עבודה7[שם העבודה],טבלה7[[#This Row],[עבודה]],שעות_עבודה7[סיום],"<="&טבלה7[[#This Row],[סיום]]), AND(NOT(ISBLANK(טבלה7[[#This Row],[התחלה]])),NOT(ISBLANK(טבלה7[[#This Row],[סיום]])),ISBLANK(טבלה7[[#This Row],[עבודה]])), SUMIFS(שעות_עבודה7[שעות],שעות_עבודה7[התחלה],">="&טבלה7[[#This Row],[התחלה]],שעות_עבודה7[סיום],"<="&טבלה7[[#This Row],[סיום]]), AND(NOT(ISBLANK(טבלה7[[#This Row],[התחלה]])),NOT(ISBLANK(טבלה7[[#This Row],[עבודה]])),NOT(ISBLANK(טבלה7[[#This Row],[סיום]]))), SUMIFS(שעות_עבודה7[שעות],שעות_עבודה7[התחלה],">="&טבלה7[[#This Row],[התחלה]],שעות_עבודה7[שם העבודה],טבלה7[[#This Row],[עבודה]],שעות_עבודה7[סיום],"<="&טבלה7[[#This Row],[סיום]]), AND(ISBLANK(טבלה7[[#This Row],[התחלה]]),ISBLANK(טבלה7[[#This Row],[עבודה]]),ISBLANK(טבלה7[[#This Row],[סיום]])),"")=0,"", _xlfn.IFS( AND(NOT(ISBLANK(טבלה7[[#This Row],[התחלה]])),ISBLANK(טבלה7[[#This Row],[עבודה]]),ISBLANK(טבלה7[[#This Row],[סיום]])), SUMIF(שעות_עבודה7[התחלה],">="&טבלה7[[#This Row],[התחלה]],שעות_עבודה7[שעות]), AND(NOT(ISBLANK(טבלה7[[#This Row],[עבודה]])),ISBLANK(טבלה7[[#This Row],[התחלה]]),ISBLANK(טבלה7[[#This Row],[סיום]])), SUMIF(שעות_עבודה7[שם העבודה],טבלה7[[#This Row],[עבודה]],שעות_עבודה7[שעות]), AND(NOT(ISBLANK(טבלה7[[#This Row],[סיום]])),ISBLANK(טבלה7[[#This Row],[עבודה]]),ISBLANK(טבלה7[[#This Row],[התחלה]])), SUMIF(שעות_עבודה7[סיום],"<="&טבלה7[[#This Row],[סיום]],שעות_עבודה7[שעות]), AND(NOT(ISBLANK(טבלה7[[#This Row],[התחלה]])),NOT(ISBLANK(טבלה7[[#This Row],[עבודה]])),ISBLANK(טבלה7[[#This Row],[סיום]])), SUMIFS(שעות_עבודה7[שעות],שעות_עבודה7[התחלה],">="&טבלה7[[#This Row],[התחלה]],שעות_עבודה7[שם העבודה],טבלה7[[#This Row],[עבודה]]), AND(NOT(ISBLANK(טבלה7[[#This Row],[עבודה]])),NOT(ISBLANK(טבלה7[[#This Row],[סיום]])),ISBLANK(טבלה7[[#This Row],[התחלה]])), SUMIFS(שעות_עבודה7[שעות],שעות_עבודה7[שם העבודה],טבלה7[[#This Row],[עבודה]],שעות_עבודה7[סיום],"<="&טבלה7[[#This Row],[סיום]]), AND(NOT(ISBLANK(טבלה7[[#This Row],[התחלה]])),NOT(ISBLANK(טבלה7[[#This Row],[סיום]])),ISBLANK(טבלה7[[#This Row],[עבודה]])), SUMIFS(שעות_עבודה7[שעות],שעות_עבודה7[התחלה],">="&טבלה7[[#This Row],[התחלה]],שעות_עבודה7[סיום],"<="&טבלה7[[#This Row],[סיום]]), AND(NOT(ISBLANK(טבלה7[[#This Row],[התחלה]])),NOT(ISBLANK(טבלה7[[#This Row],[עבודה]])),NOT(ISBLANK(טבלה7[[#This Row],[סיום]]))), SUMIFS(שעות_עבודה7[שעות],שעות_עבודה7[התחלה],">="&טבלה7[[#This Row],[התחלה]],שעות_עבודה7[שם העבודה],טבלה7[[#This Row],[עבודה]],שעות_עבודה7[סיום],"<="&טבלה7[[#This Row],[סיום]]), AND(ISBLANK(טבלה7[[#This Row],[התחלה]]),ISBLANK(טבלה7[[#This Row],[עבודה]]),ISBLANK(טבלה7[[#This Row],[סיום]])),"")) ->  | S22: =IF(_xlfn.IFS( AND(NOT(ISBLANK(טבלה7[[#This Row],[התחלה]])),ISBLANK(טבלה7[[#This Row],[עבודה]]),ISBLANK(טבלה7[[#This Row],[סיום]])), SUMIF(שעות_עבודה7[התחלה],">="&טבלה7[[#This Row],[התחלה]],שעות_עבודה7[השכר]), AND(NOT(ISBLANK(טבלה7[[#This Row],[עבודה]])),ISBLANK(טבלה7[[#This Row],[התחלה]]),ISBLANK(טבלה7[[#This Row],[סיום]])), SUMIF(שעות_עבודה7[שם העבודה],טבלה7[[#This Row],[עבודה]],שעות_עבודה7[השכר]), AND(NOT(ISBLANK(טבלה7[[#This Row],[סיום]])),ISBLANK(טבלה7[[#This Row],[עבודה]]),ISBLANK(טבלה7[[#This Row],[התחלה]])), SUMIF(שעות_עבודה7[סיום],"<="&טבלה7[[#This Row],[סיום]],שעות_עבודה7[השכר]), AND(NOT(ISBLANK(טבלה7[[#This Row],[התחלה]])),NOT(ISBLANK(טבלה7[[#This Row],[עבודה]])),ISBLANK(טבלה7[[#This Row],[סיום]])), SUMIFS(שעות_עבודה7[השכר],שעות_עבודה7[התחלה],">="&טבלה7[[#This Row],[התחלה]],שעות_עבודה7[שם העבודה],טבלה7[[#This Row],[עבודה]]), AND(NOT(ISBLANK(טבלה7[[#This Row],[עבודה]])),NOT(ISBLANK(טבלה7[[#This Row],[סיום]])),ISBLANK(טבלה7[[#This Row],[התחלה]])), SUMIFS(שעות_עבודה7[השכר],שעות_עבודה7[שם העבודה],טבלה7[[#This Row],[עבודה]],שעות_עבודה7[סיום],"<="&טבלה7[[#This Row],[סיום]]), AND(NOT(ISBLANK(טבלה7[[#This Row],[התחלה]])),NOT(ISBLANK(טבלה7[[#This Row],[סיום]])),ISBLANK(טבלה7[[#This Row],[עבודה]])), SUMIFS(שעות_עבודה7[השכר],שעות_עבודה7[התחלה],">="&טבלה7[[#This Row],[התחלה]],שעות_עבודה7[סיום],"<="&טבלה7[[#This Row],[סיום]]), AND(NOT(ISBLANK(טבלה7[[#This Row],[התחלה]])),NOT(ISBLANK(טבלה7[[#This Row],[עבודה]])),NOT(ISBLANK(טבלה7[[#This Row],[סיום]]))), SUMIFS(שעות_עבודה7[השכר],שעות_עבודה7[התחלה],">="&טבלה7[[#This Row],[התחלה]],שעות_עבודה7[שם העבודה],טבלה7[[#This Row],[עבודה]],שעות_עבודה7[סיום],"<="&טבלה7[[#This Row],[סיום]]), AND(ISBLANK(טבלה7[[#This Row],[התחלה]]),ISBLANK(טבלה7[[#This Row],[עבודה]]),ISBLANK(טבלה7[[#This Row],[סיום]])),"")=0,"", _xlfn.IFS( AND(NOT(ISBLANK(טבלה7[[#This Row],[התחלה]])),ISBLANK(טבלה7[[#This Row],[עבודה]]),ISBLANK(טבלה7[[#This Row],[סיום]])), SUMIF(שעות_עבודה7[התחלה],">="&טבלה7[[#This Row],[התחלה]],שעות_עבודה7[השכר]), AND(NOT(ISBLANK(טבלה7[[#This Row],[עבודה]])),ISBLANK(טבלה7[[#This Row],[התחלה]]),ISBLANK(טבלה7[[#This Row],[סיום]])), SUMIF(שעות_עבודה7[שם העבודה],טבלה7[[#This Row],[עבודה]],שעות_עבודה7[השכר]), AND(NOT(ISBLANK(טבלה7[[#This Row],[סיום]])),ISBLANK(טבלה7[[#This Row],[עבודה]]),ISBLANK(טבלה7[[#This Row],[התחלה]])), SUMIF(שעות_עבודה7[סיום],"<="&טבלה7[[#This Row],[סיום]],שעות_עבודה7[השכר]), AND(NOT(ISBLANK(טבלה7[[#This Row],[התחלה]])),NOT(ISBLANK(טבלה7[[#This Row],[עבודה]])),ISBLANK(טבלה7[[#This Row],[סיום]])), SUMIFS(שעות_עבודה7[השכר],שעות_עבודה7[התחלה],">="&טבלה7[[#This Row],[התחלה]],שעות_עבודה7[שם העבודה],טבלה7[[#This Row],[עבודה]]), AND(NOT(ISBLANK(טבלה7[[#This Row],[עבודה]])),NOT(ISBLANK(טבלה7[[#This Row],[סיום]])),ISBLANK(טבלה7[[#This Row],[התחלה]])), SUMIFS(שעות_עבודה7[השכר],שעות_עבודה7[שם העבודה],טבלה7[[#This Row],[עבודה]],שעות_עבודה7[סיום],"<="&טבלה7[[#This Row],[סיום]]), AND(NOT(ISBLANK(טבלה7[[#This Row],[התחלה]])),NOT(ISBLANK(טבלה7[[#This Row],[סיום]])),ISBLANK(טבלה7[[#This Row],[עבודה]])), SUMIFS(שעות_עבודה7[השכר],שעות_עבודה7[התחלה],">="&טבלה7[[#This Row],[התחלה]],שעות_עבודה7[סיום],"<="&טבלה7[[#This Row],[סיום]]), AND(NOT(ISBLANK(טבלה7[[#This Row],[התחלה]])),NOT(ISBLANK(טבלה7[[#This Row],[עבודה]])),NOT(ISBLANK(טבלה7[[#This Row],[סיום]]))), SUMIFS(שעות_עבודה7[השכר],שעות_עבודה7[התחלה],">="&טבלה7[[#This Row],[התחלה]],שעות_עבודה7[שם העבודה],טבלה7[[#This Row],[עבודה]],שעות_עבודה7[סיום],"<="&טבלה7[[#This Row],[סיום]]), AND(ISBLANK(טבלה7[[#This Row],[התחלה]]),ISBLANK(טבלה7[[#This Row],[עבודה]]),ISBLANK(טבלה7[[#This Row],[סיום]])),"")) -> 
B23: =IF(שעות_עבודה7[[#This Row],[תאריך]]="","",ROW(A15)) ->  | C23: =_xlfn.IFS(שעות_עבודה7[[#This Row],[התחלה]]="","",WEEKDAY(שעות_עבודה7[[#This Row],[התחלה]])=1,"ראשון",WEEKDAY(שעות_עבודה7[[#This Row],[התחלה]])=2,"שני",WEEKDAY(שעות_עבודה7[[#This Row],[התחלה]])=3,"שלישי",WEEKDAY(שעות_עבודה7[[#This Row],[התחלה]])=4,"רביעי",WEEKDAY(שעות_עבודה7[[#This Row],[התחלה]])=5,"חמישי",WEEKDAY(שעות_עבודה7[[#This Row],[התחלה]])=6,"שישי",WEEKDAY(שעות_עבודה7[[#This Row],[התחלה]])=7,"מוצ""ש") ->  | D23: =IF(שעות_עבודה7[[#This Row],[התחלה]]="","",שעות_עבודה7[[#This Row],[התחלה]]) ->  | J23: =IF(OR(שעות_עבודה7[[#This Row],[התחלה]]="", שעות_עבודה7[[#This Row],[סיום]]-שעות_עבודה7[[#This Row],[התחלה]]+שעות_עבודה7[[#This Row],[הוספת דקות]]/1440<שעות_עבודה7[[#This Row],[הפחתת דקות]]/1440, SUM(שעות_עבודה7[[#This Row],[סיום]]-שעות_עבודה7[[#This Row],[התחלה]],שעות_עבודה7[[#This Row],[הוספת דקות]]/1440,-שעות_עבודה7[[#This Row],[הפחתת דקות]]/1440)=0), "", SUM(שעות_עבודה7[[#This Row],[סיום]]-שעות_עבודה7[[#This Row],[התחלה]],שעות_עבודה7[[#This Row],[הוספת דקות]]/1440,-שעות_עבודה7[[#This Row],[הפחתת דקות]]/1440)) ->  | K23: =IF(שעות_עבודה7[[#This Row],[שעות]]="","", IF(SUMPRODUCT((שעות_עבודה7[[#This Row],[שם העבודה]]=$P$3:$P$6)*שעות_עבודה7[[#This Row],[שעות]]*($Q$3:$Q$6*24))=0,"", SUMPRODUCT((שעות_עבודה7[[#This Row],[שם העבודה]]=$P$3:$P$6)*שעות_עבודה7[[#This Row],[שעות]]*($Q$3:$Q$6*24)))) ->  | R23: =IF(_xlfn.IFS( AND(NOT(ISBLANK(טבלה7[[#This Row],[התחלה]])),ISBLANK(טבלה7[[#This Row],[עבודה]]),ISBLANK(טבלה7[[#This Row],[סיום]])), SUMIF(שעות_עבודה7[התחלה],">="&טבלה7[[#This Row],[התחלה]],שעות_עבודה7[שעות]), AND(NOT(ISBLANK(טבלה7[[#This Row],[עבודה]])),ISBLANK(טבלה7[[#This Row],[התחלה]]),ISBLANK(טבלה7[[#This Row],[סיום]])), SUMIF(שעות_עבודה7[שם העבודה],טבלה7[[#This Row],[עבודה]],שעות_עבודה7[שעות]), AND(NOT(ISBLANK(טבלה7[[#This Row],[סיום]])),ISBLANK(טבלה7[[#This Row],[עבודה]]),ISBLANK(טבלה7[[#This Row],[התחלה]])), SUMIF(שעות_עבודה7[סיום],"<="&טבלה7[[#This Row],[סיום]],שעות_עבודה7[שעות]), AND(NOT(ISBLANK(טבלה7[[#This Row],[התחלה]])),NOT(ISBLANK(טבלה7[[#This Row],[עבודה]])),ISBLANK(טבלה7[[#This Row],[סיום]])), SUMIFS(שעות_עבודה7[שעות],שעות_עבודה7[התחלה],">="&טבלה7[[#This Row],[התחלה]],שעות_עבודה7[שם העבודה],טבלה7[[#This Row],[עבודה]]), AND(NOT(ISBLANK(טבלה7[[#This Row],[עבודה]])),NOT(ISBLANK(טבלה7[[#This Row],[סיום]])),ISBLANK(טבלה7[[#This Row],[התחלה]])), SUMIFS(שעות_עבודה7[שעות],שעות_עבודה7[שם העבודה],טבלה7[[#This Row],[עבודה]],שעות_עבודה7[סיום],"<="&טבלה7[[#This Row],[סיום]]), AND(NOT(ISBLANK(טבלה7[[#This Row],[התחלה]])),NOT(ISBLANK(טבלה7[[#This Row],[סיום]])),ISBLANK(טבלה7[[#This Row],[עבודה]])), SUMIFS(שעות_עבודה7[שעות],שעות_עבודה7[התחלה],">="&טבלה7[[#This Row],[התחלה]],שעות_עבודה7[סיום],"<="&טבלה7[[#This Row],[סיום]]), AND(NOT(ISBLANK(טבלה7[[#This Row],[התחלה]])),NOT(ISBLANK(טבלה7[[#This Row],[עבודה]])),NOT(ISBLANK(טבלה7[[#This Row],[סיום]]))), SUMIFS(שעות_עבודה7[שעות],שעות_עבודה7[התחלה],">="&טבלה7[[#This Row],[התחלה]],שעות_עבודה7[שם העבודה],טבלה7[[#This Row],[עבודה]],שעות_עבודה7[סיום],"<="&טבלה7[[#This Row],[סיום]]), AND(ISBLANK(טבלה7[[#This Row],[התחלה]]),ISBLANK(טבלה7[[#This Row],[עבודה]]),ISBLANK(טבלה7[[#This Row],[סיום]])),"")=0,"", _xlfn.IFS( AND(NOT(ISBLANK(טבלה7[[#This Row],[התחלה]])),ISBLANK(טבלה7[[#This Row],[עבודה]]),ISBLANK(טבלה7[[#This Row],[סיום]])), SUMIF(שעות_עבודה7[התחלה],">="&טבלה7[[#This Row],[התחלה]],שעות_עבודה7[שעות]), AND(NOT(ISBLANK(טבלה7[[#This Row],[עבודה]])),ISBLANK(טבלה7[[#This Row],[התחלה]]),ISBLANK(טבלה7[[#This Row],[סיום]])), SUMIF(שעות_עבודה7[שם העבודה],טבלה7[[#This Row],[עבודה]],שעות_עבודה7[שעות]), AND(NOT(ISBLANK(טבלה7[[#This Row],[סיום]])),ISBLANK(טבלה7[[#This Row],[עבודה]]),ISBLANK(טבלה7[[#This Row],[התחלה]])), SUMIF(שעות_עבודה7[סיום],"<="&טבלה7[[#This Row],[סיום]],שעות_עבודה7[שעות]), AND(NOT(ISBLANK(טבלה7[[#This Row],[התחלה]])),NOT(ISBLANK(טבלה7[[#This Row],[עבודה]])),ISBLANK(טבלה7[[#This Row],[סיום]])), SUMIFS(שעות_עבודה7[שעות],שעות_עבודה7[התחלה],">="&טבלה7[[#This Row],[התחלה]],שעות_עבודה7[שם העבודה],טבלה7[[#This Row],[עבודה]]), AND(NOT(ISBLANK(טבלה7[[#This Row],[עבודה]])),NOT(ISBLANK(טבלה7[[#This Row],[סיום]])),ISBLANK(טבלה7[[#This Row],[התחלה]])), SUMIFS(שעות_עבודה7[שעות],שעות_עבודה7[שם העבודה],טבלה7[[#This Row],[עבודה]],שעות_עבודה7[סיום],"<="&טבלה7[[#This Row],[סיום]]), AND(NOT(ISBLANK(טבלה7[[#This Row],[התחלה]])),NOT(ISBLANK(טבלה7[[#This Row],[סיום]])),ISBLANK(טבלה7[[#This Row],[עבודה]])), SUMIFS(שעות_עבודה7[שעות],שעות_עבודה7[התחלה],">="&טבלה7[[#This Row],[התחלה]],שעות_עבודה7[סיום],"<="&טבלה7[[#This Row],[סיום]]), AND(NOT(ISBLANK(טבלה7[[#This Row],[התחלה]])),NOT(ISBLANK(טבלה7[[#This Row],[עבודה]])),NOT(ISBLANK(טבלה7[[#This Row],[סיום]]))), SUMIFS(שעות_עבודה7[שעות],שעות_עבודה7[התחלה],">="&טבלה7[[#This Row],[התחלה]],שעות_עבודה7[שם העבודה],טבלה7[[#This Row],[עבודה]],שעות_עבודה7[סיום],"<="&טבלה7[[#This Row],[סיום]]), AND(ISBLANK(טבלה7[[#This Row],[התחלה]]),ISBLANK(טבלה7[[#This Row],[עבודה]]),ISBLANK(טבלה7[[#This Row],[סיום]])),"")) ->  | S23: =IF(_xlfn.IFS( AND(NOT(ISBLANK(טבלה7[[#This Row],[התחלה]])),ISBLANK(טבלה7[[#This Row],[עבודה]]),ISBLANK(טבלה7[[#This Row],[סיום]])), SUMIF(שעות_עבודה7[התחלה],">="&טבלה7[[#This Row],[התחלה]],שעות_עבודה7[השכר]), AND(NOT(ISBLANK(טבלה7[[#This Row],[עבודה]])),ISBLANK(טבלה7[[#This Row],[התחלה]]),ISBLANK(טבלה7[[#This Row],[סיום]])), SUMIF(שעות_עבודה7[שם העבודה],טבלה7[[#This Row],[עבודה]],שעות_עבודה7[השכר]), AND(NOT(ISBLANK(טבלה7[[#This Row],[סיום]])),ISBLANK(טבלה7[[#This Row],[עבודה]]),ISBLANK(טבלה7[[#This Row],[התחלה]])), SUMIF(שעות_עבודה7[סיום],"<="&טבלה7[[#This Row],[סיום]],שעות_עבודה7[השכר]), AND(NOT(ISBLANK(טבלה7[[#This Row],[התחלה]])),NOT(ISBLANK(טבלה7[[#This Row],[עבודה]])),ISBLANK(טבלה7[[#This Row],[סיום]])), SUMIFS(שעות_עבודה7[השכר],שעות_עבודה7[התחלה],">="&טבלה7[[#This Row],[התחלה]],שעות_עבודה7[שם העבודה],טבלה7[[#This Row],[עבודה]]), AND(NOT(ISBLANK(טבלה7[[#This Row],[עבודה]])),NOT(ISBLANK(טבלה7[[#This Row],[סיום]])),ISBLANK(טבלה7[[#This Row],[התחלה]])), SUMIFS(שעות_עבודה7[השכר],שעות_עבודה7[שם העבודה],טבלה7[[#This Row],[עבודה]],שעות_עבודה7[סיום],"<="&טבלה7[[#This Row],[סיום]]), AND(NOT(ISBLANK(טבלה7[[#This Row],[התחלה]])),NOT(ISBLANK(טבלה7[[#This Row],[סיום]])),ISBLANK(טבלה7[[#This Row],[עבודה]])), SUMIFS(שעות_עבודה7[השכר],שעות_עבודה7[התחלה],">="&טבלה7[[#This Row],[התחלה]],שעות_עבודה7[סיום],"<="&טבלה7[[#This Row],[סיום]]), AND(NOT(ISBLANK(טבלה7[[#This Row],[התחלה]])),NOT(ISBLANK(טבלה7[[#This Row],[עבודה]])),NOT(ISBLANK(טבלה7[[#This Row],[סיום]]))), SUMIFS(שעות_עבודה7[השכר],שעות_עבודה7[התחלה],">="&טבלה7[[#This Row],[התחלה]],שעות_עבודה7[שם העבודה],טבלה7[[#This Row],[עבודה]],שעות_עבודה7[סיום],"<="&טבלה7[[#This Row],[סיום]]), AND(ISBLANK(טבלה7[[#This Row],[התחלה]]),ISBLANK(טבלה7[[#This Row],[עבודה]]),ISBLANK(טבלה7[[#This Row],[סיום]])),"")=0,"", _xlfn.IFS( AND(NOT(ISBLANK(טבלה7[[#This Row],[התחלה]])),ISBLANK(טבלה7[[#This Row],[עבודה]]),ISBLANK(טבלה7[[#This Row],[סיום]])), SUMIF(שעות_עבודה7[התחלה],">="&טבלה7[[#This Row],[התחלה]],שעות_עבודה7[השכר]), AND(NOT(ISBLANK(טבלה7[[#This Row],[עבודה]])),ISBLANK(טבלה7[[#This Row],[התחלה]]),ISBLANK(טבלה7[[#This Row],[סיום]])), SUMIF(שעות_עבודה7[שם העבודה],טבלה7[[#This Row],[עבודה]],שעות_עבודה7[השכר]), AND(NOT(ISBLANK(טבלה7[[#This Row],[סיום]])),ISBLANK(טבלה7[[#This Row],[עבודה]]),ISBLANK(טבלה7[[#This Row],[התחלה]])), SUMIF(שעות_עבודה7[סיום],"<="&טבלה7[[#This Row],[סיום]],שעות_עבודה7[השכר]), AND(NOT(ISBLANK(טבלה7[[#This Row],[התחלה]])),NOT(ISBLANK(טבלה7[[#This Row],[עבודה]])),ISBLANK(טבלה7[[#This Row],[סיום]])), SUMIFS(שעות_עבודה7[השכר],שעות_עבודה7[התחלה],">="&טבלה7[[#This Row],[התחלה]],שעות_עבודה7[שם העבודה],טבלה7[[#This Row],[עבודה]]), AND(NOT(ISBLANK(טבלה7[[#This Row],[עבודה]])),NOT(ISBLANK(טבלה7[[#This Row],[סיום]])),ISBLANK(טבלה7[[#This Row],[התחלה]])), SUMIFS(שעות_עבודה7[השכר],שעות_עבודה7[שם העבודה],טבלה7[[#This Row],[עבודה]],שעות_עבודה7[סיום],"<="&טבלה7[[#This Row],[סיום]]), AND(NOT(ISBLANK(טבלה7[[#This Row],[התחלה]])),NOT(ISBLANK(טבלה7[[#This Row],[סיום]])),ISBLANK(טבלה7[[#This Row],[עבודה]])), SUMIFS(שעות_עבודה7[השכר],שעות_עבודה7[התחלה],">="&טבלה7[[#This Row],[התחלה]],שעות_עבודה7[סיום],"<="&טבלה7[[#This Row],[סיום]]), AND(NOT(ISBLANK(טבלה7[[#This Row],[התחלה]])),NOT(ISBLANK(טבלה7[[#This Row],[עבודה]])),NOT(ISBLANK(טבלה7[[#This Row],[סיום]]))), SUMIFS(שעות_עבודה7[השכר],שעות_עבודה7[התחלה],">="&טבלה7[[#This Row],[התחלה]],שעות_עבודה7[שם העבודה],טבלה7[[#This Row],[עבודה]],שעות_עבודה7[סיום],"<="&טבלה7[[#This Row],[סיום]]), AND(ISBLANK(טבלה7[[#This Row],[התחלה]]),ISBLANK(טבלה7[[#This Row],[עבודה]]),ISBLANK(טבלה7[[#This Row],[סיום]])),"")) -> 
B24: =IF(שעות_עבודה7[[#This Row],[תאריך]]="","",ROW(A16)) ->  | C24: =_xlfn.IFS(שעות_עבודה7[[#This Row],[התחלה]]="","",WEEKDAY(שעות_עבודה7[[#This Row],[התחלה]])=1,"ראשון",WEEKDAY(שעות_עבודה7[[#This Row],[התחלה]])=2,"שני",WEEKDAY(שעות_עבודה7[[#This Row],[התחלה]])=3,"שלישי",WEEKDAY(שעות_עבודה7[[#This Row],[התחלה]])=4,"רביעי",WEEKDAY(שעות_עבודה7[[#This Row],[התחלה]])=5,"חמישי",WEEKDAY(שעות_עבודה7[[#This Row],[התחלה]])=6,"שישי",WEEKDAY(שעות_עבודה7[[#This Row],[התחלה]])=7,"מוצ""ש") ->  | D24: =IF(שעות_עבודה7[[#This Row],[התחלה]]="","",שעות_עבודה7[[#This Row],[התחלה]]) ->  | J24: =IF(OR(שעות_עבודה7[[#This Row],[התחלה]]="", שעות_עבודה7[[#This Row],[סיום]]-שעות_עבודה7[[#This Row],[התחלה]]+שעות_עבודה7[[#This Row],[הוספת דקות]]/1440<שעות_עבודה7[[#This Row],[הפחתת דקות]]/1440, SUM(שעות_עבודה7[[#This Row],[סיום]]-שעות_עבודה7[[#This Row],[התחלה]],שעות_עבודה7[[#This Row],[הוספת דקות]]/1440,-שעות_עבודה7[[#This Row],[הפחתת דקות]]/1440)=0), "", SUM(שעות_עבודה7[[#This Row],[סיום]]-שעות_עבודה7[[#This Row],[התחלה]],שעות_עבודה7[[#This Row],[הוספת דקות]]/1440,-שעות_עבודה7[[#This Row],[הפחתת דקות]]/1440)) ->  | K24: =IF(שעות_עבודה7[[#This Row],[שעות]]="","", IF(SUMPRODUCT((שעות_עבודה7[[#This Row],[שם העבודה]]=$P$3:$P$6)*שעות_עבודה7[[#This Row],[שעות]]*($Q$3:$Q$6*24))=0,"", SUMPRODUCT((שעות_עבודה7[[#This Row],[שם העבודה]]=$P$3:$P$6)*שעות_עבודה7[[#This Row],[שעות]]*($Q$3:$Q$6*24)))) ->  | R24: =IF(_xlfn.IFS( AND(NOT(ISBLANK(טבלה7[[#This Row],[התחלה]])),ISBLANK(טבלה7[[#This Row],[עבודה]]),ISBLANK(טבלה7[[#This Row],[סיום]])), SUMIF(שעות_עבודה7[התחלה],">="&טבלה7[[#This Row],[התחלה]],שעות_עבודה7[שעות]), AND(NOT(ISBLANK(טבלה7[[#This Row],[עבודה]])),ISBLANK(טבלה7[[#This Row],[התחלה]]),ISBLANK(טבלה7[[#This Row],[סיום]])), SUMIF(שעות_עבודה7[שם העבודה],טבלה7[[#This Row],[עבודה]],שעות_עבודה7[שעות]), AND(NOT(ISBLANK(טבלה7[[#This Row],[סיום]])),ISBLANK(טבלה7[[#This Row],[עבודה]]),ISBLANK(טבלה7[[#This Row],[התחלה]])), SUMIF(שעות_עבודה7[סיום],"<="&טבלה7[[#This Row],[סיום]],שעות_עבודה7[שעות]), AND(NOT(ISBLANK(טבלה7[[#This Row],[התחלה]])),NOT(ISBLANK(טבלה7[[#This Row],[עבודה]])),ISBLANK(טבלה7[[#This Row],[סיום]])), SUMIFS(שעות_עבודה7[שעות],שעות_עבודה7[התחלה],">="&טבלה7[[#This Row],[התחלה]],שעות_עבודה7[שם העבודה],טבלה7[[#This Row],[עבודה]]), AND(NOT(ISBLANK(טבלה7[[#This Row],[עבודה]])),NOT(ISBLANK(טבלה7[[#This Row],[סיום]])),ISBLANK(טבלה7[[#This Row],[התחלה]])), SUMIFS(שעות_עבודה7[שעות],שעות_עבודה7[שם העבודה],טבלה7[[#This Row],[עבודה]],שעות_עבודה7[סיום],"<="&טבלה7[[#This Row],[סיום]]), AND(NOT(ISBLANK(טבלה7[[#This Row],[התחלה]])),NOT(ISBLANK(טבלה7[[#This Row],[סיום]])),ISBLANK(טבלה7[[#This Row],[עבודה]])), SUMIFS(שעות_עבודה7[שעות],שעות_עבודה7[התחלה],">="&טבלה7[[#This Row],[התחלה]],שעות_עבודה7[סיום],"<="&טבלה7[[#This Row],[סיום]]), AND(NOT(ISBLANK(טבלה7[[#This Row],[התחלה]])),NOT(ISBLANK(טבלה7[[#This Row],[עבודה]])),NOT(ISBLANK(טבלה7[[#This Row],[סיום]]))), SUMIFS(שעות_עבודה7[שעות],שעות_עבודה7[התחלה],">="&טבלה7[[#This Row],[התחלה]],שעות_עבודה7[שם העבודה],טבלה7[[#This Row],[עבודה]],שעות_עבודה7[סיום],"<="&טבלה7[[#This Row],[סיום]]), AND(ISBLANK(טבלה7[[#This Row],[התחלה]]),ISBLANK(טבלה7[[#This Row],[עבודה]]),ISBLANK(טבלה7[[#This Row],[סיום]])),"")=0,"", _xlfn.IFS( AND(NOT(ISBLANK(טבלה7[[#This Row],[התחלה]])),ISBLANK(טבלה7[[#This Row],[עבודה]]),ISBLANK(טבלה7[[#This Row],[סיום]])), SUMIF(שעות_עבודה7[התחלה],">="&טבלה7[[#This Row],[התחלה]],שעות_עבודה7[שעות]), AND(NOT(ISBLANK(טבלה7[[#This Row],[עבודה]])),ISBLANK(טבלה7[[#This Row],[התחלה]]),ISBLANK(טבלה7[[#This Row],[סיום]])), SUMIF(שעות_עבודה7[שם העבודה],טבלה7[[#This Row],[עבודה]],שעות_עבודה7[שעות]), AND(NOT(ISBLANK(טבלה7[[#This Row],[סיום]])),ISBLANK(טבלה7[[#This Row],[עבודה]]),ISBLANK(טבלה7[[#This Row],[התחלה]])), SUMIF(שעות_עבודה7[סיום],"<="&טבלה7[[#This Row],[סיום]],שעות_עבודה7[שעות]), AND(NOT(ISBLANK(טבלה7[[#This Row],[התחלה]])),NOT(ISBLANK(טבלה7[[#This Row],[עבודה]])),ISBLANK(טבלה7[[#This Row],[סיום]])), SUMIFS(שעות_עבודה7[שעות],שעות_עבודה7[התחלה],">="&טבלה7[[#This Row],[התחלה]],שעות_עבודה7[שם העבודה],טבלה7[[#This Row],[עבודה]]), AND(NOT(ISBLANK(טבלה7[[#This Row],[עבודה]])),NOT(ISBLANK(טבלה7[[#This Row],[סיום]])),ISBLANK(טבלה7[[#This Row],[התחלה]])), SUMIFS(שעות_עבודה7[שעות],שעות_עבודה7[שם העבודה],טבלה7[[#This Row],[עבודה]],שעות_עבודה7[סיום],"<="&טבלה7[[#This Row],[סיום]]), AND(NOT(ISBLANK(טבלה7[[#This Row],[התחלה]])),NOT(ISBLANK(טבלה7[[#This Row],[סיום]])),ISBLANK(טבלה7[[#This Row],[עבודה]])), SUMIFS(שעות_עבודה7[שעות],שעות_עבודה7[התחלה],">="&טבלה7[[#This Row],[התחלה]],שעות_עבודה7[סיום],"<="&טבלה7[[#This Row],[סיום]]), AND(NOT(ISBLANK(טבלה7[[#This Row],[התחלה]])),NOT(ISBLANK(טבלה7[[#This Row],[עבודה]])),NOT(ISBLANK(טבלה7[[#This Row],[סיום]]))), SUMIFS(שעות_עבודה7[שעות],שעות_עבודה7[התחלה],">="&טבלה7[[#This Row],[התחלה]],שעות_עבודה7[שם העבודה],טבלה7[[#This Row],[עבודה]],שעות_עבודה7[סיום],"<="&טבלה7[[#This Row],[סיום]]), AND(ISBLANK(טבלה7[[#This Row],[התחלה]]),ISBLANK(טבלה7[[#This Row],[עבודה]]),ISBLANK(טבלה7[[#This Row],[סיום]])),"")) ->  | S24: =IF(_xlfn.IFS( AND(NOT(ISBLANK(טבלה7[[#This Row],[התחלה]])),ISBLANK(טבלה7[[#This Row],[עבודה]]),ISBLANK(טבלה7[[#This Row],[סיום]])), SUMIF(שעות_עבודה7[התחלה],">="&טבלה7[[#This Row],[התחלה]],שעות_עבודה7[השכר]), AND(NOT(ISBLANK(טבלה7[[#This Row],[עבודה]])),ISBLANK(טבלה7[[#This Row],[התחלה]]),ISBLANK(טבלה7[[#This Row],[סיום]])), SUMIF(שעות_עבודה7[שם העבודה],טבלה7[[#This Row],[עבודה]],שעות_עבודה7[השכר]), AND(NOT(ISBLANK(טבלה7[[#This Row],[סיום]])),ISBLANK(טבלה7[[#This Row],[עבודה]]),ISBLANK(טבלה7[[#This Row],[התחלה]])), SUMIF(שעות_עבודה7[סיום],"<="&טבלה7[[#This Row],[סיום]],שעות_עבודה7[השכר]), AND(NOT(ISBLANK(טבלה7[[#This Row],[התחלה]])),NOT(ISBLANK(טבלה7[[#This Row],[עבודה]])),ISBLANK(טבלה7[[#This Row],[סיום]])), SUMIFS(שעות_עבודה7[השכר],שעות_עבודה7[התחלה],">="&טבלה7[[#This Row],[התחלה]],שעות_עבודה7[שם העבודה],טבלה7[[#This Row],[עבודה]]), AND(NOT(ISBLANK(טבלה7[[#This Row],[עבודה]])),NOT(ISBLANK(טבלה7[[#This Row],[סיום]])),ISBLANK(טבלה7[[#This Row],[התחלה]])), SUMIFS(שעות_עבודה7[השכר],שעות_עבודה7[שם העבודה],טבלה7[[#This Row],[עבודה]],שעות_עבודה7[סיום],"<="&טבלה7[[#This Row],[סיום]]), AND(NOT(ISBLANK(טבלה7[[#This Row],[התחלה]])),NOT(ISBLANK(טבלה7[[#This Row],[סיום]])),ISBLANK(טבלה7[[#This Row],[עבודה]])), SUMIFS(שעות_עבודה7[השכר],שעות_עבודה7[התחלה],">="&טבלה7[[#This Row],[התחלה]],שעות_עבודה7[סיום],"<="&טבלה7[[#This Row],[סיום]]), AND(NOT(ISBLANK(טבלה7[[#This Row],[התחלה]])),NOT(ISBLANK(טבלה7[[#This Row],[עבודה]])),NOT(ISBLANK(טבלה7[[#This Row],[סיום]]))), SUMIFS(שעות_עבודה7[השכר],שעות_עבודה7[התחלה],">="&טבלה7[[#This Row],[התחלה]],שעות_עבודה7[שם העבודה],טבלה7[[#This Row],[עבודה]],שעות_עבודה7[סיום],"<="&טבלה7[[#This Row],[סיום]]), AND(ISBLANK(טבלה7[[#This Row],[התחלה]]),ISBLANK(טבלה7[[#This Row],[עבודה]]),ISBLANK(טבלה7[[#This Row],[סיום]])),"")=0,"", _xlfn.IFS( AND(NOT(ISBLANK(טבלה7[[#This Row],[התחלה]])),ISBLANK(טבלה7[[#This Row],[עבודה]]),ISBLANK(טבלה7[[#This Row],[סיום]])), SUMIF(שעות_עבודה7[התחלה],">="&טבלה7[[#This Row],[התחלה]],שעות_עבודה7[השכר]), AND(NOT(ISBLANK(טבלה7[[#This Row],[עבודה]])),ISBLANK(טבלה7[[#This Row],[התחלה]]),ISBLANK(טבלה7[[#This Row],[סיום]])), SUMIF(שעות_עבודה7[שם העבודה],טבלה7[[#This Row],[עבודה]],שעות_עבודה7[השכר]), AND(NOT(ISBLANK(טבלה7[[#This Row],[סיום]])),ISBLANK(טבלה7[[#This Row],[עבודה]]),ISBLANK(טבלה7[[#This Row],[התחלה]])), SUMIF(שעות_עבודה7[סיום],"<="&טבלה7[[#This Row],[סיום]],שעות_עבודה7[השכר]), AND(NOT(ISBLANK(טבלה7[[#This Row],[התחלה]])),NOT(ISBLANK(טבלה7[[#This Row],[עבודה]])),ISBLANK(טבלה7[[#This Row],[סיום]])), SUMIFS(שעות_עבודה7[השכר],שעות_עבודה7[התחלה],">="&טבלה7[[#This Row],[התחלה]],שעות_עבודה7[שם העבודה],טבלה7[[#This Row],[עבודה]]), AND(NOT(ISBLANK(טבלה7[[#This Row],[עבודה]])),NOT(ISBLANK(טבלה7[[#This Row],[סיום]])),ISBLANK(טבלה7[[#This Row],[התחלה]])), SUMIFS(שעות_עבודה7[השכר],שעות_עבודה7[שם העבודה],טבלה7[[#This Row],[עבודה]],שעות_עבודה7[סיום],"<="&טבלה7[[#This Row],[סיום]]), AND(NOT(ISBLANK(טבלה7[[#This Row],[התחלה]])),NOT(ISBLANK(טבלה7[[#This Row],[סיום]])),ISBLANK(טבלה7[[#This Row],[עבודה]])), SUMIFS(שעות_עבודה7[השכר],שעות_עבודה7[התחלה],">="&טבלה7[[#This Row],[התחלה]],שעות_עבודה7[סיום],"<="&טבלה7[[#This Row],[סיום]]), AND(NOT(ISBLANK(טבלה7[[#This Row],[התחלה]])),NOT(ISBLANK(טבלה7[[#This Row],[עבודה]])),NOT(ISBLANK(טבלה7[[#This Row],[סיום]]))), SUMIFS(שעות_עבודה7[השכר],שעות_עבודה7[התחלה],">="&טבלה7[[#This Row],[התחלה]],שעות_עבודה7[שם העבודה],טבלה7[[#This Row],[עבודה]],שעות_עבודה7[סיום],"<="&טבלה7[[#This Row],[סיום]]), AND(ISBLANK(טבלה7[[#This Row],[התחלה]]),ISBLANK(טבלה7[[#This Row],[עבודה]]),ISBLANK(טבלה7[[#This Row],[סיום]])),"")) -> 
B25: =IF(שעות_עבודה7[[#This Row],[תאריך]]="","",ROW(A17)) ->  | C25: =_xlfn.IFS(שעות_עבודה7[[#This Row],[התחלה]]="","",WEEKDAY(שעות_עבודה7[[#This Row],[התחלה]])=1,"ראשון",WEEKDAY(שעות_עבודה7[[#This Row],[התחלה]])=2,"שני",WEEKDAY(שעות_עבודה7[[#This Row],[התחלה]])=3,"שלישי",WEEKDAY(שעות_עבודה7[[#This Row],[התחלה]])=4,"רביעי",WEEKDAY(שעות_עבודה7[[#This Row],[התחלה]])=5,"חמישי",WEEKDAY(שעות_עבודה7[[#This Row],[התחלה]])=6,"שישי",WEEKDAY(שעות_עבודה7[[#This Row],[התחלה]])=7,"מוצ""ש") ->  | D25: =IF(שעות_עבודה7[[#This Row],[התחלה]]="","",שעות_עבודה7[[#This Row],[התחלה]]) ->  | J25: =IF(OR(שעות_עבודה7[[#This Row],[התחלה]]="", שעות_עבודה7[[#This Row],[סיום]]-שעות_עבודה7[[#This Row],[התחלה]]+שעות_עבודה7[[#This Row],[הוספת דקות]]/1440<שעות_עבודה7[[#This Row],[הפחתת דקות]]/1440, SUM(שעות_עבודה7[[#This Row],[סיום]]-שעות_עבודה7[[#This Row],[התחלה]],שעות_עבודה7[[#This Row],[הוספת דקות]]/1440,-שעות_עבודה7[[#This Row],[הפחתת דקות]]/1440)=0), "", SUM(שעות_עבודה7[[#This Row],[סיום]]-שעות_עבודה7[[#This Row],[התחלה]],שעות_עבודה7[[#This Row],[הוספת דקות]]/1440,-שעות_עבודה7[[#This Row],[הפחתת דקות]]/1440)) ->  | K25: =IF(שעות_עבודה7[[#This Row],[שעות]]="","", IF(SUMPRODUCT((שעות_עבודה7[[#This Row],[שם העבודה]]=$P$3:$P$6)*שעות_עבודה7[[#This Row],[שעות]]*($Q$3:$Q$6*24))=0,"", SUMPRODUCT((שעות_עבודה7[[#This Row],[שם העבודה]]=$P$3:$P$6)*שעות_עבודה7[[#This Row],[שעות]]*($Q$3:$Q$6*24)))) ->  | R25: =IF(_xlfn.IFS( AND(NOT(ISBLANK(טבלה7[[#This Row],[התחלה]])),ISBLANK(טבלה7[[#This Row],[עבודה]]),ISBLANK(טבלה7[[#This Row],[סיום]])), SUMIF(שעות_עבודה7[התחלה],">="&טבלה7[[#This Row],[התחלה]],שעות_עבודה7[שעות]), AND(NOT(ISBLANK(טבלה7[[#This Row],[עבודה]])),ISBLANK(טבלה7[[#This Row],[התחלה]]),ISBLANK(טבלה7[[#This Row],[סיום]])), SUMIF(שעות_עבודה7[שם העבודה],טבלה7[[#This Row],[עבודה]],שעות_עבודה7[שעות]), AND(NOT(ISBLANK(טבלה7[[#This Row],[סיום]])),ISBLANK(טבלה7[[#This Row],[עבודה]]),ISBLANK(טבלה7[[#This Row],[התחלה]])), SUMIF(שעות_עבודה7[סיום],"<="&טבלה7[[#This Row],[סיום]],שעות_עבודה7[שעות]), AND(NOT(ISBLANK(טבלה7[[#This Row],[התחלה]])),NOT(ISBLANK(טבלה7[[#This Row],[עבודה]])),ISBLANK(טבלה7[[#This Row],[סיום]])), SUMIFS(שעות_עבודה7[שעות],שעות_עבודה7[התחלה],">="&טבלה7[[#This Row],[התחלה]],שעות_עבודה7[שם העבודה],טבלה7[[#This Row],[עבודה]]), AND(NOT(ISBLANK(טבלה7[[#This Row],[עבודה]])),NOT(ISBLANK(טבלה7[[#This Row],[סיום]])),ISBLANK(טבלה7[[#This Row],[התחלה]])), SUMIFS(שעות_עבודה7[שעות],שעות_עבודה7[שם העבודה],טבלה7[[#This Row],[עבודה]],שעות_עבודה7[סיום],"<="&טבלה7[[#This Row],[סיום]]), AND(NOT(ISBLANK(טבלה7[[#This Row],[התחלה]])),NOT(ISBLANK(טבלה7[[#This Row],[סיום]])),ISBLANK(טבלה7[[#This Row],[עבודה]])), SUMIFS(שעות_עבודה7[שעות],שעות_עבודה7[התחלה],">="&טבלה7[[#This Row],[התחלה]],שעות_עבודה7[סיום],"<="&טבלה7[[#This Row],[סיום]]), AND(NOT(ISBLANK(טבלה7[[#This Row],[התחלה]])),NOT(ISBLANK(טבלה7[[#This Row],[עבודה]])),NOT(ISBLANK(טבלה7[[#This Row],[סיום]]))), SUMIFS(שעות_עבודה7[שעות],שעות_עבודה7[התחלה],">="&טבלה7[[#This Row],[התחלה]],שעות_עבודה7[שם העבודה],טבלה7[[#This Row],[עבודה]],שעות_עבודה7[סיום],"<="&טבלה7[[#This Row],[סיום]]), AND(ISBLANK(טבלה7[[#This Row],[התחלה]]),ISBLANK(טבלה7[[#This Row],[עבודה]]),ISBLANK(טבלה7[[#This Row],[סיום]])),"")=0,"", _xlfn.IFS( AND(NOT(ISBLANK(טבלה7[[#This Row],[התחלה]])),ISBLANK(טבלה7[[#This Row],[עבודה]]),ISBLANK(טבלה7[[#This Row],[סיום]])), SUMIF(שעות_עבודה7[התחלה],">="&טבלה7[[#This Row],[התחלה]],שעות_עבודה7[שעות]), AND(NOT(ISBLANK(טבלה7[[#This Row],[עבודה]])),ISBLANK(טבלה7[[#This Row],[התחלה]]),ISBLANK(טבלה7[[#This Row],[סיום]])), SUMIF(שעות_עבודה7[שם העבודה],טבלה7[[#This Row],[עבודה]],שעות_עבודה7[שעות]), AND(NOT(ISBLANK(טבלה7[[#This Row],[סיום]])),ISBLANK(טבלה7[[#This Row],[עבודה]]),ISBLANK(טבלה7[[#This Row],[התחלה]])), SUMIF(שעות_עבודה7[סיום],"<="&טבלה7[[#This Row],[סיום]],שעות_עבודה7[שעות]), AND(NOT(ISBLANK(טבלה7[[#This Row],[התחלה]])),NOT(ISBLANK(טבלה7[[#This Row],[עבודה]])),ISBLANK(טבלה7[[#This Row],[סיום]])), SUMIFS(שעות_עבודה7[שעות],שעות_עבודה7[התחלה],">="&טבלה7[[#This Row],[התחלה]],שעות_עבודה7[שם העבודה],טבלה7[[#This Row],[עבודה]]), AND(NOT(ISBLANK(טבלה7[[#This Row],[עבודה]])),NOT(ISBLANK(טבלה7[[#This Row],[סיום]])),ISBLANK(טבלה7[[#This Row],[התחלה]])), SUMIFS(שעות_עבודה7[שעות],שעות_עבודה7[שם העבודה],טבלה7[[#This Row],[עבודה]],שעות_עבודה7[סיום],"<="&טבלה7[[#This Row],[סיום]]), AND(NOT(ISBLANK(טבלה7[[#This Row],[התחלה]])),NOT(ISBLANK(טבלה7[[#This Row],[סיום]])),ISBLANK(טבלה7[[#This Row],[עבודה]])), SUMIFS(שעות_עבודה7[שעות],שעות_עבודה7[התחלה],">="&טבלה7[[#This Row],[התחלה]],שעות_עבודה7[סיום],"<="&טבלה7[[#This Row],[סיום]]), AND(NOT(ISBLANK(טבלה7[[#This Row],[התחלה]])),NOT(ISBLANK(טבלה7[[#This Row],[עבודה]])),NOT(ISBLANK(טבלה7[[#This Row],[סיום]]))), SUMIFS(שעות_עבודה7[שעות],שעות_עבודה7[התחלה],">="&טבלה7[[#This Row],[התחלה]],שעות_עבודה7[שם העבודה],טבלה7[[#This Row],[עבודה]],שעות_עבודה7[סיום],"<="&טבלה7[[#This Row],[סיום]]), AND(ISBLANK(טבלה7[[#This Row],[התחלה]]),ISBLANK(טבלה7[[#This Row],[עבודה]]),ISBLANK(טבלה7[[#This Row],[סיום]])),"")) ->  | S25: =IF(_xlfn.IFS( AND(NOT(ISBLANK(טבלה7[[#This Row],[התחלה]])),ISBLANK(טבלה7[[#This Row],[עבודה]]),ISBLANK(טבלה7[[#This Row],[סיום]])), SUMIF(שעות_עבודה7[התחלה],">="&טבלה7[[#This Row],[התחלה]],שעות_עבודה7[השכר]), AND(NOT(ISBLANK(טבלה7[[#This Row],[עבודה]])),ISBLANK(טבלה7[[#This Row],[התחלה]]),ISBLANK(טבלה7[[#This Row],[סיום]])), SUMIF(שעות_עבודה7[שם העבודה],טבלה7[[#This Row],[עבודה]],שעות_עבודה7[השכר]), AND(NOT(ISBLANK(טבלה7[[#This Row],[סיום]])),ISBLANK(טבלה7[[#This Row],[עבודה]]),ISBLANK(טבלה7[[#This Row],[התחלה]])), SUMIF(שעות_עבודה7[סיום],"<="&טבלה7[[#This Row],[סיום]],שעות_עבודה7[השכר]), AND(NOT(ISBLANK(טבלה7[[#This Row],[התחלה]])),NOT(ISBLANK(טבלה7[[#This Row],[עבודה]])),ISBLANK(טבלה7[[#This Row],[סיום]])), SUMIFS(שעות_עבודה7[השכר],שעות_עבודה7[התחלה],">="&טבלה7[[#This Row],[התחלה]],שעות_עבודה7[שם העבודה],טבלה7[[#This Row],[עבודה]]), AND(NOT(ISBLANK(טבלה7[[#This Row],[עבודה]])),NOT(ISBLANK(טבלה7[[#This Row],[סיום]])),ISBLANK(טבלה7[[#This Row],[התחלה]])), SUMIFS(שעות_עבודה7[השכר],שעות_עבודה7[שם העבודה],טבלה7[[#This Row],[עבודה]],שעות_עבודה7[סיום],"<="&טבלה7[[#This Row],[סיום]]), AND(NOT(ISBLANK(טבלה7[[#This Row],[התחלה]])),NOT(ISBLANK(טבלה7[[#This Row],[סיום]])),ISBLANK(טבלה7[[#This Row],[עבודה]])), SUMIFS(שעות_עבודה7[השכר],שעות_עבודה7[התחלה],">="&טבלה7[[#This Row],[התחלה]],שעות_עבודה7[סיום],"<="&טבלה7[[#This Row],[סיום]]), AND(NOT(ISBLANK(טבלה7[[#This Row],[התחלה]])),NOT(ISBLANK(טבלה7[[#This Row],[עבודה]])),NOT(ISBLANK(טבלה7[[#This Row],[סיום]]))), SUMIFS(שעות_עבודה7[השכר],שעות_עבודה7[התחלה],">="&טבלה7[[#This Row],[התחלה]],שעות_עבודה7[שם העבודה],טבלה7[[#This Row],[עבודה]],שעות_עבודה7[סיום],"<="&טבלה7[[#This Row],[סיום]]), AND(ISBLANK(טבלה7[[#This Row],[התחלה]]),ISBLANK(טבלה7[[#This Row],[עבודה]]),ISBLANK(טבלה7[[#This Row],[סיום]])),"")=0,"", _xlfn.IFS( AND(NOT(ISBLANK(טבלה7[[#This Row],[התחלה]])),ISBLANK(טבלה7[[#This Row],[עבודה]]),ISBLANK(טבלה7[[#This Row],[סיום]])), SUMIF(שעות_עבודה7[התחלה],">="&טבלה7[[#This Row],[התחלה]],שעות_עבודה7[השכר]), AND(NOT(ISBLANK(טבלה7[[#This Row],[עבודה]])),ISBLANK(טבלה7[[#This Row],[התחלה]]),ISBLANK(טבלה7[[#This Row],[סיום]])), SUMIF(שעות_עבודה7[שם העבודה],טבלה7[[#This Row],[עבודה]],שעות_עבודה7[השכר]), AND(NOT(ISBLANK(טבלה7[[#This Row],[סיום]])),ISBLANK(טבלה7[[#This Row],[עבודה]]),ISBLANK(טבלה7[[#This Row],[התחלה]])), SUMIF(שעות_עבודה7[סיום],"<="&טבלה7[[#This Row],[סיום]],שעות_עבודה7[השכר]), AND(NOT(ISBLANK(טבלה7[[#This Row],[התחלה]])),NOT(ISBLANK(טבלה7[[#This Row],[עבודה]])),ISBLANK(טבלה7[[#This Row],[סיום]])), SUMIFS(שעות_עבודה7[השכר],שעות_עבודה7[התחלה],">="&טבלה7[[#This Row],[התחלה]],שעות_עבודה7[שם העבודה],טבלה7[[#This Row],[עבודה]]), AND(NOT(ISBLANK(טבלה7[[#This Row],[עבודה]])),NOT(ISBLANK(טבלה7[[#This Row],[סיום]])),ISBLANK(טבלה7[[#This Row],[התחלה]])), SUMIFS(שעות_עבודה7[השכר],שעות_עבודה7[שם העבודה],טבלה7[[#This Row],[עבודה]],שעות_עבודה7[סיום],"<="&טבלה7[[#This Row],[סיום]]), AND(NOT(ISBLANK(טבלה7[[#This Row],[התחלה]])),NOT(ISBLANK(טבלה7[[#This Row],[סיום]])),ISBLANK(טבלה7[[#This Row],[עבודה]])), SUMIFS(שעות_עבודה7[השכר],שעות_עבודה7[התחלה],">="&טבלה7[[#This Row],[התחלה]],שעות_עבודה7[סיום],"<="&טבלה7[[#This Row],[סיום]]), AND(NOT(ISBLANK(טבלה7[[#This Row],[התחלה]])),NOT(ISBLANK(טבלה7[[#This Row],[עבודה]])),NOT(ISBLANK(טבלה7[[#This Row],[סיום]]))), SUMIFS(שעות_עבודה7[השכר],שעות_עבודה7[התחלה],">="&טבלה7[[#This Row],[התחלה]],שעות_עבודה7[שם העבודה],טבלה7[[#This Row],[עבודה]],שעות_עבודה7[סיום],"<="&טבלה7[[#This Row],[סיום]]), AND(ISBLANK(טבלה7[[#This Row],[התחלה]]),ISBLANK(טבלה7[[#This Row],[עבודה]]),ISBLANK(טבלה7[[#This Row],[סיום]])),"")) -> 
B26: =IF(שעות_עבודה7[[#This Row],[תאריך]]="","",ROW(A18)) ->  | C26: =_xlfn.IFS(שעות_עבודה7[[#This Row],[התחלה]]="","",WEEKDAY(שעות_עבודה7[[#This Row],[התחלה]])=1,"ראשון",WEEKDAY(שעות_עבודה7[[#This Row],[התחלה]])=2,"שני",WEEKDAY(שעות_עבודה7[[#This Row],[התחלה]])=3,"שלישי",WEEKDAY(שעות_עבודה7[[#This Row],[התחלה]])=4,"רביעי",WEEKDAY(שעות_עבודה7[[#This Row],[התחלה]])=5,"חמישי",WEEKDAY(שעות_עבודה7[[#This Row],[התחלה]])=6,"שישי",WEEKDAY(שעות_עבודה7[[#This Row],[התחלה]])=7,"מוצ""ש") ->  | D26: =IF(שעות_עבודה7[[#This Row],[התחלה]]="","",שעות_עבודה7[[#This Row],[התחלה]]) ->  | J26: =IF(OR(שעות_עבודה7[[#This Row],[התחלה]]="", שעות_עבודה7[[#This Row],[סיום]]-שעות_עבודה7[[#This Row],[התחלה]]+שעות_עבודה7[[#This Row],[הוספת דקות]]/1440<שעות_עבודה7[[#This Row],[הפחתת דקות]]/1440, SUM(שעות_עבודה7[[#This Row],[סיום]]-שעות_עבודה7[[#This Row],[התחלה]],שעות_עבודה7[[#This Row],[הוספת דקות]]/1440,-שעות_עבודה7[[#This Row],[הפחתת דקות]]/1440)=0), "", SUM(שעות_עבודה7[[#This Row],[סיום]]-שעות_עבודה7[[#This Row],[התחלה]],שעות_עבודה7[[#This Row],[הוספת דקות]]/1440,-שעות_עבודה7[[#This Row],[הפחתת דקות]]/1440)) ->  | K26: =IF(שעות_עבודה7[[#This Row],[שעות]]="","", IF(SUMPRODUCT((שעות_עבודה7[[#This Row],[שם העבודה]]=$P$3:$P$6)*שעות_עבודה7[[#This Row],[שעות]]*($Q$3:$Q$6*24))=0,"", SUMPRODUCT((שעות_עבודה7[[#This Row],[שם העבודה]]=$P$3:$P$6)*שעות_עבודה7[[#This Row],[שעות]]*($Q$3:$Q$6*24)))) ->  | R26: =IF(_xlfn.IFS( AND(NOT(ISBLANK(טבלה7[[#This Row],[התחלה]])),ISBLANK(טבלה7[[#This Row],[עבודה]]),ISBLANK(טבלה7[[#This Row],[סיום]])), SUMIF(שעות_עבודה7[התחלה],">="&טבלה7[[#This Row],[התחלה]],שעות_עבודה7[שעות]), AND(NOT(ISBLANK(טבלה7[[#This Row],[עבודה]])),ISBLANK(טבלה7[[#This Row],[התחלה]]),ISBLANK(טבלה7[[#This Row],[סיום]])), SUMIF(שעות_עבודה7[שם העבודה],טבלה7[[#This Row],[עבודה]],שעות_עבודה7[שעות]), AND(NOT(ISBLANK(טבלה7[[#This Row],[סיום]])),ISBLANK(טבלה7[[#This Row],[עבודה]]),ISBLANK(טבלה7[[#This Row],[התחלה]])), SUMIF(שעות_עבודה7[סיום],"<="&טבלה7[[#This Row],[סיום]],שעות_עבודה7[שעות]), AND(NOT(ISBLANK(טבלה7[[#This Row],[התחלה]])),NOT(ISBLANK(טבלה7[[#This Row],[עבודה]])),ISBLANK(טבלה7[[#This Row],[סיום]])), SUMIFS(שעות_עבודה7[שעות],שעות_עבודה7[התחלה],">="&טבלה7[[#This Row],[התחלה]],שעות_עבודה7[שם העבודה],טבלה7[[#This Row],[עבודה]]), AND(NOT(ISBLANK(טבלה7[[#This Row],[עבודה]])),NOT(ISBLANK(טבלה7[[#This Row],[סיום]])),ISBLANK(טבלה7[[#This Row],[התחלה]])), SUMIFS(שעות_עבודה7[שעות],שעות_עבודה7[שם העבודה],טבלה7[[#This Row],[עבודה]],שעות_עבודה7[סיום],"<="&טבלה7[[#This Row],[סיום]]), AND(NOT(ISBLANK(טבלה7[[#This Row],[התחלה]])),NOT(ISBLANK(טבלה7[[#This Row],[סיום]])),ISBLANK(טבלה7[[#This Row],[עבודה]])), SUMIFS(שעות_עבודה7[שעות],שעות_עבודה7[התחלה],">="&טבלה7[[#This Row],[התחלה]],שעות_עבודה7[סיום],"<="&טבלה7[[#This Row],[סיום]]), AND(NOT(ISBLANK(טבלה7[[#This Row],[התחלה]])),NOT(ISBLANK(טבלה7[[#This Row],[עבודה]])),NOT(ISBLANK(טבלה7[[#This Row],[סיום]]))), SUMIFS(שעות_עבודה7[שעות],שעות_עבודה7[התחלה],">="&טבלה7[[#This Row],[התחלה]],שעות_עבודה7[שם העבודה],טבלה7[[#This Row],[עבודה]],שעות_עבודה7[סיום],"<="&טבלה7[[#This Row],[סיום]]), AND(ISBLANK(טבלה7[[#This Row],[התחלה]]),ISBLANK(טבלה7[[#This Row],[עבודה]]),ISBLANK(טבלה7[[#This Row],[סיום]])),"")=0,"", _xlfn.IFS( AND(NOT(ISBLANK(טבלה7[[#This Row],[התחלה]])),ISBLANK(טבלה7[[#This Row],[עבודה]]),ISBLANK(טבלה7[[#This Row],[סיום]])), SUMIF(שעות_עבודה7[התחלה],">="&טבלה7[[#This Row],[התחלה]],שעות_עבודה7[שעות]), AND(NOT(ISBLANK(טבלה7[[#This Row],[עבודה]])),ISBLANK(טבלה7[[#This Row],[התחלה]]),ISBLANK(טבלה7[[#This Row],[סיום]])), SUMIF(שעות_עבודה7[שם העבודה],טבלה7[[#This Row],[עבודה]],שעות_עבודה7[שעות]), AND(NOT(ISBLANK(טבלה7[[#This Row],[סיום]])),ISBLANK(טבלה7[[#This Row],[עבודה]]),ISBLANK(טבלה7[[#This Row],[התחלה]])), SUMIF(שעות_עבודה7[סיום],"<="&טבלה7[[#This Row],[סיום]],שעות_עבודה7[שעות]), AND(NOT(ISBLANK(טבלה7[[#This Row],[התחלה]])),NOT(ISBLANK(טבלה7[[#This Row],[עבודה]])),ISBLANK(טבלה7[[#This Row],[סיום]])), SUMIFS(שעות_עבודה7[שעות],שעות_עבודה7[התחלה],">="&טבלה7[[#This Row],[התחלה]],שעות_עבודה7[שם העבודה],טבלה7[[#This Row],[עבודה]]), AND(NOT(ISBLANK(טבלה7[[#This Row],[עבודה]])),NOT(ISBLANK(טבלה7[[#This Row],[סיום]])),ISBLANK(טבלה7[[#This Row],[התחלה]])), SUMIFS(שעות_עבודה7[שעות],שעות_עבודה7[שם העבודה],טבלה7[[#This Row],[עבודה]],שעות_עבודה7[סיום],"<="&טבלה7[[#This Row],[סיום]]), AND(NOT(ISBLANK(טבלה7[[#This Row],[התחלה]])),NOT(ISBLANK(טבלה7[[#This Row],[סיום]])),ISBLANK(טבלה7[[#This Row],[עבודה]])), SUMIFS(שעות_עבודה7[שעות],שעות_עבודה7[התחלה],">="&טבלה7[[#This Row],[התחלה]],שעות_עבודה7[סיום],"<="&טבלה7[[#This Row],[סיום]]), AND(NOT(ISBLANK(טבלה7[[#This Row],[התחלה]])),NOT(ISBLANK(טבלה7[[#This Row],[עבודה]])),NOT(ISBLANK(טבלה7[[#This Row],[סיום]]))), SUMIFS(שעות_עבודה7[שעות],שעות_עבודה7[התחלה],">="&טבלה7[[#This Row],[התחלה]],שעות_עבודה7[שם העבודה],טבלה7[[#This Row],[עבודה]],שעות_עבודה7[סיום],"<="&טבלה7[[#This Row],[סיום]]), AND(ISBLANK(טבלה7[[#This Row],[התחלה]]),ISBLANK(טבלה7[[#This Row],[עבודה]]),ISBLANK(טבלה7[[#This Row],[סיום]])),"")) ->  | S26: =IF(_xlfn.IFS( AND(NOT(ISBLANK(טבלה7[[#This Row],[התחלה]])),ISBLANK(טבלה7[[#This Row],[עבודה]]),ISBLANK(טבלה7[[#This Row],[סיום]])), SUMIF(שעות_עבודה7[התחלה],">="&טבלה7[[#This Row],[התחלה]],שעות_עבודה7[השכר]), AND(NOT(ISBLANK(טבלה7[[#This Row],[עבודה]])),ISBLANK(טבלה7[[#This Row],[התחלה]]),ISBLANK(טבלה7[[#This Row],[סיום]])), SUMIF(שעות_עבודה7[שם העבודה],טבלה7[[#This Row],[עבודה]],שעות_עבודה7[השכר]), AND(NOT(ISBLANK(טבלה7[[#This Row],[סיום]])),ISBLANK(טבלה7[[#This Row],[עבודה]]),ISBLANK(טבלה7[[#This Row],[התחלה]])), SUMIF(שעות_עבודה7[סיום],"<="&טבלה7[[#This Row],[סיום]],שעות_עבודה7[השכר]), AND(NOT(ISBLANK(טבלה7[[#This Row],[התחלה]])),NOT(ISBLANK(טבלה7[[#This Row],[עבודה]])),ISBLANK(טבלה7[[#This Row],[סיום]])), SUMIFS(שעות_עבודה7[השכר],שעות_עבודה7[התחלה],">="&טבלה7[[#This Row],[התחלה]],שעות_עבודה7[שם העבודה],טבלה7[[#This Row],[עבודה]]), AND(NOT(ISBLANK(טבלה7[[#This Row],[עבודה]])),NOT(ISBLANK(טבלה7[[#This Row],[סיום]])),ISBLANK(טבלה7[[#This Row],[התחלה]])), SUMIFS(שעות_עבודה7[השכר],שעות_עבודה7[שם העבודה],טבלה7[[#This Row],[עבודה]],שעות_עבודה7[סיום],"<="&טבלה7[[#This Row],[סיום]]), AND(NOT(ISBLANK(טבלה7[[#This Row],[התחלה]])),NOT(ISBLANK(טבלה7[[#This Row],[סיום]])),ISBLANK(טבלה7[[#This Row],[עבודה]])), SUMIFS(שעות_עבודה7[השכר],שעות_עבודה7[התחלה],">="&טבלה7[[#This Row],[התחלה]],שעות_עבודה7[סיום],"<="&טבלה7[[#This Row],[סיום]]), AND(NOT(ISBLANK(טבלה7[[#This Row],[התחלה]])),NOT(ISBLANK(טבלה7[[#This Row],[עבודה]])),NOT(ISBLANK(טבלה7[[#This Row],[סיום]]))), SUMIFS(שעות_עבודה7[השכר],שעות_עבודה7[התחלה],">="&טבלה7[[#This Row],[התחלה]],שעות_עבודה7[שם העבודה],טבלה7[[#This Row],[עבודה]],שעות_עבודה7[סיום],"<="&טבלה7[[#This Row],[סיום]]), AND(ISBLANK(טבלה7[[#This Row],[התחלה]]),ISBLANK(טבלה7[[#This Row],[עבודה]]),ISBLANK(טבלה7[[#This Row],[סיום]])),"")=0,"", _xlfn.IFS( AND(NOT(ISBLANK(טבלה7[[#This Row],[התחלה]])),ISBLANK(טבלה7[[#This Row],[עבודה]]),ISBLANK(טבלה7[[#This Row],[סיום]])), SUMIF(שעות_עבודה7[התחלה],">="&טבלה7[[#This Row],[התחלה]],שעות_עבודה7[השכר]), AND(NOT(ISBLANK(טבלה7[[#This Row],[עבודה]])),ISBLANK(טבלה7[[#This Row],[התחלה]]),ISBLANK(טבלה7[[#This Row],[סיום]])), SUMIF(שעות_עבודה7[שם העבודה],טבלה7[[#This Row],[עבודה]],שעות_עבודה7[השכר]), AND(NOT(ISBLANK(טבלה7[[#This Row],[סיום]])),ISBLANK(טבלה7[[#This Row],[עבודה]]),ISBLANK(טבלה7[[#This Row],[התחלה]])), SUMIF(שעות_עבודה7[סיום],"<="&טבלה7[[#This Row],[סיום]],שעות_עבודה7[השכר]), AND(NOT(ISBLANK(טבלה7[[#This Row],[התחלה]])),NOT(ISBLANK(טבלה7[[#This Row],[עבודה]])),ISBLANK(טבלה7[[#This Row],[סיום]])), SUMIFS(שעות_עבודה7[השכר],שעות_עבודה7[התחלה],">="&טבלה7[[#This Row],[התחלה]],שעות_עבודה7[שם העבודה],טבלה7[[#This Row],[עבודה]]), AND(NOT(ISBLANK(טבלה7[[#This Row],[עבודה]])),NOT(ISBLANK(טבלה7[[#This Row],[סיום]])),ISBLANK(טבלה7[[#This Row],[התחלה]])), SUMIFS(שעות_עבודה7[השכר],שעות_עבודה7[שם העבודה],טבלה7[[#This Row],[עבודה]],שעות_עבודה7[סיום],"<="&טבלה7[[#This Row],[סיום]]), AND(NOT(ISBLANK(טבלה7[[#This Row],[התחלה]])),NOT(ISBLANK(טבלה7[[#This Row],[סיום]])),ISBLANK(טבלה7[[#This Row],[עבודה]])), SUMIFS(שעות_עבודה7[השכר],שעות_עבודה7[התחלה],">="&טבלה7[[#This Row],[התחלה]],שעות_עבודה7[סיום],"<="&טבלה7[[#This Row],[סיום]]), AND(NOT(ISBLANK(טבלה7[[#This Row],[התחלה]])),NOT(ISBLANK(טבלה7[[#This Row],[עבודה]])),NOT(ISBLANK(טבלה7[[#This Row],[סיום]]))), SUMIFS(שעות_עבודה7[השכר],שעות_עבודה7[התחלה],">="&טבלה7[[#This Row],[התחלה]],שעות_עבודה7[שם העבודה],טבלה7[[#This Row],[עבודה]],שעות_עבודה7[סיום],"<="&טבלה7[[#This Row],[סיום]]), AND(ISBLANK(טבלה7[[#This Row],[התחלה]]),ISBLANK(טבלה7[[#This Row],[עבודה]]),ISBLANK(טבלה7[[#This Row],[סיום]])),"")) -> 
B27: =IF(שעות_עבודה7[[#This Row],[תאריך]]="","",ROW(A19)) ->  | C27: =_xlfn.IFS(שעות_עבודה7[[#This Row],[התחלה]]="","",WEEKDAY(שעות_עבודה7[[#This Row],[התחלה]])=1,"ראשון",WEEKDAY(שעות_עבודה7[[#This Row],[התחלה]])=2,"שני",WEEKDAY(שעות_עבודה7[[#This Row],[התחלה]])=3,"שלישי",WEEKDAY(שעות_עבודה7[[#This Row],[התחלה]])=4,"רביעי",WEEKDAY(שעות_עבודה7[[#This Row],[התחלה]])=5,"חמישי",WEEKDAY(שעות_עבודה7[[#This Row],[התחלה]])=6,"שישי",WEEKDAY(שעות_עבודה7[[#This Row],[התחלה]])=7,"מוצ""ש") ->  | D27: =IF(שעות_עבודה7[[#This Row],[התחלה]]="","",שעות_עבודה7[[#This Row],[התחלה]]) ->  | J27: =IF(OR(שעות_עבודה7[[#This Row],[התחלה]]="", שעות_עבודה7[[#This Row],[סיום]]-שעות_עבודה7[[#This Row],[התחלה]]+שעות_עבודה7[[#This Row],[הוספת דקות]]/1440<שעות_עבודה7[[#This Row],[הפחתת דקות]]/1440, SUM(שעות_עבודה7[[#This Row],[סיום]]-שעות_עבודה7[[#This Row],[התחלה]],שעות_עבודה7[[#This Row],[הוספת דקות]]/1440,-שעות_עבודה7[[#This Row],[הפחתת דקות]]/1440)=0), "", SUM(שעות_עבודה7[[#This Row],[סיום]]-שעות_עבודה7[[#This Row],[התחלה]],שעות_עבודה7[[#This Row],[הוספת דקות]]/1440,-שעות_עבודה7[[#This Row],[הפחתת דקות]]/1440)) ->  | K27: =IF(שעות_עבודה7[[#This Row],[שעות]]="","", IF(SUMPRODUCT((שעות_עבודה7[[#This Row],[שם העבודה]]=$P$3:$P$6)*שעות_עבודה7[[#This Row],[שעות]]*($Q$3:$Q$6*24))=0,"", SUMPRODUCT((שעות_עבודה7[[#This Row],[שם העבודה]]=$P$3:$P$6)*שעות_עבודה7[[#This Row],[שעות]]*($Q$3:$Q$6*24)))) ->  | R27: =IF(_xlfn.IFS( AND(NOT(ISBLANK(טבלה7[[#This Row],[התחלה]])),ISBLANK(טבלה7[[#This Row],[עבודה]]),ISBLANK(טבלה7[[#This Row],[סיום]])), SUMIF(שעות_עבודה7[התחלה],">="&טבלה7[[#This Row],[התחלה]],שעות_עבודה7[שעות]), AND(NOT(ISBLANK(טבלה7[[#This Row],[עבודה]])),ISBLANK(טבלה7[[#This Row],[התחלה]]),ISBLANK(טבלה7[[#This Row],[סיום]])), SUMIF(שעות_עבודה7[שם העבודה],טבלה7[[#This Row],[עבודה]],שעות_עבודה7[שעות]), AND(NOT(ISBLANK(טבלה7[[#This Row],[סיום]])),ISBLANK(טבלה7[[#This Row],[עבודה]]),ISBLANK(טבלה7[[#This Row],[התחלה]])), SUMIF(שעות_עבודה7[סיום],"<="&טבלה7[[#This Row],[סיום]],שעות_עבודה7[שעות]), AND(NOT(ISBLANK(טבלה7[[#This Row],[התחלה]])),NOT(ISBLANK(טבלה7[[#This Row],[עבודה]])),ISBLANK(טבלה7[[#This Row],[סיום]])), SUMIFS(שעות_עבודה7[שעות],שעות_עבודה7[התחלה],">="&טבלה7[[#This Row],[התחלה]],שעות_עבודה7[שם העבודה],טבלה7[[#This Row],[עבודה]]), AND(NOT(ISBLANK(טבלה7[[#This Row],[עבודה]])),NOT(ISBLANK(טבלה7[[#This Row],[סיום]])),ISBLANK(טבלה7[[#This Row],[התחלה]])), SUMIFS(שעות_עבודה7[שעות],שעות_עבודה7[שם העבודה],טבלה7[[#This Row],[עבודה]],שעות_עבודה7[סיום],"<="&טבלה7[[#This Row],[סיום]]), AND(NOT(ISBLANK(טבלה7[[#This Row],[התחלה]])),NOT(ISBLANK(טבלה7[[#This Row],[סיום]])),ISBLANK(טבלה7[[#This Row],[עבודה]])), SUMIFS(שעות_עבודה7[שעות],שעות_עבודה7[התחלה],">="&טבלה7[[#This Row],[התחלה]],שעות_עבודה7[סיום],"<="&טבלה7[[#This Row],[סיום]]), AND(NOT(ISBLANK(טבלה7[[#This Row],[התחלה]])),NOT(ISBLANK(טבלה7[[#This Row],[עבודה]])),NOT(ISBLANK(טבלה7[[#This Row],[סיום]]))), SUMIFS(שעות_עבודה7[שעות],שעות_עבודה7[התחלה],">="&טבלה7[[#This Row],[התחלה]],שעות_עבודה7[שם העבודה],טבלה7[[#This Row],[עבודה]],שעות_עבודה7[סיום],"<="&טבלה7[[#This Row],[סיום]]), AND(ISBLANK(טבלה7[[#This Row],[התחלה]]),ISBLANK(טבלה7[[#This Row],[עבודה]]),ISBLANK(טבלה7[[#This Row],[סיום]])),"")=0,"", _xlfn.IFS( AND(NOT(ISBLANK(טבלה7[[#This Row],[התחלה]])),ISBLANK(טבלה7[[#This Row],[עבודה]]),ISBLANK(טבלה7[[#This Row],[סיום]])), SUMIF(שעות_עבודה7[התחלה],">="&טבלה7[[#This Row],[התחלה]],שעות_עבודה7[שעות]), AND(NOT(ISBLANK(טבלה7[[#This Row],[עבודה]])),ISBLANK(טבלה7[[#This Row],[התחלה]]),ISBLANK(טבלה7[[#This Row],[סיום]])), SUMIF(שעות_עבודה7[שם העבודה],טבלה7[[#This Row],[עבודה]],שעות_עבודה7[שעות]), AND(NOT(ISBLANK(טבלה7[[#This Row],[סיום]])),ISBLANK(טבלה7[[#This Row],[עבודה]]),ISBLANK(טבלה7[[#This Row],[התחלה]])), SUMIF(שעות_עבודה7[סיום],"<="&טבלה7[[#This Row],[סיום]],שעות_עבודה7[שעות]), AND(NOT(ISBLANK(טבלה7[[#This Row],[התחלה]])),NOT(ISBLANK(טבלה7[[#This Row],[עבודה]])),ISBLANK(טבלה7[[#This Row],[סיום]])), SUMIFS(שעות_עבודה7[שעות],שעות_עבודה7[התחלה],">="&טבלה7[[#This Row],[התחלה]],שעות_עבודה7[שם העבודה],טבלה7[[#This Row],[עבודה]]), AND(NOT(ISBLANK(טבלה7[[#This Row],[עבודה]])),NOT(ISBLANK(טבלה7[[#This Row],[סיום]])),ISBLANK(טבלה7[[#This Row],[התחלה]])), SUMIFS(שעות_עבודה7[שעות],שעות_עבודה7[שם העבודה],טבלה7[[#This Row],[עבודה]],שעות_עבודה7[סיום],"<="&טבלה7[[#This Row],[סיום]]), AND(NOT(ISBLANK(טבלה7[[#This Row],[התחלה]])),NOT(ISBLANK(טבלה7[[#This Row],[סיום]])),ISBLANK(טבלה7[[#This Row],[עבודה]])), SUMIFS(שעות_עבודה7[שעות],שעות_עבודה7[התחלה],">="&טבלה7[[#This Row],[התחלה]],שעות_עבודה7[סיום],"<="&טבלה7[[#This Row],[סיום]]), AND(NOT(ISBLANK(טבלה7[[#This Row],[התחלה]])),NOT(ISBLANK(טבלה7[[#This Row],[עבודה]])),NOT(ISBLANK(טבלה7[[#This Row],[סיום]]))), SUMIFS(שעות_עבודה7[שעות],שעות_עבודה7[התחלה],">="&טבלה7[[#This Row],[התחלה]],שעות_עבודה7[שם העבודה],טבלה7[[#This Row],[עבודה]],שעות_עבודה7[סיום],"<="&טבלה7[[#This Row],[סיום]]), AND(ISBLANK(טבלה7[[#This Row],[התחלה]]),ISBLANK(טבלה7[[#This Row],[עבודה]]),ISBLANK(טבלה7[[#This Row],[סיום]])),"")) ->  | S27: =IF(_xlfn.IFS( AND(NOT(ISBLANK(טבלה7[[#This Row],[התחלה]])),ISBLANK(טבלה7[[#This Row],[עבודה]]),ISBLANK(טבלה7[[#This Row],[סיום]])), SUMIF(שעות_עבודה7[התחלה],">="&טבלה7[[#This Row],[התחלה]],שעות_עבודה7[השכר]), AND(NOT(ISBLANK(טבלה7[[#This Row],[עבודה]])),ISBLANK(טבלה7[[#This Row],[התחלה]]),ISBLANK(טבלה7[[#This Row],[סיום]])), SUMIF(שעות_עבודה7[שם העבודה],טבלה7[[#This Row],[עבודה]],שעות_עבודה7[השכר]), AND(NOT(ISBLANK(טבלה7[[#This Row],[סיום]])),ISBLANK(טבלה7[[#This Row],[עבודה]]),ISBLANK(טבלה7[[#This Row],[התחלה]])), SUMIF(שעות_עבודה7[סיום],"<="&טבלה7[[#This Row],[סיום]],שעות_עבודה7[השכר]), AND(NOT(ISBLANK(טבלה7[[#This Row],[התחלה]])),NOT(ISBLANK(טבלה7[[#This Row],[עבודה]])),ISBLANK(טבלה7[[#This Row],[סיום]])), SUMIFS(שעות_עבודה7[השכר],שעות_עבודה7[התחלה],">="&טבלה7[[#This Row],[התחלה]],שעות_עבודה7[שם העבודה],טבלה7[[#This Row],[עבודה]]), AND(NOT(ISBLANK(טבלה7[[#This Row],[עבודה]])),NOT(ISBLANK(טבלה7[[#This Row],[סיום]])),ISBLANK(טבלה7[[#This Row],[התחלה]])), SUMIFS(שעות_עבודה7[השכר],שעות_עבודה7[שם העבודה],טבלה7[[#This Row],[עבודה]],שעות_עבודה7[סיום],"<="&טבלה7[[#This Row],[סיום]]), AND(NOT(ISBLANK(טבלה7[[#This Row],[התחלה]])),NOT(ISBLANK(טבלה7[[#This Row],[סיום]])),ISBLANK(טבלה7[[#This Row],[עבודה]])), SUMIFS(שעות_עבודה7[השכר],שעות_עבודה7[התחלה],">="&טבלה7[[#This Row],[התחלה]],שעות_עבודה7[סיום],"<="&טבלה7[[#This Row],[סיום]]), AND(NOT(ISBLANK(טבלה7[[#This Row],[התחלה]])),NOT(ISBLANK(טבלה7[[#This Row],[עבודה]])),NOT(ISBLANK(טבלה7[[#This Row],[סיום]]))), SUMIFS(שעות_עבודה7[השכר],שעות_עבודה7[התחלה],">="&טבלה7[[#This Row],[התחלה]],שעות_עבודה7[שם העבודה],טבלה7[[#This Row],[עבודה]],שעות_עבודה7[סיום],"<="&טבלה7[[#This Row],[סיום]]), AND(ISBLANK(טבלה7[[#This Row],[התחלה]]),ISBLANK(טבלה7[[#This Row],[עבודה]]),ISBLANK(טבלה7[[#This Row],[סיום]])),"")=0,"", _xlfn.IFS( AND(NOT(ISBLANK(טבלה7[[#This Row],[התחלה]])),ISBLANK(טבלה7[[#This Row],[עבודה]]),ISBLANK(טבלה7[[#This Row],[סיום]])), SUMIF(שעות_עבודה7[התחלה],">="&טבלה7[[#This Row],[התחלה]],שעות_עבודה7[השכר]), AND(NOT(ISBLANK(טבלה7[[#This Row],[עבודה]])),ISBLANK(טבלה7[[#This Row],[התחלה]]),ISBLANK(טבלה7[[#This Row],[סיום]])), SUMIF(שעות_עבודה7[שם העבודה],טבלה7[[#This Row],[עבודה]],שעות_עבודה7[השכר]), AND(NOT(ISBLANK(טבלה7[[#This Row],[סיום]])),ISBLANK(טבלה7[[#This Row],[עבודה]]),ISBLANK(טבלה7[[#This Row],[התחלה]])), SUMIF(שעות_עבודה7[סיום],"<="&טבלה7[[#This Row],[סיום]],שעות_עבודה7[השכר]), AND(NOT(ISBLANK(טבלה7[[#This Row],[התחלה]])),NOT(ISBLANK(טבלה7[[#This Row],[עבודה]])),ISBLANK(טבלה7[[#This Row],[סיום]])), SUMIFS(שעות_עבודה7[השכר],שעות_עבודה7[התחלה],">="&טבלה7[[#This Row],[התחלה]],שעות_עבודה7[שם העבודה],טבלה7[[#This Row],[עבודה]]), AND(NOT(ISBLANK(טבלה7[[#This Row],[עבודה]])),NOT(ISBLANK(טבלה7[[#This Row],[סיום]])),ISBLANK(טבלה7[[#This Row],[התחלה]])), SUMIFS(שעות_עבודה7[השכר],שעות_עבודה7[שם העבודה],טבלה7[[#This Row],[עבודה]],שעות_עבודה7[סיום],"<="&טבלה7[[#This Row],[סיום]]), AND(NOT(ISBLANK(טבלה7[[#This Row],[התחלה]])),NOT(ISBLANK(טבלה7[[#This Row],[סיום]])),ISBLANK(טבלה7[[#This Row],[עבודה]])), SUMIFS(שעות_עבודה7[השכר],שעות_עבודה7[התחלה],">="&טבלה7[[#This Row],[התחלה]],שעות_עבודה7[סיום],"<="&טבלה7[[#This Row],[סיום]]), AND(NOT(ISBLANK(טבלה7[[#This Row],[התחלה]])),NOT(ISBLANK(טבלה7[[#This Row],[עבודה]])),NOT(ISBLANK(טבלה7[[#This Row],[סיום]]))), SUMIFS(שעות_עבודה7[השכר],שעות_עבודה7[התחלה],">="&טבלה7[[#This Row],[התחלה]],שעות_עבודה7[שם העבודה],טבלה7[[#This Row],[עבודה]],שעות_עבודה7[סיום],"<="&טבלה7[[#This Row],[סיום]]), AND(ISBLANK(טבלה7[[#This Row],[התחלה]]),ISBLANK(טבלה7[[#This Row],[עבודה]]),ISBLANK(טבלה7[[#This Row],[סיום]])),"")) -> 
B28: =IF(שעות_עבודה7[[#This Row],[תאריך]]="","",ROW(A20)) ->  | C28: =_xlfn.IFS(שעות_עבודה7[[#This Row],[התחלה]]="","",WEEKDAY(שעות_עבודה7[[#This Row],[התחלה]])=1,"ראשון",WEEKDAY(שעות_עבודה7[[#This Row],[התחלה]])=2,"שני",WEEKDAY(שעות_עבודה7[[#This Row],[התחלה]])=3,"שלישי",WEEKDAY(שעות_עבודה7[[#This Row],[התחלה]])=4,"רביעי",WEEKDAY(שעות_עבודה7[[#This Row],[התחלה]])=5,"חמישי",WEEKDAY(שעות_עבודה7[[#This Row],[התחלה]])=6,"שישי",WEEKDAY(שעות_עבודה7[[#This Row],[התחלה]])=7,"מוצ""ש") ->  | D28: =IF(שעות_עבודה7[[#This Row],[התחלה]]="","",שעות_עבודה7[[#This Row],[התחלה]]) ->  | J28: =IF(OR(שעות_עבודה7[[#This Row],[התחלה]]="", שעות_עבודה7[[#This Row],[סיום]]-שעות_עבודה7[[#This Row],[התחלה]]+שעות_עבודה7[[#This Row],[הוספת דקות]]/1440<שעות_עבודה7[[#This Row],[הפחתת דקות]]/1440, SUM(שעות_עבודה7[[#This Row],[סיום]]-שעות_עבודה7[[#This Row],[התחלה]],שעות_עבודה7[[#This Row],[הוספת דקות]]/1440,-שעות_עבודה7[[#This Row],[הפחתת דקות]]/1440)=0), "", SUM(שעות_עבודה7[[#This Row],[סיום]]-שעות_עבודה7[[#This Row],[התחלה]],שעות_עבודה7[[#This Row],[הוספת דקות]]/1440,-שעות_עבודה7[[#This Row],[הפחתת דקות]]/1440)) ->  | K28: =IF(שעות_עבודה7[[#This Row],[שעות]]="","", IF(SUMPRODUCT((שעות_עבודה7[[#This Row],[שם העבודה]]=$P$3:$P$6)*שעות_עבודה7[[#This Row],[שעות]]*($Q$3:$Q$6*24))=0,"", SUMPRODUCT((שעות_עבודה7[[#This Row],[שם העבודה]]=$P$3:$P$6)*שעות_עבודה7[[#This Row],[שעות]]*($Q$3:$Q$6*24)))) ->  | R28: =IF(_xlfn.IFS( AND(NOT(ISBLANK(טבלה7[[#This Row],[התחלה]])),ISBLANK(טבלה7[[#This Row],[עבודה]]),ISBLANK(טבלה7[[#This Row],[סיום]])), SUMIF(שעות_עבודה7[התחלה],">="&טבלה7[[#This Row],[התחלה]],שעות_עבודה7[שעות]), AND(NOT(ISBLANK(טבלה7[[#This Row],[עבודה]])),ISBLANK(טבלה7[[#This Row],[התחלה]]),ISBLANK(טבלה7[[#This Row],[סיום]])), SUMIF(שעות_עבודה7[שם העבודה],טבלה7[[#This Row],[עבודה]],שעות_עבודה7[שעות]), AND(NOT(ISBLANK(טבלה7[[#This Row],[סיום]])),ISBLANK(טבלה7[[#This Row],[עבודה]]),ISBLANK(טבלה7[[#This Row],[התחלה]])), SUMIF(שעות_עבודה7[סיום],"<="&טבלה7[[#This Row],[סיום]],שעות_עבודה7[שעות]), AND(NOT(ISBLANK(טבלה7[[#This Row],[התחלה]])),NOT(ISBLANK(טבלה7[[#This Row],[עבודה]])),ISBLANK(טבלה7[[#This Row],[סיום]])), SUMIFS(שעות_עבודה7[שעות],שעות_עבודה7[התחלה],">="&טבלה7[[#This Row],[התחלה]],שעות_עבודה7[שם העבודה],טבלה7[[#This Row],[עבודה]]), AND(NOT(ISBLANK(טבלה7[[#This Row],[עבודה]])),NOT(ISBLANK(טבלה7[[#This Row],[סיום]])),ISBLANK(טבלה7[[#This Row],[התחלה]])), SUMIFS(שעות_עבודה7[שעות],שעות_עבודה7[שם העבודה],טבלה7[[#This Row],[עבודה]],שעות_עבודה7[סיום],"<="&טבלה7[[#This Row],[סיום]]), AND(NOT(ISBLANK(טבלה7[[#This Row],[התחלה]])),NOT(ISBLANK(טבלה7[[#This Row],[סיום]])),ISBLANK(טבלה7[[#This Row],[עבודה]])), SUMIFS(שעות_עבודה7[שעות],שעות_עבודה7[התחלה],">="&טבלה7[[#This Row],[התחלה]],שעות_עבודה7[סיום],"<="&טבלה7[[#This Row],[סיום]]), AND(NOT(ISBLANK(טבלה7[[#This Row],[התחלה]])),NOT(ISBLANK(טבלה7[[#This Row],[עבודה]])),NOT(ISBLANK(טבלה7[[#This Row],[סיום]]))), SUMIFS(שעות_עבודה7[שעות],שעות_עבודה7[התחלה],">="&טבלה7[[#This Row],[התחלה]],שעות_עבודה7[שם העבודה],טבלה7[[#This Row],[עבודה]],שעות_עבודה7[סיום],"<="&טבלה7[[#This Row],[סיום]]), AND(ISBLANK(טבלה7[[#This Row],[התחלה]]),ISBLANK(טבלה7[[#This Row],[עבודה]]),ISBLANK(טבלה7[[#This Row],[סיום]])),"")=0,"", _xlfn.IFS( AND(NOT(ISBLANK(טבלה7[[#This Row],[התחלה]])),ISBLANK(טבלה7[[#This Row],[עבודה]]),ISBLANK(טבלה7[[#This Row],[סיום]])), SUMIF(שעות_עבודה7[התחלה],">="&טבלה7[[#This Row],[התחלה]],שעות_עבודה7[שעות]), AND(NOT(ISBLANK(טבלה7[[#This Row],[עבודה]])),ISBLANK(טבלה7[[#This Row],[התחלה]]),ISBLANK(טבלה7[[#This Row],[סיום]])), SUMIF(שעות_עבודה7[שם העבודה],טבלה7[[#This Row],[עבודה]],שעות_עבודה7[שעות]), AND(NOT(ISBLANK(טבלה7[[#This Row],[סיום]])),ISBLANK(טבלה7[[#This Row],[עבודה]]),ISBLANK(טבלה7[[#This Row],[התחלה]])), SUMIF(שעות_עבודה7[סיום],"<="&טבלה7[[#This Row],[סיום]],שעות_עבודה7[שעות]), AND(NOT(ISBLANK(טבלה7[[#This Row],[התחלה]])),NOT(ISBLANK(טבלה7[[#This Row],[עבודה]])),ISBLANK(טבלה7[[#This Row],[סיום]])), SUMIFS(שעות_עבודה7[שעות],שעות_עבודה7[התחלה],">="&טבלה7[[#This Row],[התחלה]],שעות_עבודה7[שם העבודה],טבלה7[[#This Row],[עבודה]]), AND(NOT(ISBLANK(טבלה7[[#This Row],[עבודה]])),NOT(ISBLANK(טבלה7[[#This Row],[סיום]])),ISBLANK(טבלה7[[#This Row],[התחלה]])), SUMIFS(שעות_עבודה7[שעות],שעות_עבודה7[שם העבודה],טבלה7[[#This Row],[עבודה]],שעות_עבודה7[סיום],"<="&טבלה7[[#This Row],[סיום]]), AND(NOT(ISBLANK(טבלה7[[#This Row],[התחלה]])),NOT(ISBLANK(טבלה7[[#This Row],[סיום]])),ISBLANK(טבלה7[[#This Row],[עבודה]])), SUMIFS(שעות_עבודה7[שעות],שעות_עבודה7[התחלה],">="&טבלה7[[#This Row],[התחלה]],שעות_עבודה7[סיום],"<="&טבלה7[[#This Row],[סיום]]), AND(NOT(ISBLANK(טבלה7[[#This Row],[התחלה]])),NOT(ISBLANK(טבלה7[[#This Row],[עבודה]])),NOT(ISBLANK(טבלה7[[#This Row],[סיום]]))), SUMIFS(שעות_עבודה7[שעות],שעות_עבודה7[התחלה],">="&טבלה7[[#This Row],[התחלה]],שעות_עבודה7[שם העבודה],טבלה7[[#This Row],[עבודה]],שעות_עבודה7[סיום],"<="&טבלה7[[#This Row],[סיום]]), AND(ISBLANK(טבלה7[[#This Row],[התחלה]]),ISBLANK(טבלה7[[#This Row],[עבודה]]),ISBLANK(טבלה7[[#This Row],[סיום]])),"")) ->  | S28: =IF(_xlfn.IFS( AND(NOT(ISBLANK(טבלה7[[#This Row],[התחלה]])),ISBLANK(טבלה7[[#This Row],[עבודה]]),ISBLANK(טבלה7[[#This Row],[סיום]])), SUMIF(שעות_עבודה7[התחלה],">="&טבלה7[[#This Row],[התחלה]],שעות_עבודה7[השכר]), AND(NOT(ISBLANK(טבלה7[[#This Row],[עבודה]])),ISBLANK(טבלה7[[#This Row],[התחלה]]),ISBLANK(טבלה7[[#This Row],[סיום]])), SUMIF(שעות_עבודה7[שם העבודה],טבלה7[[#This Row],[עבודה]],שעות_עבודה7[השכר]), AND(NOT(ISBLANK(טבלה7[[#This Row],[סיום]])),ISBLANK(טבלה7[[#This Row],[עבודה]]),ISBLANK(טבלה7[[#This Row],[התחלה]])), SUMIF(שעות_עבודה7[סיום],"<="&טבלה7[[#This Row],[סיום]],שעות_עבודה7[השכר]), AND(NOT(ISBLANK(טבלה7[[#This Row],[התחלה]])),NOT(ISBLANK(טבלה7[[#This Row],[עבודה]])),ISBLANK(טבלה7[[#This Row],[סיום]])), SUMIFS(שעות_עבודה7[השכר],שעות_עבודה7[התחלה],">="&טבלה7[[#This Row],[התחלה]],שעות_עבודה7[שם העבודה],טבלה7[[#This Row],[עבודה]]), AND(NOT(ISBLANK(טבלה7[[#This Row],[עבודה]])),NOT(ISBLANK(טבלה7[[#This Row],[סיום]])),ISBLANK(טבלה7[[#This Row],[התחלה]])), SUMIFS(שעות_עבודה7[השכר],שעות_עבודה7[שם העבודה],טבלה7[[#This Row],[עבודה]],שעות_עבודה7[סיום],"<="&טבלה7[[#This Row],[סיום]]), AND(NOT(ISBLANK(טבלה7[[#This Row],[התחלה]])),NOT(ISBLANK(טבלה7[[#This Row],[סיום]])),ISBLANK(טבלה7[[#This Row],[עבודה]])), SUMIFS(שעות_עבודה7[השכר],שעות_עבודה7[התחלה],">="&טבלה7[[#This Row],[התחלה]],שעות_עבודה7[סיום],"<="&טבלה7[[#This Row],[סיום]]), AND(NOT(ISBLANK(טבלה7[[#This Row],[התחלה]])),NOT(ISBLANK(טבלה7[[#This Row],[עבודה]])),NOT(ISBLANK(טבלה7[[#This Row],[סיום]]))), SUMIFS(שעות_עבודה7[השכר],שעות_עבודה7[התחלה],">="&טבלה7[[#This Row],[התחלה]],שעות_עבודה7[שם העבודה],טבלה7[[#This Row],[עבודה]],שעות_עבודה7[סיום],"<="&טבלה7[[#This Row],[סיום]]), AND(ISBLANK(טבלה7[[#This Row],[התחלה]]),ISBLANK(טבלה7[[#This Row],[עבודה]]),ISBLANK(טבלה7[[#This Row],[סיום]])),"")=0,"", _xlfn.IFS( AND(NOT(ISBLANK(טבלה7[[#This Row],[התחלה]])),ISBLANK(טבלה7[[#This Row],[עבודה]]),ISBLANK(טבלה7[[#This Row],[סיום]])), SUMIF(שעות_עבודה7[התחלה],">="&טבלה7[[#This Row],[התחלה]],שעות_עבודה7[השכר]), AND(NOT(ISBLANK(טבלה7[[#This Row],[עבודה]])),ISBLANK(טבלה7[[#This Row],[התחלה]]),ISBLANK(טבלה7[[#This Row],[סיום]])), SUMIF(שעות_עבודה7[שם העבודה],טבלה7[[#This Row],[עבודה]],שעות_עבודה7[השכר]), AND(NOT(ISBLANK(טבלה7[[#This Row],[סיום]])),ISBLANK(טבלה7[[#This Row],[עבודה]]),ISBLANK(טבלה7[[#This Row],[התחלה]])), SUMIF(שעות_עבודה7[סיום],"<="&טבלה7[[#This Row],[סיום]],שעות_עבודה7[השכר]), AND(NOT(ISBLANK(טבלה7[[#This Row],[התחלה]])),NOT(ISBLANK(טבלה7[[#This Row],[עבודה]])),ISBLANK(טבלה7[[#This Row],[סיום]])), SUMIFS(שעות_עבודה7[השכר],שעות_עבודה7[התחלה],">="&טבלה7[[#This Row],[התחלה]],שעות_עבודה7[שם העבודה],טבלה7[[#This Row],[עבודה]]), AND(NOT(ISBLANK(טבלה7[[#This Row],[עבודה]])),NOT(ISBLANK(טבלה7[[#This Row],[סיום]])),ISBLANK(טבלה7[[#This Row],[התחלה]])), SUMIFS(שעות_עבודה7[השכר],שעות_עבודה7[שם העבודה],טבלה7[[#This Row],[עבודה]],שעות_עבודה7[סיום],"<="&טבלה7[[#This Row],[סיום]]), AND(NOT(ISBLANK(טבלה7[[#This Row],[התחלה]])),NOT(ISBLANK(טבלה7[[#This Row],[סיום]])),ISBLANK(טבלה7[[#This Row],[עבודה]])), SUMIFS(שעות_עבודה7[השכר],שעות_עבודה7[התחלה],">="&טבלה7[[#This Row],[התחלה]],שעות_עבודה7[סיום],"<="&טבלה7[[#This Row],[סיום]]), AND(NOT(ISBLANK(טבלה7[[#This Row],[התחלה]])),NOT(ISBLANK(טבלה7[[#This Row],[עבודה]])),NOT(ISBLANK(טבלה7[[#This Row],[סיום]]))), SUMIFS(שעות_עבודה7[השכר],שעות_עבודה7[התחלה],">="&טבלה7[[#This Row],[התחלה]],שעות_עבודה7[שם העבודה],טבלה7[[#This Row],[עבודה]],שעות_עבודה7[סיום],"<="&טבלה7[[#This Row],[סיום]]), AND(ISBLANK(טבלה7[[#This Row],[התחלה]]),ISBLANK(טבלה7[[#This Row],[עבודה]]),ISBLANK(טבלה7[[#This Row],[סיום]])),"")) -> 
B29: =IF(שעות_עבודה7[[#This Row],[תאריך]]="","",ROW(A21)) ->  | C29: =_xlfn.IFS(שעות_עבודה7[[#This Row],[התחלה]]="","",WEEKDAY(שעות_עבודה7[[#This Row],[התחלה]])=1,"ראשון",WEEKDAY(שעות_עבודה7[[#This Row],[התחלה]])=2,"שני",WEEKDAY(שעות_עבודה7[[#This Row],[התחלה]])=3,"שלישי",WEEKDAY(שעות_עבודה7[[#This Row],[התחלה]])=4,"רביעי",WEEKDAY(שעות_עבודה7[[#This Row],[התחלה]])=5,"חמישי",WEEKDAY(שעות_עבודה7[[#This Row],[התחלה]])=6,"שישי",WEEKDAY(שעות_עבודה7[[#This Row],[התחלה]])=7,"מוצ""ש") ->  | D29: =IF(שעות_עבודה7[[#This Row],[התחלה]]="","",שעות_עבודה7[[#This Row],[התחלה]]) ->  | J29: =IF(OR(שעות_עבודה7[[#This Row],[התחלה]]="", שעות_עבודה7[[#This Row],[סיום]]-שעות_עבודה7[[#This Row],[התחלה]]+שעות_עבודה7[[#This Row],[הוספת דקות]]/1440<שעות_עבודה7[[#This Row],[הפחתת דקות]]/1440, SUM(שעות_עבודה7[[#This Row],[סיום]]-שעות_עבודה7[[#This Row],[התחלה]],שעות_עבודה7[[#This Row],[הוספת דקות]]/1440,-שעות_עבודה7[[#This Row],[הפחתת דקות]]/1440)=0), "", SUM(שעות_עבודה7[[#This Row],[סיום]]-שעות_עבודה7[[#This Row],[התחלה]],שעות_עבודה7[[#This Row],[הוספת דקות]]/1440,-שעות_עבודה7[[#This Row],[הפחתת דקות]]/1440)) ->  | K29: =IF(שעות_עבודה7[[#This Row],[שעות]]="","", IF(SUMPRODUCT((שעות_עבודה7[[#This Row],[שם העבודה]]=$P$3:$P$6)*שעות_עבודה7[[#This Row],[שעות]]*($Q$3:$Q$6*24))=0,"", SUMPRODUCT((שעות_עבודה7[[#This Row],[שם העבודה]]=$P$3:$P$6)*שעות_עבודה7[[#This Row],[שעות]]*($Q$3:$Q$6*24)))) ->  | R29: =IF(_xlfn.IFS( AND(NOT(ISBLANK(טבלה7[[#This Row],[התחלה]])),ISBLANK(טבלה7[[#This Row],[עבודה]]),ISBLANK(טבלה7[[#This Row],[סיום]])), SUMIF(שעות_עבודה7[התחלה],">="&טבלה7[[#This Row],[התחלה]],שעות_עבודה7[שעות]), AND(NOT(ISBLANK(טבלה7[[#This Row],[עבודה]])),ISBLANK(טבלה7[[#This Row],[התחלה]]),ISBLANK(טבלה7[[#This Row],[סיום]])), SUMIF(שעות_עבודה7[שם העבודה],טבלה7[[#This Row],[עבודה]],שעות_עבודה7[שעות]), AND(NOT(ISBLANK(טבלה7[[#This Row],[סיום]])),ISBLANK(טבלה7[[#This Row],[עבודה]]),ISBLANK(טבלה7[[#This Row],[התחלה]])), SUMIF(שעות_עבודה7[סיום],"<="&טבלה7[[#This Row],[סיום]],שעות_עבודה7[שעות]), AND(NOT(ISBLANK(טבלה7[[#This Row],[התחלה]])),NOT(ISBLANK(טבלה7[[#This Row],[עבודה]])),ISBLANK(טבלה7[[#This Row],[סיום]])), SUMIFS(שעות_עבודה7[שעות],שעות_עבודה7[התחלה],">="&טבלה7[[#This Row],[התחלה]],שעות_עבודה7[שם העבודה],טבלה7[[#This Row],[עבודה]]), AND(NOT(ISBLANK(טבלה7[[#This Row],[עבודה]])),NOT(ISBLANK(טבלה7[[#This Row],[סיום]])),ISBLANK(טבלה7[[#This Row],[התחלה]])), SUMIFS(שעות_עבודה7[שעות],שעות_עבודה7[שם העבודה],טבלה7[[#This Row],[עבודה]],שעות_עבודה7[סיום],"<="&טבלה7[[#This Row],[סיום]]), AND(NOT(ISBLANK(טבלה7[[#This Row],[התחלה]])),NOT(ISBLANK(טבלה7[[#This Row],[סיום]])),ISBLANK(טבלה7[[#This Row],[עבודה]])), SUMIFS(שעות_עבודה7[שעות],שעות_עבודה7[התחלה],">="&טבלה7[[#This Row],[התחלה]],שעות_עבודה7[סיום],"<="&טבלה7[[#This Row],[סיום]]), AND(NOT(ISBLANK(טבלה7[[#This Row],[התחלה]])),NOT(ISBLANK(טבלה7[[#This Row],[עבודה]])),NOT(ISBLANK(טבלה7[[#This Row],[סיום]]))), SUMIFS(שעות_עבודה7[שעות],שעות_עבודה7[התחלה],">="&טבלה7[[#This Row],[התחלה]],שעות_עבודה7[שם העבודה],טבלה7[[#This Row],[עבודה]],שעות_עבודה7[סיום],"<="&טבלה7[[#This Row],[סיום]]), AND(ISBLANK(טבלה7[[#This Row],[התחלה]]),ISBLANK(טבלה7[[#This Row],[עבודה]]),ISBLANK(טבלה7[[#This Row],[סיום]])),"")=0,"", _xlfn.IFS( AND(NOT(ISBLANK(טבלה7[[#This Row],[התחלה]])),ISBLANK(טבלה7[[#This Row],[עבודה]]),ISBLANK(טבלה7[[#This Row],[סיום]])), SUMIF(שעות_עבודה7[התחלה],">="&טבלה7[[#This Row],[התחלה]],שעות_עבודה7[שעות]), AND(NOT(ISBLANK(טבלה7[[#This Row],[עבודה]])),ISBLANK(טבלה7[[#This Row],[התחלה]]),ISBLANK(טבלה7[[#This Row],[סיום]])), SUMIF(שעות_עבודה7[שם העבודה],טבלה7[[#This Row],[עבודה]],שעות_עבודה7[שעות]), AND(NOT(ISBLANK(טבלה7[[#This Row],[סיום]])),ISBLANK(טבלה7[[#This Row],[עבודה]]),ISBLANK(טבלה7[[#This Row],[התחלה]])), SUMIF(שעות_עבודה7[סיום],"<="&טבלה7[[#This Row],[סיום]],שעות_עבודה7[שעות]), AND(NOT(ISBLANK(טבלה7[[#This Row],[התחלה]])),NOT(ISBLANK(טבלה7[[#This Row],[עבודה]])),ISBLANK(טבלה7[[#This Row],[סיום]])), SUMIFS(שעות_עבודה7[שעות],שעות_עבודה7[התחלה],">="&טבלה7[[#This Row],[התחלה]],שעות_עבודה7[שם העבודה],טבלה7[[#This Row],[עבודה]]), AND(NOT(ISBLANK(טבלה7[[#This Row],[עבודה]])),NOT(ISBLANK(טבלה7[[#This Row],[סיום]])),ISBLANK(טבלה7[[#This Row],[התחלה]])), SUMIFS(שעות_עבודה7[שעות],שעות_עבודה7[שם העבודה],טבלה7[[#This Row],[עבודה]],שעות_עבודה7[סיום],"<="&טבלה7[[#This Row],[סיום]]), AND(NOT(ISBLANK(טבלה7[[#This Row],[התחלה]])),NOT(ISBLANK(טבלה7[[#This Row],[סיום]])),ISBLANK(טבלה7[[#This Row],[עבודה]])), SUMIFS(שעות_עבודה7[שעות],שעות_עבודה7[התחלה],">="&טבלה7[[#This Row],[התחלה]],שעות_עבודה7[סיום],"<="&טבלה7[[#This Row],[סיום]]), AND(NOT(ISBLANK(טבלה7[[#This Row],[התחלה]])),NOT(ISBLANK(טבלה7[[#This Row],[עבודה]])),NOT(ISBLANK(טבלה7[[#This Row],[סיום]]))), SUMIFS(שעות_עבודה7[שעות],שעות_עבודה7[התחלה],">="&טבלה7[[#This Row],[התחלה]],שעות_עבודה7[שם העבודה],טבלה7[[#This Row],[עבודה]],שעות_עבודה7[סיום],"<="&טבלה7[[#This Row],[סיום]]), AND(ISBLANK(טבלה7[[#This Row],[התחלה]]),ISBLANK(טבלה7[[#This Row],[עבודה]]),ISBLANK(טבלה7[[#This Row],[סיום]])),"")) ->  | S29: =IF(_xlfn.IFS( AND(NOT(ISBLANK(טבלה7[[#This Row],[התחלה]])),ISBLANK(טבלה7[[#This Row],[עבודה]]),ISBLANK(טבלה7[[#This Row],[סיום]])), SUMIF(שעות_עבודה7[התחלה],">="&טבלה7[[#This Row],[התחלה]],שעות_עבודה7[השכר]), AND(NOT(ISBLANK(טבלה7[[#This Row],[עבודה]])),ISBLANK(טבלה7[[#This Row],[התחלה]]),ISBLANK(טבלה7[[#This Row],[סיום]])), SUMIF(שעות_עבודה7[שם העבודה],טבלה7[[#This Row],[עבודה]],שעות_עבודה7[השכר]), AND(NOT(ISBLANK(טבלה7[[#This Row],[סיום]])),ISBLANK(טבלה7[[#This Row],[עבודה]]),ISBLANK(טבלה7[[#This Row],[התחלה]])), SUMIF(שעות_עבודה7[סיום],"<="&טבלה7[[#This Row],[סיום]],שעות_עבודה7[השכר]), AND(NOT(ISBLANK(טבלה7[[#This Row],[התחלה]])),NOT(ISBLANK(טבלה7[[#This Row],[עבודה]])),ISBLANK(טבלה7[[#This Row],[סיום]])), SUMIFS(שעות_עבודה7[השכר],שעות_עבודה7[התחלה],">="&טבלה7[[#This Row],[התחלה]],שעות_עבודה7[שם העבודה],טבלה7[[#This Row],[עבודה]]), AND(NOT(ISBLANK(טבלה7[[#This Row],[עבודה]])),NOT(ISBLANK(טבלה7[[#This Row],[סיום]])),ISBLANK(טבלה7[[#This Row],[התחלה]])), SUMIFS(שעות_עבודה7[השכר],שעות_עבודה7[שם העבודה],טבלה7[[#This Row],[עבודה]],שעות_עבודה7[סיום],"<="&טבלה7[[#This Row],[סיום]]), AND(NOT(ISBLANK(טבלה7[[#This Row],[התחלה]])),NOT(ISBLANK(טבלה7[[#This Row],[סיום]])),ISBLANK(טבלה7[[#This Row],[עבודה]])), SUMIFS(שעות_עבודה7[השכר],שעות_עבודה7[התחלה],">="&טבלה7[[#This Row],[התחלה]],שעות_עבודה7[סיום],"<="&טבלה7[[#This Row],[סיום]]), AND(NOT(ISBLANK(טבלה7[[#This Row],[התחלה]])),NOT(ISBLANK(טבלה7[[#This Row],[עבודה]])),NOT(ISBLANK(טבלה7[[#This Row],[סיום]]))), SUMIFS(שעות_עבודה7[השכר],שעות_עבודה7[התחלה],">="&טבלה7[[#This Row],[התחלה]],שעות_עבודה7[שם העבודה],טבלה7[[#This Row],[עבודה]],שעות_עבודה7[סיום],"<="&טבלה7[[#This Row],[סיום]]), AND(ISBLANK(טבלה7[[#This Row],[התחלה]]),ISBLANK(טבלה7[[#This Row],[עבודה]]),ISBLANK(טבלה7[[#This Row],[סיום]])),"")=0,"", _xlfn.IFS( AND(NOT(ISBLANK(טבלה7[[#This Row],[התחלה]])),ISBLANK(טבלה7[[#This Row],[עבודה]]),ISBLANK(טבלה7[[#This Row],[סיום]])), SUMIF(שעות_עבודה7[התחלה],">="&טבלה7[[#This Row],[התחלה]],שעות_עבודה7[השכר]), AND(NOT(ISBLANK(טבלה7[[#This Row],[עבודה]])),ISBLANK(טבלה7[[#This Row],[התחלה]]),ISBLANK(טבלה7[[#This Row],[סיום]])), SUMIF(שעות_עבודה7[שם העבודה],טבלה7[[#This Row],[עבודה]],שעות_עבודה7[השכר]), AND(NOT(ISBLANK(טבלה7[[#This Row],[סיום]])),ISBLANK(טבלה7[[#This Row],[עבודה]]),ISBLANK(טבלה7[[#This Row],[התחלה]])), SUMIF(שעות_עבודה7[סיום],"<="&טבלה7[[#This Row],[סיום]],שעות_עבודה7[השכר]), AND(NOT(ISBLANK(טבלה7[[#This Row],[התחלה]])),NOT(ISBLANK(טבלה7[[#This Row],[עבודה]])),ISBLANK(טבלה7[[#This Row],[סיום]])), SUMIFS(שעות_עבודה7[השכר],שעות_עבודה7[התחלה],">="&טבלה7[[#This Row],[התחלה]],שעות_עבודה7[שם העבודה],טבלה7[[#This Row],[עבודה]]), AND(NOT(ISBLANK(טבלה7[[#This Row],[עבודה]])),NOT(ISBLANK(טבלה7[[#This Row],[סיום]])),ISBLANK(טבלה7[[#This Row],[התחלה]])), SUMIFS(שעות_עבודה7[השכר],שעות_עבודה7[שם העבודה],טבלה7[[#This Row],[עבודה]],שעות_עבודה7[סיום],"<="&טבלה7[[#This Row],[סיום]]), AND(NOT(ISBLANK(טבלה7[[#This Row],[התחלה]])),NOT(ISBLANK(טבלה7[[#This Row],[סיום]])),ISBLANK(טבלה7[[#This Row],[עבודה]])), SUMIFS(שעות_עבודה7[השכר],שעות_עבודה7[התחלה],">="&טבלה7[[#This Row],[התחלה]],שעות_עבודה7[סיום],"<="&טבלה7[[#This Row],[סיום]]), AND(NOT(ISBLANK(טבלה7[[#This Row],[התחלה]])),NOT(ISBLANK(טבלה7[[#This Row],[עבודה]])),NOT(ISBLANK(טבלה7[[#This Row],[סיום]]))), SUMIFS(שעות_עבודה7[השכר],שעות_עבודה7[התחלה],">="&טבלה7[[#This Row],[התחלה]],שעות_עבודה7[שם העבודה],טבלה7[[#This Row],[עבודה]],שעות_עבודה7[סיום],"<="&טבלה7[[#This Row],[סיום]]), AND(ISBLANK(טבלה7[[#This Row],[התחלה]]),ISBLANK(טבלה7[[#This Row],[עבודה]]),ISBLANK(טבלה7[[#This Row],[סיום]])),"")) -> 
B30: =IF(שעות_עבודה7[[#This Row],[תאריך]]="","",ROW(A22)) ->  | C30: =_xlfn.IFS(שעות_עבודה7[[#This Row],[התחלה]]="","",WEEKDAY(שעות_עבודה7[[#This Row],[התחלה]])=1,"ראשון",WEEKDAY(שעות_עבודה7[[#This Row],[התחלה]])=2,"שני",WEEKDAY(שעות_עבודה7[[#This Row],[התחלה]])=3,"שלישי",WEEKDAY(שעות_עבודה7[[#This Row],[התחלה]])=4,"רביעי",WEEKDAY(שעות_עבודה7[[#This Row],[התחלה]])=5,"חמישי",WEEKDAY(שעות_עבודה7[[#This Row],[התחלה]])=6,"שישי",WEEKDAY(שעות_עבודה7[[#This Row],[התחלה]])=7,"מוצ""ש") ->  | D30: =IF(שעות_עבודה7[[#This Row],[התחלה]]="","",שעות_עבודה7[[#This Row],[התחלה]]) ->  | J30: =IF(OR(שעות_עבודה7[[#This Row],[התחלה]]="", שעות_עבודה7[[#This Row],[סיום]]-שעות_עבודה7[[#This Row],[התחלה]]+שעות_עבודה7[[#This Row],[הוספת דקות]]/1440<שעות_עבודה7[[#This Row],[הפחתת דקות]]/1440, SUM(שעות_עבודה7[[#This Row],[סיום]]-שעות_עבודה7[[#This Row],[התחלה]],שעות_עבודה7[[#This Row],[הוספת דקות]]/1440,-שעות_עבודה7[[#This Row],[הפחתת דקות]]/1440)=0), "", SUM(שעות_עבודה7[[#This Row],[סיום]]-שעות_עבודה7[[#This Row],[התחלה]],שעות_עבודה7[[#This Row],[הוספת דקות]]/1440,-שעות_עבודה7[[#This Row],[הפחתת דקות]]/1440)) ->  | K30: =IF(שעות_עבודה7[[#This Row],[שעות]]="","", IF(SUMPRODUCT((שעות_עבודה7[[#This Row],[שם העבודה]]=$P$3:$P$6)*שעות_עבודה7[[#This Row],[שעות]]*($Q$3:$Q$6*24))=0,"", SUMPRODUCT((שעות_עבודה7[[#This Row],[שם העבודה]]=$P$3:$P$6)*שעות_עבודה7[[#This Row],[שעות]]*($Q$3:$Q$6*24)))) ->  | R30: =IF(_xlfn.IFS( AND(NOT(ISBLANK(טבלה7[[#This Row],[התחלה]])),ISBLANK(טבלה7[[#This Row],[עבודה]]),ISBLANK(טבלה7[[#This Row],[סיום]])), SUMIF(שעות_עבודה7[התחלה],">="&טבלה7[[#This Row],[התחלה]],שעות_עבודה7[שעות]), AND(NOT(ISBLANK(טבלה7[[#This Row],[עבודה]])),ISBLANK(טבלה7[[#This Row],[התחלה]]),ISBLANK(טבלה7[[#This Row],[סיום]])), SUMIF(שעות_עבודה7[שם העבודה],טבלה7[[#This Row],[עבודה]],שעות_עבודה7[שעות]), AND(NOT(ISBLANK(טבלה7[[#This Row],[סיום]])),ISBLANK(טבלה7[[#This Row],[עבודה]]),ISBLANK(טבלה7[[#This Row],[התחלה]])), SUMIF(שעות_עבודה7[סיום],"<="&טבלה7[[#This Row],[סיום]],שעות_עבודה7[שעות]), AND(NOT(ISBLANK(טבלה7[[#This Row],[התחלה]])),NOT(ISBLANK(טבלה7[[#This Row],[עבודה]])),ISBLANK(טבלה7[[#This Row],[סיום]])), SUMIFS(שעות_עבודה7[שעות],שעות_עבודה7[התחלה],">="&טבלה7[[#This Row],[התחלה]],שעות_עבודה7[שם העבודה],טבלה7[[#This Row],[עבודה]]), AND(NOT(ISBLANK(טבלה7[[#This Row],[עבודה]])),NOT(ISBLANK(טבלה7[[#This Row],[סיום]])),ISBLANK(טבלה7[[#This Row],[התחלה]])), SUMIFS(שעות_עבודה7[שעות],שעות_עבודה7[שם העבודה],טבלה7[[#This Row],[עבודה]],שעות_עבודה7[סיום],"<="&טבלה7[[#This Row],[סיום]]), AND(NOT(ISBLANK(טבלה7[[#This Row],[התחלה]])),NOT(ISBLANK(טבלה7[[#This Row],[סיום]])),ISBLANK(טבלה7[[#This Row],[עבודה]])), SUMIFS(שעות_עבודה7[שעות],שעות_עבודה7[התחלה],">="&טבלה7[[#This Row],[התחלה]],שעות_עבודה7[סיום],"<="&טבלה7[[#This Row],[סיום]]), AND(NOT(ISBLANK(טבלה7[[#This Row],[התחלה]])),NOT(ISBLANK(טבלה7[[#This Row],[עבודה]])),NOT(ISBLANK(טבלה7[[#This Row],[סיום]]))), SUMIFS(שעות_עבודה7[שעות],שעות_עבודה7[התחלה],">="&טבלה7[[#This Row],[התחלה]],שעות_עבודה7[שם העבודה],טבלה7[[#This Row],[עבודה]],שעות_עבודה7[סיום],"<="&טבלה7[[#This Row],[סיום]]), AND(ISBLANK(טבלה7[[#This Row],[התחלה]]),ISBLANK(טבלה7[[#This Row],[עבודה]]),ISBLANK(טבלה7[[#This Row],[סיום]])),"")=0,"", _xlfn.IFS( AND(NOT(ISBLANK(טבלה7[[#This Row],[התחלה]])),ISBLANK(טבלה7[[#This Row],[עבודה]]),ISBLANK(טבלה7[[#This Row],[סיום]])), SUMIF(שעות_עבודה7[התחלה],">="&טבלה7[[#This Row],[התחלה]],שעות_עבודה7[שעות]), AND(NOT(ISBLANK(טבלה7[[#This Row],[עבודה]])),ISBLANK(טבלה7[[#This Row],[התחלה]]),ISBLANK(טבלה7[[#This Row],[סיום]])), SUMIF(שעות_עבודה7[שם העבודה],טבלה7[[#This Row],[עבודה]],שעות_עבודה7[שעות]), AND(NOT(ISBLANK(טבלה7[[#This Row],[סיום]])),ISBLANK(טבלה7[[#This Row],[עבודה]]),ISBLANK(טבלה7[[#This Row],[התחלה]])), SUMIF(שעות_עבודה7[סיום],"<="&טבלה7[[#This Row],[סיום]],שעות_עבודה7[שעות]), AND(NOT(ISBLANK(טבלה7[[#This Row],[התחלה]])),NOT(ISBLANK(טבלה7[[#This Row],[עבודה]])),ISBLANK(טבלה7[[#This Row],[סיום]])), SUMIFS(שעות_עבודה7[שעות],שעות_עבודה7[התחלה],">="&טבלה7[[#This Row],[התחלה]],שעות_עבודה7[שם העבודה],טבלה7[[#This Row],[עבודה]]), AND(NOT(ISBLANK(טבלה7[[#This Row],[עבודה]])),NOT(ISBLANK(טבלה7[[#This Row],[סיום]])),ISBLANK(טבלה7[[#This Row],[התחלה]])), SUMIFS(שעות_עבודה7[שעות],שעות_עבודה7[שם העבודה],טבלה7[[#This Row],[עבודה]],שעות_עבודה7[סיום],"<="&טבלה7[[#This Row],[סיום]]), AND(NOT(ISBLANK(טבלה7[[#This Row],[התחלה]])),NOT(ISBLANK(טבלה7[[#This Row],[סיום]])),ISBLANK(טבלה7[[#This Row],[עבודה]])), SUMIFS(שעות_עבודה7[שעות],שעות_עבודה7[התחלה],">="&טבלה7[[#This Row],[התחלה]],שעות_עבודה7[סיום],"<="&טבלה7[[#This Row],[סיום]]), AND(NOT(ISBLANK(טבלה7[[#This Row],[התחלה]])),NOT(ISBLANK(טבלה7[[#This Row],[עבודה]])),NOT(ISBLANK(טבלה7[[#This Row],[סיום]]))), SUMIFS(שעות_עבודה7[שעות],שעות_עבודה7[התחלה],">="&טבלה7[[#This Row],[התחלה]],שעות_עבודה7[שם העבודה],טבלה7[[#This Row],[עבודה]],שעות_עבודה7[סיום],"<="&טבלה7[[#This Row],[סיום]]), AND(ISBLANK(טבלה7[[#This Row],[התחלה]]),ISBLANK(טבלה7[[#This Row],[עבודה]]),ISBLANK(טבלה7[[#This Row],[סיום]])),"")) ->  | S30: =IF(_xlfn.IFS( AND(NOT(ISBLANK(טבלה7[[#This Row],[התחלה]])),ISBLANK(טבלה7[[#This Row],[עבודה]]),ISBLANK(טבלה7[[#This Row],[סיום]])), SUMIF(שעות_עבודה7[התחלה],">="&טבלה7[[#This Row],[התחלה]],שעות_עבודה7[השכר]), AND(NOT(ISBLANK(טבלה7[[#This Row],[עבודה]])),ISBLANK(טבלה7[[#This Row],[התחלה]]),ISBLANK(טבלה7[[#This Row],[סיום]])), SUMIF(שעות_עבודה7[שם העבודה],טבלה7[[#This Row],[עבודה]],שעות_עבודה7[השכר]), AND(NOT(ISBLANK(טבלה7[[#This Row],[סיום]])),ISBLANK(טבלה7[[#This Row],[עבודה]]),ISBLANK(טבלה7[[#This Row],[התחלה]])), SUMIF(שעות_עבודה7[סיום],"<="&טבלה7[[#This Row],[סיום]],שעות_עבודה7[השכר]), AND(NOT(ISBLANK(טבלה7[[#This Row],[התחלה]])),NOT(ISBLANK(טבלה7[[#This Row],[עבודה]])),ISBLANK(טבלה7[[#This Row],[סיום]])), SUMIFS(שעות_עבודה7[השכר],שעות_עבודה7[התחלה],">="&טבלה7[[#This Row],[התחלה]],שעות_עבודה7[שם העבודה],טבלה7[[#This Row],[עבודה]]), AND(NOT(ISBLANK(טבלה7[[#This Row],[עבודה]])),NOT(ISBLANK(טבלה7[[#This Row],[סיום]])),ISBLANK(טבלה7[[#This Row],[התחלה]])), SUMIFS(שעות_עבודה7[השכר],שעות_עבודה7[שם העבודה],טבלה7[[#This Row],[עבודה]],שעות_עבודה7[סיום],"<="&טבלה7[[#This Row],[סיום]]), AND(NOT(ISBLANK(טבלה7[[#This Row],[התחלה]])),NOT(ISBLANK(טבלה7[[#This Row],[סיום]])),ISBLANK(טבלה7[[#This Row],[עבודה]])), SUMIFS(שעות_עבודה7[השכר],שעות_עבודה7[התחלה],">="&טבלה7[[#This Row],[התחלה]],שעות_עבודה7[סיום],"<="&טבלה7[[#This Row],[סיום]]), AND(NOT(ISBLANK(טבלה7[[#This Row],[התחלה]])),NOT(ISBLANK(טבלה7[[#This Row],[עבודה]])),NOT(ISBLANK(טבלה7[[#This Row],[סיום]]))), SUMIFS(שעות_עבודה7[השכר],שעות_עבודה7[התחלה],">="&טבלה7[[#This Row],[התחלה]],שעות_עבודה7[שם העבודה],טבלה7[[#This Row],[עבודה]],שעות_עבודה7[סיום],"<="&טבלה7[[#This Row],[סיום]]), AND(ISBLANK(טבלה7[[#This Row],[התחלה]]),ISBLANK(טבלה7[[#This Row],[עבודה]]),ISBLANK(טבלה7[[#This Row],[סיום]])),"")=0,"", _xlfn.IFS( AND(NOT(ISBLANK(טבלה7[[#This Row],[התחלה]])),ISBLANK(טבלה7[[#This Row],[עבודה]]),ISBLANK(טבלה7[[#This Row],[סיום]])), SUMIF(שעות_עבודה7[התחלה],">="&טבלה7[[#This Row],[התחלה]],שעות_עבודה7[השכר]), AND(NOT(ISBLANK(טבלה7[[#This Row],[עבודה]])),ISBLANK(טבלה7[[#This Row],[התחלה]]),ISBLANK(טבלה7[[#This Row],[סיום]])), SUMIF(שעות_עבודה7[שם העבודה],טבלה7[[#This Row],[עבודה]],שעות_עבודה7[השכר]), AND(NOT(ISBLANK(טבלה7[[#This Row],[סיום]])),ISBLANK(טבלה7[[#This Row],[עבודה]]),ISBLANK(טבלה7[[#This Row],[התחלה]])), SUMIF(שעות_עבודה7[סיום],"<="&טבלה7[[#This Row],[סיום]],שעות_עבודה7[השכר]), AND(NOT(ISBLANK(טבלה7[[#This Row],[התחלה]])),NOT(ISBLANK(טבלה7[[#This Row],[עבודה]])),ISBLANK(טבלה7[[#This Row],[סיום]])), SUMIFS(שעות_עבודה7[השכר],שעות_עבודה7[התחלה],">="&טבלה7[[#This Row],[התחלה]],שעות_עבודה7[שם העבודה],טבלה7[[#This Row],[עבודה]]), AND(NOT(ISBLANK(טבלה7[[#This Row],[עבודה]])),NOT(ISBLANK(טבלה7[[#This Row],[סיום]])),ISBLANK(טבלה7[[#This Row],[התחלה]])), SUMIFS(שעות_עבודה7[השכר],שעות_עבודה7[שם העבודה],טבלה7[[#This Row],[עבודה]],שעות_עבודה7[סיום],"<="&טבלה7[[#This Row],[סיום]]), AND(NOT(ISBLANK(טבלה7[[#This Row],[התחלה]])),NOT(ISBLANK(טבלה7[[#This Row],[סיום]])),ISBLANK(טבלה7[[#This Row],[עבודה]])), SUMIFS(שעות_עבודה7[השכר],שעות_עבודה7[התחלה],">="&טבלה7[[#This Row],[התחלה]],שעות_עבודה7[סיום],"<="&טבלה7[[#This Row],[סיום]]), AND(NOT(ISBLANK(טבלה7[[#This Row],[התחלה]])),NOT(ISBLANK(טבלה7[[#This Row],[עבודה]])),NOT(ISBLANK(טבלה7[[#This Row],[סיום]]))), SUMIFS(שעות_עבודה7[השכר],שעות_עבודה7[התחלה],">="&טבלה7[[#This Row],[התחלה]],שעות_עבודה7[שם העבודה],טבלה7[[#This Row],[עבודה]],שעות_עבודה7[סיום],"<="&טבלה7[[#This Row],[סיום]]), AND(ISBLANK(טבלה7[[#This Row],[התחלה]]),ISBLANK(טבלה7[[#This Row],[עבודה]]),ISBLANK(טבלה7[[#This Row],[סיום]])),"")) -> 
B31: =IF(שעות_עבודה7[[#This Row],[תאריך]]="","",ROW(A23)) ->  | C31: =_xlfn.IFS(שעות_עבודה7[[#This Row],[התחלה]]="","",WEEKDAY(שעות_עבודה7[[#This Row],[התחלה]])=1,"ראשון",WEEKDAY(שעות_עבודה7[[#This Row],[התחלה]])=2,"שני",WEEKDAY(שעות_עבודה7[[#This Row],[התחלה]])=3,"שלישי",WEEKDAY(שעות_עבודה7[[#This Row],[התחלה]])=4,"רביעי",WEEKDAY(שעות_עבודה7[[#This Row],[התחלה]])=5,"חמישי",WEEKDAY(שעות_עבודה7[[#This Row],[התחלה]])=6,"שישי",WEEKDAY(שעות_עבודה7[[#This Row],[התחלה]])=7,"מוצ""ש") ->  | D31: =IF(שעות_עבודה7[[#This Row],[התחלה]]="","",שעות_עבודה7[[#This Row],[התחלה]]) ->  | J31: =IF(OR(שעות_עבודה7[[#This Row],[התחלה]]="", שעות_עבודה7[[#This Row],[סיום]]-שעות_עבודה7[[#This Row],[התחלה]]+שעות_עבודה7[[#This Row],[הוספת דקות]]/1440<שעות_עבודה7[[#This Row],[הפחתת דקות]]/1440, SUM(שעות_עבודה7[[#This Row],[סיום]]-שעות_עבודה7[[#This Row],[התחלה]],שעות_עבודה7[[#This Row],[הוספת דקות]]/1440,-שעות_עבודה7[[#This Row],[הפחתת דקות]]/1440)=0), "", SUM(שעות_עבודה7[[#This Row],[סיום]]-שעות_עבודה7[[#This Row],[התחלה]],שעות_עבודה7[[#This Row],[הוספת דקות]]/1440,-שעות_עבודה7[[#This Row],[הפחתת דקות]]/1440)) ->  | K31: =IF(שעות_עבודה7[[#This Row],[שעות]]="","", IF(SUMPRODUCT((שעות_עבודה7[[#This Row],[שם העבודה]]=$P$3:$P$6)*שעות_עבודה7[[#This Row],[שעות]]*($Q$3:$Q$6*24))=0,"", SUMPRODUCT((שעות_עבודה7[[#This Row],[שם העבודה]]=$P$3:$P$6)*שעות_עבודה7[[#This Row],[שעות]]*($Q$3:$Q$6*24)))) ->  | R31: =IF(_xlfn.IFS( AND(NOT(ISBLANK(טבלה7[[#This Row],[התחלה]])),ISBLANK(טבלה7[[#This Row],[עבודה]]),ISBLANK(טבלה7[[#This Row],[סיום]])), SUMIF(שעות_עבודה7[התחלה],">="&טבלה7[[#This Row],[התחלה]],שעות_עבודה7[שעות]), AND(NOT(ISBLANK(טבלה7[[#This Row],[עבודה]])),ISBLANK(טבלה7[[#This Row],[התחלה]]),ISBLANK(טבלה7[[#This Row],[סיום]])), SUMIF(שעות_עבודה7[שם העבודה],טבלה7[[#This Row],[עבודה]],שעות_עבודה7[שעות]), AND(NOT(ISBLANK(טבלה7[[#This Row],[סיום]])),ISBLANK(טבלה7[[#This Row],[עבודה]]),ISBLANK(טבלה7[[#This Row],[התחלה]])), SUMIF(שעות_עבודה7[סיום],"<="&טבלה7[[#This Row],[סיום]],שעות_עבודה7[שעות]), AND(NOT(ISBLANK(טבלה7[[#This Row],[התחלה]])),NOT(ISBLANK(טבלה7[[#This Row],[עבודה]])),ISBLANK(טבלה7[[#This Row],[סיום]])), SUMIFS(שעות_עבודה7[שעות],שעות_עבודה7[התחלה],">="&טבלה7[[#This Row],[התחלה]],שעות_עבודה7[שם העבודה],טבלה7[[#This Row],[עבודה]]), AND(NOT(ISBLANK(טבלה7[[#This Row],[עבודה]])),NOT(ISBLANK(טבלה7[[#This Row],[סיום]])),ISBLANK(טבלה7[[#This Row],[התחלה]])), SUMIFS(שעות_עבודה7[שעות],שעות_עבודה7[שם העבודה],טבלה7[[#This Row],[עבודה]],שעות_עבודה7[סיום],"<="&טבלה7[[#This Row],[סיום]]), AND(NOT(ISBLANK(טבלה7[[#This Row],[התחלה]])),NOT(ISBLANK(טבלה7[[#This Row],[סיום]])),ISBLANK(טבלה7[[#This Row],[עבודה]])), SUMIFS(שעות_עבודה7[שעות],שעות_עבודה7[התחלה],">="&טבלה7[[#This Row],[התחלה]],שעות_עבודה7[סיום],"<="&טבלה7[[#This Row],[סיום]]), AND(NOT(ISBLANK(טבלה7[[#This Row],[התחלה]])),NOT(ISBLANK(טבלה7[[#This Row],[עבודה]])),NOT(ISBLANK(טבלה7[[#This Row],[סיום]]))), SUMIFS(שעות_עבודה7[שעות],שעות_עבודה7[התחלה],">="&טבלה7[[#This Row],[התחלה]],שעות_עבודה7[שם העבודה],טבלה7[[#This Row],[עבודה]],שעות_עבודה7[סיום],"<="&טבלה7[[#This Row],[סיום]]), AND(ISBLANK(טבלה7[[#This Row],[התחלה]]),ISBLANK(טבלה7[[#This Row],[עבודה]]),ISBLANK(טבלה7[[#This Row],[סיום]])),"")=0,"", _xlfn.IFS( AND(NOT(ISBLANK(טבלה7[[#This Row],[התחלה]])),ISBLANK(טבלה7[[#This Row],[עבודה]]),ISBLANK(טבלה7[[#This Row],[סיום]])), SUMIF(שעות_עבודה7[התחלה],">="&טבלה7[[#This Row],[התחלה]],שעות_עבודה7[שעות]), AND(NOT(ISBLANK(טבלה7[[#This Row],[עבודה]])),ISBLANK(טבלה7[[#This Row],[התחלה]]),ISBLANK(טבלה7[[#This Row],[סיום]])), SUMIF(שעות_עבודה7[שם העבודה],טבלה7[[#This Row],[עבודה]],שעות_עבודה7[שעות]), AND(NOT(ISBLANK(טבלה7[[#This Row],[סיום]])),ISBLANK(טבלה7[[#This Row],[עבודה]]),ISBLANK(טבלה7[[#This Row],[התחלה]])), SUMIF(שעות_עבודה7[סיום],"<="&טבלה7[[#This Row],[סיום]],שעות_עבודה7[שעות]), AND(NOT(ISBLANK(טבלה7[[#This Row],[התחלה]])),NOT(ISBLANK(טבלה7[[#This Row],[עבודה]])),ISBLANK(טבלה7[[#This Row],[סיום]])), SUMIFS(שעות_עבודה7[שעות],שעות_עבודה7[התחלה],">="&טבלה7[[#This Row],[התחלה]],שעות_עבודה7[שם העבודה],טבלה7[[#This Row],[עבודה]]), AND(NOT(ISBLANK(טבלה7[[#This Row],[עבודה]])),NOT(ISBLANK(טבלה7[[#This Row],[סיום]])),ISBLANK(טבלה7[[#This Row],[התחלה]])), SUMIFS(שעות_עבודה7[שעות],שעות_עבודה7[שם העבודה],טבלה7[[#This Row],[עבודה]],שעות_עבודה7[סיום],"<="&טבלה7[[#This Row],[סיום]]), AND(NOT(ISBLANK(טבלה7[[#This Row],[התחלה]])),NOT(ISBLANK(טבלה7[[#This Row],[סיום]])),ISBLANK(טבלה7[[#This Row],[עבודה]])), SUMIFS(שעות_עבודה7[שעות],שעות_עבודה7[התחלה],">="&טבלה7[[#This Row],[התחלה]],שעות_עבודה7[סיום],"<="&טבלה7[[#This Row],[סיום]]), AND(NOT(ISBLANK(טבלה7[[#This Row],[התחלה]])),NOT(ISBLANK(טבלה7[[#This Row],[עבודה]])),NOT(ISBLANK(טבלה7[[#This Row],[סיום]]))), SUMIFS(שעות_עבודה7[שעות],שעות_עבודה7[התחלה],">="&טבלה7[[#This Row],[התחלה]],שעות_עבודה7[שם העבודה],טבלה7[[#This Row],[עבודה]],שעות_עבודה7[סיום],"<="&טבלה7[[#This Row],[סיום]]), AND(ISBLANK(טבלה7[[#This Row],[התחלה]]),ISBLANK(טבלה7[[#This Row],[עבודה]]),ISBLANK(טבלה7[[#This Row],[סיום]])),"")) ->  | S31: =IF(_xlfn.IFS( AND(NOT(ISBLANK(טבלה7[[#This Row],[התחלה]])),ISBLANK(טבלה7[[#This Row],[עבודה]]),ISBLANK(טבלה7[[#This Row],[סיום]])), SUMIF(שעות_עבודה7[התחלה],">="&טבלה7[[#This Row],[התחלה]],שעות_עבודה7[השכר]), AND(NOT(ISBLANK(טבלה7[[#This Row],[עבודה]])),ISBLANK(טבלה7[[#This Row],[התחלה]]),ISBLANK(טבלה7[[#This Row],[סיום]])), SUMIF(שעות_עבודה7[שם העבודה],טבלה7[[#This Row],[עבודה]],שעות_עבודה7[השכר]), AND(NOT(ISBLANK(טבלה7[[#This Row],[סיום]])),ISBLANK(טבלה7[[#This Row],[עבודה]]),ISBLANK(טבלה7[[#This Row],[התחלה]])), SUMIF(שעות_עבודה7[סיום],"<="&טבלה7[[#This Row],[סיום]],שעות_עבודה7[השכר]), AND(NOT(ISBLANK(טבלה7[[#This Row],[התחלה]])),NOT(ISBLANK(טבלה7[[#This Row],[עבודה]])),ISBLANK(טבלה7[[#This Row],[סיום]])), SUMIFS(שעות_עבודה7[השכר],שעות_עבודה7[התחלה],">="&טבלה7[[#This Row],[התחלה]],שעות_עבודה7[שם העבודה],טבלה7[[#This Row],[עבודה]]), AND(NOT(ISBLANK(טבלה7[[#This Row],[עבודה]])),NOT(ISBLANK(טבלה7[[#This Row],[סיום]])),ISBLANK(טבלה7[[#This Row],[התחלה]])), SUMIFS(שעות_עבודה7[השכר],שעות_עבודה7[שם העבודה],טבלה7[[#This Row],[עבודה]],שעות_עבודה7[סיום],"<="&טבלה7[[#This Row],[סיום]]), AND(NOT(ISBLANK(טבלה7[[#This Row],[התחלה]])),NOT(ISBLANK(טבלה7[[#This Row],[סיום]])),ISBLANK(טבלה7[[#This Row],[עבודה]])), SUMIFS(שעות_עבודה7[השכר],שעות_עבודה7[התחלה],">="&טבלה7[[#This Row],[התחלה]],שעות_עבודה7[סיום],"<="&טבלה7[[#This Row],[סיום]]), AND(NOT(ISBLANK(טבלה7[[#This Row],[התחלה]])),NOT(ISBLANK(טבלה7[[#This Row],[עבודה]])),NOT(ISBLANK(טבלה7[[#This Row],[סיום]]))), SUMIFS(שעות_עבודה7[השכר],שעות_עבודה7[התחלה],">="&טבלה7[[#This Row],[התחלה]],שעות_עבודה7[שם העבודה],טבלה7[[#This Row],[עבודה]],שעות_עבודה7[סיום],"<="&טבלה7[[#This Row],[סיום]]), AND(ISBLANK(טבלה7[[#This Row],[התחלה]]),ISBLANK(טבלה7[[#This Row],[עבודה]]),ISBLANK(טבלה7[[#This Row],[סיום]])),"")=0,"", _xlfn.IFS( AND(NOT(ISBLANK(טבלה7[[#This Row],[התחלה]])),ISBLANK(טבלה7[[#This Row],[עבודה]]),ISBLANK(טבלה7[[#This Row],[סיום]])), SUMIF(שעות_עבודה7[התחלה],">="&טבלה7[[#This Row],[התחלה]],שעות_עבודה7[השכר]), AND(NOT(ISBLANK(טבלה7[[#This Row],[עבודה]])),ISBLANK(טבלה7[[#This Row],[התחלה]]),ISBLANK(טבלה7[[#This Row],[סיום]])), SUMIF(שעות_עבודה7[שם העבודה],טבלה7[[#This Row],[עבודה]],שעות_עבודה7[השכר]), AND(NOT(ISBLANK(טבלה7[[#This Row],[סיום]])),ISBLANK(טבלה7[[#This Row],[עבודה]]),ISBLANK(טבלה7[[#This Row],[התחלה]])), SUMIF(שעות_עבודה7[סיום],"<="&טבלה7[[#This Row],[סיום]],שעות_עבודה7[השכר]), AND(NOT(ISBLANK(טבלה7[[#This Row],[התחלה]])),NOT(ISBLANK(טבלה7[[#This Row],[עבודה]])),ISBLANK(טבלה7[[#This Row],[סיום]])), SUMIFS(שעות_עבודה7[השכר],שעות_עבודה7[התחלה],">="&טבלה7[[#This Row],[התחלה]],שעות_עבודה7[שם העבודה],טבלה7[[#This Row],[עבודה]]), AND(NOT(ISBLANK(טבלה7[[#This Row],[עבודה]])),NOT(ISBLANK(טבלה7[[#This Row],[סיום]])),ISBLANK(טבלה7[[#This Row],[התחלה]])), SUMIFS(שעות_עבודה7[השכר],שעות_עבודה7[שם העבודה],טבלה7[[#This Row],[עבודה]],שעות_עבודה7[סיום],"<="&טבלה7[[#This Row],[סיום]]), AND(NOT(ISBLANK(טבלה7[[#This Row],[התחלה]])),NOT(ISBLANK(טבלה7[[#This Row],[סיום]])),ISBLANK(טבלה7[[#This Row],[עבודה]])), SUMIFS(שעות_עבודה7[השכר],שעות_עבודה7[התחלה],">="&טבלה7[[#This Row],[התחלה]],שעות_עבודה7[סיום],"<="&טבלה7[[#This Row],[סיום]]), AND(NOT(ISBLANK(טבלה7[[#This Row],[התחלה]])),NOT(ISBLANK(טבלה7[[#This Row],[עבודה]])),NOT(ISBLANK(טבלה7[[#This Row],[סיום]]))), SUMIFS(שעות_עבודה7[השכר],שעות_עבודה7[התחלה],">="&טבלה7[[#This Row],[התחלה]],שעות_עבודה7[שם העבודה],טבלה7[[#This Row],[עבודה]],שעות_עבודה7[סיום],"<="&טבלה7[[#This Row],[סיום]]), AND(ISBLANK(טבלה7[[#This Row],[התחלה]]),ISBLANK(טבלה7[[#This Row],[עבודה]]),ISBLANK(טבלה7[[#This Row],[סיום]])),"")) -> 
B32: =IF(שעות_עבודה7[[#This Row],[תאריך]]="","",ROW(A24)) ->  | C32: =_xlfn.IFS(שעות_עבודה7[[#This Row],[התחלה]]="","",WEEKDAY(שעות_עבודה7[[#This Row],[התחלה]])=1,"ראשון",WEEKDAY(שעות_עבודה7[[#This Row],[התחלה]])=2,"שני",WEEKDAY(שעות_עבודה7[[#This Row],[התחלה]])=3,"שלישי",WEEKDAY(שעות_עבודה7[[#This Row],[התחלה]])=4,"רביעי",WEEKDAY(שעות_עבודה7[[#This Row],[התחלה]])=5,"חמישי",WEEKDAY(שעות_עבודה7[[#This Row],[התחלה]])=6,"שישי",WEEKDAY(שעות_עבודה7[[#This Row],[התחלה]])=7,"מוצ""ש") ->  | D32: =IF(שעות_עבודה7[[#This Row],[התחלה]]="","",שעות_עבודה7[[#This Row],[התחלה]]) ->  | J32: =IF(OR(שעות_עבודה7[[#This Row],[התחלה]]="", שעות_עבודה7[[#This Row],[סיום]]-שעות_עבודה7[[#This Row],[התחלה]]+שעות_עבודה7[[#This Row],[הוספת דקות]]/1440<שעות_עבודה7[[#This Row],[הפחתת דקות]]/1440, SUM(שעות_עבודה7[[#This Row],[סיום]]-שעות_עבודה7[[#This Row],[התחלה]],שעות_עבודה7[[#This Row],[הוספת דקות]]/1440,-שעות_עבודה7[[#This Row],[הפחתת דקות]]/1440)=0), "", SUM(שעות_עבודה7[[#This Row],[סיום]]-שעות_עבודה7[[#This Row],[התחלה]],שעות_עבודה7[[#This Row],[הוספת דקות]]/1440,-שעות_עבודה7[[#This Row],[הפחתת דקות]]/1440)) ->  | K32: =IF(שעות_עבודה7[[#This Row],[שעות]]="","", IF(SUMPRODUCT((שעות_עבודה7[[#This Row],[שם העבודה]]=$P$3:$P$6)*שעות_עבודה7[[#This Row],[שעות]]*($Q$3:$Q$6*24))=0,"", SUMPRODUCT((שעות_עבודה7[[#This Row],[שם העבודה]]=$P$3:$P$6)*שעות_עבודה7[[#This Row],[שעות]]*($Q$3:$Q$6*24)))) ->  | R32: =IF(_xlfn.IFS( AND(NOT(ISBLANK(טבלה7[[#This Row],[התחלה]])),ISBLANK(טבלה7[[#This Row],[עבודה]]),ISBLANK(טבלה7[[#This Row],[סיום]])), SUMIF(שעות_עבודה7[התחלה],">="&טבלה7[[#This Row],[התחלה]],שעות_עבודה7[שעות]), AND(NOT(ISBLANK(טבלה7[[#This Row],[עבודה]])),ISBLANK(טבלה7[[#This Row],[התחלה]]),ISBLANK(טבלה7[[#This Row],[סיום]])), SUMIF(שעות_עבודה7[שם העבודה],טבלה7[[#This Row],[עבודה]],שעות_עבודה7[שעות]), AND(NOT(ISBLANK(טבלה7[[#This Row],[סיום]])),ISBLANK(טבלה7[[#This Row],[עבודה]]),ISBLANK(טבלה7[[#This Row],[התחלה]])), SUMIF(שעות_עבודה7[סיום],"<="&טבלה7[[#This Row],[סיום]],שעות_עבודה7[שעות]), AND(NOT(ISBLANK(טבלה7[[#This Row],[התחלה]])),NOT(ISBLANK(טבלה7[[#This Row],[עבודה]])),ISBLANK(טבלה7[[#This Row],[סיום]])), SUMIFS(שעות_עבודה7[שעות],שעות_עבודה7[התחלה],">="&טבלה7[[#This Row],[התחלה]],שעות_עבודה7[שם העבודה],טבלה7[[#This Row],[עבודה]]), AND(NOT(ISBLANK(טבלה7[[#This Row],[עבודה]])),NOT(ISBLANK(טבלה7[[#This Row],[סיום]])),ISBLANK(טבלה7[[#This Row],[התחלה]])), SUMIFS(שעות_עבודה7[שעות],שעות_עבודה7[שם העבודה],טבלה7[[#This Row],[עבודה]],שעות_עבודה7[סיום],"<="&טבלה7[[#This Row],[סיום]]), AND(NOT(ISBLANK(טבלה7[[#This Row],[התחלה]])),NOT(ISBLANK(טבלה7[[#This Row],[סיום]])),ISBLANK(טבלה7[[#This Row],[עבודה]])), SUMIFS(שעות_עבודה7[שעות],שעות_עבודה7[התחלה],">="&טבלה7[[#This Row],[התחלה]],שעות_עבודה7[סיום],"<="&טבלה7[[#This Row],[סיום]]), AND(NOT(ISBLANK(טבלה7[[#This Row],[התחלה]])),NOT(ISBLANK(טבלה7[[#This Row],[עבודה]])),NOT(ISBLANK(טבלה7[[#This Row],[סיום]]))), SUMIFS(שעות_עבודה7[שעות],שעות_עבודה7[התחלה],">="&טבלה7[[#This Row],[התחלה]],שעות_עבודה7[שם העבודה],טבלה7[[#This Row],[עבודה]],שעות_עבודה7[סיום],"<="&טבלה7[[#This Row],[סיום]]), AND(ISBLANK(טבלה7[[#This Row],[התחלה]]),ISBLANK(טבלה7[[#This Row],[עבודה]]),ISBLANK(טבלה7[[#This Row],[סיום]])),"")=0,"", _xlfn.IFS( AND(NOT(ISBLANK(טבלה7[[#This Row],[התחלה]])),ISBLANK(טבלה7[[#This Row],[עבודה]]),ISBLANK(טבלה7[[#This Row],[סיום]])), SUMIF(שעות_עבודה7[התחלה],">="&טבלה7[[#This Row],[התחלה]],שעות_עבודה7[שעות]), AND(NOT(ISBLANK(טבלה7[[#This Row],[עבודה]])),ISBLANK(טבלה7[[#This Row],[התחלה]]),ISBLANK(טבלה7[[#This Row],[סיום]])), SUMIF(שעות_עבודה7[שם העבודה],טבלה7[[#This Row],[עבודה]],שעות_עבודה7[שעות]), AND(NOT(ISBLANK(טבלה7[[#This Row],[סיום]])),ISBLANK(טבלה7[[#This Row],[עבודה]]),ISBLANK(טבלה7[[#This Row],[התחלה]])), SUMIF(שעות_עבודה7[סיום],"<="&טבלה7[[#This Row],[סיום]],שעות_עבודה7[שעות]), AND(NOT(ISBLANK(טבלה7[[#This Row],[התחלה]])),NOT(ISBLANK(טבלה7[[#This Row],[עבודה]])),ISBLANK(טבלה7[[#This Row],[סיום]])), SUMIFS(שעות_עבודה7[שעות],שעות_עבודה7[התחלה],">="&טבלה7[[#This Row],[התחלה]],שעות_עבודה7[שם העבודה],טבלה7[[#This Row],[עבודה]]), AND(NOT(ISBLANK(טבלה7[[#This Row],[עבודה]])),NOT(ISBLANK(טבלה7[[#This Row],[סיום]])),ISBLANK(טבלה7[[#This Row],[התחלה]])), SUMIFS(שעות_עבודה7[שעות],שעות_עבודה7[שם העבודה],טבלה7[[#This Row],[עבודה]],שעות_עבודה7[סיום],"<="&טבלה7[[#This Row],[סיום]]), AND(NOT(ISBLANK(טבלה7[[#This Row],[התחלה]])),NOT(ISBLANK(טבלה7[[#This Row],[סיום]])),ISBLANK(טבלה7[[#This Row],[עבודה]])), SUMIFS(שעות_עבודה7[שעות],שעות_עבודה7[התחלה],">="&טבלה7[[#This Row],[התחלה]],שעות_עבודה7[סיום],"<="&טבלה7[[#This Row],[סיום]]), AND(NOT(ISBLANK(טבלה7[[#This Row],[התחלה]])),NOT(ISBLANK(טבלה7[[#This Row],[עבודה]])),NOT(ISBLANK(טבלה7[[#This Row],[סיום]]))), SUMIFS(שעות_עבודה7[שעות],שעות_עבודה7[התחלה],">="&טבלה7[[#This Row],[התחלה]],שעות_עבודה7[שם העבודה],טבלה7[[#This Row],[עבודה]],שעות_עבודה7[סיום],"<="&טבלה7[[#This Row],[סיום]]), AND(ISBLANK(טבלה7[[#This Row],[התחלה]]),ISBLANK(טבלה7[[#This Row],[עבודה]]),ISBLANK(טבלה7[[#This Row],[סיום]])),"")) ->  | S32: =IF(_xlfn.IFS( AND(NOT(ISBLANK(טבלה7[[#This Row],[התחלה]])),ISBLANK(טבלה7[[#This Row],[עבודה]]),ISBLANK(טבלה7[[#This Row],[סיום]])), SUMIF(שעות_עבודה7[התחלה],">="&טבלה7[[#This Row],[התחלה]],שעות_עבודה7[השכר]), AND(NOT(ISBLANK(טבלה7[[#This Row],[עבודה]])),ISBLANK(טבלה7[[#This Row],[התחלה]]),ISBLANK(טבלה7[[#This Row],[סיום]])), SUMIF(שעות_עבודה7[שם העבודה],טבלה7[[#This Row],[עבודה]],שעות_עבודה7[השכר]), AND(NOT(ISBLANK(טבלה7[[#This Row],[סיום]])),ISBLANK(טבלה7[[#This Row],[עבודה]]),ISBLANK(טבלה7[[#This Row],[התחלה]])), SUMIF(שעות_עבודה7[סיום],"<="&טבלה7[[#This Row],[סיום]],שעות_עבודה7[השכר]), AND(NOT(ISBLANK(טבלה7[[#This Row],[התחלה]])),NOT(ISBLANK(טבלה7[[#This Row],[עבודה]])),ISBLANK(טבלה7[[#This Row],[סיום]])), SUMIFS(שעות_עבודה7[השכר],שעות_עבודה7[התחלה],">="&טבלה7[[#This Row],[התחלה]],שעות_עבודה7[שם העבודה],טבלה7[[#This Row],[עבודה]]), AND(NOT(ISBLANK(טבלה7[[#This Row],[עבודה]])),NOT(ISBLANK(טבלה7[[#This Row],[סיום]])),ISBLANK(טבלה7[[#This Row],[התחלה]])), SUMIFS(שעות_עבודה7[השכר],שעות_עבודה7[שם העבודה],טבלה7[[#This Row],[עבודה]],שעות_עבודה7[סיום],"<="&טבלה7[[#This Row],[סיום]]), AND(NOT(ISBLANK(טבלה7[[#This Row],[התחלה]])),NOT(ISBLANK(טבלה7[[#This Row],[סיום]])),ISBLANK(טבלה7[[#This Row],[עבודה]])), SUMIFS(שעות_עבודה7[השכר],שעות_עבודה7[התחלה],">="&טבלה7[[#This Row],[התחלה]],שעות_עבודה7[סיום],"<="&טבלה7[[#This Row],[סיום]]), AND(NOT(ISBLANK(טבלה7[[#This Row],[התחלה]])),NOT(ISBLANK(טבלה7[[#This Row],[עבודה]])),NOT(ISBLANK(טבלה7[[#This Row],[סיום]]))), SUMIFS(שעות_עבודה7[השכר],שעות_עבודה7[התחלה],">="&טבלה7[[#This Row],[התחלה]],שעות_עבודה7[שם העבודה],טבלה7[[#This Row],[עבודה]],שעות_עבודה7[סיום],"<="&טבלה7[[#This Row],[סיום]]), AND(ISBLANK(טבלה7[[#This Row],[התחלה]]),ISBLANK(טבלה7[[#This Row],[עבודה]]),ISBLANK(טבלה7[[#This Row],[סיום]])),"")=0,"", _xlfn.IFS( AND(NOT(ISBLANK(טבלה7[[#This Row],[התחלה]])),ISBLANK(טבלה7[[#This Row],[עבודה]]),ISBLANK(טבלה7[[#This Row],[סיום]])), SUMIF(שעות_עבודה7[התחלה],">="&טבלה7[[#This Row],[התחלה]],שעות_עבודה7[השכר]), AND(NOT(ISBLANK(טבלה7[[#This Row],[עבודה]])),ISBLANK(טבלה7[[#This Row],[התחלה]]),ISBLANK(טבלה7[[#This Row],[סיום]])), SUMIF(שעות_עבודה7[שם העבודה],טבלה7[[#This Row],[עבודה]],שעות_עבודה7[השכר]), AND(NOT(ISBLANK(טבלה7[[#This Row],[סיום]])),ISBLANK(טבלה7[[#This Row],[עבודה]]),ISBLANK(טבלה7[[#This Row],[התחלה]])), SUMIF(שעות_עבודה7[סיום],"<="&טבלה7[[#This Row],[סיום]],שעות_עבודה7[השכר]), AND(NOT(ISBLANK(טבלה7[[#This Row],[התחלה]])),NOT(ISBLANK(טבלה7[[#This Row],[עבודה]])),ISBLANK(טבלה7[[#This Row],[סיום]])), SUMIFS(שעות_עבודה7[השכר],שעות_עבודה7[התחלה],">="&טבלה7[[#This Row],[התחלה]],שעות_עבודה7[שם העבודה],טבלה7[[#This Row],[עבודה]]), AND(NOT(ISBLANK(טבלה7[[#This Row],[עבודה]])),NOT(ISBLANK(טבלה7[[#This Row],[סיום]])),ISBLANK(טבלה7[[#This Row],[התחלה]])), SUMIFS(שעות_עבודה7[השכר],שעות_עבודה7[שם העבודה],טבלה7[[#This Row],[עבודה]],שעות_עבודה7[סיום],"<="&טבלה7[[#This Row],[סיום]]), AND(NOT(ISBLANK(טבלה7[[#This Row],[התחלה]])),NOT(ISBLANK(טבלה7[[#This Row],[סיום]])),ISBLANK(טבלה7[[#This Row],[עבודה]])), SUMIFS(שעות_עבודה7[השכר],שעות_עבודה7[התחלה],">="&טבלה7[[#This Row],[התחלה]],שעות_עבודה7[סיום],"<="&טבלה7[[#This Row],[סיום]]), AND(NOT(ISBLANK(טבלה7[[#This Row],[התחלה]])),NOT(ISBLANK(טבלה7[[#This Row],[עבודה]])),NOT(ISBLANK(טבלה7[[#This Row],[סיום]]))), SUMIFS(שעות_עבודה7[השכר],שעות_עבודה7[התחלה],">="&טבלה7[[#This Row],[התחלה]],שעות_עבודה7[שם העבודה],טבלה7[[#This Row],[עבודה]],שעות_עבודה7[סיום],"<="&טבלה7[[#This Row],[סיום]]), AND(ISBLANK(טבלה7[[#This Row],[התחלה]]),ISBLANK(טבלה7[[#This Row],[עבודה]]),ISBLANK(טבלה7[[#This Row],[סיום]])),"")) -> 
B33: =IF(שעות_עבודה7[[#This Row],[תאריך]]="","",ROW(A25)) ->  | C33: =_xlfn.IFS(שעות_עבודה7[[#This Row],[התחלה]]="","",WEEKDAY(שעות_עבודה7[[#This Row],[התחלה]])=1,"ראשון",WEEKDAY(שעות_עבודה7[[#This Row],[התחלה]])=2,"שני",WEEKDAY(שעות_עבודה7[[#This Row],[התחלה]])=3,"שלישי",WEEKDAY(שעות_עבודה7[[#This Row],[התחלה]])=4,"רביעי",WEEKDAY(שעות_עבודה7[[#This Row],[התחלה]])=5,"חמישי",WEEKDAY(שעות_עבודה7[[#This Row],[התחלה]])=6,"שישי",WEEKDAY(שעות_עבודה7[[#This Row],[התחלה]])=7,"מוצ""ש") ->  | D33: =IF(שעות_עבודה7[[#This Row],[התחלה]]="","",שעות_עבודה7[[#This Row],[התחלה]]) ->  | J33: =IF(OR(שעות_עבודה7[[#This Row],[התחלה]]="", שעות_עבודה7[[#This Row],[סיום]]-שעות_עבודה7[[#This Row],[התחלה]]+שעות_עבודה7[[#This Row],[הוספת דקות]]/1440<שעות_עבודה7[[#This Row],[הפחתת דקות]]/1440, SUM(שעות_עבודה7[[#This Row],[סיום]]-שעות_עבודה7[[#This Row],[התחלה]],שעות_עבודה7[[#This Row],[הוספת דקות]]/1440,-שעות_עבודה7[[#This Row],[הפחתת דקות]]/1440)=0), "", SUM(שעות_עבודה7[[#This Row],[סיום]]-שעות_עבודה7[[#This Row],[התחלה]],שעות_עבודה7[[#This Row],[הוספת דקות]]/1440,-שעות_עבודה7[[#This Row],[הפחתת דקות]]/1440)) ->  | K33: =IF(שעות_עבודה7[[#This Row],[שעות]]="","", IF(SUMPRODUCT((שעות_עבודה7[[#This Row],[שם העבודה]]=$P$3:$P$6)*שעות_עבודה7[[#This Row],[שעות]]*($Q$3:$Q$6*24))=0,"", SUMPRODUCT((שעות_עבודה7[[#This Row],[שם העבודה]]=$P$3:$P$6)*שעות_עבודה7[[#This Row],[שעות]]*($Q$3:$Q$6*24)))) ->  | R33: =IF(_xlfn.IFS( AND(NOT(ISBLANK(טבלה7[[#This Row],[התחלה]])),ISBLANK(טבלה7[[#This Row],[עבודה]]),ISBLANK(טבלה7[[#This Row],[סיום]])), SUMIF(שעות_עבודה7[התחלה],">="&טבלה7[[#This Row],[התחלה]],שעות_עבודה7[שעות]), AND(NOT(ISBLANK(טבלה7[[#This Row],[עבודה]])),ISBLANK(טבלה7[[#This Row],[התחלה]]),ISBLANK(טבלה7[[#This Row],[סיום]])), SUMIF(שעות_עבודה7[שם העבודה],טבלה7[[#This Row],[עבודה]],שעות_עבודה7[שעות]), AND(NOT(ISBLANK(טבלה7[[#This Row],[סיום]])),ISBLANK(טבלה7[[#This Row],[עבודה]]),ISBLANK(טבלה7[[#This Row],[התחלה]])), SUMIF(שעות_עבודה7[סיום],"<="&טבלה7[[#This Row],[סיום]],שעות_עבודה7[שעות]), AND(NOT(ISBLANK(טבלה7[[#This Row],[התחלה]])),NOT(ISBLANK(טבלה7[[#This Row],[עבודה]])),ISBLANK(טבלה7[[#This Row],[סיום]])), SUMIFS(שעות_עבודה7[שעות],שעות_עבודה7[התחלה],">="&טבלה7[[#This Row],[התחלה]],שעות_עבודה7[שם העבודה],טבלה7[[#This Row],[עבודה]]), AND(NOT(ISBLANK(טבלה7[[#This Row],[עבודה]])),NOT(ISBLANK(טבלה7[[#This Row],[סיום]])),ISBLANK(טבלה7[[#This Row],[התחלה]])), SUMIFS(שעות_עבודה7[שעות],שעות_עבודה7[שם העבודה],טבלה7[[#This Row],[עבודה]],שעות_עבודה7[סיום],"<="&טבלה7[[#This Row],[סיום]]), AND(NOT(ISBLANK(טבלה7[[#This Row],[התחלה]])),NOT(ISBLANK(טבלה7[[#This Row],[סיום]])),ISBLANK(טבלה7[[#This Row],[עבודה]])), SUMIFS(שעות_עבודה7[שעות],שעות_עבודה7[התחלה],">="&טבלה7[[#This Row],[התחלה]],שעות_עבודה7[סיום],"<="&טבלה7[[#This Row],[סיום]]), AND(NOT(ISBLANK(טבלה7[[#This Row],[התחלה]])),NOT(ISBLANK(טבלה7[[#This Row],[עבודה]])),NOT(ISBLANK(טבלה7[[#This Row],[סיום]]))), SUMIFS(שעות_עבודה7[שעות],שעות_עבודה7[התחלה],">="&טבלה7[[#This Row],[התחלה]],שעות_עבודה7[שם העבודה],טבלה7[[#This Row],[עבודה]],שעות_עבודה7[סיום],"<="&טבלה7[[#This Row],[סיום]]), AND(ISBLANK(טבלה7[[#This Row],[התחלה]]),ISBLANK(טבלה7[[#This Row],[עבודה]]),ISBLANK(טבלה7[[#This Row],[סיום]])),"")=0,"", _xlfn.IFS( AND(NOT(ISBLANK(טבלה7[[#This Row],[התחלה]])),ISBLANK(טבלה7[[#This Row],[עבודה]]),ISBLANK(טבלה7[[#This Row],[סיום]])), SUMIF(שעות_עבודה7[התחלה],">="&טבלה7[[#This Row],[התחלה]],שעות_עבודה7[שעות]), AND(NOT(ISBLANK(טבלה7[[#This Row],[עבודה]])),ISBLANK(טבלה7[[#This Row],[התחלה]]),ISBLANK(טבלה7[[#This Row],[סיום]])), SUMIF(שעות_עבודה7[שם העבודה],טבלה7[[#This Row],[עבודה]],שעות_עבודה7[שעות]), AND(NOT(ISBLANK(טבלה7[[#This Row],[סיום]])),ISBLANK(טבלה7[[#This Row],[עבודה]]),ISBLANK(טבלה7[[#This Row],[התחלה]])), SUMIF(שעות_עבודה7[סיום],"<="&טבלה7[[#This Row],[סיום]],שעות_עבודה7[שעות]), AND(NOT(ISBLANK(טבלה7[[#This Row],[התחלה]])),NOT(ISBLANK(טבלה7[[#This Row],[עבודה]])),ISBLANK(טבלה7[[#This Row],[סיום]])), SUMIFS(שעות_עבודה7[שעות],שעות_עבודה7[התחלה],">="&טבלה7[[#This Row],[התחלה]],שעות_עבודה7[שם העבודה],טבלה7[[#This Row],[עבודה]]), AND(NOT(ISBLANK(טבלה7[[#This Row],[עבודה]])),NOT(ISBLANK(טבלה7[[#This Row],[סיום]])),ISBLANK(טבלה7[[#This Row],[התחלה]])), SUMIFS(שעות_עבודה7[שעות],שעות_עבודה7[שם העבודה],טבלה7[[#This Row],[עבודה]],שעות_עבודה7[סיום],"<="&טבלה7[[#This Row],[סיום]]), AND(NOT(ISBLANK(טבלה7[[#This Row],[התחלה]])),NOT(ISBLANK(טבלה7[[#This Row],[סיום]])),ISBLANK(טבלה7[[#This Row],[עבודה]])), SUMIFS(שעות_עבודה7[שעות],שעות_עבודה7[התחלה],">="&טבלה7[[#This Row],[התחלה]],שעות_עבודה7[סיום],"<="&טבלה7[[#This Row],[סיום]]), AND(NOT(ISBLANK(טבלה7[[#This Row],[התחלה]])),NOT(ISBLANK(טבלה7[[#This Row],[עבודה]])),NOT(ISBLANK(טבלה7[[#This Row],[סיום]]))), SUMIFS(שעות_עבודה7[שעות],שעות_עבודה7[התחלה],">="&טבלה7[[#This Row],[התחלה]],שעות_עבודה7[שם העבודה],טבלה7[[#This Row],[עבודה]],שעות_עבודה7[סיום],"<="&טבלה7[[#This Row],[סיום]]), AND(ISBLANK(טבלה7[[#This Row],[התחלה]]),ISBLANK(טבלה7[[#This Row],[עבודה]]),ISBLANK(טבלה7[[#This Row],[סיום]])),"")) ->  | S33: =IF(_xlfn.IFS( AND(NOT(ISBLANK(טבלה7[[#This Row],[התחלה]])),ISBLANK(טבלה7[[#This Row],[עבודה]]),ISBLANK(טבלה7[[#This Row],[סיום]])), SUMIF(שעות_עבודה7[התחלה],">="&טבלה7[[#This Row],[התחלה]],שעות_עבודה7[השכר]), AND(NOT(ISBLANK(טבלה7[[#This Row],[עבודה]])),ISBLANK(טבלה7[[#This Row],[התחלה]]),ISBLANK(טבלה7[[#This Row],[סיום]])), SUMIF(שעות_עבודה7[שם העבודה],טבלה7[[#This Row],[עבודה]],שעות_עבודה7[השכר]), AND(NOT(ISBLANK(טבלה7[[#This Row],[סיום]])),ISBLANK(טבלה7[[#This Row],[עבודה]]),ISBLANK(טבלה7[[#This Row],[התחלה]])), SUMIF(שעות_עבודה7[סיום],"<="&טבלה7[[#This Row],[סיום]],שעות_עבודה7[השכר]), AND(NOT(ISBLANK(טבלה7[[#This Row],[התחלה]])),NOT(ISBLANK(טבלה7[[#This Row],[עבודה]])),ISBLANK(טבלה7[[#This Row],[סיום]])), SUMIFS(שעות_עבודה7[השכר],שעות_עבודה7[התחלה],">="&טבלה7[[#This Row],[התחלה]],שעות_עבודה7[שם העבודה],טבלה7[[#This Row],[עבודה]]), AND(NOT(ISBLANK(טבלה7[[#This Row],[עבודה]])),NOT(ISBLANK(טבלה7[[#This Row],[סיום]])),ISBLANK(טבלה7[[#This Row],[התחלה]])), SUMIFS(שעות_עבודה7[השכר],שעות_עבודה7[שם העבודה],טבלה7[[#This Row],[עבודה]],שעות_עבודה7[סיום],"<="&טבלה7[[#This Row],[סיום]]), AND(NOT(ISBLANK(טבלה7[[#This Row],[התחלה]])),NOT(ISBLANK(טבלה7[[#This Row],[סיום]])),ISBLANK(טבלה7[[#This Row],[עבודה]])), SUMIFS(שעות_עבודה7[השכר],שעות_עבודה7[התחלה],">="&טבלה7[[#This Row],[התחלה]],שעות_עבודה7[סיום],"<="&טבלה7[[#This Row],[סיום]]), AND(NOT(ISBLANK(טבלה7[[#This Row],[התחלה]])),NOT(ISBLANK(טבלה7[[#This Row],[עבודה]])),NOT(ISBLANK(טבלה7[[#This Row],[סיום]]))), SUMIFS(שעות_עבודה7[השכר],שעות_עבודה7[התחלה],">="&טבלה7[[#This Row],[התחלה]],שעות_עבודה7[שם העבודה],טבלה7[[#This Row],[עבודה]],שעות_עבודה7[סיום],"<="&טבלה7[[#This Row],[סיום]]), AND(ISBLANK(טבלה7[[#This Row],[התחלה]]),ISBLANK(טבלה7[[#This Row],[עבודה]]),ISBLANK(טבלה7[[#This Row],[סיום]])),"")=0,"", _xlfn.IFS( AND(NOT(ISBLANK(טבלה7[[#This Row],[התחלה]])),ISBLANK(טבלה7[[#This Row],[עבודה]]),ISBLANK(טבלה7[[#This Row],[סיום]])), SUMIF(שעות_עבודה7[התחלה],">="&טבלה7[[#This Row],[התחלה]],שעות_עבודה7[השכר]), AND(NOT(ISBLANK(טבלה7[[#This Row],[עבודה]])),ISBLANK(טבלה7[[#This Row],[התחלה]]),ISBLANK(טבלה7[[#This Row],[סיום]])), SUMIF(שעות_עבודה7[שם העבודה],טבלה7[[#This Row],[עבודה]],שעות_עבודה7[השכר]), AND(NOT(ISBLANK(טבלה7[[#This Row],[סיום]])),ISBLANK(טבלה7[[#This Row],[עבודה]]),ISBLANK(טבלה7[[#This Row],[התחלה]])), SUMIF(שעות_עבודה7[סיום],"<="&טבלה7[[#This Row],[סיום]],שעות_עבודה7[השכר]), AND(NOT(ISBLANK(טבלה7[[#This Row],[התחלה]])),NOT(ISBLANK(טבלה7[[#This Row],[עבודה]])),ISBLANK(טבלה7[[#This Row],[סיום]])), SUMIFS(שעות_עבודה7[השכר],שעות_עבודה7[התחלה],">="&טבלה7[[#This Row],[התחלה]],שעות_עבודה7[שם העבודה],טבלה7[[#This Row],[עבודה]]), AND(NOT(ISBLANK(טבלה7[[#This Row],[עבודה]])),NOT(ISBLANK(טבלה7[[#This Row],[סיום]])),ISBLANK(טבלה7[[#This Row],[התחלה]])), SUMIFS(שעות_עבודה7[השכר],שעות_עבודה7[שם העבודה],טבלה7[[#This Row],[עבודה]],שעות_עבודה7[סיום],"<="&טבלה7[[#This Row],[סיום]]), AND(NOT(ISBLANK(טבלה7[[#This Row],[התחלה]])),NOT(ISBLANK(טבלה7[[#This Row],[סיום]])),ISBLANK(טבלה7[[#This Row],[עבודה]])), SUMIFS(שעות_עבודה7[השכר],שעות_עבודה7[התחלה],">="&טבלה7[[#This Row],[התחלה]],שעות_עבודה7[סיום],"<="&טבלה7[[#This Row],[סיום]]), AND(NOT(ISBLANK(טבלה7[[#This Row],[התחלה]])),NOT(ISBLANK(טבלה7[[#This Row],[עבודה]])),NOT(ISBLANK(טבלה7[[#This Row],[סיום]]))), SUMIFS(שעות_עבודה7[השכר],שעות_עבודה7[התחלה],">="&טבלה7[[#This Row],[התחלה]],שעות_עבודה7[שם העבודה],טבלה7[[#This Row],[עבודה]],שעות_עבודה7[סיום],"<="&טבלה7[[#This Row],[סיום]]), AND(ISBLANK(טבלה7[[#This Row],[התחלה]]),ISBLANK(טבלה7[[#This Row],[עבודה]]),ISBLANK(טבלה7[[#This Row],[סיום]])),"")) -> 
B34: =IF(שעות_עבודה7[[#This Row],[תאריך]]="","",ROW(A26)) ->  | C34: =_xlfn.IFS(שעות_עבודה7[[#This Row],[התחלה]]="","",WEEKDAY(שעות_עבודה7[[#This Row],[התחלה]])=1,"ראשון",WEEKDAY(שעות_עבודה7[[#This Row],[התחלה]])=2,"שני",WEEKDAY(שעות_עבודה7[[#This Row],[התחלה]])=3,"שלישי",WEEKDAY(שעות_עבודה7[[#This Row],[התחלה]])=4,"רביעי",WEEKDAY(שעות_עבודה7[[#This Row],[התחלה]])=5,"חמישי",WEEKDAY(שעות_עבודה7[[#This Row],[התחלה]])=6,"שישי",WEEKDAY(שעות_עבודה7[[#This Row],[התחלה]])=7,"מוצ""ש") ->  | D34: =IF(שעות_עבודה7[[#This Row],[התחלה]]="","",שעות_עבודה7[[#This Row],[התחלה]]) ->  | J34: =IF(OR(שעות_עבודה7[[#This Row],[התחלה]]="", שעות_עבודה7[[#This Row],[סיום]]-שעות_עבודה7[[#This Row],[התחלה]]+שעות_עבודה7[[#This Row],[הוספת דקות]]/1440<שעות_עבודה7[[#This Row],[הפחתת דקות]]/1440, SUM(שעות_עבודה7[[#This Row],[סיום]]-שעות_עבודה7[[#This Row],[התחלה]],שעות_עבודה7[[#This Row],[הוספת דקות]]/1440,-שעות_עבודה7[[#This Row],[הפחתת דקות]]/1440)=0), "", SUM(שעות_עבודה7[[#This Row],[סיום]]-שעות_עבודה7[[#This Row],[התחלה]],שעות_עבודה7[[#This Row],[הוספת דקות]]/1440,-שעות_עבודה7[[#This Row],[הפחתת דקות]]/1440)) ->  | K34: =IF(שעות_עבודה7[[#This Row],[שעות]]="","", IF(SUMPRODUCT((שעות_עבודה7[[#This Row],[שם העבודה]]=$P$3:$P$6)*שעות_עבודה7[[#This Row],[שעות]]*($Q$3:$Q$6*24))=0,"", SUMPRODUCT((שעות_עבודה7[[#This Row],[שם העבודה]]=$P$3:$P$6)*שעות_עבודה7[[#This Row],[שעות]]*($Q$3:$Q$6*24)))) -> 
B35: =IF(שעות_עבודה7[[#This Row],[תאריך]]="","",ROW(A27)) ->  | C35: =_xlfn.IFS(שעות_עבודה7[[#This Row],[התחלה]]="","",WEEKDAY(שעות_עבודה7[[#This Row],[התחלה]])=1,"ראשון",WEEKDAY(שעות_עבודה7[[#This Row],[התחלה]])=2,"שני",WEEKDAY(שעות_עבודה7[[#This Row],[התחלה]])=3,"שלישי",WEEKDAY(שעות_עבודה7[[#This Row],[התחלה]])=4,"רביעי",WEEKDAY(שעות_עבודה7[[#This Row],[התחלה]])=5,"חמישי",WEEKDAY(שעות_עבודה7[[#This Row],[התחלה]])=6,"שישי",WEEKDAY(שעות_עבודה7[[#This Row],[התחלה]])=7,"מוצ""ש") ->  | D35: =IF(שעות_עבודה7[[#This Row],[התחלה]]="","",שעות_עבודה7[[#This Row],[התחלה]]) ->  | J35: =IF(OR(שעות_עבודה7[[#This Row],[התחלה]]="", שעות_עבודה7[[#This Row],[סיום]]-שעות_עבודה7[[#This Row],[התחלה]]+שעות_עבודה7[[#This Row],[הוספת דקות]]/1440<שעות_עבודה7[[#This Row],[הפחתת דקות]]/1440, SUM(שעות_עבודה7[[#This Row],[סיום]]-שעות_עבודה7[[#This Row],[התחלה]],שעות_עבודה7[[#This Row],[הוספת דקות]]/1440,-שעות_עבודה7[[#This Row],[הפחתת דקות]]/1440)=0), "", SUM(שעות_עבודה7[[#This Row],[סיום]]-שעות_עבודה7[[#This Row],[התחלה]],שעות_עבודה7[[#This Row],[הוספת דקות]]/1440,-שעות_עבודה7[[#This Row],[הפחתת דקות]]/1440)) ->  | K35: =IF(שעות_עבודה7[[#This Row],[שעות]]="","", IF(SUMPRODUCT((שעות_עבודה7[[#This Row],[שם העבודה]]=$P$3:$P$6)*שעות_עבודה7[[#This Row],[שעות]]*($Q$3:$Q$6*24))=0,"", SUMPRODUCT((שעות_עבודה7[[#This Row],[שם העבודה]]=$P$3:$P$6)*שעות_עבודה7[[#This Row],[שעות]]*($Q$3:$Q$6*24)))) -> 
B36: =IF(שעות_עבודה7[[#This Row],[תאריך]]="","",ROW(A28)) ->  | C36: =_xlfn.IFS(שעות_עבודה7[[#This Row],[התחלה]]="","",WEEKDAY(שעות_עבודה7[[#This Row],[התחלה]])=1,"ראשון",WEEKDAY(שעות_עבודה7[[#This Row],[התחלה]])=2,"שני",WEEKDAY(שעות_עבודה7[[#This Row],[התחלה]])=3,"שלישי",WEEKDAY(שעות_עבודה7[[#This Row],[התחלה]])=4,"רביעי",WEEKDAY(שעות_עבודה7[[#This Row],[התחלה]])=5,"חמישי",WEEKDAY(שעות_עבודה7[[#This Row],[התחלה]])=6,"שישי",WEEKDAY(שעות_עבודה7[[#This Row],[התחלה]])=7,"מוצ""ש") ->  | D36: =IF(שעות_עבודה7[[#This Row],[התחלה]]="","",שעות_עבודה7[[#This Row],[התחלה]]) ->  | J36: =IF(OR(שעות_עבודה7[[#This Row],[התחלה]]="", שעות_עבודה7[[#This Row],[סיום]]-שעות_עבודה7[[#This Row],[התחלה]]+שעות_עבודה7[[#This Row],[הוספת דקות]]/1440<שעות_עבודה7[[#This Row],[הפחתת דקות]]/1440, SUM(שעות_עבודה7[[#This Row],[סיום]]-שעות_עבודה7[[#This Row],[התחלה]],שעות_עבודה7[[#This Row],[הוספת דקות]]/1440,-שעות_עבודה7[[#This Row],[הפחתת דקות]]/1440)=0), "", SUM(שעות_עבודה7[[#This Row],[סיום]]-שעות_עבודה7[[#This Row],[התחלה]],שעות_עבודה7[[#This Row],[הוספת דקות]]/1440,-שעות_עבודה7[[#This Row],[הפחתת דקות]]/1440)) ->  | K36: =IF(שעות_עבודה7[[#This Row],[שעות]]="","", IF(SUMPRODUCT((שעות_עבודה7[[#This Row],[שם העבודה]]=$P$3:$P$6)*שעות_עבודה7[[#This Row],[שעות]]*($Q$3:$Q$6*24))=0,"", SUMPRODUCT((שעות_עבודה7[[#This Row],[שם העבודה]]=$P$3:$P$6)*שעות_עבודה7[[#This Row],[שעות]]*($Q$3:$Q$6*24)))) ->  | R36: נוצר על ידי החפץ בעילו"ש לזיכוי הרבים. קרדיט ל- a5092920673@gmail.com. עותק חופשי - סיסמא 1234
B37: =IF(שעות_עבודה7[[#This Row],[תאריך]]="","",ROW(A29)) ->  | C37: =_xlfn.IFS(שעות_עבודה7[[#This Row],[התחלה]]="","",WEEKDAY(שעות_עבודה7[[#This Row],[התחלה]])=1,"ראשון",WEEKDAY(שעות_עבודה7[[#This Row],[התחלה]])=2,"שני",WEEKDAY(שעות_עבודה7[[#This Row],[התחלה]])=3,"שלישי",WEEKDAY(שעות_עבודה7[[#This Row],[התחלה]])=4,"רביעי",WEEKDAY(שעות_עבודה7[[#This Row],[התחלה]])=5,"חמישי",WEEKDAY(שעות_עבודה7[[#This Row],[התחלה]])=6,"שישי",WEEKDAY(שעות_עבודה7[[#This Row],[התחלה]])=7,"מוצ""ש") ->  | D37: =IF(שעות_עבודה7[[#This Row],[התחלה]]="","",שעות_עבודה7[[#This Row],[התחלה]]) ->  | J37: =IF(OR(שעות_עבודה7[[#This Row],[התחלה]]="", שעות_עבודה7[[#This Row],[סיום]]-שעות_עבודה7[[#This Row],[התחלה]]+שעות_עבודה7[[#This Row],[הוספת דקות]]/1440<שעות_עבודה7[[#This Row],[הפחתת דקות]]/1440, SUM(שעות_עבודה7[[#This Row],[סיום]]-שעות_עבודה7[[#This Row],[התחלה]],שעות_עבודה7[[#This Row],[הוספת דקות]]/1440,-שעות_עבודה7[[#This Row],[הפחתת דקות]]/1440)=0), "", SUM(שעות_עבודה7[[#This Row],[סיום]]-שעות_עבודה7[[#This Row],[התחלה]],שעות_עבודה7[[#This Row],[הוספת דקות]]/1440,-שעות_עבודה7[[#This Row],[הפחתת דקות]]/1440)) ->  | K37: =IF(שעות_עבודה7[[#This Row],[שעות]]="","", IF(SUMPRODUCT((שעות_עבודה7[[#This Row],[שם העבודה]]=$P$3:$P$6)*שעות_עבודה7[[#This Row],[שעות]]*($Q$3:$Q$6*24))=0,"", SUMPRODUCT((שעות_עבודה7[[#This Row],[שם העבודה]]=$P$3:$P$6)*שעות_עבודה7[[#This Row],[שעות]]*($Q$3:$Q$6*24)))) -> 
B38: =IF(שעות_עבודה7[[#This Row],[תאריך]]="","",ROW(A30)) ->  | C38: =_xlfn.IFS(שעות_עבודה7[[#This Row],[התחלה]]="","",WEEKDAY(שעות_עבודה7[[#This Row],[התחלה]])=1,"ראשון",WEEKDAY(שעות_עבודה7[[#This Row],[התחלה]])=2,"שני",WEEKDAY(שעות_עבודה7[[#This Row],[התחלה]])=3,"שלישי",WEEKDAY(שעות_עבודה7[[#This Row],[התחלה]])=4,"רביעי",WEEKDAY(שעות_עבודה7[[#This Row],[התחלה]])=5,"חמישי",WEEKDAY(שעות_עבודה7[[#This Row],[התחלה]])=6,"שישי",WEEKDAY(שעות_עבודה7[[#This Row],[התחלה]])=7,"מוצ""ש") ->  | D38: =IF(שעות_עבודה7[[#This Row],[התחלה]]="","",שעות_עבודה7[[#This Row],[התחלה]]) ->  | J38: =IF(OR(שעות_עבודה7[[#This Row],[התחלה]]="", שעות_עבודה7[[#This Row],[סיום]]-שעות_עבודה7[[#This Row],[התחלה]]+שעות_עבודה7[[#This Row],[הוספת דקות]]/1440<שעות_עבודה7[[#This Row],[הפחתת דקות]]/1440, SUM(שעות_עבודה7[[#This Row],[סיום]]-שעות_עבודה7[[#This Row],[התחלה]],שעות_עבודה7[[#This Row],[הוספת דקות]]/1440,-שעות_עבודה7[[#This Row],[הפחתת דקות]]/1440)=0), "", SUM(שעות_עבודה7[[#This Row],[סיום]]-שעות_עבודה7[[#This Row],[התחלה]],שעות_עבודה7[[#This Row],[הוספת דקות]]/1440,-שעות_עבודה7[[#This Row],[הפחתת דקות]]/1440)) ->  | K38: =IF(שעות_עבודה7[[#This Row],[שעות]]="","", IF(SUMPRODUCT((שעות_עבודה7[[#This Row],[שם העבודה]]=$P$3:$P$6)*שעות_עבודה7[[#This Row],[שעות]]*($Q$3:$Q$6*24))=0,"", SUMPRODUCT((שעות_עבודה7[[#This Row],[שם העבודה]]=$P$3:$P$6)*שעות_עבודה7[[#This Row],[שעות]]*($Q$3:$Q$6*24)))) -> 
B39: =IF(שעות_עבודה7[[#This Row],[תאריך]]="","",ROW(A31)) ->  | C39: =_xlfn.IFS(שעות_עבודה7[[#This Row],[התחלה]]="","",WEEKDAY(שעות_עבודה7[[#This Row],[התחלה]])=1,"ראשון",WEEKDAY(שעות_עבודה7[[#This Row],[התחלה]])=2,"שני",WEEKDAY(שעות_עבודה7[[#This Row],[התחלה]])=3,"שלישי",WEEKDAY(שעות_עבודה7[[#This Row],[התחלה]])=4,"רביעי",WEEKDAY(שעות_עבודה7[[#This Row],[התחלה]])=5,"חמישי",WEEKDAY(שעות_עבודה7[[#This Row],[התחלה]])=6,"שישי",WEEKDAY(שעות_עבודה7[[#This Row],[התחלה]])=7,"מוצ""ש") ->  | D39: =IF(שעות_עבודה7[[#This Row],[התחלה]]="","",שעות_עבודה7[[#This Row],[התחלה]]) ->  | J39: =IF(OR(שעות_עבודה7[[#This Row],[התחלה]]="", שעות_עבודה7[[#This Row],[סיום]]-שעות_עבודה7[[#This Row],[התחלה]]+שעות_עבודה7[[#This Row],[הוספת דקות]]/1440<שעות_עבודה7[[#This Row],[הפחתת דקות]]/1440, SUM(שעות_עבודה7[[#This Row],[סיום]]-שעות_עבודה7[[#This Row],[התחלה]],שעות_עבודה7[[#This Row],[הוספת דקות]]/1440,-שעות_עבודה7[[#This Row],[הפחתת דקות]]/1440)=0), "", SUM(שעות_עבודה7[[#This Row],[סיום]]-שעות_עבודה7[[#This Row],[התחלה]],שעות_עבודה7[[#This Row],[הוספת דקות]]/1440,-שעות_עבודה7[[#This Row],[הפחתת דקות]]/1440)) ->  | K39: =IF(שעות_עבודה7[[#This Row],[שעות]]="","", IF(SUMPRODUCT((שעות_עבודה7[[#This Row],[שם העבודה]]=$P$3:$P$6)*שעות_עבודה7[[#This Row],[שעות]]*($Q$3:$Q$6*24))=0,"", SUMPRODUCT((שעות_עבודה7[[#This Row],[שם העבודה]]=$P$3:$P$6)*שעות_עבודה7[[#This Row],[שעות]]*($Q$3:$Q$6*24)))) -> 
B40: =IF(שעות_עבודה7[[#This Row],[תאריך]]="","",ROW(A32)) ->  | C40: =_xlfn.IFS(שעות_עבודה7[[#This Row],[התחלה]]="","",WEEKDAY(שעות_עבודה7[[#This Row],[התחלה]])=1,"ראשון",WEEKDAY(שעות_עבודה7[[#This Row],[התחלה]])=2,"שני",WEEKDAY(שעות_עבודה7[[#This Row],[התחלה]])=3,"שלישי",WEEKDAY(שעות_עבודה7[[#This Row],[התחלה]])=4,"רביעי",WEEKDAY(שעות_עבודה7[[#This Row],[התחלה]])=5,"חמישי",WEEKDAY(שעות_עבודה7[[#This Row],[התחלה]])=6,"שישי",WEEKDAY(שעות_עבודה7[[#This Row],[התחלה]])=7,"מוצ""ש") ->  | D40: =IF(שעות_עבודה7[[#This Row],[התחלה]]="","",שעות_עבודה7[[#This Row],[התחלה]]) ->  | J40: =IF(OR(שעות_עבודה7[[#This Row],[התחלה]]="", שעות_עבודה7[[#This Row],[סיום]]-שעות_עבודה7[[#This Row],[התחלה]]+שעות_עבודה7[[#This Row],[הוספת דקות]]/1440<שעות_עבודה7[[#This Row],[הפחתת דקות]]/1440, SUM(שעות_עבודה7[[#This Row],[סיום]]-שעות_עבודה7[[#This Row],[התחלה]],שעות_עבודה7[[#This Row],[הוספת דקות]]/1440,-שעות_עבודה7[[#This Row],[הפחתת דקות]]/1440)=0), "", SUM(שעות_עבודה7[[#This Row],[סיום]]-שעות_עבודה7[[#This Row],[התחלה]],שעות_עבודה7[[#This Row],[הוספת דקות]]/1440,-שעות_עבודה7[[#This Row],[הפחתת דקות]]/1440)) ->  | K40: =IF(שעות_עבודה7[[#This Row],[שעות]]="","", IF(SUMPRODUCT((שעות_עבודה7[[#This Row],[שם העבודה]]=$P$3:$P$6)*שעות_עבודה7[[#This Row],[שעות]]*($Q$3:$Q$6*24))=0,"", SUMPRODUCT((שעות_עבודה7[[#This Row],[שם העבודה]]=$P$3:$P$6)*שעות_עבודה7[[#This Row],[שעות]]*($Q$3:$Q$6*24)))) -> 
B41: =IF(שעות_עבודה7[[#This Row],[תאריך]]="","",ROW(A33)) ->  | C41: =_xlfn.IFS(שעות_עבודה7[[#This Row],[התחלה]]="","",WEEKDAY(שעות_עבודה7[[#This Row],[התחלה]])=1,"ראשון",WEEKDAY(שעות_עבודה7[[#This Row],[התחלה]])=2,"שני",WEEKDAY(שעות_עבודה7[[#This Row],[התחלה]])=3,"שלישי",WEEKDAY(שעות_עבודה7[[#This Row],[התחלה]])=4,"רביעי",WEEKDAY(שעות_עבודה7[[#This Row],[התחלה]])=5,"חמישי",WEEKDAY(שעות_עבודה7[[#This Row],[התחלה]])=6,"שישי",WEEKDAY(שעות_עבודה7[[#This Row],[התחלה]])=7,"מוצ""ש") ->  | D41: =IF(שעות_עבודה7[[#This Row],[התחלה]]="","",שעות_עבודה7[[#This Row],[התחלה]]) ->  | J41: =IF(OR(שעות_עבודה7[[#This Row],[התחלה]]="", שעות_עבודה7[[#This Row],[סיום]]-שעות_עבודה7[[#This Row],[התחלה]]+שעות_עבודה7[[#This Row],[הוספת דקות]]/1440<שעות_עבודה7[[#This Row],[הפחתת דקות]]/1440, SUM(שעות_עבודה7[[#This Row],[סיום]]-שעות_עבודה7[[#This Row],[התחלה]],שעות_עבודה7[[#This Row],[הוספת דקות]]/1440,-שעות_עבודה7[[#This Row],[הפחתת דקות]]/1440)=0), "", SUM(שעות_עבודה7[[#This Row],[סיום]]-שעות_עבודה7[[#This Row],[התחלה]],שעות_עבודה7[[#This Row],[הוספת דקות]]/1440,-שעות_עבודה7[[#This Row],[הפחתת דקות]]/1440)) ->  | K41: =IF(שעות_עבודה7[[#This Row],[שעות]]="","", IF(SUMPRODUCT((שעות_עבודה7[[#This Row],[שם העבודה]]=$P$3:$P$6)*שעות_עבודה7[[#This Row],[שעות]]*($Q$3:$Q$6*24))=0,"", SUMPRODUCT((שעות_עבודה7[[#This Row],[שם העבודה]]=$P$3:$P$6)*שעות_עבודה7[[#This Row],[שעות]]*($Q$3:$Q$6*24)))) -> 
B42: =IF(שעות_עבודה7[[#This Row],[תאריך]]="","",ROW(A34)) ->  | C42: =_xlfn.IFS(שעות_עבודה7[[#This Row],[התחלה]]="","",WEEKDAY(שעות_עבודה7[[#This Row],[התחלה]])=1,"ראשון",WEEKDAY(שעות_עבודה7[[#This Row],[התחלה]])=2,"שני",WEEKDAY(שעות_עבודה7[[#This Row],[התחלה]])=3,"שלישי",WEEKDAY(שעות_עבודה7[[#This Row],[התחלה]])=4,"רביעי",WEEKDAY(שעות_עבודה7[[#This Row],[התחלה]])=5,"חמישי",WEEKDAY(שעות_עבודה7[[#This Row],[התחלה]])=6,"שישי",WEEKDAY(שעות_עבודה7[[#This Row],[התחלה]])=7,"מוצ""ש") ->  | D42: =IF(שעות_עבודה7[[#This Row],[התחלה]]="","",שעות_עבודה7[[#This Row],[התחלה]]) ->  | J42: =IF(OR(שעות_עבודה7[[#This Row],[התחלה]]="", שעות_עבודה7[[#This Row],[סיום]]-שעות_עבודה7[[#This Row],[התחלה]]+שעות_עבודה7[[#This Row],[הוספת דקות]]/1440<שעות_עבודה7[[#This Row],[הפחתת דקות]]/1440, SUM(שעות_עבודה7[[#This Row],[סיום]]-שעות_עבודה7[[#This Row],[התחלה]],שעות_עבודה7[[#This Row],[הוספת דקות]]/1440,-שעות_עבודה7[[#This Row],[הפחתת דקות]]/1440)=0), "", SUM(שעות_עבודה7[[#This Row],[סיום]]-שעות_עבודה7[[#This Row],[התחלה]],שעות_עבודה7[[#This Row],[הוספת דקות]]/1440,-שעות_עבודה7[[#This Row],[הפחתת דקות]]/1440)) ->  | K42: =IF(שעות_עבודה7[[#This Row],[שעות]]="","", IF(SUMPRODUCT((שעות_עבודה7[[#This Row],[שם העבודה]]=$P$3:$P$6)*שעות_עבודה7[[#This Row],[שעות]]*($Q$3:$Q$6*24))=0,"", SUMPRODUCT((שעות_עבודה7[[#This Row],[שם העבודה]]=$P$3:$P$6)*שעות_עבודה7[[#This Row],[שעות]]*($Q$3:$Q$6*24)))) -> 
B43: =IF(שעות_עבודה7[[#This Row],[תאריך]]="","",ROW(A35)) ->  | C43: =_xlfn.IFS(שעות_עבודה7[[#This Row],[התחלה]]="","",WEEKDAY(שעות_עבודה7[[#This Row],[התחלה]])=1,"ראשון",WEEKDAY(שעות_עבודה7[[#This Row],[התחלה]])=2,"שני",WEEKDAY(שעות_עבודה7[[#This Row],[התחלה]])=3,"שלישי",WEEKDAY(שעות_עבודה7[[#This Row],[התחלה]])=4,"רביעי",WEEKDAY(שעות_עבודה7[[#This Row],[התחלה]])=5,"חמישי",WEEKDAY(שעות_עבודה7[[#This Row],[התחלה]])=6,"שישי",WEEKDAY(שעות_עבודה7[[#This Row],[התחלה]])=7,"מוצ""ש") ->  | D43: =IF(שעות_עבודה7[[#This Row],[התחלה]]="","",שעות_עבודה7[[#This Row],[התחלה]]) ->  | J43: =IF(OR(שעות_עבודה7[[#This Row],[התחלה]]="", שעות_עבודה7[[#This Row],[סיום]]-שעות_עבודה7[[#This Row],[התחלה]]+שעות_עבודה7[[#This Row],[הוספת דקות]]/1440<שעות_עבודה7[[#This Row],[הפחתת דקות]]/1440, SUM(שעות_עבודה7[[#This Row],[סיום]]-שעות_עבודה7[[#This Row],[התחלה]],שעות_עבודה7[[#This Row],[הוספת דקות]]/1440,-שעות_עבודה7[[#This Row],[הפחתת דקות]]/1440)=0), "", SUM(שעות_עבודה7[[#This Row],[סיום]]-שעות_עבודה7[[#This Row],[התחלה]],שעות_עבודה7[[#This Row],[הוספת דקות]]/1440,-שעות_עבודה7[[#This Row],[הפחתת דקות]]/1440)) ->  | K43: =IF(שעות_עבודה7[[#This Row],[שעות]]="","", IF(SUMPRODUCT((שעות_עבודה7[[#This Row],[שם העבודה]]=$P$3:$P$6)*שעות_עבודה7[[#This Row],[שעות]]*($Q$3:$Q$6*24))=0,"", SUMPRODUCT((שעות_עבודה7[[#This Row],[שם העבודה]]=$P$3:$P$6)*שעות_עבודה7[[#This Row],[שעות]]*($Q$3:$Q$6*24)))) -> 
B44: =IF(שעות_עבודה7[[#This Row],[תאריך]]="","",ROW(A36)) ->  | C44: =_xlfn.IFS(שעות_עבודה7[[#This Row],[התחלה]]="","",WEEKDAY(שעות_עבודה7[[#This Row],[התחלה]])=1,"ראשון",WEEKDAY(שעות_עבודה7[[#This Row],[התחלה]])=2,"שני",WEEKDAY(שעות_עבודה7[[#This Row],[התחלה]])=3,"שלישי",WEEKDAY(שעות_עבודה7[[#This Row],[התחלה]])=4,"רביעי",WEEKDAY(שעות_עבודה7[[#This Row],[התחלה]])=5,"חמישי",WEEKDAY(שעות_עבודה7[[#This Row],[התחלה]])=6,"שישי",WEEKDAY(שעות_עבודה7[[#This Row],[התחלה]])=7,"מוצ""ש") ->  | D44: =IF(שעות_עבודה7[[#This Row],[התחלה]]="","",שעות_עבודה7[[#This Row],[התחלה]]) ->  | J44: =IF(OR(שעות_עבודה7[[#This Row],[התחלה]]="", שעות_עבודה7[[#This Row],[סיום]]-שעות_עבודה7[[#This Row],[התחלה]]+שעות_עבודה7[[#This Row],[הוספת דקות]]/1440<שעות_עבודה7[[#This Row],[הפחתת דקות]]/1440, SUM(שעות_עבודה7[[#This Row],[סיום]]-שעות_עבודה7[[#This Row],[התחלה]],שעות_עבודה7[[#This Row],[הוספת דקות]]/1440,-שעות_עבודה7[[#This Row],[הפחתת דקות]]/1440)=0), "", SUM(שעות_עבודה7[[#This Row],[סיום]]-שעות_עבודה7[[#This Row],[התחלה]],שעות_עבודה7[[#This Row],[הוספת דקות]]/1440,-שעות_עבודה7[[#This Row],[הפחתת דקות]]/1440)) ->  | K44: =IF(שעות_עבודה7[[#This Row],[שעות]]="","", IF(SUMPRODUCT((שעות_עבודה7[[#This Row],[שם העבודה]]=$P$3:$P$6)*שעות_עבודה7[[#This Row],[שעות]]*($Q$3:$Q$6*24))=0,"", SUMPRODUCT((שעות_עבודה7[[#This Row],[שם העבודה]]=$P$3:$P$6)*שעות_עבודה7[[#This Row],[שעות]]*($Q$3:$Q$6*24)))) -> 
B45: =IF(שעות_עבודה7[[#This Row],[תאריך]]="","",ROW(A37)) ->  | C45: =_xlfn.IFS(שעות_עבודה7[[#This Row],[התחלה]]="","",WEEKDAY(שעות_עבודה7[[#This Row],[התחלה]])=1,"ראשון",WEEKDAY(שעות_עבודה7[[#This Row],[התחלה]])=2,"שני",WEEKDAY(שעות_עבודה7[[#This Row],[התחלה]])=3,"שלישי",WEEKDAY(שעות_עבודה7[[#This Row],[התחלה]])=4,"רביעי",WEEKDAY(שעות_עבודה7[[#This Row],[התחלה]])=5,"חמישי",WEEKDAY(שעות_עבודה7[[#This Row],[התחלה]])=6,"שישי",WEEKDAY(שעות_עבודה7[[#This Row],[התחלה]])=7,"מוצ""ש") ->  | D45: =IF(שעות_עבודה7[[#This Row],[התחלה]]="","",שעות_עבודה7[[#This Row],[התחלה]]) ->  | J45: =IF(OR(שעות_עבודה7[[#This Row],[התחלה]]="", שעות_עבודה7[[#This Row],[סיום]]-שעות_עבודה7[[#This Row],[התחלה]]+שעות_עבודה7[[#This Row],[הוספת דקות]]/1440<שעות_עבודה7[[#This Row],[הפחתת דקות]]/1440, SUM(שעות_עבודה7[[#This Row],[סיום]]-שעות_עבודה7[[#This Row],[התחלה]],שעות_עבודה7[[#This Row],[הוספת דקות]]/1440,-שעות_עבודה7[[#This Row],[הפחתת דקות]]/1440)=0), "", SUM(שעות_עבודה7[[#This Row],[סיום]]-שעות_עבודה7[[#This Row],[התחלה]],שעות_עבודה7[[#This Row],[הוספת דקות]]/1440,-שעות_עבודה7[[#This Row],[הפחתת דקות]]/1440)) ->  | K45: =IF(שעות_עבודה7[[#This Row],[שעות]]="","", IF(SUMPRODUCT((שעות_עבודה7[[#This Row],[שם העבודה]]=$P$3:$P$6)*שעות_עבודה7[[#This Row],[שעות]]*($Q$3:$Q$6*24))=0,"", SUMPRODUCT((שעות_עבודה7[[#This Row],[שם העבודה]]=$P$3:$P$6)*שעות_עבודה7[[#This Row],[שעות]]*($Q$3:$Q$6*24)))) -> 
B46: =IF(שעות_עבודה7[[#This Row],[תאריך]]="","",ROW(A38)) ->  | C46: =_xlfn.IFS(שעות_עבודה7[[#This Row],[התחלה]]="","",WEEKDAY(שעות_עבודה7[[#This Row],[התחלה]])=1,"ראשון",WEEKDAY(שעות_עבודה7[[#This Row],[התחלה]])=2,"שני",WEEKDAY(שעות_עבודה7[[#This Row],[התחלה]])=3,"שלישי",WEEKDAY(שעות_עבודה7[[#This Row],[התחלה]])=4,"רביעי",WEEKDAY(שעות_עבודה7[[#This Row],[התחלה]])=5,"חמישי",WEEKDAY(שעות_עבודה7[[#This Row],[התחלה]])=6,"שישי",WEEKDAY(שעות_עבודה7[[#This Row],[התחלה]])=7,"מוצ""ש") ->  | D46: =IF(שעות_עבודה7[[#This Row],[התחלה]]="","",שעות_עבודה7[[#This Row],[התחלה]]) ->  | J46: =IF(OR(שעות_עבודה7[[#This Row],[התחלה]]="", שעות_עבודה7[[#This Row],[סיום]]-שעות_עבודה7[[#This Row],[התחלה]]+שעות_עבודה7[[#This Row],[הוספת דקות]]/1440<שעות_עבודה7[[#This Row],[הפחתת דקות]]/1440, SUM(שעות_עבודה7[[#This Row],[סיום]]-שעות_עבודה7[[#This Row],[התחלה]],שעות_עבודה7[[#This Row],[הוספת דקות]]/1440,-שעות_עבודה7[[#This Row],[הפחתת דקות]]/1440)=0), "", SUM(שעות_עבודה7[[#This Row],[סיום]]-שעות_עבודה7[[#This Row],[התחלה]],שעות_עבודה7[[#This Row],[הוספת דקות]]/1440,-שעות_עבודה7[[#This Row],[הפחתת דקות]]/1440)) ->  | K46: =IF(שעות_עבודה7[[#This Row],[שעות]]="","", IF(SUMPRODUCT((שעות_עבודה7[[#This Row],[שם העבודה]]=$P$3:$P$6)*שעות_עבודה7[[#This Row],[שעות]]*($Q$3:$Q$6*24))=0,"", SUMPRODUCT((שעות_עבודה7[[#This Row],[שם העבודה]]=$P$3:$P$6)*שעות_עבודה7[[#This Row],[שעות]]*($Q$3:$Q$6*24)))) -> 
B47: =IF(שעות_עבודה7[[#This Row],[תאריך]]="","",ROW(A39)) ->  | C47: =_xlfn.IFS(שעות_עבודה7[[#This Row],[התחלה]]="","",WEEKDAY(שעות_עבודה7[[#This Row],[התחלה]])=1,"ראשון",WEEKDAY(שעות_עבודה7[[#This Row],[התחלה]])=2,"שני",WEEKDAY(שעות_עבודה7[[#This Row],[התחלה]])=3,"שלישי",WEEKDAY(שעות_עבודה7[[#This Row],[התחלה]])=4,"רביעי",WEEKDAY(שעות_עבודה7[[#This Row],[התחלה]])=5,"חמישי",WEEKDAY(שעות_עבודה7[[#This Row],[התחלה]])=6,"שישי",WEEKDAY(שעות_עבודה7[[#This Row],[התחלה]])=7,"מוצ""ש") ->  | D47: =IF(שעות_עבודה7[[#This Row],[התחלה]]="","",שעות_עבודה7[[#This Row],[התחלה]]) ->  | J47: =IF(OR(שעות_עבודה7[[#This Row],[התחלה]]="", שעות_עבודה7[[#This Row],[סיום]]-שעות_עבודה7[[#This Row],[התחלה]]+שעות_עבודה7[[#This Row],[הוספת דקות]]/1440<שעות_עבודה7[[#This Row],[הפחתת דקות]]/1440, SUM(שעות_עבודה7[[#This Row],[סיום]]-שעות_עבודה7[[#This Row],[התחלה]],שעות_עבודה7[[#This Row],[הוספת דקות]]/1440,-שעות_עבודה7[[#This Row],[הפחתת דקות]]/1440)=0), "", SUM(שעות_עבודה7[[#This Row],[סיום]]-שעות_עבודה7[[#This Row],[התחלה]],שעות_עבודה7[[#This Row],[הוספת דקות]]/1440,-שעות_עבודה7[[#This Row],[הפחתת דקות]]/1440)) ->  | K47: =IF(שעות_עבודה7[[#This Row],[שעות]]="","", IF(SUMPRODUCT((שעות_עבודה7[[#This Row],[שם העבודה]]=$P$3:$P$6)*שעות_עבודה7[[#This Row],[שעות]]*($Q$3:$Q$6*24))=0,"", SUMPRODUCT((שעות_עבודה7[[#This Row],[שם העבודה]]=$P$3:$P$6)*שעות_עבודה7[[#This Row],[שעות]]*($Q$3:$Q$6*24)))) -> 
B48: =IF(שעות_עבודה7[[#This Row],[תאריך]]="","",ROW(A40)) ->  | C48: =_xlfn.IFS(שעות_עבודה7[[#This Row],[התחלה]]="","",WEEKDAY(שעות_עבודה7[[#This Row],[התחלה]])=1,"ראשון",WEEKDAY(שעות_עבודה7[[#This Row],[התחלה]])=2,"שני",WEEKDAY(שעות_עבודה7[[#This Row],[התחלה]])=3,"שלישי",WEEKDAY(שעות_עבודה7[[#This Row],[התחלה]])=4,"רביעי",WEEKDAY(שעות_עבודה7[[#This Row],[התחלה]])=5,"חמישי",WEEKDAY(שעות_עבודה7[[#This Row],[התחלה]])=6,"שישי",WEEKDAY(שעות_עבודה7[[#This Row],[התחלה]])=7,"מוצ""ש") ->  | D48: =IF(שעות_עבודה7[[#This Row],[התחלה]]="","",שעות_עבודה7[[#This Row],[התחלה]]) ->  | J48: =IF(OR(שעות_עבודה7[[#This Row],[התחלה]]="", שעות_עבודה7[[#This Row],[סיום]]-שעות_עבודה7[[#This Row],[התחלה]]+שעות_עבודה7[[#This Row],[הוספת דקות]]/1440<שעות_עבודה7[[#This Row],[הפחתת דקות]]/1440, SUM(שעות_עבודה7[[#This Row],[סיום]]-שעות_עבודה7[[#This Row],[התחלה]],שעות_עבודה7[[#This Row],[הוספת דקות]]/1440,-שעות_עבודה7[[#This Row],[הפחתת דקות]]/1440)=0), "", SUM(שעות_עבודה7[[#This Row],[סיום]]-שעות_עבודה7[[#This Row],[התחלה]],שעות_עבודה7[[#This Row],[הוספת דקות]]/1440,-שעות_עבודה7[[#This Row],[הפחתת דקות]]/1440)) ->  | K48: =IF(שעות_עבודה7[[#This Row],[שעות]]="","", IF(SUMPRODUCT((שעות_עבודה7[[#This Row],[שם העבודה]]=$P$3:$P$6)*שעות_עבודה7[[#This Row],[שעות]]*($Q$3:$Q$6*24))=0,"", SUMPRODUCT((שעות_עבודה7[[#This Row],[שם העבודה]]=$P$3:$P$6)*שעות_עבודה7[[#This Row],[שעות]]*($Q$3:$Q$6*24)))) -> 
B49: =IF(שעות_עבודה7[[#This Row],[תאריך]]="","",ROW(A41)) ->  | C49: =_xlfn.IFS(שעות_עבודה7[[#This Row],[התחלה]]="","",WEEKDAY(שעות_עבודה7[[#This Row],[התחלה]])=1,"ראשון",WEEKDAY(שעות_עבודה7[[#This Row],[התחלה]])=2,"שני",WEEKDAY(שעות_עבודה7[[#This Row],[התחלה]])=3,"שלישי",WEEKDAY(שעות_עבודה7[[#This Row],[התחלה]])=4,"רביעי",WEEKDAY(שעות_עבודה7[[#This Row],[התחלה]])=5,"חמישי",WEEKDAY(שעות_עבודה7[[#This Row],[התחלה]])=6,"שישי",WEEKDAY(שעות_עבודה7[[#This Row],[התחלה]])=7,"מוצ""ש") ->  | D49: =IF(שעות_עבודה7[[#This Row],[התחלה]]="","",שעות_עבודה7[[#This Row],[התחלה]]) ->  | J49: =IF(OR(שעות_עבודה7[[#This Row],[התחלה]]="", שעות_עבודה7[[#This Row],[סיום]]-שעות_עבודה7[[#This Row],[התחלה]]+שעות_עבודה7[[#This Row],[הוספת דקות]]/1440<שעות_עבודה7[[#This Row],[הפחתת דקות]]/1440, SUM(שעות_עבודה7[[#This Row],[סיום]]-שעות_עבודה7[[#This Row],[התחלה]],שעות_עבודה7[[#This Row],[הוספת דקות]]/1440,-שעות_עבודה7[[#This Row],[הפחתת דקות]]/1440)=0), "", SUM(שעות_עבודה7[[#This Row],[סיום]]-שעות_עבודה7[[#This Row],[התחלה]],שעות_עבודה7[[#This Row],[הוספת דקות]]/1440,-שעות_עבודה7[[#This Row],[הפחתת דקות]]/1440)) ->  | K49: =IF(שעות_עבודה7[[#This Row],[שעות]]="","", IF(SUMPRODUCT((שעות_עבודה7[[#This Row],[שם העבודה]]=$P$3:$P$6)*שעות_עבודה7[[#This Row],[שעות]]*($Q$3:$Q$6*24))=0,"", SUMPRODUCT((שעות_עבודה7[[#This Row],[שם העבודה]]=$P$3:$P$6)*שעות_עבודה7[[#This Row],[שעות]]*($Q$3:$Q$6*24)))) -> 
B50: =IF(שעות_עבודה7[[#This Row],[תאריך]]="","",ROW(A42)) ->  | C50: =_xlfn.IFS(שעות_עבודה7[[#This Row],[התחלה]]="","",WEEKDAY(שעות_עבודה7[[#This Row],[התחלה]])=1,"ראשון",WEEKDAY(שעות_עבודה7[[#This Row],[התחלה]])=2,"שני",WEEKDAY(שעות_עבודה7[[#This Row],[התחלה]])=3,"שלישי",WEEKDAY(שעות_עבודה7[[#This Row],[התחלה]])=4,"רביעי",WEEKDAY(שעות_עבודה7[[#This Row],[התחלה]])=5,"חמישי",WEEKDAY(שעות_עבודה7[[#This Row],[התחלה]])=6,"שישי",WEEKDAY(שעות_עבודה7[[#This Row],[התחלה]])=7,"מוצ""ש") ->  | D50: =IF(שעות_עבודה7[[#This Row],[התחלה]]="","",שעות_עבודה7[[#This Row],[התחלה]]) ->  | J50: =IF(OR(שעות_עבודה7[[#This Row],[התחלה]]="", שעות_עבודה7[[#This Row],[סיום]]-שעות_עבודה7[[#This Row],[התחלה]]+שעות_עבודה7[[#This Row],[הוספת דקות]]/1440<שעות_עבודה7[[#This Row],[הפחתת דקות]]/1440, SUM(שעות_עבודה7[[#This Row],[סיום]]-שעות_עבודה7[[#This Row],[התחלה]],שעות_עבודה7[[#This Row],[הוספת דקות]]/1440,-שעות_עבודה7[[#This Row],[הפחתת דקות]]/1440)=0), "", SUM(שעות_עבודה7[[#This Row],[סיום]]-שעות_עבודה7[[#This Row],[התחלה]],שעות_עבודה7[[#This Row],[הוספת דקות]]/1440,-שעות_עבודה7[[#This Row],[הפחתת דקות]]/1440)) ->  | K50: =IF(שעות_עבודה7[[#This Row],[שעות]]="","", IF(SUMPRODUCT((שעות_עבודה7[[#This Row],[שם העבודה]]=$P$3:$P$6)*שעות_עבודה7[[#This Row],[שעות]]*($Q$3:$Q$6*24))=0,"", SUMPRODUCT((שעות_עבודה7[[#This Row],[שם העבודה]]=$P$3:$P$6)*שעות_עבודה7[[#This Row],[שעות]]*($Q$3:$Q$6*24)))) -> 
B51: =IF(שעות_עבודה7[[#This Row],[תאריך]]="","",ROW(A43)) ->  | C51: =_xlfn.IFS(שעות_עבודה7[[#This Row],[התחלה]]="","",WEEKDAY(שעות_עבודה7[[#This Row],[התחלה]])=1,"ראשון",WEEKDAY(שעות_עבודה7[[#This Row],[התחלה]])=2,"שני",WEEKDAY(שעות_עבודה7[[#This Row],[התחלה]])=3,"שלישי",WEEKDAY(שעות_עבודה7[[#This Row],[התחלה]])=4,"רביעי",WEEKDAY(שעות_עבודה7[[#This Row],[התחלה]])=5,"חמישי",WEEKDAY(שעות_עבודה7[[#This Row],[התחלה]])=6,"שישי",WEEKDAY(שעות_עבודה7[[#This Row],[התחלה]])=7,"מוצ""ש") ->  | D51: =IF(שעות_עבודה7[[#This Row],[התחלה]]="","",שעות_עבודה7[[#This Row],[התחלה]]) ->  | J51: =IF(OR(שעות_עבודה7[[#This Row],[התחלה]]="", שעות_עבודה7[[#This Row],[סיום]]-שעות_עבודה7[[#This Row],[התחלה]]+שעות_עבודה7[[#This Row],[הוספת דקות]]/1440<שעות_עבודה7[[#This Row],[הפחתת דקות]]/1440, SUM(שעות_עבודה7[[#This Row],[סיום]]-שעות_עבודה7[[#This Row],[התחלה]],שעות_עבודה7[[#This Row],[הוספת דקות]]/1440,-שעות_עבודה7[[#This Row],[הפחתת דקות]]/1440)=0), "", SUM(שעות_עבודה7[[#This Row],[סיום]]-שעות_עבודה7[[#This Row],[התחלה]],שעות_עבודה7[[#This Row],[הוספת דקות]]/1440,-שעות_עבודה7[[#This Row],[הפחתת דקות]]/1440)) ->  | K51: =IF(שעות_עבודה7[[#This Row],[שעות]]="","", IF(SUMPRODUCT((שעות_עבודה7[[#This Row],[שם העבודה]]=$P$3:$P$6)*שעות_עבודה7[[#This Row],[שעות]]*($Q$3:$Q$6*24))=0,"", SUMPRODUCT((שעות_עבודה7[[#This Row],[שם העבודה]]=$P$3:$P$6)*שעות_עבודה7[[#This Row],[שעות]]*($Q$3:$Q$6*24)))) -> 
B52: =IF(שעות_עבודה7[[#This Row],[תאריך]]="","",ROW(A44)) ->  | C52: =_xlfn.IFS(שעות_עבודה7[[#This Row],[התחלה]]="","",WEEKDAY(שעות_עבודה7[[#This Row],[התחלה]])=1,"ראשון",WEEKDAY(שעות_עבודה7[[#This Row],[התחלה]])=2,"שני",WEEKDAY(שעות_עבודה7[[#This Row],[התחלה]])=3,"שלישי",WEEKDAY(שעות_עבודה7[[#This Row],[התחלה]])=4,"רביעי",WEEKDAY(שעות_עבודה7[[#This Row],[התחלה]])=5,"חמישי",WEEKDAY(שעות_עבודה7[[#This Row],[התחלה]])=6,"שישי",WEEKDAY(שעות_עבודה7[[#This Row],[התחלה]])=7,"מוצ""ש") ->  | D52: =IF(שעות_עבודה7[[#This Row],[התחלה]]="","",שעות_עבודה7[[#This Row],[התחלה]]) ->  | J52: =IF(OR(שעות_עבודה7[[#This Row],[התחלה]]="", שעות_עבודה7[[#This Row],[סיום]]-שעות_עבודה7[[#This Row],[התחלה]]+שעות_עבודה7[[#This Row],[הוספת דקות]]/1440<שעות_עבודה7[[#This Row],[הפחתת דקות]]/1440, SUM(שעות_עבודה7[[#This Row],[סיום]]-שעות_עבודה7[[#This Row],[התחלה]],שעות_עבודה7[[#This Row],[הוספת דקות]]/1440,-שעות_עבודה7[[#This Row],[הפחתת דקות]]/1440)=0), "", SUM(שעות_עבודה7[[#This Row],[סיום]]-שעות_עבודה7[[#This Row],[התחלה]],שעות_עבודה7[[#This Row],[הוספת דקות]]/1440,-שעות_עבודה7[[#This Row],[הפחתת דקות]]/1440)) ->  | K52: =IF(שעות_עבודה7[[#This Row],[שעות]]="","", IF(SUMPRODUCT((שעות_עבודה7[[#This Row],[שם העבודה]]=$P$3:$P$6)*שעות_עבודה7[[#This Row],[שעות]]*($Q$3:$Q$6*24))=0,"", SUMPRODUCT((שעות_עבודה7[[#This Row],[שם העבודה]]=$P$3:$P$6)*שעות_עבודה7[[#This Row],[שעות]]*($Q$3:$Q$6*24)))) -> 
B53: =IF(שעות_עבודה7[[#This Row],[תאריך]]="","",ROW(A45)) ->  | C53: =_xlfn.IFS(שעות_עבודה7[[#This Row],[התחלה]]="","",WEEKDAY(שעות_עבודה7[[#This Row],[התחלה]])=1,"ראשון",WEEKDAY(שעות_עבודה7[[#This Row],[התחלה]])=2,"שני",WEEKDAY(שעות_עבודה7[[#This Row],[התחלה]])=3,"שלישי",WEEKDAY(שעות_עבודה7[[#This Row],[התחלה]])=4,"רביעי",WEEKDAY(שעות_עבודה7[[#This Row],[התחלה]])=5,"חמישי",WEEKDAY(שעות_עבודה7[[#This Row],[התחלה]])=6,"שישי",WEEKDAY(שעות_עבודה7[[#This Row],[התחלה]])=7,"מוצ""ש") ->  | D53: =IF(שעות_עבודה7[[#This Row],[התחלה]]="","",שעות_עבודה7[[#This Row],[התחלה]]) ->  | J53: =IF(OR(שעות_עבודה7[[#This Row],[התחלה]]="", שעות_עבודה7[[#This Row],[סיום]]-שעות_עבודה7[[#This Row],[התחלה]]+שעות_עבודה7[[#This Row],[הוספת דקות]]/1440<שעות_עבודה7[[#This Row],[הפחתת דקות]]/1440, SUM(שעות_עבודה7[[#This Row],[סיום]]-שעות_עבודה7[[#This Row],[התחלה]],שעות_עבודה7[[#This Row],[הוספת דקות]]/1440,-שעות_עבודה7[[#This Row],[הפחתת דקות]]/1440)=0), "", SUM(שעות_עבודה7[[#This Row],[סיום]]-שעות_עבודה7[[#This Row],[התחלה]],שעות_עבודה7[[#This Row],[הוספת דקות]]/1440,-שעות_עבודה7[[#This Row],[הפחתת דקות]]/1440)) ->  | K53: =IF(שעות_עבודה7[[#This Row],[שעות]]="","", IF(SUMPRODUCT((שעות_עבודה7[[#This Row],[שם העבודה]]=$P$3:$P$6)*שעות_עבודה7[[#This Row],[שעות]]*($Q$3:$Q$6*24))=0,"", SUMPRODUCT((שעות_עבודה7[[#This Row],[שם העבודה]]=$P$3:$P$6)*שעות_עבודה7[[#This Row],[שעות]]*($Q$3:$Q$6*24)))) -> 
B54: =IF(שעות_עבודה7[[#This Row],[תאריך]]="","",ROW(A46)) ->  | C54: =_xlfn.IFS(שעות_עבודה7[[#This Row],[התחלה]]="","",WEEKDAY(שעות_עבודה7[[#This Row],[התחלה]])=1,"ראשון",WEEKDAY(שעות_עבודה7[[#This Row],[התחלה]])=2,"שני",WEEKDAY(שעות_עבודה7[[#This Row],[התחלה]])=3,"שלישי",WEEKDAY(שעות_עבודה7[[#This Row],[התחלה]])=4,"רביעי",WEEKDAY(שעות_עבודה7[[#This Row],[התחלה]])=5,"חמישי",WEEKDAY(שעות_עבודה7[[#This Row],[התחלה]])=6,"שישי",WEEKDAY(שעות_עבודה7[[#This Row],[התחלה]])=7,"מוצ""ש") ->  | D54: =IF(שעות_עבודה7[[#This Row],[התחלה]]="","",שעות_עבודה7[[#This Row],[התחלה]]) ->  | J54: =IF(OR(שעות_עבודה7[[#This Row],[התחלה]]="", שעות_עבודה7[[#This Row],[סיום]]-שעות_עבודה7[[#This Row],[התחלה]]+שעות_עבודה7[[#This Row],[הוספת דקות]]/1440<שעות_עבודה7[[#This Row],[הפחתת דקות]]/1440, SUM(שעות_עבודה7[[#This Row],[סיום]]-שעות_עבודה7[[#This Row],[התחלה]],שעות_עבודה7[[#This Row],[הוספת דקות]]/1440,-שעות_עבודה7[[#This Row],[הפחתת דקות]]/1440)=0), "", SUM(שעות_עבודה7[[#This Row],[סיום]]-שעות_עבודה7[[#This Row],[התחלה]],שעות_עבודה7[[#This Row],[הוספת דקות]]/1440,-שעות_עבודה7[[#This Row],[הפחתת דקות]]/1440)) ->  | K54: =IF(שעות_עבודה7[[#This Row],[שעות]]="","", IF(SUMPRODUCT((שעות_עבודה7[[#This Row],[שם העבודה]]=$P$3:$P$6)*שעות_עבודה7[[#This Row],[שעות]]*($Q$3:$Q$6*24))=0,"", SUMPRODUCT((שעות_עבודה7[[#This Row],[שם העבודה]]=$P$3:$P$6)*שעות_עבודה7[[#This Row],[שעות]]*($Q$3:$Q$6*24)))) -> 
B55: =IF(שעות_עבודה7[[#This Row],[תאריך]]="","",ROW(A47)) ->  | C55: =_xlfn.IFS(שעות_עבודה7[[#This Row],[התחלה]]="","",WEEKDAY(שעות_עבודה7[[#This Row],[התחלה]])=1,"ראשון",WEEKDAY(שעות_עבודה7[[#This Row],[התחלה]])=2,"שני",WEEKDAY(שעות_עבודה7[[#This Row],[התחלה]])=3,"שלישי",WEEKDAY(שעות_עבודה7[[#This Row],[התחלה]])=4,"רביעי",WEEKDAY(שעות_עבודה7[[#This Row],[התחלה]])=5,"חמישי",WEEKDAY(שעות_עבודה7[[#This Row],[התחלה]])=6,"שישי",WEEKDAY(שעות_עבודה7[[#This Row],[התחלה]])=7,"מוצ""ש") ->  | D55: =IF(שעות_עבודה7[[#This Row],[התחלה]]="","",שעות_עבודה7[[#This Row],[התחלה]]) ->  | J55: =IF(OR(שעות_עבודה7[[#This Row],[התחלה]]="", שעות_עבודה7[[#This Row],[סיום]]-שעות_עבודה7[[#This Row],[התחלה]]+שעות_עבודה7[[#This Row],[הוספת דקות]]/1440<שעות_עבודה7[[#This Row],[הפחתת דקות]]/1440, SUM(שעות_עבודה7[[#This Row],[סיום]]-שעות_עבודה7[[#This Row],[התחלה]],שעות_עבודה7[[#This Row],[הוספת דקות]]/1440,-שעות_עבודה7[[#This Row],[הפחתת דקות]]/1440)=0), "", SUM(שעות_עבודה7[[#This Row],[סיום]]-שעות_עבודה7[[#This Row],[התחלה]],שעות_עבודה7[[#This Row],[הוספת דקות]]/1440,-שעות_עבודה7[[#This Row],[הפחתת דקות]]/1440)) ->  | K55: =IF(שעות_עבודה7[[#This Row],[שעות]]="","", IF(SUMPRODUCT((שעות_עבודה7[[#This Row],[שם העבודה]]=$P$3:$P$6)*שעות_עבודה7[[#This Row],[שעות]]*($Q$3:$Q$6*24))=0,"", SUMPRODUCT((שעות_עבודה7[[#This Row],[שם העבודה]]=$P$3:$P$6)*שעות_עבודה7[[#This Row],[שעות]]*($Q$3:$Q$6*24)))) -> 
B56: =IF(שעות_עבודה7[[#This Row],[תאריך]]="","",ROW(A48)) ->  | C56: =_xlfn.IFS(שעות_עבודה7[[#This Row],[התחלה]]="","",WEEKDAY(שעות_עבודה7[[#This Row],[התחלה]])=1,"ראשון",WEEKDAY(שעות_עבודה7[[#This Row],[התחלה]])=2,"שני",WEEKDAY(שעות_עבודה7[[#This Row],[התחלה]])=3,"שלישי",WEEKDAY(שעות_עבודה7[[#This Row],[התחלה]])=4,"רביעי",WEEKDAY(שעות_עבודה7[[#This Row],[התחלה]])=5,"חמישי",WEEKDAY(שעות_עבודה7[[#This Row],[התחלה]])=6,"שישי",WEEKDAY(שעות_עבודה7[[#This Row],[התחלה]])=7,"מוצ""ש") ->  | D56: =IF(שעות_עבודה7[[#This Row],[התחלה]]="","",שעות_עבודה7[[#This Row],[התחלה]]) ->  | J56: =IF(OR(שעות_עבודה7[[#This Row],[התחלה]]="", שעות_עבודה7[[#This Row],[סיום]]-שעות_עבודה7[[#This Row],[התחלה]]+שעות_עבודה7[[#This Row],[הוספת דקות]]/1440<שעות_עבודה7[[#This Row],[הפחתת דקות]]/1440, SUM(שעות_עבודה7[[#This Row],[סיום]]-שעות_עבודה7[[#This Row],[התחלה]],שעות_עבודה7[[#This Row],[הוספת דקות]]/1440,-שעות_עבודה7[[#This Row],[הפחתת דקות]]/1440)=0), "", SUM(שעות_עבודה7[[#This Row],[סיום]]-שעות_עבודה7[[#This Row],[התחלה]],שעות_עבודה7[[#This Row],[הוספת דקות]]/1440,-שעות_עבודה7[[#This Row],[הפחתת דקות]]/1440)) ->  | K56: =IF(שעות_עבודה7[[#This Row],[שעות]]="","", IF(SUMPRODUCT((שעות_עבודה7[[#This Row],[שם העבודה]]=$P$3:$P$6)*שעות_עבודה7[[#This Row],[שעות]]*($Q$3:$Q$6*24))=0,"", SUMPRODUCT((שעות_עבודה7[[#This Row],[שם העבודה]]=$P$3:$P$6)*שעות_עבודה7[[#This Row],[שעות]]*($Q$3:$Q$6*24)))) -> 
B57: =IF(שעות_עבודה7[[#This Row],[תאריך]]="","",ROW(A49)) ->  | C57: =_xlfn.IFS(שעות_עבודה7[[#This Row],[התחלה]]="","",WEEKDAY(שעות_עבודה7[[#This Row],[התחלה]])=1,"ראשון",WEEKDAY(שעות_עבודה7[[#This Row],[התחלה]])=2,"שני",WEEKDAY(שעות_עבודה7[[#This Row],[התחלה]])=3,"שלישי",WEEKDAY(שעות_עבודה7[[#This Row],[התחלה]])=4,"רביעי",WEEKDAY(שעות_עבודה7[[#This Row],[התחלה]])=5,"חמישי",WEEKDAY(שעות_עבודה7[[#This Row],[התחלה]])=6,"שישי",WEEKDAY(שעות_עבודה7[[#This Row],[התחלה]])=7,"מוצ""ש") ->  | D57: =IF(שעות_עבודה7[[#This Row],[התחלה]]="","",שעות_עבודה7[[#This Row],[התחלה]]) ->  | J57: =IF(OR(שעות_עבודה7[[#This Row],[התחלה]]="", שעות_עבודה7[[#This Row],[סיום]]-שעות_עבודה7[[#This Row],[התחלה]]+שעות_עבודה7[[#This Row],[הוספת דקות]]/1440<שעות_עבודה7[[#This Row],[הפחתת דקות]]/1440, SUM(שעות_עבודה7[[#This Row],[סיום]]-שעות_עבודה7[[#This Row],[התחלה]],שעות_עבודה7[[#This Row],[הוספת דקות]]/1440,-שעות_עבודה7[[#This Row],[הפחתת דקות]]/1440)=0), "", SUM(שעות_עבודה7[[#This Row],[סיום]]-שעות_עבודה7[[#This Row],[התחלה]],שעות_עבודה7[[#This Row],[הוספת דקות]]/1440,-שעות_עבודה7[[#This Row],[הפחתת דקות]]/1440)) ->  | K57: =IF(שעות_עבודה7[[#This Row],[שעות]]="","", IF(SUMPRODUCT((שעות_עבודה7[[#This Row],[שם העבודה]]=$P$3:$P$6)*שעות_עבודה7[[#This Row],[שעות]]*($Q$3:$Q$6*24))=0,"", SUMPRODUCT((שעות_עבודה7[[#This Row],[שם העבודה]]=$P$3:$P$6)*שעות_עבודה7[[#This Row],[שעות]]*($Q$3:$Q$6*24)))) -> 
B58: =IF(שעות_עבודה7[[#This Row],[תאריך]]="","",ROW(A50)) ->  | C58: =_xlfn.IFS(שעות_עבודה7[[#This Row],[התחלה]]="","",WEEKDAY(שעות_עבודה7[[#This Row],[התחלה]])=1,"ראשון",WEEKDAY(שעות_עבודה7[[#This Row],[התחלה]])=2,"שני",WEEKDAY(שעות_עבודה7[[#This Row],[התחלה]])=3,"שלישי",WEEKDAY(שעות_עבודה7[[#This Row],[התחלה]])=4,"רביעי",WEEKDAY(שעות_עבודה7[[#This Row],[התחלה]])=5,"חמישי",WEEKDAY(שעות_עבודה7[[#This Row],[התחלה]])=6,"שישי",WEEKDAY(שעות_עבודה7[[#This Row],[התחלה]])=7,"מוצ""ש") ->  | D58: =IF(שעות_עבודה7[[#This Row],[התחלה]]="","",שעות_עבודה7[[#This Row],[התחלה]]) ->  | J58: =IF(OR(שעות_עבודה7[[#This Row],[התחלה]]="", שעות_עבודה7[[#This Row],[סיום]]-שעות_עבודה7[[#This Row],[התחלה]]+שעות_עבודה7[[#This Row],[הוספת דקות]]/1440<שעות_עבודה7[[#This Row],[הפחתת דקות]]/1440, SUM(שעות_עבודה7[[#This Row],[סיום]]-שעות_עבודה7[[#This Row],[התחלה]],שעות_עבודה7[[#This Row],[הוספת דקות]]/1440,-שעות_עבודה7[[#This Row],[הפחתת דקות]]/1440)=0), "", SUM(שעות_עבודה7[[#This Row],[סיום]]-שעות_עבודה7[[#This Row],[התחלה]],שעות_עבודה7[[#This Row],[הוספת דקות]]/1440,-שעות_עבודה7[[#This Row],[הפחתת דקות]]/1440)) ->  | K58: =IF(שעות_עבודה7[[#This Row],[שעות]]="","", IF(SUMPRODUCT((שעות_עבודה7[[#This Row],[שם העבודה]]=$P$3:$P$6)*שעות_עבודה7[[#This Row],[שעות]]*($Q$3:$Q$6*24))=0,"", SUMPRODUCT((שעות_עבודה7[[#This Row],[שם העבודה]]=$P$3:$P$6)*שעות_עבודה7[[#This Row],[שעות]]*($Q$3:$Q$6*24)))) -> 
B59: =IF(שעות_עבודה7[[#This Row],[תאריך]]="","",ROW(A51)) ->  | C59: =_xlfn.IFS(שעות_עבודה7[[#This Row],[התחלה]]="","",WEEKDAY(שעות_עבודה7[[#This Row],[התחלה]])=1,"ראשון",WEEKDAY(שעות_עבודה7[[#This Row],[התחלה]])=2,"שני",WEEKDAY(שעות_עבודה7[[#This Row],[התחלה]])=3,"שלישי",WEEKDAY(שעות_עבודה7[[#This Row],[התחלה]])=4,"רביעי",WEEKDAY(שעות_עבודה7[[#This Row],[התחלה]])=5,"חמישי",WEEKDAY(שעות_עבודה7[[#This Row],[התחלה]])=6,"שישי",WEEKDAY(שעות_עבודה7[[#This Row],[התחלה]])=7,"מוצ""ש") ->  | D59: =IF(שעות_עבודה7[[#This Row],[התחלה]]="","",שעות_עבודה7[[#This Row],[התחלה]]) ->  | J59: =IF(OR(שעות_עבודה7[[#This Row],[התחלה]]="", שעות_עבודה7[[#This Row],[סיום]]-שעות_עבודה7[[#This Row],[התחלה]]+שעות_עבודה7[[#This Row],[הוספת דקות]]/1440<שעות_עבודה7[[#This Row],[הפחתת דקות]]/1440, SUM(שעות_עבודה7[[#This Row],[סיום]]-שעות_עבודה7[[#This Row],[התחלה]],שעות_עבודה7[[#This Row],[הוספת דקות]]/1440,-שעות_עבודה7[[#This Row],[הפחתת דקות]]/1440)=0), "", SUM(שעות_עבודה7[[#This Row],[סיום]]-שעות_עבודה7[[#This Row],[התחלה]],שעות_עבודה7[[#This Row],[הוספת דקות]]/1440,-שעות_עבודה7[[#This Row],[הפחתת דקות]]/1440)) ->  | K59: =IF(שעות_עבודה7[[#This Row],[שעות]]="","", IF(SUMPRODUCT((שעות_עבודה7[[#This Row],[שם העבודה]]=$P$3:$P$6)*שעות_עבודה7[[#This Row],[שעות]]*($Q$3:$Q$6*24))=0,"", SUMPRODUCT((שעות_עבודה7[[#This Row],[שם העבודה]]=$P$3:$P$6)*שעות_עבודה7[[#This Row],[שעות]]*($Q$3:$Q$6*24)))) -> 
B60: =IF(שעות_עבודה7[[#This Row],[תאריך]]="","",ROW(A52)) ->  | C60: =_xlfn.IFS(שעות_עבודה7[[#This Row],[התחלה]]="","",WEEKDAY(שעות_עבודה7[[#This Row],[התחלה]])=1,"ראשון",WEEKDAY(שעות_עבודה7[[#This Row],[התחלה]])=2,"שני",WEEKDAY(שעות_עבודה7[[#This Row],[התחלה]])=3,"שלישי",WEEKDAY(שעות_עבודה7[[#This Row],[התחלה]])=4,"רביעי",WEEKDAY(שעות_עבודה7[[#This Row],[התחלה]])=5,"חמישי",WEEKDAY(שעות_עבודה7[[#This Row],[התחלה]])=6,"שישי",WEEKDAY(שעות_עבודה7[[#This Row],[התחלה]])=7,"מוצ""ש") ->  | D60: =IF(שעות_עבודה7[[#This Row],[התחלה]]="","",שעות_עבודה7[[#This Row],[התחלה]]) ->  | J60: =IF(OR(שעות_עבודה7[[#This Row],[התחלה]]="", שעות_עבודה7[[#This Row],[סיום]]-שעות_עבודה7[[#This Row],[התחלה]]+שעות_עבודה7[[#This Row],[הוספת דקות]]/1440<שעות_עבודה7[[#This Row],[הפחתת דקות]]/1440, SUM(שעות_עבודה7[[#This Row],[סיום]]-שעות_עבודה7[[#This Row],[התחלה]],שעות_עבודה7[[#This Row],[הוספת דקות]]/1440,-שעות_עבודה7[[#This Row],[הפחתת דקות]]/1440)=0), "", SUM(שעות_עבודה7[[#This Row],[סיום]]-שעות_עבודה7[[#This Row],[התחלה]],שעות_עבודה7[[#This Row],[הוספת דקות]]/1440,-שעות_עבודה7[[#This Row],[הפחתת דקות]]/1440)) ->  | K60: =IF(שעות_עבודה7[[#This Row],[שעות]]="","", IF(SUMPRODUCT((שעות_עבודה7[[#This Row],[שם העבודה]]=$P$3:$P$6)*שעות_עבודה7[[#This Row],[שעות]]*($Q$3:$Q$6*24))=0,"", SUMPRODUCT((שעות_עבודה7[[#This Row],[שם העבודה]]=$P$3:$P$6)*שעות_עבודה7[[#This Row],[שעות]]*($Q$3:$Q$6*24)))) -> 
B61: =IF(שעות_עבודה7[[#This Row],[תאריך]]="","",ROW(A53)) ->  | C61: =_xlfn.IFS(שעות_עבודה7[[#This Row],[התחלה]]="","",WEEKDAY(שעות_עבודה7[[#This Row],[התחלה]])=1,"ראשון",WEEKDAY(שעות_עבודה7[[#This Row],[התחלה]])=2,"שני",WEEKDAY(שעות_עבודה7[[#This Row],[התחלה]])=3,"שלישי",WEEKDAY(שעות_עבודה7[[#This Row],[התחלה]])=4,"רביעי",WEEKDAY(שעות_עבודה7[[#This Row],[התחלה]])=5,"חמישי",WEEKDAY(שעות_עבודה7[[#This Row],[התחלה]])=6,"שישי",WEEKDAY(שעות_עבודה7[[#This Row],[התחלה]])=7,"מוצ""ש") ->  | D61: =IF(שעות_עבודה7[[#This Row],[התחלה]]="","",שעות_עבודה7[[#This Row],[התחלה]]) ->  | J61: =IF(OR(שעות_עבודה7[[#This Row],[התחלה]]="", שעות_עבודה7[[#This Row],[סיום]]-שעות_עבודה7[[#This Row],[התחלה]]+שעות_עבודה7[[#This Row],[הוספת דקות]]/1440<שעות_עבודה7[[#This Row],[הפחתת דקות]]/1440, SUM(שעות_עבודה7[[#This Row],[סיום]]-שעות_עבודה7[[#This Row],[התחלה]],שעות_עבודה7[[#This Row],[הוספת דקות]]/1440,-שעות_עבודה7[[#This Row],[הפחתת דקות]]/1440)=0), "", SUM(שעות_עבודה7[[#This Row],[סיום]]-שעות_עבודה7[[#This Row],[התחלה]],שעות_עבודה7[[#This Row],[הוספת דקות]]/1440,-שעות_עבודה7[[#This Row],[הפחתת דקות]]/1440)) ->  | K61: =IF(שעות_עבודה7[[#This Row],[שעות]]="","", IF(SUMPRODUCT((שעות_עבודה7[[#This Row],[שם העבודה]]=$P$3:$P$6)*שעות_עבודה7[[#This Row],[שעות]]*($Q$3:$Q$6*24))=0,"", SUMPRODUCT((שעות_עבודה7[[#This Row],[שם העבודה]]=$P$3:$P$6)*שעות_עבודה7[[#This Row],[שעות]]*($Q$3:$Q$6*24)))) -> 
B62: =IF(שעות_עבודה7[[#This Row],[תאריך]]="","",ROW(A54)) ->  | C62: =_xlfn.IFS(שעות_עבודה7[[#This Row],[התחלה]]="","",WEEKDAY(שעות_עבודה7[[#This Row],[התחלה]])=1,"ראשון",WEEKDAY(שעות_עבודה7[[#This Row],[התחלה]])=2,"שני",WEEKDAY(שעות_עבודה7[[#This Row],[התחלה]])=3,"שלישי",WEEKDAY(שעות_עבודה7[[#This Row],[התחלה]])=4,"רביעי",WEEKDAY(שעות_עבודה7[[#This Row],[התחלה]])=5,"חמישי",WEEKDAY(שעות_עבודה7[[#This Row],[התחלה]])=6,"שישי",WEEKDAY(שעות_עבודה7[[#This Row],[התחלה]])=7,"מוצ""ש") ->  | D62: =IF(שעות_עבודה7[[#This Row],[התחלה]]="","",שעות_עבודה7[[#This Row],[התחלה]]) ->  | J62: =IF(OR(שעות_עבודה7[[#This Row],[התחלה]]="", שעות_עבודה7[[#This Row],[סיום]]-שעות_עבודה7[[#This Row],[התחלה]]+שעות_עבודה7[[#This Row],[הוספת דקות]]/1440<שעות_עבודה7[[#This Row],[הפחתת דקות]]/1440, SUM(שעות_עבודה7[[#This Row],[סיום]]-שעות_עבודה7[[#This Row],[התחלה]],שעות_עבודה7[[#This Row],[הוספת דקות]]/1440,-שעות_עבודה7[[#This Row],[הפחתת דקות]]/1440)=0), "", SUM(שעות_עבודה7[[#This Row],[סיום]]-שעות_עבודה7[[#This Row],[התחלה]],שעות_עבודה7[[#This Row],[הוספת דקות]]/1440,-שעות_עבודה7[[#This Row],[הפחתת דקות]]/1440)) ->  | K62: =IF(שעות_עבודה7[[#This Row],[שעות]]="","", IF(SUMPRODUCT((שעות_עבודה7[[#This Row],[שם העבודה]]=$P$3:$P$6)*שעות_עבודה7[[#This Row],[שעות]]*($Q$3:$Q$6*24))=0,"", SUMPRODUCT((שעות_עבודה7[[#This Row],[שם העבודה]]=$P$3:$P$6)*שעות_עבודה7[[#This Row],[שעות]]*($Q$3:$Q$6*24)))) -> 
B63: =IF(שעות_עבודה7[[#This Row],[תאריך]]="","",ROW(A55)) ->  | C63: =_xlfn.IFS(שעות_עבודה7[[#This Row],[התחלה]]="","",WEEKDAY(שעות_עבודה7[[#This Row],[התחלה]])=1,"ראשון",WEEKDAY(שעות_עבודה7[[#This Row],[התחלה]])=2,"שני",WEEKDAY(שעות_עבודה7[[#This Row],[התחלה]])=3,"שלישי",WEEKDAY(שעות_עבודה7[[#This Row],[התחלה]])=4,"רביעי",WEEKDAY(שעות_עבודה7[[#This Row],[התחלה]])=5,"חמישי",WEEKDAY(שעות_עבודה7[[#This Row],[התחלה]])=6,"שישי",WEEKDAY(שעות_עבודה7[[#This Row],[התחלה]])=7,"מוצ""ש") ->  | D63: =IF(שעות_עבודה7[[#This Row],[התחלה]]="","",שעות_עבודה7[[#This Row],[התחלה]]) ->  | J63: =IF(OR(שעות_עבודה7[[#This Row],[התחלה]]="", שעות_עבודה7[[#This Row],[סיום]]-שעות_עבודה7[[#This Row],[התחלה]]+שעות_עבודה7[[#This Row],[הוספת דקות]]/1440<שעות_עבודה7[[#This Row],[הפחתת דקות]]/1440, SUM(שעות_עבודה7[[#This Row],[סיום]]-שעות_עבודה7[[#This Row],[התחלה]],שעות_עבודה7[[#This Row],[הוספת דקות]]/1440,-שעות_עבודה7[[#This Row],[הפחתת דקות]]/1440)=0), "", SUM(שעות_עבודה7[[#This Row],[סיום]]-שעות_עבודה7[[#This Row],[התחלה]],שעות_עבודה7[[#This Row],[הוספת דקות]]/1440,-שעות_עבודה7[[#This Row],[הפחתת דקות]]/1440)) ->  | K63: =IF(שעות_עבודה7[[#This Row],[שעות]]="","", IF(SUMPRODUCT((שעות_עבודה7[[#This Row],[שם העבודה]]=$P$3:$P$6)*שעות_עבודה7[[#This Row],[שעות]]*($Q$3:$Q$6*24))=0,"", SUMPRODUCT((שעות_עבודה7[[#This Row],[שם העבודה]]=$P$3:$P$6)*שעות_עבודה7[[#This Row],[שעות]]*($Q$3:$Q$6*24)))) -> 
B64: =IF(שעות_עבודה7[[#This Row],[תאריך]]="","",ROW(A56)) ->  | C64: =_xlfn.IFS(שעות_עבודה7[[#This Row],[התחלה]]="","",WEEKDAY(שעות_עבודה7[[#This Row],[התחלה]])=1,"ראשון",WEEKDAY(שעות_עבודה7[[#This Row],[התחלה]])=2,"שני",WEEKDAY(שעות_עבודה7[[#This Row],[התחלה]])=3,"שלישי",WEEKDAY(שעות_עבודה7[[#This Row],[התחלה]])=4,"רביעי",WEEKDAY(שעות_עבודה7[[#This Row],[התחלה]])=5,"חמישי",WEEKDAY(שעות_עבודה7[[#This Row],[התחלה]])=6,"שישי",WEEKDAY(שעות_עבודה7[[#This Row],[התחלה]])=7,"מוצ""ש") ->  | D64: =IF(שעות_עבודה7[[#This Row],[התחלה]]="","",שעות_עבודה7[[#This Row],[התחלה]]) ->  | J64: =IF(OR(שעות_עבודה7[[#This Row],[התחלה]]="", שעות_עבודה7[[#This Row],[סיום]]-שעות_עבודה7[[#This Row],[התחלה]]+שעות_עבודה7[[#This Row],[הוספת דקות]]/1440<שעות_עבודה7[[#This Row],[הפחתת דקות]]/1440, SUM(שעות_עבודה7[[#This Row],[סיום]]-שעות_עבודה7[[#This Row],[התחלה]],שעות_עבודה7[[#This Row],[הוספת דקות]]/1440,-שעות_עבודה7[[#This Row],[הפחתת דקות]]/1440)=0), "", SUM(שעות_עבודה7[[#This Row],[סיום]]-שעות_עבודה7[[#This Row],[התחלה]],שעות_עבודה7[[#This Row],[הוספת דקות]]/1440,-שעות_עבודה7[[#This Row],[הפחתת דקות]]/1440)) ->  | K64: =IF(שעות_עבודה7[[#This Row],[שעות]]="","", IF(SUMPRODUCT((שעות_עבודה7[[#This Row],[שם העבודה]]=$P$3:$P$6)*שעות_עבודה7[[#This Row],[שעות]]*($Q$3:$Q$6*24))=0,"", SUMPRODUCT((שעות_עבודה7[[#This Row],[שם העבודה]]=$P$3:$P$6)*שעות_עבודה7[[#This Row],[שעות]]*($Q$3:$Q$6*24)))) -> 
B65: =IF(שעות_עבודה7[[#This Row],[תאריך]]="","",ROW(A57)) ->  | C65: =_xlfn.IFS(שעות_עבודה7[[#This Row],[התחלה]]="","",WEEKDAY(שעות_עבודה7[[#This Row],[התחלה]])=1,"ראשון",WEEKDAY(שעות_עבודה7[[#This Row],[התחלה]])=2,"שני",WEEKDAY(שעות_עבודה7[[#This Row],[התחלה]])=3,"שלישי",WEEKDAY(שעות_עבודה7[[#This Row],[התחלה]])=4,"רביעי",WEEKDAY(שעות_עבודה7[[#This Row],[התחלה]])=5,"חמישי",WEEKDAY(שעות_עבודה7[[#This Row],[התחלה]])=6,"שישי",WEEKDAY(שעות_עבודה7[[#This Row],[התחלה]])=7,"מוצ""ש") ->  | D65: =IF(שעות_עבודה7[[#This Row],[התחלה]]="","",שעות_עבודה7[[#This Row],[התחלה]]) ->  | J65: =IF(OR(שעות_עבודה7[[#This Row],[התחלה]]="", שעות_עבודה7[[#This Row],[סיום]]-שעות_עבודה7[[#This Row],[התחלה]]+שעות_עבודה7[[#This Row],[הוספת דקות]]/1440<שעות_עבודה7[[#This Row],[הפחתת דקות]]/1440, SUM(שעות_עבודה7[[#This Row],[סיום]]-שעות_עבודה7[[#This Row],[התחלה]],שעות_עבודה7[[#This Row],[הוספת דקות]]/1440,-שעות_עבודה7[[#This Row],[הפחתת דקות]]/1440)=0), "", SUM(שעות_עבודה7[[#This Row],[סיום]]-שעות_עבודה7[[#This Row],[התחלה]],שעות_עבודה7[[#This Row],[הוספת דקות]]/1440,-שעות_עבודה7[[#This Row],[הפחתת דקות]]/1440)) ->  | K65: =IF(שעות_עבודה7[[#This Row],[שעות]]="","", IF(SUMPRODUCT((שעות_עבודה7[[#This Row],[שם העבודה]]=$P$3:$P$6)*שעות_עבודה7[[#This Row],[שעות]]*($Q$3:$Q$6*24))=0,"", SUMPRODUCT((שעות_עבודה7[[#This Row],[שם העבודה]]=$P$3:$P$6)*שעות_עבודה7[[#This Row],[שעות]]*($Q$3:$Q$6*24)))) -> 
B66: =IF(שעות_עבודה7[[#This Row],[תאריך]]="","",ROW(A58)) ->  | C66: =_xlfn.IFS(שעות_עבודה7[[#This Row],[התחלה]]="","",WEEKDAY(שעות_עבודה7[[#This Row],[התחלה]])=1,"ראשון",WEEKDAY(שעות_עבודה7[[#This Row],[התחלה]])=2,"שני",WEEKDAY(שעות_עבודה7[[#This Row],[התחלה]])=3,"שלישי",WEEKDAY(שעות_עבודה7[[#This Row],[התחלה]])=4,"רביעי",WEEKDAY(שעות_עבודה7[[#This Row],[התחלה]])=5,"חמישי",WEEKDAY(שעות_עבודה7[[#This Row],[התחלה]])=6,"שישי",WEEKDAY(שעות_עבודה7[[#This Row],[התחלה]])=7,"מוצ""ש") ->  | D66: =IF(שעות_עבודה7[[#This Row],[התחלה]]="","",שעות_עבודה7[[#This Row],[התחלה]]) ->  | J66: =IF(OR(שעות_עבודה7[[#This Row],[התחלה]]="", שעות_עבודה7[[#This Row],[סיום]]-שעות_עבודה7[[#This Row],[התחלה]]+שעות_עבודה7[[#This Row],[הוספת דקות]]/1440<שעות_עבודה7[[#This Row],[הפחתת דקות]]/1440, SUM(שעות_עבודה7[[#This Row],[סיום]]-שעות_עבודה7[[#This Row],[התחלה]],שעות_עבודה7[[#This Row],[הוספת דקות]]/1440,-שעות_עבודה7[[#This Row],[הפחתת דקות]]/1440)=0), "", SUM(שעות_עבודה7[[#This Row],[סיום]]-שעות_עבודה7[[#This Row],[התחלה]],שעות_עבודה7[[#This Row],[הוספת דקות]]/1440,-שעות_עבודה7[[#This Row],[הפחתת דקות]]/1440)) ->  | K66: =IF(שעות_עבודה7[[#This Row],[שעות]]="","", IF(SUMPRODUCT((שעות_עבודה7[[#This Row],[שם העבודה]]=$P$3:$P$6)*שעות_עבודה7[[#This Row],[שעות]]*($Q$3:$Q$6*24))=0,"", SUMPRODUCT((שעות_עבודה7[[#This Row],[שם העבודה]]=$P$3:$P$6)*שעות_עבודה7[[#This Row],[שעות]]*($Q$3:$Q$6*24)))) -> 
B67: =IF(שעות_עבודה7[[#This Row],[תאריך]]="","",ROW(A59)) ->  | C67: =_xlfn.IFS(שעות_עבודה7[[#This Row],[התחלה]]="","",WEEKDAY(שעות_עבודה7[[#This Row],[התחלה]])=1,"ראשון",WEEKDAY(שעות_עבודה7[[#This Row],[התחלה]])=2,"שני",WEEKDAY(שעות_עבודה7[[#This Row],[התחלה]])=3,"שלישי",WEEKDAY(שעות_עבודה7[[#This Row],[התחלה]])=4,"רביעי",WEEKDAY(שעות_עבודה7[[#This Row],[התחלה]])=5,"חמישי",WEEKDAY(שעות_עבודה7[[#This Row],[התחלה]])=6,"שישי",WEEKDAY(שעות_עבודה7[[#This Row],[התחלה]])=7,"מוצ""ש") ->  | D67: =IF(שעות_עבודה7[[#This Row],[התחלה]]="","",שעות_עבודה7[[#This Row],[התחלה]]) ->  | J67: =IF(OR(שעות_עבודה7[[#This Row],[התחלה]]="", שעות_עבודה7[[#This Row],[סיום]]-שעות_עבודה7[[#This Row],[התחלה]]+שעות_עבודה7[[#This Row],[הוספת דקות]]/1440<שעות_עבודה7[[#This Row],[הפחתת דקות]]/1440, SUM(שעות_עבודה7[[#This Row],[סיום]]-שעות_עבודה7[[#This Row],[התחלה]],שעות_עבודה7[[#This Row],[הוספת דקות]]/1440,-שעות_עבודה7[[#This Row],[הפחתת דקות]]/1440)=0), "", SUM(שעות_עבודה7[[#This Row],[סיום]]-שעות_עבודה7[[#This Row],[התחלה]],שעות_עבודה7[[#This Row],[הוספת דקות]]/1440,-שעות_עבודה7[[#This Row],[הפחתת דקות]]/1440)) ->  | K67: =IF(שעות_עבודה7[[#This Row],[שעות]]="","", IF(SUMPRODUCT((שעות_עבודה7[[#This Row],[שם העבודה]]=$P$3:$P$6)*שעות_עבודה7[[#This Row],[שעות]]*($Q$3:$Q$6*24))=0,"", SUMPRODUCT((שעות_עבודה7[[#This Row],[שם העבודה]]=$P$3:$P$6)*שעות_עבודה7[[#This Row],[שעות]]*($Q$3:$Q$6*24)))) -> 
B68: =IF(שעות_עבודה7[[#This Row],[תאריך]]="","",ROW(A60)) ->  | C68: =_xlfn.IFS(שעות_עבודה7[[#This Row],[התחלה]]="","",WEEKDAY(שעות_עבודה7[[#This Row],[התחלה]])=1,"ראשון",WEEKDAY(שעות_עבודה7[[#This Row],[התחלה]])=2,"שני",WEEKDAY(שעות_עבודה7[[#This Row],[התחלה]])=3,"שלישי",WEEKDAY(שעות_עבודה7[[#This Row],[התחלה]])=4,"רביעי",WEEKDAY(שעות_עבודה7[[#This Row],[התחלה]])=5,"חמישי",WEEKDAY(שעות_עבודה7[[#This Row],[התחלה]])=6,"שישי",WEEKDAY(שעות_עבודה7[[#This Row],[התחלה]])=7,"מוצ""ש") ->  | D68: =IF(שעות_עבודה7[[#This Row],[התחלה]]="","",שעות_עבודה7[[#This Row],[התחלה]]) ->  | J68: =IF(OR(שעות_עבודה7[[#This Row],[התחלה]]="", שעות_עבודה7[[#This Row],[סיום]]-שעות_עבודה7[[#This Row],[התחלה]]+שעות_עבודה7[[#This Row],[הוספת דקות]]/1440<שעות_עבודה7[[#This Row],[הפחתת דקות]]/1440, SUM(שעות_עבודה7[[#This Row],[סיום]]-שעות_עבודה7[[#This Row],[התחלה]],שעות_עבודה7[[#This Row],[הוספת דקות]]/1440,-שעות_עבודה7[[#This Row],[הפחתת דקות]]/1440)=0), "", SUM(שעות_עבודה7[[#This Row],[סיום]]-שעות_עבודה7[[#This Row],[התחלה]],שעות_עבודה7[[#This Row],[הוספת דקות]]/1440,-שעות_עבודה7[[#This Row],[הפחתת דקות]]/1440)) ->  | K68: =IF(שעות_עבודה7[[#This Row],[שעות]]="","", IF(SUMPRODUCT((שעות_עבודה7[[#This Row],[שם העבודה]]=$P$3:$P$6)*שעות_עבודה7[[#This Row],[שעות]]*($Q$3:$Q$6*24))=0,"", SUMPRODUCT((שעות_עבודה7[[#This Row],[שם העבודה]]=$P$3:$P$6)*שעות_עבודה7[[#This Row],[שעות]]*($Q$3:$Q$6*24)))) -> 
B69: =IF(שעות_עבודה7[[#This Row],[תאריך]]="","",ROW(A61)) ->  | C69: =_xlfn.IFS(שעות_עבודה7[[#This Row],[התחלה]]="","",WEEKDAY(שעות_עבודה7[[#This Row],[התחלה]])=1,"ראשון",WEEKDAY(שעות_עבודה7[[#This Row],[התחלה]])=2,"שני",WEEKDAY(שעות_עבודה7[[#This Row],[התחלה]])=3,"שלישי",WEEKDAY(שעות_עבודה7[[#This Row],[התחלה]])=4,"רביעי",WEEKDAY(שעות_עבודה7[[#This Row],[התחלה]])=5,"חמישי",WEEKDAY(שעות_עבודה7[[#This Row],[התחלה]])=6,"שישי",WEEKDAY(שעות_עבודה7[[#This Row],[התחלה]])=7,"מוצ""ש") ->  | D69: =IF(שעות_עבודה7[[#This Row],[התחלה]]="","",שעות_עבודה7[[#This Row],[התחלה]]) ->  | J69: =IF(OR(שעות_עבודה7[[#This Row],[התחלה]]="", שעות_עבודה7[[#This Row],[סיום]]-שעות_עבודה7[[#This Row],[התחלה]]+שעות_עבודה7[[#This Row],[הוספת דקות]]/1440<שעות_עבודה7[[#This Row],[הפחתת דקות]]/1440, SUM(שעות_עבודה7[[#This Row],[סיום]]-שעות_עבודה7[[#This Row],[התחלה]],שעות_עבודה7[[#This Row],[הוספת דקות]]/1440,-שעות_עבודה7[[#This Row],[הפחתת דקות]]/1440)=0), "", SUM(שעות_עבודה7[[#This Row],[סיום]]-שעות_עבודה7[[#This Row],[התחלה]],שעות_עבודה7[[#This Row],[הוספת דקות]]/1440,-שעות_עבודה7[[#This Row],[הפחתת דקות]]/1440)) ->  | K69: =IF(שעות_עבודה7[[#This Row],[שעות]]="","", IF(SUMPRODUCT((שעות_עבודה7[[#This Row],[שם העבודה]]=$P$3:$P$6)*שעות_עבודה7[[#This Row],[שעות]]*($Q$3:$Q$6*24))=0,"", SUMPRODUCT((שעות_עבודה7[[#This Row],[שם העבודה]]=$P$3:$P$6)*שעות_עבודה7[[#This Row],[שעות]]*($Q$3:$Q$6*24)))) -> 
B70: =IF(שעות_עבודה7[[#This Row],[תאריך]]="","",ROW(A62)) ->  | C70: =_xlfn.IFS(שעות_עבודה7[[#This Row],[התחלה]]="","",WEEKDAY(שעות_עבודה7[[#This Row],[התחלה]])=1,"ראשון",WEEKDAY(שעות_עבודה7[[#This Row],[התחלה]])=2,"שני",WEEKDAY(שעות_עבודה7[[#This Row],[התחלה]])=3,"שלישי",WEEKDAY(שעות_עבודה7[[#This Row],[התחלה]])=4,"רביעי",WEEKDAY(שעות_עבודה7[[#This Row],[התחלה]])=5,"חמישי",WEEKDAY(שעות_עבודה7[[#This Row],[התחלה]])=6,"שישי",WEEKDAY(שעות_עבודה7[[#This Row],[התחלה]])=7,"מוצ""ש") ->  | D70: =IF(שעות_עבודה7[[#This Row],[התחלה]]="","",שעות_עבודה7[[#This Row],[התחלה]]) ->  | J70: =IF(OR(שעות_עבודה7[[#This Row],[התחלה]]="", שעות_עבודה7[[#This Row],[סיום]]-שעות_עבודה7[[#This Row],[התחלה]]+שעות_עבודה7[[#This Row],[הוספת דקות]]/1440<שעות_עבודה7[[#This Row],[הפחתת דקות]]/1440, SUM(שעות_עבודה7[[#This Row],[סיום]]-שעות_עבודה7[[#This Row],[התחלה]],שעות_עבודה7[[#This Row],[הוספת דקות]]/1440,-שעות_עבודה7[[#This Row],[הפחתת דקות]]/1440)=0), "", SUM(שעות_עבודה7[[#This Row],[סיום]]-שעות_עבודה7[[#This Row],[התחלה]],שעות_עבודה7[[#This Row],[הוספת דקות]]/1440,-שעות_עבודה7[[#This Row],[הפחתת דקות]]/1440)) ->  | K70: =IF(שעות_עבודה7[[#This Row],[שעות]]="","", IF(SUMPRODUCT((שעות_עבודה7[[#This Row],[שם העבודה]]=$P$3:$P$6)*שעות_עבודה7[[#This Row],[שעות]]*($Q$3:$Q$6*24))=0,"", SUMPRODUCT((שעות_עבודה7[[#This Row],[שם העבודה]]=$P$3:$P$6)*שעות_עבודה7[[#This Row],[שעות]]*($Q$3:$Q$6*24)))) -> 
B71: =IF(שעות_עבודה7[[#This Row],[תאריך]]="","",ROW(A63)) ->  | C71: =_xlfn.IFS(שעות_עבודה7[[#This Row],[התחלה]]="","",WEEKDAY(שעות_עבודה7[[#This Row],[התחלה]])=1,"ראשון",WEEKDAY(שעות_עבודה7[[#This Row],[התחלה]])=2,"שני",WEEKDAY(שעות_עבודה7[[#This Row],[התחלה]])=3,"שלישי",WEEKDAY(שעות_עבודה7[[#This Row],[התחלה]])=4,"רביעי",WEEKDAY(שעות_עבודה7[[#This Row],[התחלה]])=5,"חמישי",WEEKDAY(שעות_עבודה7[[#This Row],[התחלה]])=6,"שישי",WEEKDAY(שעות_עבודה7[[#This Row],[התחלה]])=7,"מוצ""ש") ->  | D71: =IF(שעות_עבודה7[[#This Row],[התחלה]]="","",שעות_עבודה7[[#This Row],[התחלה]]) ->  | J71: =IF(OR(שעות_עבודה7[[#This Row],[התחלה]]="", שעות_עבודה7[[#This Row],[סיום]]-שעות_עבודה7[[#This Row],[התחלה]]+שעות_עבודה7[[#This Row],[הוספת דקות]]/1440<שעות_עבודה7[[#This Row],[הפחתת דקות]]/1440, SUM(שעות_עבודה7[[#This Row],[סיום]]-שעות_עבודה7[[#This Row],[התחלה]],שעות_עבודה7[[#This Row],[הוספת דקות]]/1440,-שעות_עבודה7[[#This Row],[הפחתת דקות]]/1440)=0), "", SUM(שעות_עבודה7[[#This Row],[סיום]]-שעות_עבודה7[[#This Row],[התחלה]],שעות_עבודה7[[#This Row],[הוספת דקות]]/1440,-שעות_עבודה7[[#This Row],[הפחתת דקות]]/1440)) ->  | K71: =IF(שעות_עבודה7[[#This Row],[שעות]]="","", IF(SUMPRODUCT((שעות_עבודה7[[#This Row],[שם העבודה]]=$P$3:$P$6)*שעות_עבודה7[[#This Row],[שעות]]*($Q$3:$Q$6*24))=0,"", SUMPRODUCT((שעות_עבודה7[[#This Row],[שם העבודה]]=$P$3:$P$6)*שעות_עבודה7[[#This Row],[שעות]]*($Q$3:$Q$6*24)))) -> 
B72: =IF(שעות_עבודה7[[#This Row],[תאריך]]="","",ROW(A64)) ->  | C72: =_xlfn.IFS(שעות_עבודה7[[#This Row],[התחלה]]="","",WEEKDAY(שעות_עבודה7[[#This Row],[התחלה]])=1,"ראשון",WEEKDAY(שעות_עבודה7[[#This Row],[התחלה]])=2,"שני",WEEKDAY(שעות_עבודה7[[#This Row],[התחלה]])=3,"שלישי",WEEKDAY(שעות_עבודה7[[#This Row],[התחלה]])=4,"רביעי",WEEKDAY(שעות_עבודה7[[#This Row],[התחלה]])=5,"חמישי",WEEKDAY(שעות_עבודה7[[#This Row],[התחלה]])=6,"שישי",WEEKDAY(שעות_עבודה7[[#This Row],[התחלה]])=7,"מוצ""ש") ->  | D72: =IF(שעות_עבודה7[[#This Row],[התחלה]]="","",שעות_עבודה7[[#This Row],[התחלה]]) ->  | J72: =IF(OR(שעות_עבודה7[[#This Row],[התחלה]]="", שעות_עבודה7[[#This Row],[סיום]]-שעות_עבודה7[[#This Row],[התחלה]]+שעות_עבודה7[[#This Row],[הוספת דקות]]/1440<שעות_עבודה7[[#This Row],[הפחתת דקות]]/1440, SUM(שעות_עבודה7[[#This Row],[סיום]]-שעות_עבודה7[[#This Row],[התחלה]],שעות_עבודה7[[#This Row],[הוספת דקות]]/1440,-שעות_עבודה7[[#This Row],[הפחתת דקות]]/1440)=0), "", SUM(שעות_עבודה7[[#This Row],[סיום]]-שעות_עבודה7[[#This Row],[התחלה]],שעות_עבודה7[[#This Row],[הוספת דקות]]/1440,-שעות_עבודה7[[#This Row],[הפחתת דקות]]/1440)) ->  | K72: =IF(שעות_עבודה7[[#This Row],[שעות]]="","", IF(SUMPRODUCT((שעות_עבודה7[[#This Row],[שם העבודה]]=$P$3:$P$6)*שעות_עבודה7[[#This Row],[שעות]]*($Q$3:$Q$6*24))=0,"", SUMPRODUCT((שעות_עבודה7[[#This Row],[שם העבודה]]=$P$3:$P$6)*שעות_עבודה7[[#This Row],[שעות]]*($Q$3:$Q$6*24)))) -> 
B73: =IF(שעות_עבודה7[[#This Row],[תאריך]]="","",ROW(A65)) ->  | C73: =_xlfn.IFS(שעות_עבודה7[[#This Row],[התחלה]]="","",WEEKDAY(שעות_עבודה7[[#This Row],[התחלה]])=1,"ראשון",WEEKDAY(שעות_עבודה7[[#This Row],[התחלה]])=2,"שני",WEEKDAY(שעות_עבודה7[[#This Row],[התחלה]])=3,"שלישי",WEEKDAY(שעות_עבודה7[[#This Row],[התחלה]])=4,"רביעי",WEEKDAY(שעות_עבודה7[[#This Row],[התחלה]])=5,"חמישי",WEEKDAY(שעות_עבודה7[[#This Row],[התחלה]])=6,"שישי",WEEKDAY(שעות_עבודה7[[#This Row],[התחלה]])=7,"מוצ""ש") ->  | D73: =IF(שעות_עבודה7[[#This Row],[התחלה]]="","",שעות_עבודה7[[#This Row],[התחלה]]) ->  | J73: =IF(OR(שעות_עבודה7[[#This Row],[התחלה]]="", שעות_עבודה7[[#This Row],[סיום]]-שעות_עבודה7[[#This Row],[התחלה]]+שעות_עבודה7[[#This Row],[הוספת דקות]]/1440<שעות_עבודה7[[#This Row],[הפחתת דקות]]/1440, SUM(שעות_עבודה7[[#This Row],[סיום]]-שעות_עבודה7[[#This Row],[התחלה]],שעות_עבודה7[[#This Row],[הוספת דקות]]/1440,-שעות_עבודה7[[#This Row],[הפחתת דקות]]/1440)=0), "", SUM(שעות_עבודה7[[#This Row],[סיום]]-שעות_עבודה7[[#This Row],[התחלה]],שעות_עבודה7[[#This Row],[הוספת דקות]]/1440,-שעות_עבודה7[[#This Row],[הפחתת דקות]]/1440)) ->  | K73: =IF(שעות_עבודה7[[#This Row],[שעות]]="","", IF(SUMPRODUCT((שעות_עבודה7[[#This Row],[שם העבודה]]=$P$3:$P$6)*שעות_עבודה7[[#This Row],[שעות]]*($Q$3:$Q$6*24))=0,"", SUMPRODUCT((שעות_עבודה7[[#This Row],[שם העבודה]]=$P$3:$P$6)*שעות_עבודה7[[#This Row],[שעות]]*($Q$3:$Q$6*24)))) -> 
B74: =IF(שעות_עבודה7[[#This Row],[תאריך]]="","",ROW(A66)) ->  | C74: =_xlfn.IFS(שעות_עבודה7[[#This Row],[התחלה]]="","",WEEKDAY(שעות_עבודה7[[#This Row],[התחלה]])=1,"ראשון",WEEKDAY(שעות_עבודה7[[#This Row],[התחלה]])=2,"שני",WEEKDAY(שעות_עבודה7[[#This Row],[התחלה]])=3,"שלישי",WEEKDAY(שעות_עבודה7[[#This Row],[התחלה]])=4,"רביעי",WEEKDAY(שעות_עבודה7[[#This Row],[התחלה]])=5,"חמישי",WEEKDAY(שעות_עבודה7[[#This Row],[התחלה]])=6,"שישי",WEEKDAY(שעות_עבודה7[[#This Row],[התחלה]])=7,"מוצ""ש") ->  | D74: =IF(שעות_עבודה7[[#This Row],[התחלה]]="","",שעות_עבודה7[[#This Row],[התחלה]]) ->  | J74: =IF(OR(שעות_עבודה7[[#This Row],[התחלה]]="", שעות_עבודה7[[#This Row],[סיום]]-שעות_עבודה7[[#This Row],[התחלה]]+שעות_עבודה7[[#This Row],[הוספת דקות]]/1440<שעות_עבודה7[[#This Row],[הפחתת דקות]]/1440, SUM(שעות_עבודה7[[#This Row],[סיום]]-שעות_עבודה7[[#This Row],[התחלה]],שעות_עבודה7[[#This Row],[הוספת דקות]]/1440,-שעות_עבודה7[[#This Row],[הפחתת דקות]]/1440)=0), "", SUM(שעות_עבודה7[[#This Row],[סיום]]-שעות_עבודה7[[#This Row],[התחלה]],שעות_עבודה7[[#This Row],[הוספת דקות]]/1440,-שעות_עבודה7[[#This Row],[הפחתת דקות]]/1440)) ->  | K74: =IF(שעות_עבודה7[[#This Row],[שעות]]="","", IF(SUMPRODUCT((שעות_עבודה7[[#This Row],[שם העבודה]]=$P$3:$P$6)*שעות_עבודה7[[#This Row],[שעות]]*($Q$3:$Q$6*24))=0,"", SUMPRODUCT((שעות_עבודה7[[#This Row],[שם העבודה]]=$P$3:$P$6)*שעות_עבודה7[[#This Row],[שעות]]*($Q$3:$Q$6*24)))) -> 
B75: =IF(שעות_עבודה7[[#This Row],[תאריך]]="","",ROW(A67)) ->  | C75: =_xlfn.IFS(שעות_עבודה7[[#This Row],[התחלה]]="","",WEEKDAY(שעות_עבודה7[[#This Row],[התחלה]])=1,"ראשון",WEEKDAY(שעות_עבודה7[[#This Row],[התחלה]])=2,"שני",WEEKDAY(שעות_עבודה7[[#This Row],[התחלה]])=3,"שלישי",WEEKDAY(שעות_עבודה7[[#This Row],[התחלה]])=4,"רביעי",WEEKDAY(שעות_עבודה7[[#This Row],[התחלה]])=5,"חמישי",WEEKDAY(שעות_עבודה7[[#This Row],[התחלה]])=6,"שישי",WEEKDAY(שעות_עבודה7[[#This Row],[התחלה]])=7,"מוצ""ש") ->  | D75: =IF(שעות_עבודה7[[#This Row],[התחלה]]="","",שעות_עבודה7[[#This Row],[התחלה]]) ->  | J75: =IF(OR(שעות_עבודה7[[#This Row],[התחלה]]="", שעות_עבודה7[[#This Row],[סיום]]-שעות_עבודה7[[#This Row],[התחלה]]+שעות_עבודה7[[#This Row],[הוספת דקות]]/1440<שעות_עבודה7[[#This Row],[הפחתת דקות]]/1440, SUM(שעות_עבודה7[[#This Row],[סיום]]-שעות_עבודה7[[#This Row],[התחלה]],שעות_עבודה7[[#This Row],[הוספת דקות]]/1440,-שעות_עבודה7[[#This Row],[הפחתת דקות]]/1440)=0), "", SUM(שעות_עבודה7[[#This Row],[סיום]]-שעות_עבודה7[[#This Row],[התחלה]],שעות_עבודה7[[#This Row],[הוספת דקות]]/1440,-שעות_עבודה7[[#This Row],[הפחתת דקות]]/1440)) ->  | K75: =IF(שעות_עבודה7[[#This Row],[שעות]]="","", IF(SUMPRODUCT((שעות_עבודה7[[#This Row],[שם העבודה]]=$P$3:$P$6)*שעות_עבודה7[[#This Row],[שעות]]*($Q$3:$Q$6*24))=0,"", SUMPRODUCT((שעות_עבודה7[[#This Row],[שם העבודה]]=$P$3:$P$6)*שעות_עבודה7[[#This Row],[שעות]]*($Q$3:$Q$6*24)))) -> 
B76: =IF(שעות_עבודה7[[#This Row],[תאריך]]="","",ROW(A68)) ->  | C76: =_xlfn.IFS(שעות_עבודה7[[#This Row],[התחלה]]="","",WEEKDAY(שעות_עבודה7[[#This Row],[התחלה]])=1,"ראשון",WEEKDAY(שעות_עבודה7[[#This Row],[התחלה]])=2,"שני",WEEKDAY(שעות_עבודה7[[#This Row],[התחלה]])=3,"שלישי",WEEKDAY(שעות_עבודה7[[#This Row],[התחלה]])=4,"רביעי",WEEKDAY(שעות_עבודה7[[#This Row],[התחלה]])=5,"חמישי",WEEKDAY(שעות_עבודה7[[#This Row],[התחלה]])=6,"שישי",WEEKDAY(שעות_עבודה7[[#This Row],[התחלה]])=7,"מוצ""ש") ->  | D76: =IF(שעות_עבודה7[[#This Row],[התחלה]]="","",שעות_עבודה7[[#This Row],[התחלה]]) ->  | J76: =IF(OR(שעות_עבודה7[[#This Row],[התחלה]]="", שעות_עבודה7[[#This Row],[סיום]]-שעות_עבודה7[[#This Row],[התחלה]]+שעות_עבודה7[[#This Row],[הוספת דקות]]/1440<שעות_עבודה7[[#This Row],[הפחתת דקות]]/1440, SUM(שעות_עבודה7[[#This Row],[סיום]]-שעות_עבודה7[[#This Row],[התחלה]],שעות_עבודה7[[#This Row],[הוספת דקות]]/1440,-שעות_עבודה7[[#This Row],[הפחתת דקות]]/1440)=0), "", SUM(שעות_עבודה7[[#This Row],[סיום]]-שעות_עבודה7[[#This Row],[התחלה]],שעות_עבודה7[[#This Row],[הוספת דקות]]/1440,-שעות_עבודה7[[#This Row],[הפחתת דקות]]/1440)) ->  | K76: =IF(שעות_עבודה7[[#This Row],[שעות]]="","", IF(SUMPRODUCT((שעות_עבודה7[[#This Row],[שם העבודה]]=$P$3:$P$6)*שעות_עבודה7[[#This Row],[שעות]]*($Q$3:$Q$6*24))=0,"", SUMPRODUCT((שעות_עבודה7[[#This Row],[שם העבודה]]=$P$3:$P$6)*שעות_עבודה7[[#This Row],[שעות]]*($Q$3:$Q$6*24)))) -> 
B77: =IF(שעות_עבודה7[[#This Row],[תאריך]]="","",ROW(A69)) ->  | C77: =_xlfn.IFS(שעות_עבודה7[[#This Row],[התחלה]]="","",WEEKDAY(שעות_עבודה7[[#This Row],[התחלה]])=1,"ראשון",WEEKDAY(שעות_עבודה7[[#This Row],[התחלה]])=2,"שני",WEEKDAY(שעות_עבודה7[[#This Row],[התחלה]])=3,"שלישי",WEEKDAY(שעות_עבודה7[[#This Row],[התחלה]])=4,"רביעי",WEEKDAY(שעות_עבודה7[[#This Row],[התחלה]])=5,"חמישי",WEEKDAY(שעות_עבודה7[[#This Row],[התחלה]])=6,"שישי",WEEKDAY(שעות_עבודה7[[#This Row],[התחלה]])=7,"מוצ""ש") ->  | D77: =IF(שעות_עבודה7[[#This Row],[התחלה]]="","",שעות_עבודה7[[#This Row],[התחלה]]) ->  | J77: =IF(OR(שעות_עבודה7[[#This Row],[התחלה]]="", שעות_עבודה7[[#This Row],[סיום]]-שעות_עבודה7[[#This Row],[התחלה]]+שעות_עבודה7[[#This Row],[הוספת דקות]]/1440<שעות_עבודה7[[#This Row],[הפחתת דקות]]/1440, SUM(שעות_עבודה7[[#This Row],[סיום]]-שעות_עבודה7[[#This Row],[התחלה]],שעות_עבודה7[[#This Row],[הוספת דקות]]/1440,-שעות_עבודה7[[#This Row],[הפחתת דקות]]/1440)=0), "", SUM(שעות_עבודה7[[#This Row],[סיום]]-שעות_עבודה7[[#This Row],[התחלה]],שעות_עבודה7[[#This Row],[הוספת דקות]]/1440,-שעות_עבודה7[[#This Row],[הפחתת דקות]]/1440)) ->  | K77: =IF(שעות_עבודה7[[#This Row],[שעות]]="","", IF(SUMPRODUCT((שעות_עבודה7[[#This Row],[שם העבודה]]=$P$3:$P$6)*שעות_עבודה7[[#This Row],[שעות]]*($Q$3:$Q$6*24))=0,"", SUMPRODUCT((שעות_עבודה7[[#This Row],[שם העבודה]]=$P$3:$P$6)*שעות_עבודה7[[#This Row],[שעות]]*($Q$3:$Q$6*24)))) -> 
B78: =IF(שעות_עבודה7[[#This Row],[תאריך]]="","",ROW(A70)) ->  | C78: =_xlfn.IFS(שעות_עבודה7[[#This Row],[התחלה]]="","",WEEKDAY(שעות_עבודה7[[#This Row],[התחלה]])=1,"ראשון",WEEKDAY(שעות_עבודה7[[#This Row],[התחלה]])=2,"שני",WEEKDAY(שעות_עבודה7[[#This Row],[התחלה]])=3,"שלישי",WEEKDAY(שעות_עבודה7[[#This Row],[התחלה]])=4,"רביעי",WEEKDAY(שעות_עבודה7[[#This Row],[התחלה]])=5,"חמישי",WEEKDAY(שעות_עבודה7[[#This Row],[התחלה]])=6,"שישי",WEEKDAY(שעות_עבודה7[[#This Row],[התחלה]])=7,"מוצ""ש") ->  | D78: =IF(שעות_עבודה7[[#This Row],[התחלה]]="","",שעות_עבודה7[[#This Row],[התחלה]]) ->  | J78: =IF(OR(שעות_עבודה7[[#This Row],[התחלה]]="", שעות_עבודה7[[#This Row],[סיום]]-שעות_עבודה7[[#This Row],[התחלה]]+שעות_עבודה7[[#This Row],[הוספת דקות]]/1440<שעות_עבודה7[[#This Row],[הפחתת דקות]]/1440, SUM(שעות_עבודה7[[#This Row],[סיום]]-שעות_עבודה7[[#This Row],[התחלה]],שעות_עבודה7[[#This Row],[הוספת דקות]]/1440,-שעות_עבודה7[[#This Row],[הפחתת דקות]]/1440)=0), "", SUM(שעות_עבודה7[[#This Row],[סיום]]-שעות_עבודה7[[#This Row],[התחלה]],שעות_עבודה7[[#This Row],[הוספת דקות]]/1440,-שעות_עבודה7[[#This Row],[הפחתת דקות]]/1440)) ->  | K78: =IF(שעות_עבודה7[[#This Row],[שעות]]="","", IF(SUMPRODUCT((שעות_עבודה7[[#This Row],[שם העבודה]]=$P$3:$P$6)*שעות_עבודה7[[#This Row],[שעות]]*($Q$3:$Q$6*24))=0,"", SUMPRODUCT((שעות_עבודה7[[#This Row],[שם העבודה]]=$P$3:$P$6)*שעות_עבודה7[[#This Row],[שעות]]*($Q$3:$Q$6*24)))) -> 
B79: =IF(שעות_עבודה7[[#This Row],[תאריך]]="","",ROW(A71)) ->  | C79: =_xlfn.IFS(שעות_עבודה7[[#This Row],[התחלה]]="","",WEEKDAY(שעות_עבודה7[[#This Row],[התחלה]])=1,"ראשון",WEEKDAY(שעות_עבודה7[[#This Row],[התחלה]])=2,"שני",WEEKDAY(שעות_עבודה7[[#This Row],[התחלה]])=3,"שלישי",WEEKDAY(שעות_עבודה7[[#This Row],[התחלה]])=4,"רביעי",WEEKDAY(שעות_עבודה7[[#This Row],[התחלה]])=5,"חמישי",WEEKDAY(שעות_עבודה7[[#This Row],[התחלה]])=6,"שישי",WEEKDAY(שעות_עבודה7[[#This Row],[התחלה]])=7,"מוצ""ש") ->  | D79: =IF(שעות_עבודה7[[#This Row],[התחלה]]="","",שעות_עבודה7[[#This Row],[התחלה]]) ->  | J79: =IF(OR(שעות_עבודה7[[#This Row],[התחלה]]="", שעות_עבודה7[[#This Row],[סיום]]-שעות_עבודה7[[#This Row],[התחלה]]+שעות_עבודה7[[#This Row],[הוספת דקות]]/1440<שעות_עבודה7[[#This Row],[הפחתת דקות]]/1440, SUM(שעות_עבודה7[[#This Row],[סיום]]-שעות_עבודה7[[#This Row],[התחלה]],שעות_עבודה7[[#This Row],[הוספת דקות]]/1440,-שעות_עבודה7[[#This Row],[הפחתת דקות]]/1440)=0), "", SUM(שעות_עבודה7[[#This Row],[סיום]]-שעות_עבודה7[[#This Row],[התחלה]],שעות_עבודה7[[#This Row],[הוספת דקות]]/1440,-שעות_עבודה7[[#This Row],[הפחתת דקות]]/1440)) ->  | K79: =IF(שעות_עבודה7[[#This Row],[שעות]]="","", IF(SUMPRODUCT((שעות_עבודה7[[#This Row],[שם העבודה]]=$P$3:$P$6)*שעות_עבודה7[[#This Row],[שעות]]*($Q$3:$Q$6*24))=0,"", SUMPRODUCT((שעות_עבודה7[[#This Row],[שם העבודה]]=$P$3:$P$6)*שעות_עבודה7[[#This Row],[שעות]]*($Q$3:$Q$6*24)))) -> 
B80: =IF(שעות_עבודה7[[#This Row],[תאריך]]="","",ROW(A72)) ->  | C80: =_xlfn.IFS(שעות_עבודה7[[#This Row],[התחלה]]="","",WEEKDAY(שעות_עבודה7[[#This Row],[התחלה]])=1,"ראשון",WEEKDAY(שעות_עבודה7[[#This Row],[התחלה]])=2,"שני",WEEKDAY(שעות_עבודה7[[#This Row],[התחלה]])=3,"שלישי",WEEKDAY(שעות_עבודה7[[#This Row],[התחלה]])=4,"רביעי",WEEKDAY(שעות_עבודה7[[#This Row],[התחלה]])=5,"חמישי",WEEKDAY(שעות_עבודה7[[#This Row],[התחלה]])=6,"שישי",WEEKDAY(שעות_עבודה7[[#This Row],[התחלה]])=7,"מוצ""ש") ->  | D80: =IF(שעות_עבודה7[[#This Row],[התחלה]]="","",שעות_עבודה7[[#This Row],[התחלה]]) ->  | J80: =IF(OR(שעות_עבודה7[[#This Row],[התחלה]]="", שעות_עבודה7[[#This Row],[סיום]]-שעות_עבודה7[[#This Row],[התחלה]]+שעות_עבודה7[[#This Row],[הוספת דקות]]/1440<שעות_עבודה7[[#This Row],[הפחתת דקות]]/1440, SUM(שעות_עבודה7[[#This Row],[סיום]]-שעות_עבודה7[[#This Row],[התחלה]],שעות_עבודה7[[#This Row],[הוספת דקות]]/1440,-שעות_עבודה7[[#This Row],[הפחתת דקות]]/1440)=0), "", SUM(שעות_עבודה7[[#This Row],[סיום]]-שעות_עבודה7[[#This Row],[התחלה]],שעות_עבודה7[[#This Row],[הוספת דקות]]/1440,-שעות_עבודה7[[#This Row],[הפחתת דקות]]/1440)) ->  | K80: =IF(שעות_עבודה7[[#This Row],[שעות]]="","", IF(SUMPRODUCT((שעות_עבודה7[[#This Row],[שם העבודה]]=$P$3:$P$6)*שעות_עבודה7[[#This Row],[שעות]]*($Q$3:$Q$6*24))=0,"", SUMPRODUCT((שעות_עבודה7[[#This Row],[שם העבודה]]=$P$3:$P$6)*שעות_עבודה7[[#This Row],[שעות]]*($Q$3:$Q$6*24)))) -> 
B81: =IF(שעות_עבודה7[[#This Row],[תאריך]]="","",ROW(A73)) ->  | C81: =_xlfn.IFS(שעות_עבודה7[[#This Row],[התחלה]]="","",WEEKDAY(שעות_עבודה7[[#This Row],[התחלה]])=1,"ראשון",WEEKDAY(שעות_עבודה7[[#This Row],[התחלה]])=2,"שני",WEEKDAY(שעות_עבודה7[[#This Row],[התחלה]])=3,"שלישי",WEEKDAY(שעות_עבודה7[[#This Row],[התחלה]])=4,"רביעי",WEEKDAY(שעות_עבודה7[[#This Row],[התחלה]])=5,"חמישי",WEEKDAY(שעות_עבודה7[[#This Row],[התחלה]])=6,"שישי",WEEKDAY(שעות_עבודה7[[#This Row],[התחלה]])=7,"מוצ""ש") ->  | D81: =IF(שעות_עבודה7[[#This Row],[התחלה]]="","",שעות_עבודה7[[#This Row],[התחלה]]) ->  | J81: =IF(OR(שעות_עבודה7[[#This Row],[התחלה]]="", שעות_עבודה7[[#This Row],[סיום]]-שעות_עבודה7[[#This Row],[התחלה]]+שעות_עבודה7[[#This Row],[הוספת דקות]]/1440<שעות_עבודה7[[#This Row],[הפחתת דקות]]/1440, SUM(שעות_עבודה7[[#This Row],[סיום]]-שעות_עבודה7[[#This Row],[התחלה]],שעות_עבודה7[[#This Row],[הוספת דקות]]/1440,-שעות_עבודה7[[#This Row],[הפחתת דקות]]/1440)=0), "", SUM(שעות_עבודה7[[#This Row],[סיום]]-שעות_עבודה7[[#This Row],[התחלה]],שעות_עבודה7[[#This Row],[הוספת דקות]]/1440,-שעות_עבודה7[[#This Row],[הפחתת דקות]]/1440)) ->  | K81: =IF(שעות_עבודה7[[#This Row],[שעות]]="","", IF(SUMPRODUCT((שעות_עבודה7[[#This Row],[שם העבודה]]=$P$3:$P$6)*שעות_עבודה7[[#This Row],[שעות]]*($Q$3:$Q$6*24))=0,"", SUMPRODUCT((שעות_עבודה7[[#This Row],[שם העבודה]]=$P$3:$P$6)*שעות_עבודה7[[#This Row],[שעות]]*($Q$3:$Q$6*24)))) -> 
B82: =IF(שעות_עבודה7[[#This Row],[תאריך]]="","",ROW(A74)) ->  | C82: =_xlfn.IFS(שעות_עבודה7[[#This Row],[התחלה]]="","",WEEKDAY(שעות_עבודה7[[#This Row],[התחלה]])=1,"ראשון",WEEKDAY(שעות_עבודה7[[#This Row],[התחלה]])=2,"שני",WEEKDAY(שעות_עבודה7[[#This Row],[התחלה]])=3,"שלישי",WEEKDAY(שעות_עבודה7[[#This Row],[התחלה]])=4,"רביעי",WEEKDAY(שעות_עבודה7[[#This Row],[התחלה]])=5,"חמישי",WEEKDAY(שעות_עבודה7[[#This Row],[התחלה]])=6,"שישי",WEEKDAY(שעות_עבודה7[[#This Row],[התחלה]])=7,"מוצ""ש") ->  | D82: =IF(שעות_עבודה7[[#This Row],[התחלה]]="","",שעות_עבודה7[[#This Row],[התחלה]]) ->  | J82: =IF(OR(שעות_עבודה7[[#This Row],[התחלה]]="", שעות_עבודה7[[#This Row],[סיום]]-שעות_עבודה7[[#This Row],[התחלה]]+שעות_עבודה7[[#This Row],[הוספת דקות]]/1440<שעות_עבודה7[[#This Row],[הפחתת דקות]]/1440, SUM(שעות_עבודה7[[#This Row],[סיום]]-שעות_עבודה7[[#This Row],[התחלה]],שעות_עבודה7[[#This Row],[הוספת דקות]]/1440,-שעות_עבודה7[[#This Row],[הפחתת דקות]]/1440)=0), "", SUM(שעות_עבודה7[[#This Row],[סיום]]-שעות_עבודה7[[#This Row],[התחלה]],שעות_עבודה7[[#This Row],[הוספת דקות]]/1440,-שעות_עבודה7[[#This Row],[הפחתת דקות]]/1440)) ->  | K82: =IF(שעות_עבודה7[[#This Row],[שעות]]="","", IF(SUMPRODUCT((שעות_עבודה7[[#This Row],[שם העבודה]]=$P$3:$P$6)*שעות_עבודה7[[#This Row],[שעות]]*($Q$3:$Q$6*24))=0,"", SUMPRODUCT((שעות_עבודה7[[#This Row],[שם העבודה]]=$P$3:$P$6)*שעות_עבודה7[[#This Row],[שעות]]*($Q$3:$Q$6*24)))) -> 
B83: =IF(שעות_עבודה7[[#This Row],[תאריך]]="","",ROW(A75)) ->  | C83: =_xlfn.IFS(שעות_עבודה7[[#This Row],[התחלה]]="","",WEEKDAY(שעות_עבודה7[[#This Row],[התחלה]])=1,"ראשון",WEEKDAY(שעות_עבודה7[[#This Row],[התחלה]])=2,"שני",WEEKDAY(שעות_עבודה7[[#This Row],[התחלה]])=3,"שלישי",WEEKDAY(שעות_עבודה7[[#This Row],[התחלה]])=4,"רביעי",WEEKDAY(שעות_עבודה7[[#This Row],[התחלה]])=5,"חמישי",WEEKDAY(שעות_עבודה7[[#This Row],[התחלה]])=6,"שישי",WEEKDAY(שעות_עבודה7[[#This Row],[התחלה]])=7,"מוצ""ש") ->  | D83: =IF(שעות_עבודה7[[#This Row],[התחלה]]="","",שעות_עבודה7[[#This Row],[התחלה]]) ->  | J83: =IF(OR(שעות_עבודה7[[#This Row],[התחלה]]="", שעות_עבודה7[[#This Row],[סיום]]-שעות_עבודה7[[#This Row],[התחלה]]+שעות_עבודה7[[#This Row],[הוספת דקות]]/1440<שעות_עבודה7[[#This Row],[הפחתת דקות]]/1440, SUM(שעות_עבודה7[[#This Row],[סיום]]-שעות_עבודה7[[#This Row],[התחלה]],שעות_עבודה7[[#This Row],[הוספת דקות]]/1440,-שעות_עבודה7[[#This Row],[הפחתת דקות]]/1440)=0), "", SUM(שעות_עבודה7[[#This Row],[סיום]]-שעות_עבודה7[[#This Row],[התחלה]],שעות_עבודה7[[#This Row],[הוספת דקות]]/1440,-שעות_עבודה7[[#This Row],[הפחתת דקות]]/1440)) ->  | K83: =IF(שעות_עבודה7[[#This Row],[שעות]]="","", IF(SUMPRODUCT((שעות_עבודה7[[#This Row],[שם העבודה]]=$P$3:$P$6)*שעות_עבודה7[[#This Row],[שעות]]*($Q$3:$Q$6*24))=0,"", SUMPRODUCT((שעות_עבודה7[[#This Row],[שם העבודה]]=$P$3:$P$6)*שעות_עבודה7[[#This Row],[שעות]]*($Q$3:$Q$6*24)))) -> 
B84: =IF(שעות_עבודה7[[#This Row],[תאריך]]="","",ROW(A76)) ->  | C84: =_xlfn.IFS(שעות_עבודה7[[#This Row],[התחלה]]="","",WEEKDAY(שעות_עבודה7[[#This Row],[התחלה]])=1,"ראשון",WEEKDAY(שעות_עבודה7[[#This Row],[התחלה]])=2,"שני",WEEKDAY(שעות_עבודה7[[#This Row],[התחלה]])=3,"שלישי",WEEKDAY(שעות_עבודה7[[#This Row],[התחלה]])=4,"רביעי",WEEKDAY(שעות_עבודה7[[#This Row],[התחלה]])=5,"חמישי",WEEKDAY(שעות_עבודה7[[#This Row],[התחלה]])=6,"שישי",WEEKDAY(שעות_עבודה7[[#This Row],[התחלה]])=7,"מוצ""ש") ->  | D84: =IF(שעות_עבודה7[[#This Row],[התחלה]]="","",שעות_עבודה7[[#This Row],[התחלה]]) ->  | J84: =IF(OR(שעות_עבודה7[[#This Row],[התחלה]]="", שעות_עבודה7[[#This Row],[סיום]]-שעות_עבודה7[[#This Row],[התחלה]]+שעות_עבודה7[[#This Row],[הוספת דקות]]/1440<שעות_עבודה7[[#This Row],[הפחתת דקות]]/1440, SUM(שעות_עבודה7[[#This Row],[סיום]]-שעות_עבודה7[[#This Row],[התחלה]],שעות_עבודה7[[#This Row],[הוספת דקות]]/1440,-שעות_עבודה7[[#This Row],[הפחתת דקות]]/1440)=0), "", SUM(שעות_עבודה7[[#This Row],[סיום]]-שעות_עבודה7[[#This Row],[התחלה]],שעות_עבודה7[[#This Row],[הוספת דקות]]/1440,-שעות_עבודה7[[#This Row],[הפחתת דקות]]/1440)) ->  | K84: =IF(שעות_עבודה7[[#This Row],[שעות]]="","", IF(SUMPRODUCT((שעות_עבודה7[[#This Row],[שם העבודה]]=$P$3:$P$6)*שעות_עבודה7[[#This Row],[שעות]]*($Q$3:$Q$6*24))=0,"", SUMPRODUCT((שעות_עבודה7[[#This Row],[שם העבודה]]=$P$3:$P$6)*שעות_עבודה7[[#This Row],[שעות]]*($Q$3:$Q$6*24)))) -> 
B85: =IF(שעות_עבודה7[[#This Row],[תאריך]]="","",ROW(A77)) ->  | C85: =_xlfn.IFS(שעות_עבודה7[[#This Row],[התחלה]]="","",WEEKDAY(שעות_עבודה7[[#This Row],[התחלה]])=1,"ראשון",WEEKDAY(שעות_עבודה7[[#This Row],[התחלה]])=2,"שני",WEEKDAY(שעות_עבודה7[[#This Row],[התחלה]])=3,"שלישי",WEEKDAY(שעות_עבודה7[[#This Row],[התחלה]])=4,"רביעי",WEEKDAY(שעות_עבודה7[[#This Row],[התחלה]])=5,"חמישי",WEEKDAY(שעות_עבודה7[[#This Row],[התחלה]])=6,"שישי",WEEKDAY(שעות_עבודה7[[#This Row],[התחלה]])=7,"מוצ""ש") ->  | D85: =IF(שעות_עבודה7[[#This Row],[התחלה]]="","",שעות_עבודה7[[#This Row],[התחלה]]) ->  | J85: =IF(OR(שעות_עבודה7[[#This Row],[התחלה]]="", שעות_עבודה7[[#This Row],[סיום]]-שעות_עבודה7[[#This Row],[התחלה]]+שעות_עבודה7[[#This Row],[הוספת דקות]]/1440<שעות_עבודה7[[#This Row],[הפחתת דקות]]/1440, SUM(שעות_עבודה7[[#This Row],[סיום]]-שעות_עבודה7[[#This Row],[התחלה]],שעות_עבודה7[[#This Row],[הוספת דקות]]/1440,-שעות_עבודה7[[#This Row],[הפחתת דקות]]/1440)=0), "", SUM(שעות_עבודה7[[#This Row],[סיום]]-שעות_עבודה7[[#This Row],[התחלה]],שעות_עבודה7[[#This Row],[הוספת דקות]]/1440,-שעות_עבודה7[[#This Row],[הפחתת דקות]]/1440)) ->  | K85: =IF(שעות_עבודה7[[#This Row],[שעות]]="","", IF(SUMPRODUCT((שעות_עבודה7[[#This Row],[שם העבודה]]=$P$3:$P$6)*שעות_עבודה7[[#This Row],[שעות]]*($Q$3:$Q$6*24))=0,"", SUMPRODUCT((שעות_עבודה7[[#This Row],[שם העבודה]]=$P$3:$P$6)*שעות_עבודה7[[#This Row],[שעות]]*($Q$3:$Q$6*24)))) -> 
B86: =IF(שעות_עבודה7[[#This Row],[תאריך]]="","",ROW(A78)) ->  | C86: =_xlfn.IFS(שעות_עבודה7[[#This Row],[התחלה]]="","",WEEKDAY(שעות_עבודה7[[#This Row],[התחלה]])=1,"ראשון",WEEKDAY(שעות_עבודה7[[#This Row],[התחלה]])=2,"שני",WEEKDAY(שעות_עבודה7[[#This Row],[התחלה]])=3,"שלישי",WEEKDAY(שעות_עבודה7[[#This Row],[התחלה]])=4,"רביעי",WEEKDAY(שעות_עבודה7[[#This Row],[התחלה]])=5,"חמישי",WEEKDAY(שעות_עבודה7[[#This Row],[התחלה]])=6,"שישי",WEEKDAY(שעות_עבודה7[[#This Row],[התחלה]])=7,"מוצ""ש") ->  | D86: =IF(שעות_עבודה7[[#This Row],[התחלה]]="","",שעות_עבודה7[[#This Row],[התחלה]]) ->  | J86: =IF(OR(שעות_עבודה7[[#This Row],[התחלה]]="", שעות_עבודה7[[#This Row],[סיום]]-שעות_עבודה7[[#This Row],[התחלה]]+שעות_עבודה7[[#This Row],[הוספת דקות]]/1440<שעות_עבודה7[[#This Row],[הפחתת דקות]]/1440, SUM(שעות_עבודה7[[#This Row],[סיום]]-שעות_עבודה7[[#This Row],[התחלה]],שעות_עבודה7[[#This Row],[הוספת דקות]]/1440,-שעות_עבודה7[[#This Row],[הפחתת דקות]]/1440)=0), "", SUM(שעות_עבודה7[[#This Row],[סיום]]-שעות_עבודה7[[#This Row],[התחלה]],שעות_עבודה7[[#This Row],[הוספת דקות]]/1440,-שעות_עבודה7[[#This Row],[הפחתת דקות]]/1440)) ->  | K86: =IF(שעות_עבודה7[[#This Row],[שעות]]="","", IF(SUMPRODUCT((שעות_עבודה7[[#This Row],[שם העבודה]]=$P$3:$P$6)*שעות_עבודה7[[#This Row],[שעות]]*($Q$3:$Q$6*24))=0,"", SUMPRODUCT((שעות_עבודה7[[#This Row],[שם העבודה]]=$P$3:$P$6)*שעות_עבודה7[[#This Row],[שעות]]*($Q$3:$Q$6*24)))) -> 
B87: =IF(שעות_עבודה7[[#This Row],[תאריך]]="","",ROW(A79)) ->  | C87: =_xlfn.IFS(שעות_עבודה7[[#This Row],[התחלה]]="","",WEEKDAY(שעות_עבודה7[[#This Row],[התחלה]])=1,"ראשון",WEEKDAY(שעות_עבודה7[[#This Row],[התחלה]])=2,"שני",WEEKDAY(שעות_עבודה7[[#This Row],[התחלה]])=3,"שלישי",WEEKDAY(שעות_עבודה7[[#This Row],[התחלה]])=4,"רביעי",WEEKDAY(שעות_עבודה7[[#This Row],[התחלה]])=5,"חמישי",WEEKDAY(שעות_עבודה7[[#This Row],[התחלה]])=6,"שישי",WEEKDAY(שעות_עבודה7[[#This Row],[התחלה]])=7,"מוצ""ש") ->  | D87: =IF(שעות_עבודה7[[#This Row],[התחלה]]="","",שעות_עבודה7[[#This Row],[התחלה]]) ->  | J87: =IF(OR(שעות_עבודה7[[#This Row],[התחלה]]="", שעות_עבודה7[[#This Row],[סיום]]-שעות_עבודה7[[#This Row],[התחלה]]+שעות_עבודה7[[#This Row],[הוספת דקות]]/1440<שעות_עבודה7[[#This Row],[הפחתת דקות]]/1440, SUM(שעות_עבודה7[[#This Row],[סיום]]-שעות_עבודה7[[#This Row],[התחלה]],שעות_עבודה7[[#This Row],[הוספת דקות]]/1440,-שעות_עבודה7[[#This Row],[הפחתת דקות]]/1440)=0), "", SUM(שעות_עבודה7[[#This Row],[סיום]]-שעות_עבודה7[[#This Row],[התחלה]],שעות_עבודה7[[#This Row],[הוספת דקות]]/1440,-שעות_עבודה7[[#This Row],[הפחתת דקות]]/1440)) ->  | K87: =IF(שעות_עבודה7[[#This Row],[שעות]]="","", IF(SUMPRODUCT((שעות_עבודה7[[#This Row],[שם העבודה]]=$P$3:$P$6)*שעות_עבודה7[[#This Row],[שעות]]*($Q$3:$Q$6*24))=0,"", SUMPRODUCT((שעות_עבודה7[[#This Row],[שם העבודה]]=$P$3:$P$6)*שעות_עבודה7[[#This Row],[שעות]]*($Q$3:$Q$6*24)))) -> 
B88: =IF(שעות_עבודה7[[#This Row],[תאריך]]="","",ROW(A80)) ->  | C88: =_xlfn.IFS(שעות_עבודה7[[#This Row],[התחלה]]="","",WEEKDAY(שעות_עבודה7[[#This Row],[התחלה]])=1,"ראשון",WEEKDAY(שעות_עבודה7[[#This Row],[התחלה]])=2,"שני",WEEKDAY(שעות_עבודה7[[#This Row],[התחלה]])=3,"שלישי",WEEKDAY(שעות_עבודה7[[#This Row],[התחלה]])=4,"רביעי",WEEKDAY(שעות_עבודה7[[#This Row],[התחלה]])=5,"חמישי",WEEKDAY(שעות_עבודה7[[#This Row],[התחלה]])=6,"שישי",WEEKDAY(שעות_עבודה7[[#This Row],[התחלה]])=7,"מוצ""ש") ->  | D88: =IF(שעות_עבודה7[[#This Row],[התחלה]]="","",שעות_עבודה7[[#This Row],[התחלה]]) ->  | J88: =IF(OR(שעות_עבודה7[[#This Row],[התחלה]]="", שעות_עבודה7[[#This Row],[סיום]]-שעות_עבודה7[[#This Row],[התחלה]]+שעות_עבודה7[[#This Row],[הוספת דקות]]/1440<שעות_עבודה7[[#This Row],[הפחתת דקות]]/1440, SUM(שעות_עבודה7[[#This Row],[סיום]]-שעות_עבודה7[[#This Row],[התחלה]],שעות_עבודה7[[#This Row],[הוספת דקות]]/1440,-שעות_עבודה7[[#This Row],[הפחתת דקות]]/1440)=0), "", SUM(שעות_עבודה7[[#This Row],[סיום]]-שעות_עבודה7[[#This Row],[התחלה]],שעות_עבודה7[[#This Row],[הוספת דקות]]/1440,-שעות_עבודה7[[#This Row],[הפחתת דקות]]/1440)) ->  | K88: =IF(שעות_עבודה7[[#This Row],[שעות]]="","", IF(SUMPRODUCT((שעות_עבודה7[[#This Row],[שם העבודה]]=$P$3:$P$6)*שעות_עבודה7[[#This Row],[שעות]]*($Q$3:$Q$6*24))=0,"", SUMPRODUCT((שעות_עבודה7[[#This Row],[שם העבודה]]=$P$3:$P$6)*שעות_עבודה7[[#This Row],[שעות]]*($Q$3:$Q$6*24)))) -> 
B89: =IF(שעות_עבודה7[[#This Row],[תאריך]]="","",ROW(A81)) ->  | C89: =_xlfn.IFS(שעות_עבודה7[[#This Row],[התחלה]]="","",WEEKDAY(שעות_עבודה7[[#This Row],[התחלה]])=1,"ראשון",WEEKDAY(שעות_עבודה7[[#This Row],[התחלה]])=2,"שני",WEEKDAY(שעות_עבודה7[[#This Row],[התחלה]])=3,"שלישי",WEEKDAY(שעות_עבודה7[[#This Row],[התחלה]])=4,"רביעי",WEEKDAY(שעות_עבודה7[[#This Row],[התחלה]])=5,"חמישי",WEEKDAY(שעות_עבודה7[[#This Row],[התחלה]])=6,"שישי",WEEKDAY(שעות_עבודה7[[#This Row],[התחלה]])=7,"מוצ""ש") ->  | D89: =IF(שעות_עבודה7[[#This Row],[התחלה]]="","",שעות_עבודה7[[#This Row],[התחלה]]) ->  | J89: =IF(OR(שעות_עבודה7[[#This Row],[התחלה]]="", שעות_עבודה7[[#This Row],[סיום]]-שעות_עבודה7[[#This Row],[התחלה]]+שעות_עבודה7[[#This Row],[הוספת דקות]]/1440<שעות_עבודה7[[#This Row],[הפחתת דקות]]/1440, SUM(שעות_עבודה7[[#This Row],[סיום]]-שעות_עבודה7[[#This Row],[התחלה]],שעות_עבודה7[[#This Row],[הוספת דקות]]/1440,-שעות_עבודה7[[#This Row],[הפחתת דקות]]/1440)=0), "", SUM(שעות_עבודה7[[#This Row],[סיום]]-שעות_עבודה7[[#This Row],[התחלה]],שעות_עבודה7[[#This Row],[הוספת דקות]]/1440,-שעות_עבודה7[[#This Row],[הפחתת דקות]]/1440)) ->  | K89: =IF(שעות_עבודה7[[#This Row],[שעות]]="","", IF(SUMPRODUCT((שעות_עבודה7[[#This Row],[שם העבודה]]=$P$3:$P$6)*שעות_עבודה7[[#This Row],[שעות]]*($Q$3:$Q$6*24))=0,"", SUMPRODUCT((שעות_עבודה7[[#This Row],[שם העבודה]]=$P$3:$P$6)*שעות_עבודה7[[#This Row],[שעות]]*($Q$3:$Q$6*24)))) -> 
B90: =IF(שעות_עבודה7[[#This Row],[תאריך]]="","",ROW(A82)) ->  | C90: =_xlfn.IFS(שעות_עבודה7[[#This Row],[התחלה]]="","",WEEKDAY(שעות_עבודה7[[#This Row],[התחלה]])=1,"ראשון",WEEKDAY(שעות_עבודה7[[#This Row],[התחלה]])=2,"שני",WEEKDAY(שעות_עבודה7[[#This Row],[התחלה]])=3,"שלישי",WEEKDAY(שעות_עבודה7[[#This Row],[התחלה]])=4,"רביעי",WEEKDAY(שעות_עבודה7[[#This Row],[התחלה]])=5,"חמישי",WEEKDAY(שעות_עבודה7[[#This Row],[התחלה]])=6,"שישי",WEEKDAY(שעות_עבודה7[[#This Row],[התחלה]])=7,"מוצ""ש") ->  | D90: =IF(שעות_עבודה7[[#This Row],[התחלה]]="","",שעות_עבודה7[[#This Row],[התחלה]]) ->  | J90: =IF(OR(שעות_עבודה7[[#This Row],[התחלה]]="", שעות_עבודה7[[#This Row],[סיום]]-שעות_עבודה7[[#This Row],[התחלה]]+שעות_עבודה7[[#This Row],[הוספת דקות]]/1440<שעות_עבודה7[[#This Row],[הפחתת דקות]]/1440, SUM(שעות_עבודה7[[#This Row],[סיום]]-שעות_עבודה7[[#This Row],[התחלה]],שעות_עבודה7[[#This Row],[הוספת דקות]]/1440,-שעות_עבודה7[[#This Row],[הפחתת דקות]]/1440)=0), "", SUM(שעות_עבודה7[[#This Row],[סיום]]-שעות_עבודה7[[#This Row],[התחלה]],שעות_עבודה7[[#This Row],[הוספת דקות]]/1440,-שעות_עבודה7[[#This Row],[הפחתת דקות]]/1440)) ->  | K90: =IF(שעות_עבודה7[[#This Row],[שעות]]="","", IF(SUMPRODUCT((שעות_עבודה7[[#This Row],[שם העבודה]]=$P$3:$P$6)*שעות_עבודה7[[#This Row],[שעות]]*($Q$3:$Q$6*24))=0,"", SUMPRODUCT((שעות_עבודה7[[#This Row],[שם העבודה]]=$P$3:$P$6)*שעות_עבודה7[[#This Row],[שעות]]*($Q$3:$Q$6*24)))) -> 
B91: =IF(שעות_עבודה7[[#This Row],[תאריך]]="","",ROW(A83)) ->  | C91: =_xlfn.IFS(שעות_עבודה7[[#This Row],[התחלה]]="","",WEEKDAY(שעות_עבודה7[[#This Row],[התחלה]])=1,"ראשון",WEEKDAY(שעות_עבודה7[[#This Row],[התחלה]])=2,"שני",WEEKDAY(שעות_עבודה7[[#This Row],[התחלה]])=3,"שלישי",WEEKDAY(שעות_עבודה7[[#This Row],[התחלה]])=4,"רביעי",WEEKDAY(שעות_עבודה7[[#This Row],[התחלה]])=5,"חמישי",WEEKDAY(שעות_עבודה7[[#This Row],[התחלה]])=6,"שישי",WEEKDAY(שעות_עבודה7[[#This Row],[התחלה]])=7,"מוצ""ש") ->  | D91: =IF(שעות_עבודה7[[#This Row],[התחלה]]="","",שעות_עבודה7[[#This Row],[התחלה]]) ->  | J91: =IF(OR(שעות_עבודה7[[#This Row],[התחלה]]="", שעות_עבודה7[[#This Row],[סיום]]-שעות_עבודה7[[#This Row],[התחלה]]+שעות_עבודה7[[#This Row],[הוספת דקות]]/1440<שעות_עבודה7[[#This Row],[הפחתת דקות]]/1440, SUM(שעות_עבודה7[[#This Row],[סיום]]-שעות_עבודה7[[#This Row],[התחלה]],שעות_עבודה7[[#This Row],[הוספת דקות]]/1440,-שעות_עבודה7[[#This Row],[הפחתת דקות]]/1440)=0), "", SUM(שעות_עבודה7[[#This Row],[סיום]]-שעות_עבודה7[[#This Row],[התחלה]],שעות_עבודה7[[#This Row],[הוספת דקות]]/1440,-שעות_עבודה7[[#This Row],[הפחתת דקות]]/1440)) ->  | K91: =IF(שעות_עבודה7[[#This Row],[שעות]]="","", IF(SUMPRODUCT((שעות_עבודה7[[#This Row],[שם העבודה]]=$P$3:$P$6)*שעות_עבודה7[[#This Row],[שעות]]*($Q$3:$Q$6*24))=0,"", SUMPRODUCT((שעות_עבודה7[[#This Row],[שם העבודה]]=$P$3:$P$6)*שעות_עבודה7[[#This Row],[שעות]]*($Q$3:$Q$6*24)))) -> 
B92: =IF(שעות_עבודה7[[#This Row],[תאריך]]="","",ROW(A84)) ->  | C92: =_xlfn.IFS(שעות_עבודה7[[#This Row],[התחלה]]="","",WEEKDAY(שעות_עבודה7[[#This Row],[התחלה]])=1,"ראשון",WEEKDAY(שעות_עבודה7[[#This Row],[התחלה]])=2,"שני",WEEKDAY(שעות_עבודה7[[#This Row],[התחלה]])=3,"שלישי",WEEKDAY(שעות_עבודה7[[#This Row],[התחלה]])=4,"רביעי",WEEKDAY(שעות_עבודה7[[#This Row],[התחלה]])=5,"חמישי",WEEKDAY(שעות_עבודה7[[#This Row],[התחלה]])=6,"שישי",WEEKDAY(שעות_עבודה7[[#This Row],[התחלה]])=7,"מוצ""ש") ->  | D92: =IF(שעות_עבודה7[[#This Row],[התחלה]]="","",שעות_עבודה7[[#This Row],[התחלה]]) ->  | J92: =IF(OR(שעות_עבודה7[[#This Row],[התחלה]]="", שעות_עבודה7[[#This Row],[סיום]]-שעות_עבודה7[[#This Row],[התחלה]]+שעות_עבודה7[[#This Row],[הוספת דקות]]/1440<שעות_עבודה7[[#This Row],[הפחתת דקות]]/1440, SUM(שעות_עבודה7[[#This Row],[סיום]]-שעות_עבודה7[[#This Row],[התחלה]],שעות_עבודה7[[#This Row],[הוספת דקות]]/1440,-שעות_עבודה7[[#This Row],[הפחתת דקות]]/1440)=0), "", SUM(שעות_עבודה7[[#This Row],[סיום]]-שעות_עבודה7[[#This Row],[התחלה]],שעות_עבודה7[[#This Row],[הוספת דקות]]/1440,-שעות_עבודה7[[#This Row],[הפחתת דקות]]/1440)) ->  | K92: =IF(שעות_עבודה7[[#This Row],[שעות]]="","", IF(SUMPRODUCT((שעות_עבודה7[[#This Row],[שם העבודה]]=$P$3:$P$6)*שעות_עבודה7[[#This Row],[שעות]]*($Q$3:$Q$6*24))=0,"", SUMPRODUCT((שעות_עבודה7[[#This Row],[שם העבודה]]=$P$3:$P$6)*שעות_עבודה7[[#This Row],[שעות]]*($Q$3:$Q$6*24)))) -> 
B93: =IF(שעות_עבודה7[[#This Row],[תאריך]]="","",ROW(A85)) ->  | C93: =_xlfn.IFS(שעות_עבודה7[[#This Row],[התחלה]]="","",WEEKDAY(שעות_עבודה7[[#This Row],[התחלה]])=1,"ראשון",WEEKDAY(שעות_עבודה7[[#This Row],[התחלה]])=2,"שני",WEEKDAY(שעות_עבודה7[[#This Row],[התחלה]])=3,"שלישי",WEEKDAY(שעות_עבודה7[[#This Row],[התחלה]])=4,"רביעי",WEEKDAY(שעות_עבודה7[[#This Row],[התחלה]])=5,"חמישי",WEEKDAY(שעות_עבודה7[[#This Row],[התחלה]])=6,"שישי",WEEKDAY(שעות_עבודה7[[#This Row],[התחלה]])=7,"מוצ""ש") ->  | D93: =IF(שעות_עבודה7[[#This Row],[התחלה]]="","",שעות_עבודה7[[#This Row],[התחלה]]) ->  | J93: =IF(OR(שעות_עבודה7[[#This Row],[התחלה]]="", שעות_עבודה7[[#This Row],[סיום]]-שעות_עבודה7[[#This Row],[התחלה]]+שעות_עבודה7[[#This Row],[הוספת דקות]]/1440<שעות_עבודה7[[#This Row],[הפחתת דקות]]/1440, SUM(שעות_עבודה7[[#This Row],[סיום]]-שעות_עבודה7[[#This Row],[התחלה]],שעות_עבודה7[[#This Row],[הוספת דקות]]/1440,-שעות_עבודה7[[#This Row],[הפחתת דקות]]/1440)=0), "", SUM(שעות_עבודה7[[#This Row],[סיום]]-שעות_עבודה7[[#This Row],[התחלה]],שעות_עבודה7[[#This Row],[הוספת דקות]]/1440,-שעות_עבודה7[[#This Row],[הפחתת דקות]]/1440)) ->  | K93: =IF(שעות_עבודה7[[#This Row],[שעות]]="","", IF(SUMPRODUCT((שעות_עבודה7[[#This Row],[שם העבודה]]=$P$3:$P$6)*שעות_עבודה7[[#This Row],[שעות]]*($Q$3:$Q$6*24))=0,"", SUMPRODUCT((שעות_עבודה7[[#This Row],[שם העבודה]]=$P$3:$P$6)*שעות_עבודה7[[#This Row],[שעות]]*($Q$3:$Q$6*24)))) -> 
